Workbook

Sheet Control
A1: State Inventory Tool - Methane Emissions from Coal Mining
A3: 1. Choose a State.
A4: This is very important - it selects the correct default variables for your state.
A6: 2. Fill In the variables that are used in this tool and click to proceed to the respective worksheets.
A7: Either type in the value or click the default box. The default GWPs used in this module are from the IPCC Fourth Assessment Report (AR4) but can be adjusted in the Constants tab to reflect other sources.
A9: Coal Mining Emission Factors (EF)
B10: Default Factor | C10: Factor Used | D10: Use Default?
A11: Mines | B11: (ft3 methane / short ton coal) | C11: (ft3 methane / short ton coal) | D11: (Check for Yes)
A12: Surface Mines
A13: =VLOOKUP(VLOOKUP(St,coalbasins,5,FALSE),'Coal codes'!$I$27:$J$40,2,FALSE) -> --- | B13: =VLOOKUP(A13,Scoaldata,3,FALSE) -> 0
A14: =VLOOKUP(VLOOKUP(St,coalbasins,6,FALSE),'Coal codes'!$I$27:$J$40,2,FALSE) -> --- | B14: =VLOOKUP(A14,Scoaldata,3,FALSE) -> 0
A16: Post-Mining Activities
A17: Underground
A18: =VLOOKUP(VLOOKUP(St,coalbasins,3,FALSE),'Coal codes'!$I$5:$J$23,2,FALSE) -> --- | B18: =VLOOKUP(A18,Ucoaldata,3,FALSE) -> 0
A19: =VLOOKUP(VLOOKUP(St,coalbasins,4,FALSE),'Coal codes'!$I$5:$J$23,2,FALSE) -> --- | B19: =VLOOKUP(A19,Ucoaldata,3,FALSE) -> 0
A20: Surface
A21: =VLOOKUP(VLOOKUP(St,coalbasins,5,FALSE),'Coal codes'!$I$27:$J$40,2,FALSE) -> --- | B21: =VLOOKUP(A21,Scoaldata,4,FALSE) -> 0
A22: =VLOOKUP(VLOOKUP(St,coalbasins,6,FALSE),'Coal codes'!$I$27:$J$40,2,FALSE) -> --- | B22: =VLOOKUP(A22,Scoaldata,4,FALSE) -> 0
A25: 3. Proceed to the Coal Mining worksheet.
A29: 4. Proceed to the Abandoned Coal Mines worksheet.
A33: ="5. Proceed to Summary worksheet for emissions summary for "&State&"." -> 5. Proceed to Summary worksheet for emissions summary for Select a State . . . .
A41: 6. Export the results for use in the Synthesis Tool.

Sheet CH4 from Coal Mining
C1: ="3. CH4 from Coal Mining in "&constants!K1 -> 3. CH4 from Coal Mining in XX
C2: =constants!K1 -> XX
C3: Coal Mining | G3: 1990
C4: Emissions from: | D4: Coal Basin(s) (if applicable) | E4: Measured Ventilation Emissions (million cubic feet) | G4: Degasification System Emissions (mcf) | I4: Methane Recovered from Degasification Systems and Used for Energy (mcf) | K4: Emissions (mcf CH4) | M4: Emissions (MTCH4) | O4: Emissions (MTCO2E)
C5: Mines
B6: =G3 -> 1990 | C6: Underground Mines | F6: + ( | H6: - | J6: ) = | K6: =E6+G6-I6 -> 0 | L6: = | M6: =K6*1000000*ft3_g*g_mt -> 0 | N6: = | O6: =(M6*CH4GWP) -> 0
B7: =B6 -> 1990
B8: =B7 -> 1990 | E8: Surface Coal Production ('000 short tons) | G8: Basin-specific EF (ft3/short ton) | I8: Emissions ('000 ft3 CH4) | K8: Emissions (MTCH4) | M8: Emissions (MTCO2E)
B9: 1990 | C9: Surface Mines | D9: =VLOOKUP(VLOOKUP(constants!$K$1,coalbasins,5,FALSE),'Coal codes'!$I$27:$J$40,2,FALSE) -> --- | F9: x | G9: =Control!$C$13 -> 0 | H9: = | I9: =E9*G9 -> 0 | J9: = | K9: =I9*ft3_g*g_mt*1000 -> 0 | L9: = | M9: =(K9*CH4GWP) -> 0
B10: 1990 | D10: =VLOOKUP(VLOOKUP(constants!$K$1,coalbasins,6,FALSE),'Coal codes'!$I$27:$J$40,2,FALSE) -> --- | F10: x | G10: =Control!$C$14 -> 0 | H10: = | I10: =IF(BasinNum=1,"---",E10*G10) -> 0 | J10: = | K10: =IF(BasinNum=1,"---",I10*ft3_g*g_mt*1000) -> 0 | L10: = | M10: =IF(BasinNum=1,"---",(K10*CH4GWP)) -> 0
B11: 1990
B12: 1990 | C12: Post-Mining Activity | E12: Coal Production ('000 short tons) | G12: Basin- & Mine-specific EF (ft3/short ton) | I12: Emissions ('000 ft3 CH4) | K12: Emissions (MTCH4) | M12: Emissions (MTCO2E)
B13: 1990 | C13: Underground Mines | D13: =VLOOKUP(VLOOKUP(constants!$K$1,coalbasins,3,FALSE),'Coal codes'!$I$5:$J$23,2,FALSE) -> --- | F13: x | G13: =Control!$C$18 -> 0 | H13: = | I13: =E13*G13 -> 0 | J13: = | K13: =I13*ft3_g*g_mt*1000 -> 0 | L13: = | M13: =(K13*CH4GWP) -> 0
B14: 1990 | D14: =VLOOKUP(VLOOKUP(constants!$K$1,coalbasins,4,FALSE),'Coal codes'!$I$5:$J$23,2,FALSE) -> --- | F14: x | G14: =Control!$C$19 -> 0 | H14: = | I14: =IF(BasinNum=1,"---",E14*G14) -> 0 | J14: = | K14: =IF(BasinNum=1,"---",I14*ft3_g*g_mt*1000) -> 0 | L14: = | M14: =IF(BasinNum=1,"---",(K14*CH4GWP)) -> 0
B15: 1990 | C15: Surface Mines | D15: =VLOOKUP(VLOOKUP(constants!$K$1,coalbasins,5,FALSE),'Coal codes'!$I$27:$J$40,2,FALSE) -> --- | F15: x | G15: =Control!$C$21 -> 0 | H15: = | I15: =E15*G15 -> 0 | J15: = | K15: =I15*ft3_g*g_mt*1000 -> 0 | L15: = | M15: =(K15*CH4GWP) -> 0
B16: 1990 | D16: =VLOOKUP(VLOOKUP(constants!$K$1,coalbasins,6,FALSE),'Coal codes'!$I$27:$J$40,2,FALSE) -> --- | F16: x | G16: =Control!$C$22 -> 0 | H16: = | I16: =IF(BasinNum=1,"---",E16*G16) -> 0 | J16: = | K16: =IF(BasinNum=1,"---",I16*ft3_g*g_mt*1000) -> 0 | L16: = | M16: =IF(BasinNum=1,"---",(K16*CH4GWP)) -> 0
B17: 1990 | C17: Post-Mining Total | I17: =SUM(I13:I16) -> 0 | J17: = | K17: =SUM(K13:K16) -> 0 | L17: = | M17: =SUM(M13:M16) -> 0
C19: Total Coal Mining | D19: (MTCO2E) | E19: =SUM(E20:E22) -> 0
D20: Underground Mines | E20: =O6 -> 0
D21: Surface Mines | E21: =SUM(M9:M10) -> 0
D22: Post-Mining Activity | E22: =M17 -> 0
C24: Coal Mining | G24: 1991
C25: Emissions from: | D25: Coal Basin(s) (if applicable) | E25: Measured Ventilation Emissions (mcf) | G25: Degasification System Emissions (mcf) | I25: Methane Recovered from Degasification Systems and Used for Energy (mcf) | K25: Emissions (mcf CH4) | M25: Emissions (MTCH4) | O25: Emissions (MTCO2E)
C26: Mines
B27: =G24 -> 1991 | C27: Underground Mines | F27: + ( | H27: - | J27: ) = | K27: =E27+G27-I27 -> 0 | L27: = | M27: =K27*1000000*ft3_g*g_mt -> 0 | N27: = | O27: =(M27*CH4GWP) -> 0
B28: =B27 -> 1991
B29: =B28 -> 1991 | E29: Surface Coal Production ('000 short tons) | G29: Basin-specific EF (ft3/short ton) | I29: Emissions ('000 ft3 CH4) | K29: Emissions (MTCH4) | M29: Emissions (MTCO2E)
B30: 1991 | C30: Surface Mines | D30: =VLOOKUP(VLOOKUP(constants!$K$1,coalbasins,5,FALSE),'Coal codes'!$I$27:$J$40,2,FALSE) -> --- | F30: x | G30: =Control!$C$13 -> 0 | H30: = | I30: =E30*G30 -> 0 | J30: = | K30: =I30*ft3_g*g_mt*1000 -> 0 | L30: = | M30: =(K30*CH4GWP) -> 0
B31: 1991 | D31: =VLOOKUP(VLOOKUP(constants!$K$1,coalbasins,6,FALSE),'Coal codes'!$I$27:$J$40,2,FALSE) -> --- | F31: x | G31: =Control!$C$14 -> 0 | H31: = | I31: =IF(BasinNum=1,"---",E31*G31) -> 0 | J31: = | K31: =IF(BasinNum=1,"---",I31*ft3_g*g_mt*1000) -> 0 | L31: = | M31: =IF(BasinNum=1,"---",(K31*CH4GWP)) -> 0
B32: 1991
B33: 1991 | C33: Post-Mining Activity | E33: Coal Production ('000 short tons) | G33: Basin- & Mine-specific EF (ft3/short ton) | I33: Emissions ('000 ft3 CH4) | K33: Emissions (MTCH4) | M33: Emissions (MTCO2E)
B34: 1991 | C34: Underground Mines | D34: =VLOOKUP(VLOOKUP(constants!$K$1,coalbasins,3,FALSE),'Coal codes'!$I$5:$J$23,2,FALSE) -> --- | F34: x | G34: =Control!$C$18 -> 0 | H34: = | I34: =E34*G34 -> 0 | J34: = | K34: =I34*ft3_g*g_mt*1000 -> 0 | L34: = | M34: =(K34*CH4GWP) -> 0
B35: 1991 | D35: =VLOOKUP(VLOOKUP(constants!$K$1,coalbasins,4,FALSE),'Coal codes'!$I$5:$J$23,2,FALSE) -> --- | F35: x | G35: =Control!$C$19 -> 0 | H35: = | I35: =IF(BasinNum=1,"---",E35*G35) -> 0 | J35: = | K35: =IF(BasinNum=1,"---",I35*ft3_g*g_mt*1000) -> 0 | L35: = | M35: =IF(BasinNum=1,"---",(K35*CH4GWP)) -> 0
B36: 1991 | C36: Surface Mines | D36: =VLOOKUP(VLOOKUP(constants!$K$1,coalbasins,5,FALSE),'Coal codes'!$I$27:$J$40,2,FALSE) -> --- | F36: x | G36: =Control!$C$21 -> 0 | H36: = | I36: =E36*G36 -> 0 | J36: = | K36: =I36*ft3_g*g_mt*1000 -> 0 | L36: = | M36: =(K36*CH4GWP) -> 0
B37: 1991 | D37: =VLOOKUP(VLOOKUP(constants!$K$1,coalbasins,6,FALSE),'Coal codes'!$I$27:$J$40,2,FALSE) -> --- | F37: x | G37: =Control!$C$22 -> 0 | H37: = | I37: =IF(BasinNum=1,"---",E37*G37) -> 0 | J37: = | K37: =IF(BasinNum=1,"---",I37*ft3_g*g_mt*1000) -> 0 | L37: = | M37: =IF(BasinNum=1,"---",(K37*CH4GWP)) -> 0
B38: 1991 | C38: Post-Mining Total | I38: =SUM(I34:I37) -> 0 | J38: = | K38: =SUM(K34:K37) -> 0 | L38: = | M38: =SUM(M34:M37) -> 0
C40: Total Coal Mining | D40: (MTCO2E) | E40: =SUM(E41:E43) -> 0
D41: Underground Mines | E41: =O27 -> 0
D42: Surface Mines | E42: =SUM(M30:M31) -> 0
D43: Post-Mining Activity | E43: =M38 -> 0
C45: Coal Mining | G45: 1992
C46: Emissions from: | D46: Coal Basin(s) (if applicable) | E46: Measured Ventilation Emissions (mcf) | G46: Degasification System Emissions (mcf) | I46: Methane Recovered from Degasification Systems and Used for Energy (mcf) | K46: Emissions (mcf CH4) | M46: Emissions (MTCH4) | O46: Emissions (MTCO2E)
C47: Mines
B48: =G45 -> 1992 | C48: Underground Mines | F48: + ( | H48: - | J48: ) = | K48: =E48+G48-I48 -> 0 | L48: = | M48: =K48*1000000*ft3_g*g_mt -> 0 | N48: = | O48: =(M48*CH4GWP) -> 0
B49: =B48 -> 1992
B50: =B49 -> 1992 | E50: Surface Coal Production ('000 short tons) | G50: Basin-specific EF (ft3/short ton) | I50: Emissions ('000 ft3 CH4) | K50: Emissions (MTCH4) | M50: Emissions (MTCO2E)
B51: 1992 | C51: Surface Mines | D51: =VLOOKUP(VLOOKUP(constants!$K$1,coalbasins,5,FALSE),'Coal codes'!$I$27:$J$40,2,FALSE) -> --- | F51: x | G51: =Control!$C$13 -> 0 | H51: = | I51: =E51*G51 -> 0 | J51: = | K51: =I51*ft3_g*g_mt*1000 -> 0 | L51: = | M51: =(K51*CH4GWP) -> 0
B52: 1992 | D52: =VLOOKUP(VLOOKUP(constants!$K$1,coalbasins,6,FALSE),'Coal codes'!$I$27:$J$40,2,FALSE) -> --- | F52: x | G52: =Control!$C$14 -> 0 | H52: = | I52: =IF(BasinNum=1,"---",E52*G52) -> 0 | J52: = | K52: =IF(BasinNum=1,"---",I52*ft3_g*g_mt*1000) -> 0 | L52: = | M52: =IF(BasinNum=1,"---",(K52*CH4GWP)) -> 0
B53: 1992
B54: 1992 | C54: Post-Mining Activity | E54: Coal Production ('000 short tons) | G54: Basin- & Mine-specific EF (ft3/short ton) | I54: Emissions ('000 ft3 CH4) | K54: Emissions (MTCH4) | M54: Emissions (MTCO2E)
B55: 1992 | C55: Underground Mines | D55: =VLOOKUP(VLOOKUP(constants!$K$1,coalbasins,3,FALSE),'Coal codes'!$I$5:$J$23,2,FALSE) -> --- | F55: x | G55: =Control!$C$18 -> 0 | H55: = | I55: =E55*G55 -> 0 | J55: = | K55: =I55*ft3_g*g_mt*1000 -> 0 | L55: = | M55: =(K55*CH4GWP) -> 0
B56: 1992 | D56: =VLOOKUP(VLOOKUP(constants!$K$1,coalbasins,4,FALSE),'Coal codes'!$I$5:$J$23,2,FALSE) -> --- | F56: x | G56: =Control!$C$19 -> 0 | H56: = | I56: =IF(BasinNum=1,"---",E56*G56) -> 0 | J56: = | K56: =IF(BasinNum=1,"---",I56*ft3_g*g_mt*1000) -> 0 | L56: = | M56: =IF(BasinNum=1,"---",(K56*CH4GWP)) -> 0
B57: 1992 | C57: Surface Mines | D57: =VLOOKUP(VLOOKUP(constants!$K$1,coalbasins,5,FALSE),'Coal codes'!$I$27:$J$40,2,FALSE) -> --- | F57: x | G57: =Control!$C$21 -> 0 | H57: = | I57: =E57*G57 -> 0 | J57: = | K57: =I57*ft3_g*g_mt*1000 -> 0 | L57: = | M57: =(K57*CH4GWP) -> 0
B58: 1992 | D58: =VLOOKUP(VLOOKUP(constants!$K$1,coalbasins,6,FALSE),'Coal codes'!$I$27:$J$40,2,FALSE) -> --- | F58: x | G58: =Control!$C$22 -> 0 | H58: = | I58: =IF(BasinNum=1,"---",E58*G58) -> 0 | J58: = | K58: =IF(BasinNum=1,"---",I58*ft3_g*g_mt*1000) -> 0 | L58: = | M58: =IF(BasinNum=1,"---",(K58*CH4GWP)) -> 0
B59: 1992 | C59: Post-Mining Total | I59: =SUM(I55:I58) -> 0 | J59: = | K59: =SUM(K55:K58) -> 0 | L59: = | M59: =SUM(M55:M58) -> 0
C61: Total Coal Mining | D61: (MTCO2E) | E61: =SUM(E62:E64) -> 0
D62: Underground Mines | E62: =O48 -> 0
D63: Surface Mines | E63: =SUM(M51:M52) -> 0
D64: Post-Mining Activity | E64: =M59 -> 0
C66: Coal Mining | G66: 1993
C67: Emissions from: | D67: Coal Basin(s) (if applicable) | E67: Measured Ventilation Emissions (mcf) | G67: Degasification System Emissions (mcf) | I67: Methane Recovered from Degasification Systems and Used for Energy (mcf) | K67: Emissions (mcf CH4) | M67: Emissions (MTCH4) | O67: Emissions (MTCO2E)
C68: Mines
B69: =G66 -> 1993 | C69: Underground Mines | F69: + ( | H69: - | J69: ) = | K69: =E69+G69-I69 -> 0 | L69: = | M69: =K69*1000000*ft3_g*g_mt -> 0 | N69: = | O69: =(M69*CH4GWP) -> 0
B70: =B69 -> 1993
B71: =B70 -> 1993 | E71: Surface Coal Production ('000 short tons) | G71: Basin-specific EF (ft3/short ton) | I71: Emissions ('000 ft3 CH4) | K71: Emissions (MTCH4) | M71: Emissions (MTCO2E)
B72: 1993 | C72: Surface Mines | D72: =VLOOKUP(VLOOKUP(constants!$K$1,coalbasins,5,FALSE),'Coal codes'!$I$27:$J$40,2,FALSE) -> --- | F72: x | G72: =Control!$C$13 -> 0 | H72: = | I72: =E72*G72 -> 0 | J72: = | K72: =I72*ft3_g*g_mt*1000 -> 0 | L72: = | M72: =(K72*CH4GWP) -> 0
B73: 1993 | D73: =VLOOKUP(VLOOKUP(constants!$K$1,coalbasins,6,FALSE),'Coal codes'!$I$27:$J$40,2,FALSE) -> --- | F73: x | G73: =Control!$C$14 -> 0 | H73: = | I73: =IF(BasinNum=1,"---",E73*G73) -> 0 | J73: = | K73: =IF(BasinNum=1,"---",I73*ft3_g*g_mt*1000) -> 0 | L73: = | M73: =IF(BasinNum=1,"---",(K73*CH4GWP)) -> 0
B74: 1993
B75: 1993 | C75: Post-Mining Activity | E75: Coal Production ('000 short tons) | G75: Basin- & Mine-specific EF (ft3/short ton) | I75: Emissions ('000 ft3 CH4) | K75: Emissions (MTCH4) | M75: Emissions (MTCO2E)
B76: 1993 | C76: Underground Mines | D76: =VLOOKUP(VLOOKUP(constants!$K$1,coalbasins,3,FALSE),'Coal codes'!$I$5:$J$23,2,FALSE) -> --- | F76: x | G76: =Control!$C$18 -> 0 | H76: = | I76: =E76*G76 -> 0 | J76: = | K76: =I76*ft3_g*g_mt*1000 -> 0 | L76: = | M76: =(K76*CH4GWP) -> 0
B77: 1993 | D77: =VLOOKUP(VLOOKUP(constants!$K$1,coalbasins,4,FALSE),'Coal codes'!$I$5:$J$23,2,FALSE) -> --- | F77: x | G77: =Control!$C$19 -> 0 | H77: = | I77: =IF(BasinNum=1,"---",E77*G77) -> 0 | J77: = | K77: =IF(BasinNum=1,"---",I77*ft3_g*g_mt*1000) -> 0 | L77: = | M77: =IF(BasinNum=1,"---",(K77*CH4GWP)) -> 0
B78: 1993 | C78: Surface Mines | D78: =VLOOKUP(VLOOKUP(constants!$K$1,coalbasins,5,FALSE),'Coal codes'!$I$27:$J$40,2,FALSE) -> --- | F78: x | G78: =Control!$C$21 -> 0 | H78: = | I78: =E78*G78 -> 0 | J78: = | K78: =I78*ft3_g*g_mt*1000 -> 0 | L78: = | M78: =(K78*CH4GWP) -> 0
B79: 1993 | D79: =VLOOKUP(VLOOKUP(constants!$K$1,coalbasins,6,FALSE),'Coal codes'!$I$27:$J$40,2,FALSE) -> --- | F79: x | G79: =Control!$C$22 -> 0 | H79: = | I79: =IF(BasinNum=1,"---",E79*G79) -> 0 | J79: = | K79: =IF(BasinNum=1,"---",I79*ft3_g*g_mt*1000) -> 0 | L79: = | M79: =IF(BasinNum=1,"---",(K79*CH4GWP)) -> 0
B80: 1993 | C80: Post-Mining Total | I80: =SUM(I76:I79) -> 0 | J80: = | K80: =SUM(K76:K79) -> 0 | L80: = | M80: =SUM(M76:M79) -> 0
C82: Total Coal Mining | D82: (MTCO2E) | E82: =SUM(E83:E85) -> 0
D83: Underground Mines | E83: =O69 -> 0
D84: Surface Mines | E84: =SUM(M72:M73) -> 0
D85: Post-Mining Activity | E85: =M80 -> 0
C87: Coal Mining | G87: 1994
C88: Emissions from: | D88: Coal Basin(s) (if applicable) | E88: Measured Ventilation Emissions (mcf) | G88: Degasification System Emissions (mcf) | I88: Methane Recovered from Degasification Systems and Used for Energy (mcf) | K88: Emissions (mcf CH4) | M88: Emissions (MTCH4) | O88: Emissions (MTCO2E)
C89: Mines
B90: =G87 -> 1994 | C90: Underground Mines | F90: + ( | H90: - | J90: ) = | K90: =E90+G90-I90 -> 0 | L90: = | M90: =K90*1000000*ft3_g*g_mt -> 0 | N90: = | O90: =(M90*CH4GWP) -> 0
B91: =B90 -> 1994
B92: =B91 -> 1994 | E92: Surface Coal Production ('000 short tons) | G92: Basin-specific EF (ft3/short ton) | I92: Emissions ('000 ft3 CH4) | K92: Emissions (MTCH4) | M92: Emissions (MTCO2E)
B93: 1994 | C93: Surface Mines | D93: =VLOOKUP(VLOOKUP(constants!$K$1,coalbasins,5,FALSE),'Coal codes'!$I$27:$J$40,2,FALSE) -> --- | F93: x | G93: =Control!$C$13 -> 0 | H93: = | I93: =E93*G93 -> 0 | J93: = | K93: =I93*ft3_g*g_mt*1000 -> 0 | L93: = | M93: =(K93*CH4GWP) -> 0
B94: 1994 | D94: =VLOOKUP(VLOOKUP(constants!$K$1,coalbasins,6,FALSE),'Coal codes'!$I$27:$J$40,2,FALSE) -> --- | F94: x | G94: =Control!$C$14 -> 0 | H94: = | I94: =IF(BasinNum=1,"---",E94*G94) -> 0 | J94: = | K94: =IF(BasinNum=1,"---",I94*ft3_g*g_mt*1000) -> 0 | L94: = | M94: =IF(BasinNum=1,"---",(K94*CH4GWP)) -> 0
B95: 1994
B96: 1994 | C96: Post-Mining Activity | E96: Coal Production ('000 short tons) | G96: Basin- & Mine-specific EF (ft3/short ton) | I96: Emissions ('000 ft3 CH4) | K96: Emissions (MTCH4) | M96: Emissions (MTCO2E)
B97: 1994 | C97: Underground Mines | D97: =VLOOKUP(VLOOKUP(constants!$K$1,coalbasins,3,FALSE),'Coal codes'!$I$5:$J$23,2,FALSE) -> --- | F97: x | G97: =Control!$C$18 -> 0 | H97: = | I97: =E97*G97 -> 0 | J97: = | K97: =I97*ft3_g*g_mt*1000 -> 0 | L97: = | M97: =(K97*CH4GWP) -> 0
B98: 1994 | D98: =VLOOKUP(VLOOKUP(constants!$K$1,coalbasins,4,FALSE),'Coal codes'!$I$5:$J$23,2,FALSE) -> --- | F98: x | G98: =Control!$C$19 -> 0 | H98: = | I98: =IF(BasinNum=1,"---",E98*G98) -> 0 | J98: = | K98: =IF(BasinNum=1,"---",I98*ft3_g*g_mt*1000) -> 0 | L98: = | M98: =IF(BasinNum=1,"---",(K98*CH4GWP)) -> 0
B99: 1994 | C99: Surface Mines | D99: =VLOOKUP(VLOOKUP(constants!$K$1,coalbasins,5,FALSE),'Coal codes'!$I$27:$J$40,2,FALSE) -> --- | F99: x | G99: =Control!$C$21 -> 0 | H99: = | I99: =E99*G99 -> 0 | J99: = | K99: =I99*ft3_g*g_mt*1000 -> 0 | L99: = | M99: =(K99*CH4GWP) -> 0
B100: 1994 | D100: =VLOOKUP(VLOOKUP(constants!$K$1,coalbasins,6,FALSE),'Coal codes'!$I$27:$J$40,2,FALSE) -> --- | F100: x | G100: =Control!$C$22 -> 0 | H100: = | I100: =IF(BasinNum=1,"---",E100*G100) -> 0 | J100: = | K100: =IF(BasinNum=1,"---",I100*ft3_g*g_mt*1000) -> 0 | L100: = | M100: =IF(BasinNum=1,"---",(K100*CH4GWP)) -> 0
B101: 1994 | C101: Post-Mining Total | I101: =SUM(I97:I100) -> 0 | J101: = | K101: =SUM(K97:K100) -> 0 | L101: = | M101: =SUM(M97:M100) -> 0
C103: Total Coal Mining | D103: (MTCO2E) | E103: =SUM(E104:E106) -> 0
D104: Underground Mines | E104: =O90 -> 0
D105: Surface Mines | E105: =SUM(M93:M94) -> 0
D106: Post-Mining Activity | E106: =M101 -> 0
C108: Coal Mining | G108: 1995
C109: Emissions from: | D109: Coal Basin(s) (if applicable) | E109: Measured Ventilation Emissions (mcf) | G109: Degasification System Emissions (mcf) | I109: Methane Recovered from Degasification Systems and Used for Energy (mcf) | K109: Emissions (mcf CH4) | M109: Emissions (MTCH4) | O109: Emissions (MTCO2E)
C110: Mines
B111: =G108 -> 1995 | C111: Underground Mines | F111: + ( | H111: - | J111: ) = | K111: =E111+G111-I111 -> 0 | L111: = | M111: =K111*1000000*ft3_g*g_mt -> 0 | N111: = | O111: =(M111*CH4GWP) -> 0
B112: =B111 -> 1995
B113: =B112 -> 1995 | E113: Surface Coal Production ('000 short tons) | G113: Basin-specific EF (ft3/short ton) | I113: Emissions ('000 ft3 CH4) | K113: Emissions (MTCH4) | M113: Emissions (MTCO2E)
B114: 1995 | C114: Surface Mines | D114: =VLOOKUP(VLOOKUP(constants!$K$1,coalbasins,5,FALSE),'Coal codes'!$I$27:$J$40,2,FALSE) -> --- | F114: x | G114: =Control!$C$13 -> 0 | H114: = | I114: =E114*G114 -> 0 | J114: = | K114: =I114*ft3_g*g_mt*1000 -> 0 | L114: = | M114: =(K114*CH4GWP) -> 0
B115: 1995 | D115: =VLOOKUP(VLOOKUP(constants!$K$1,coalbasins,6,FALSE),'Coal codes'!$I$27:$J$40,2,FALSE) -> --- | F115: x | G115: =Control!$C$14 -> 0 | H115: = | I115: =IF(BasinNum=1,"---",E115*G115) -> 0 | J115: = | K115: =IF(BasinNum=1,"---",I115*ft3_g*g_mt*1000) -> 0 | L115: = | M115: =IF(BasinNum=1,"---",(K115*CH4GWP)) -> 0
B116: 1995
B117: 1995 | C117: Post-Mining Activity | E117: Coal Production ('000 short tons) | G117: Basin- & Mine-specific EF (ft3/short ton) | I117: Emissions ('000 ft3 CH4) | K117: Emissions (MTCH4) | M117: Emissions (MTCO2E)
B118: 1995 | C118: Underground Mines | D118: =VLOOKUP(VLOOKUP(constants!$K$1,coalbasins,3,FALSE),'Coal codes'!$I$5:$J$23,2,FALSE) -> --- | F118: x | G118: =Control!$C$18 -> 0 | H118: = | I118: =E118*G118 -> 0 | J118: = | K118: =I118*ft3_g*g_mt*1000 -> 0 | L118: = | M118: =(K118*CH4GWP) -> 0
B119: 1995 | D119: =VLOOKUP(VLOOKUP(constants!$K$1,coalbasins,4,FALSE),'Coal codes'!$I$5:$J$23,2,FALSE) -> --- | F119: x | G119: =Control!$C$19 -> 0 | H119: = | I119: =IF(BasinNum=1,"---",E119*G119) -> 0 | J119: = | K119: =IF(BasinNum=1,"---",I119*ft3_g*g_mt*1000) -> 0 | L119: = | M119: =IF(BasinNum=1,"---",(K119*CH4GWP)) -> 0
B120: 1995 | C120: Surface Mines | D120: =VLOOKUP(VLOOKUP(constants!$K$1,coalbasins,5,FALSE),'Coal codes'!$I$27:$J$40,2,FALSE) -> --- | F120: x | G120: =Control!$C$21 -> 0 | H120: = | I120: =E120*G120 -> 0 | J120: = | K120: =I120*ft3_g*g_mt*1000 -> 0 | L120: = | M120: =(K120*CH4GWP) -> 0
B121: 1995 | D121: =VLOOKUP(VLOOKUP(constants!$K$1,coalbasins,6,FALSE),'Coal codes'!$I$27:$J$40,2,FALSE) -> --- | F121: x | G121: =Control!$C$22 -> 0 | H121: = | I121: =IF(BasinNum=1,"---",E121*G121) -> 0 | J121: = | K121: =IF(BasinNum=1,"---",I121*ft3_g*g_mt*1000) -> 0 | L121: = | M121: =IF(BasinNum=1,"---",(K121*CH4GWP)) -> 0
B122: 1995 | C122: Post-Mining Total | I122: =SUM(I118:I121) -> 0 | J122: = | K122: =SUM(K118:K121) -> 0 | L122: = | M122: =SUM(M118:M121) -> 0
C124: Total Coal Mining | D124: (MTCO2E) | E124: =SUM(E125:E127) -> 0
D125: Underground Mines | E125: =O111 -> 0
D126: Surface Mines | E126: =SUM(M114:M115) -> 0
D127: Post-Mining Activity | E127: =M122 -> 0
C129: Coal Mining | G129: 1996
C130: Emissions from: | D130: Coal Basin(s) (if applicable) | E130: Measured Ventilation Emissions (mcf) | G130: Degasification System Emissions (mcf) | I130: Methane Recovered from Degasification Systems and Used for Energy (mcf) | K130: Emissions (mcf CH4) | M130: Emissions (MTCH4) | O130: Emissions (MTCO2E)
C131: Mines
B132: =G129 -> 1996 | C132: Underground Mines | F132: + ( | H132: - | J132: ) = | K132: =E132+G132-I132 -> 0 | L132: = | M132: =K132*1000000*ft3_g*g_mt -> 0 | N132: = | O132: =(M132*CH4GWP) -> 0
B133: =B132 -> 1996
B134: =B133 -> 1996 | E134: Surface Coal Production ('000 short tons) | G134: Basin-specific EF (ft3/short ton) | I134: Emissions ('000 ft3 CH4) | K134: Emissions (MTCH4) | M134: Emissions (MTCO2E)
B135: 1996 | C135: Surface Mines | D135: =VLOOKUP(VLOOKUP(constants!$K$1,coalbasins,5,FALSE),'Coal codes'!$I$27:$J$40,2,FALSE) -> --- | F135: x | G135: =Control!$C$13 -> 0 | H135: = | I135: =E135*G135 -> 0 | J135: = | K135: =I135*ft3_g*g_mt*1000 -> 0 | L135: = | M135: =(K135*CH4GWP) -> 0
B136: 1996 | D136: =VLOOKUP(VLOOKUP(constants!$K$1,coalbasins,6,FALSE),'Coal codes'!$I$27:$J$40,2,FALSE) -> --- | F136: x | G136: =Control!$C$14 -> 0 | H136: = | I136: =IF(BasinNum=1,"---",E136*G136) -> 0 | J136: = | K136: =IF(BasinNum=1,"---",I136*ft3_g*g_mt*1000) -> 0 | L136: = | M136: =IF(BasinNum=1,"---",(K136*CH4GWP)) -> 0
B137: 1996
B138: 1996 | C138: Post-Mining Activity | E138: Coal Production ('000 short tons) | G138: Basin- & Mine-specific EF (ft3/short ton) | I138: Emissions ('000 ft3 CH4) | K138: Emissions (MTCH4) | M138: Emissions (MTCO2E)
B139: 1996 | C139: Underground Mines | D139: =VLOOKUP(VLOOKUP(constants!$K$1,coalbasins,3,FALSE),'Coal codes'!$I$5:$J$23,2,FALSE) -> --- | F139: x | G139: =Control!$C$18 -> 0 | H139: = | I139: =E139*G139 -> 0 | J139: = | K139: =I139*ft3_g*g_mt*1000 -> 0 | L139: = | M139: =(K139*CH4GWP) -> 0
B140: 1996 | D140: =VLOOKUP(VLOOKUP(constants!$K$1,coalbasins,4,FALSE),'Coal codes'!$I$5:$J$23,2,FALSE) -> --- | F140: x | G140: =Control!$C$19 -> 0 | H140: = | I140: =IF(BasinNum=1,"---",E140*G140) -> 0 | J140: = | K140: =IF(BasinNum=1,"---",I140*ft3_g*g_mt*1000) -> 0 | L140: = | M140: =IF(BasinNum=1,"---",(K140*CH4GWP)) -> 0
B141: 1996 | C141: Surface Mines | D141: =VLOOKUP(VLOOKUP(constants!$K$1,coalbasins,5,FALSE),'Coal codes'!$I$27:$J$40,2,FALSE) -> --- | F141: x | G141: =Control!$C$21 -> 0 | H141: = | I141: =E141*G141 -> 0 | J141: = | K141: =I141*ft3_g*g_mt*1000 -> 0 | L141: = | M141: =(K141*CH4GWP) -> 0
B142: 1996 | D142: =VLOOKUP(VLOOKUP(constants!$K$1,coalbasins,6,FALSE),'Coal codes'!$I$27:$J$40,2,FALSE) -> --- | F142: x | G142: =Control!$C$22 -> 0 | H142: = | I142: =IF(BasinNum=1,"---",E142*G142) -> 0 | J142: = | K142: =IF(BasinNum=1,"---",I142*ft3_g*g_mt*1000) -> 0 | L142: = | M142: =IF(BasinNum=1,"---",(K142*CH4GWP)) -> 0
B143: 1996 | C143: Post-Mining Total | I143: =SUM(I139:I142) -> 0 | J143: = | K143: =SUM(K139:K142) -> 0 | L143: = | M143: =SUM(M139:M142) -> 0
C145: Total Coal Mining | D145: (MTCO2E) | E145: =SUM(E146:E148) -> 0
D146: Underground Mines | E146: =O132 -> 0
D147: Surface Mines | E147: =SUM(M135:M136) -> 0
D148: Post-Mining Activity | E148: =M143 -> 0
C150: Coal Mining | G150: 1997
C151: Emissions from: | D151: Coal Basin(s) (if applicable) | E151: Measured Ventilation Emissions (mcf) | G151: Degasification System Emissions (mcf) | I151: Methane Recovered from Degasification Systems and Used for Energy (mcf) | K151: Emissions (mcf CH4) | M151: Emissions (MTCH4) | O151: Emissions (MTCO2E)
C152: Mines
B153: =G150 -> 1997 | C153: Underground Mines | F153: + ( | H153: - | J153: ) = | K153: =E153+G153-I153 -> 0 | L153: = | M153: =K153*1000000*ft3_g*g_mt -> 0 | N153: = | O153: =(M153*CH4GWP) -> 0
B154: =B153 -> 1997
B155: =B154 -> 1997 | E155: Surface Coal Production ('000 short tons) | G155: Basin-specific EF (ft3/short ton) | I155: Emissions ('000 ft3 CH4) | K155: Emissions (MTCH4) | M155: Emissions (MTCO2E)
B156: 1997 | C156: Surface Mines | D156: =VLOOKUP(VLOOKUP(constants!$K$1,coalbasins,5,FALSE),'Coal codes'!$I$27:$J$40,2,FALSE) -> --- | F156: x | G156: =Control!$C$13 -> 0 | H156: = | I156: =E156*G156 -> 0 | J156: = | K156: =I156*ft3_g*g_mt*1000 -> 0 | L156: = | M156: =(K156*CH4GWP) -> 0
B157: 1997 | D157: =VLOOKUP(VLOOKUP(constants!$K$1,coalbasins,6,FALSE),'Coal codes'!$I$27:$J$40,2,FALSE) -> --- | F157: x | G157: =Control!$C$14 -> 0 | H157: = | I157: =IF(BasinNum=1,"---",E157*G157) -> 0 | J157: = | K157: =IF(BasinNum=1,"---",I157*ft3_g*g_mt*1000) -> 0 | L157: = | M157: =IF(BasinNum=1,"---",(K157*CH4GWP)) -> 0
B158: 1997
B159: 1997 | C159: Post-Mining Activity | E159: Coal Production ('000 short tons) | G159: Basin- & Mine-specific EF (ft3/short ton) | I159: Emissions ('000 ft3 CH4) | K159: Emissions (MTCH4) | M159: Emissions (MTCO2E)
B160: 1997 | C160: Underground Mines | D160: =VLOOKUP(VLOOKUP(constants!$K$1,coalbasins,3,FALSE),'Coal codes'!$I$5:$J$23,2,FALSE) -> --- | F160: x | G160: =Control!$C$18 -> 0 | H160: = | I160: =E160*G160 -> 0 | J160: = | K160: =I160*ft3_g*g_mt*1000 -> 0 | L160: = | M160: =(K160*CH4GWP) -> 0
B161: 1997 | D161: =VLOOKUP(VLOOKUP(constants!$K$1,coalbasins,4,FALSE),'Coal codes'!$I$5:$J$23,2,FALSE) -> --- | F161: x | G161: =Control!$C$19 -> 0 | H161: = | I161: =IF(BasinNum=1,"---",E161*G161) -> 0 | J161: = | K161: =IF(BasinNum=1,"---",I161*ft3_g*g_mt*1000) -> 0 | L161: = | M161: =IF(BasinNum=1,"---",(K161*CH4GWP)) -> 0
B162: 1997 | C162: Surface Mines | D162: =VLOOKUP(VLOOKUP(constants!$K$1,coalbasins,5,FALSE),'Coal codes'!$I$27:$J$40,2,FALSE) -> --- | F162: x | G162: =Control!$C$21 -> 0 | H162: = | I162: =E162*G162 -> 0 | J162: = | K162: =I162*ft3_g*g_mt*1000 -> 0 | L162: = | M162: =(K162*CH4GWP) -> 0
B163: 1997 | D163: =VLOOKUP(VLOOKUP(constants!$K$1,coalbasins,6,FALSE),'Coal codes'!$I$27:$J$40,2,FALSE) -> --- | F163: x | G163: =Control!$C$22 -> 0 | H163: = | I163: =IF(BasinNum=1,"---",E163*G163) -> 0 | J163: = | K163: =IF(BasinNum=1,"---",I163*ft3_g*g_mt*1000) -> 0 | L163: = | M163: =IF(BasinNum=1,"---",(K163*CH4GWP)) -> 0
B164: 1997 | C164: Post-Mining Total | I164: =SUM(I160:I163) -> 0 | J164: = | K164: =SUM(K160:K163) -> 0 | L164: = | M164: =SUM(M160:M163) -> 0
C166: Total Coal Mining | D166: (MTCO2E) | E166: =SUM(E167:E169) -> 0
D167: Underground Mines | E167: =O153 -> 0
D168: Surface Mines | E168: =SUM(M156:M157) -> 0
D169: Post-Mining Activity | E169: =M164 -> 0
C171: Coal Mining | G171: 1998
C172: Emissions from: | D172: Coal Basin(s) (if applicable) | E172: Measured Ventilation Emissions (mcf) | G172: Degasification System Emissions (mcf) | I172: Methane Recovered from Degasification Systems and Used for Energy (mcf) | K172: Emissions (mcf CH4) | M172: Emissions (MTCH4) | O172: Emissions (MTCO2E)
C173: Mines
B174: =G171 -> 1998 | C174: Underground Mines | F174: + ( | H174: - | J174: ) = | K174: =E174+G174-I174 -> 0 | L174: = | M174: =K174*1000000*ft3_g*g_mt -> 0 | N174: = | O174: =(M174*CH4GWP) -> 0
B175: =B174 -> 1998
B176: =B175 -> 1998 | E176: Surface Coal Production ('000 short tons) | G176: Basin-specific EF (ft3/short ton) | I176: Emissions ('000 ft3 CH4) | K176: Emissions (MTCH4) | M176: Emissions (MTCO2E)
B177: 1998 | C177: Surface Mines | D177: =VLOOKUP(VLOOKUP(constants!$K$1,coalbasins,5,FALSE),'Coal codes'!$I$27:$J$40,2,FALSE) -> --- | F177: x | G177: =Control!$C$13 -> 0 | H177: = | I177: =E177*G177 -> 0 | J177: = | K177: =I177*ft3_g*g_mt*1000 -> 0 | L177: = | M177: =(K177*CH4GWP) -> 0
B178: 1998 | D178: =VLOOKUP(VLOOKUP(constants!$K$1,coalbasins,6,FALSE),'Coal codes'!$I$27:$J$40,2,FALSE) -> --- | F178: x | G178: =Control!$C$14 -> 0 | H178: = | I178: =IF(BasinNum=1,"---",E178*G178) -> 0 | J178: = | K178: =IF(BasinNum=1,"---",I178*ft3_g*g_mt*1000) -> 0 | L178: = | M178: =IF(BasinNum=1,"---",(K178*CH4GWP)) -> 0
B179: 1998
B180: 1998 | C180: Post-Mining Activity | E180: Coal Production ('000 short tons) | G180: Basin- & Mine-specific EF (ft3/short ton) | I180: Emissions ('000 ft3 CH4) | K180: Emissions (MTCH4) | M180: Emissions (MTCO2E)
B181: 1998 | C181: Underground Mines | D181: =VLOOKUP(VLOOKUP(constants!$K$1,coalbasins,3,FALSE),'Coal codes'!$I$5:$J$23,2,FALSE) -> --- | F181: x | G181: =Control!$C$18 -> 0 | H181: = | I181: =E181*G181 -> 0 | J181: = | K181: =I181*ft3_g*g_mt*1000 -> 0 | L181: = | M181: =(K181*CH4GWP) -> 0
B182: 1998 | D182: =VLOOKUP(VLOOKUP(constants!$K$1,coalbasins,4,FALSE),'Coal codes'!$I$5:$J$23,2,FALSE) -> --- | F182: x | G182: =Control!$C$19 -> 0 | H182: = | I182: =IF(BasinNum=1,"---",E182*G182) -> 0 | J182: = | K182: =IF(BasinNum=1,"---",I182*ft3_g*g_mt*1000) -> 0 | L182: = | M182: =IF(BasinNum=1,"---",(K182*CH4GWP)) -> 0
B183: 1998 | C183: Surface Mines | D183: =VLOOKUP(VLOOKUP(constants!$K$1,coalbasins,5,FALSE),'Coal codes'!$I$27:$J$40,2,FALSE) -> --- | F183: x | G183: =Control!$C$21 -> 0 | H183: = | I183: =E183*G183 -> 0 | J183: = | K183: =I183*ft3_g*g_mt*1000 -> 0 | L183: = | M183: =(K183*CH4GWP) -> 0
B184: 1998 | D184: =VLOOKUP(VLOOKUP(constants!$K$1,coalbasins,6,FALSE),'Coal codes'!$I$27:$J$40,2,FALSE) -> --- | F184: x | G184: =Control!$C$22 -> 0 | H184: = | I184: =IF(BasinNum=1,"---",E184*G184) -> 0 | J184: = | K184: =IF(BasinNum=1,"---",I184*ft3_g*g_mt*1000) -> 0 | L184: = | M184: =IF(BasinNum=1,"---",(K184*CH4GWP)) -> 0
B185: 1998 | C185: Post-Mining Total | I185: =SUM(I181:I184) -> 0 | J185: = | K185: =SUM(K181:K184) -> 0 | L185: = | M185: =SUM(M181:M184) -> 0
C187: Total Coal Mining | D187: (MTCO2E) | E187: =SUM(E188:E190) -> 0
D188: Underground Mines | E188: =O174 -> 0
D189: Surface Mines | E189: =SUM(M177:M178) -> 0
D190: Post-Mining Activity | E190: =M185 -> 0
C192: Coal Mining | G192: 1999
C193: Emissions from: | D193: Coal Basin(s) (if applicable) | E193: Measured Ventilation Emissions (mcf) | G193: Degasification System Emissions (mcf) | I193: Methane Recovered from Degasification Systems and Used for Energy (mcf) | K193: Emissions (mcf CH4) | M193: Emissions (MTCH4) | O193: Emissions (MTCO2E)
C194: Mines
B195: =G192 -> 1999 | C195: Underground Mines | F195: + ( | H195: - | J195: ) = | K195: =E195+G195-I195 -> 0 | L195: = | M195: =K195*1000000*ft3_g*g_mt -> 0 | N195: = | O195: =(M195*CH4GWP) -> 0
B196: =B195 -> 1999
B197: =B196 -> 1999 | E197: Surface Coal Production ('000 short tons) | G197: Basin-specific EF (ft3/short ton) | I197: Emissions ('000 ft3 CH4) | K197: Emissions (MTCH4) | M197: Emissions (MTCO2E)
B198: 1999 | C198: Surface Mines | D198: =VLOOKUP(VLOOKUP(constants!$K$1,coalbasins,5,FALSE),'Coal codes'!$I$27:$J$40,2,FALSE) -> --- | F198: x | G198: =Control!$C$13 -> 0 | H198: = | I198: =E198*G198 -> 0 | J198: = | K198: =I198*ft3_g*g_mt*1000 -> 0 | L198: = | M198: =(K198*CH4GWP) -> 0
B199: 1999 | D199: =VLOOKUP(VLOOKUP(constants!$K$1,coalbasins,6,FALSE),'Coal codes'!$I$27:$J$40,2,FALSE) -> --- | F199: x | G199: =Control!$C$14 -> 0 | H199: = | I199: =IF(BasinNum=1,"---",E199*G199) -> 0 | J199: = | K199: =IF(BasinNum=1,"---",I199*ft3_g*g_mt*1000) -> 0 | L199: = | M199: =IF(BasinNum=1,"---",(K199*CH4GWP)) -> 0
B200: 1999
B201: 1999 | C201: Post-Mining Activity | E201: Coal Production ('000 short tons) | G201: Basin- & Mine-specific EF (ft3/short ton) | I201: Emissions ('000 ft3 CH4) | K201: Emissions (MTCH4) | M201: Emissions (MTCO2E)
B202: 1999 | C202: Underground Mines | D202: =VLOOKUP(VLOOKUP(constants!$K$1,coalbasins,3,FALSE),'Coal codes'!$I$5:$J$23,2,FALSE) -> --- | F202: x | G202: =Control!$C$18 -> 0 | H202: = | I202: =E202*G202 -> 0 | J202: = | K202: =I202*ft3_g*g_mt*1000 -> 0 | L202: = | M202: =(K202*CH4GWP) -> 0
B203: 1999 | D203: =VLOOKUP(VLOOKUP(constants!$K$1,coalbasins,4,FALSE),'Coal codes'!$I$5:$J$23,2,FALSE) -> --- | F203: x | G203: =Control!$C$19 -> 0 | H203: = | I203: =IF(BasinNum=1,"---",E203*G203) -> 0 | J203: = | K203: =IF(BasinNum=1,"---",I203*ft3_g*g_mt*1000) -> 0 | L203: = | M203: =IF(BasinNum=1,"---",(K203*CH4GWP)) -> 0
B204: 1999 | C204: Surface Mines | D204: =VLOOKUP(VLOOKUP(constants!$K$1,coalbasins,5,FALSE),'Coal codes'!$I$27:$J$40,2,FALSE) -> --- | F204: x | G204: =Control!$C$21 -> 0 | H204: = | I204: =E204*G204 -> 0 | J204: = | K204: =I204*ft3_g*g_mt*1000 -> 0 | L204: = | M204: =(K204*CH4GWP) -> 0
B205: 1999 | D205: =VLOOKUP(VLOOKUP(constants!$K$1,coalbasins,6,FALSE),'Coal codes'!$I$27:$J$40,2,FALSE) -> --- | F205: x | G205: =Control!$C$22 -> 0 | H205: = | I205: =IF(BasinNum=1,"---",E205*G205) -> 0 | J205: = | K205: =IF(BasinNum=1,"---",I205*ft3_g*g_mt*1000) -> 0 | L205: = | M205: =IF(BasinNum=1,"---",(K205*CH4GWP)) -> 0
B206: 1999 | C206: Post-Mining Total | I206: =SUM(I202:I205) -> 0 | J206: = | K206: =SUM(K202:K205) -> 0 | L206: = | M206: =SUM(M202:M205) -> 0
C208: Total Coal Mining | D208: (MTCO2E) | E208: =SUM(E209:E211) -> 0
D209: Underground Mines | E209: =O195 -> 0
D210: Surface Mines | E210: =SUM(M198:M199) -> 0
D211: Post-Mining Activity | E211: =M206 -> 0
C213: Coal Mining | G213: 2000
C214: Emissions from: | D214: Coal Basin(s) (if applicable) | E214: Measured Ventilation Emissions (mcf) | G214: Degasification System Emissions (mcf) | I214: Methane Recovered from Degasification Systems and Used for Energy (mcf) | K214: Emissions (mcf CH4) | M214: Emissions (MTCH4) | O214: Emissions (MTCO2E)
C215: Mines
B216: =G213 -> 2000 | C216: Underground Mines | F216: + ( | H216: - | J216: ) = | K216: =E216+G216-I216 -> 0 | L216: = | M216: =K216*1000000*ft3_g*g_mt -> 0 | N216: = | O216: =(M216*CH4GWP) -> 0
B217: =B216 -> 2000
B218: =B217 -> 2000 | E218: Surface Coal Production ('000 short tons) | G218: Basin-specific EF (ft3/short ton) | I218: Emissions ('000 ft3 CH4) | K218: Emissions (MTCH4) | M218: Emissions (MTCO2E)
B219: 2000 | C219: Surface Mines | D219: =VLOOKUP(VLOOKUP(constants!$K$1,coalbasins,5,FALSE),'Coal codes'!$I$27:$J$40,2,FALSE) -> --- | F219: x | G219: =Control!$C$13 -> 0 | H219: = | I219: =E219*G219 -> 0 | J219: = | K219: =I219*ft3_g*g_mt*1000 -> 0 | L219: = | M219: =(K219*CH4GWP) -> 0
B220: 2000 | D220: =VLOOKUP(VLOOKUP(constants!$K$1,coalbasins,6,FALSE),'Coal codes'!$I$27:$J$40,2,FALSE) -> --- | F220: x | G220: =Control!$C$14 -> 0 | H220: = | I220: =IF(BasinNum=1,"---",E220*G220) -> 0 | J220: = | K220: =IF(BasinNum=1,"---",I220*ft3_g*g_mt*1000) -> 0 | L220: = | M220: =IF(BasinNum=1,"---",(K220*CH4GWP)) -> 0
... 391 more rows

Sheet CH4 from Abandoned Coal Mines
B1: ="4. CH4 from Abandoned Mines in "&constants!K1 -> 4. CH4 from Abandoned Mines in XX
B3: Abandoned Coal Mines | F3: Please click the button on the left to view a default list of abandoned coal mines within your state
D4: Mine Name | F4: County | H4: Basin | J4: Year Abandoned | L4: Reported Status | N4: Actual Status | P4: Percent Sealed | R4: Methane Recovered (m3/yr)
B5: ='Abandoned Data'!N3&"." -> . | D5: ='Abandoned Data'!O3 ->  | F5: ='Abandoned Data'!P3 ->  | H5: ='Abandoned Data'!S3 ->  | J5: ='Abandoned Data'!R3 ->  | L5: ='Abandoned Data'!Q3 ->  | O5: =IF(N5>0,IF(N5="Sealed",0.8,""),IF(L5="Sealed",0.8,"")) ->  | AA5: 0.5 | AB5: Sealed | AC5: Bituminous
B6: ='Abandoned Data'!N4&"." -> . | D6: ='Abandoned Data'!O4 ->  | F6: ='Abandoned Data'!P4 ->  | H6: ='Abandoned Data'!S4 ->  | J6: ='Abandoned Data'!R4 ->  | L6: ='Abandoned Data'!Q4 ->  | O6: =IF(N6>0,IF(N6="Sealed",0.8,""),IF(L6="Sealed",0.8,"")) ->  | AA6: 0.8 | AB6: Flooded | AC6: Sub-bituminous
B7: ='Abandoned Data'!N5&"." -> . | D7: ='Abandoned Data'!O5 ->  | F7: ='Abandoned Data'!P5 ->  | H7: ='Abandoned Data'!S5 ->  | J7: ='Abandoned Data'!R5 ->  | L7: ='Abandoned Data'!Q5 ->  | AA7: 0.95 | AB7: Venting | AC7: Anthracite
B8: ='Abandoned Data'!N6&"." -> . | D8: ='Abandoned Data'!O6 ->  | F8: ='Abandoned Data'!P6 ->  | H8: ='Abandoned Data'!S6 ->  | J8: ='Abandoned Data'!R6 ->  | L8: ='Abandoned Data'!Q6 ->  | AB8: Unknown
B9: ='Abandoned Data'!N7&"." -> . | D9: ='Abandoned Data'!O7 ->  | F9: ='Abandoned Data'!P7 ->  | H9: ='Abandoned Data'!S7 ->  | J9: ='Abandoned Data'!R7 ->  | L9: ='Abandoned Data'!Q7 -> 
B10: ='Abandoned Data'!N8&"." -> . | D10: ='Abandoned Data'!O8 ->  | F10: ='Abandoned Data'!P8 ->  | H10: ='Abandoned Data'!S8 ->  | J10: ='Abandoned Data'!R8 ->  | L10: ='Abandoned Data'!Q8 -> 
B11: ='Abandoned Data'!N9&"." -> . | D11: ='Abandoned Data'!O9 ->  | F11: ='Abandoned Data'!P9 ->  | H11: ='Abandoned Data'!S9 ->  | J11: ='Abandoned Data'!R9 ->  | L11: ='Abandoned Data'!Q9 -> 
B12: ='Abandoned Data'!N10&"." -> . | D12: ='Abandoned Data'!O10 ->  | F12: ='Abandoned Data'!P10 ->  | H12: ='Abandoned Data'!S10 ->  | J12: ='Abandoned Data'!R10 ->  | L12: ='Abandoned Data'!Q10 -> 
B13: ='Abandoned Data'!N11&"." -> . | D13: ='Abandoned Data'!O11 ->  | F13: ='Abandoned Data'!P11 ->  | H13: ='Abandoned Data'!S11 ->  | J13: ='Abandoned Data'!R11 ->  | L13: ='Abandoned Data'!Q11 -> 
B14: ='Abandoned Data'!N12&"." -> . | D14: ='Abandoned Data'!O12 ->  | F14: ='Abandoned Data'!P12 ->  | H14: ='Abandoned Data'!S12 ->  | J14: ='Abandoned Data'!R12 ->  | L14: ='Abandoned Data'!Q12 -> 
B15: ='Abandoned Data'!N13&"." -> . | D15: ='Abandoned Data'!O13 ->  | F15: ='Abandoned Data'!P13 ->  | H15: ='Abandoned Data'!S13 ->  | J15: ='Abandoned Data'!R13 ->  | L15: ='Abandoned Data'!Q13 -> 
B16: ='Abandoned Data'!N14&"." -> . | D16: ='Abandoned Data'!O14 ->  | F16: ='Abandoned Data'!P14 ->  | H16: ='Abandoned Data'!S14 ->  | J16: ='Abandoned Data'!R14 ->  | L16: ='Abandoned Data'!Q14 -> 
B17: ='Abandoned Data'!N15&"." -> . | D17: ='Abandoned Data'!O15 ->  | F17: ='Abandoned Data'!P15 ->  | H17: ='Abandoned Data'!S15 ->  | J17: ='Abandoned Data'!R15 ->  | L17: ='Abandoned Data'!Q15 -> 
B18: ='Abandoned Data'!N16&"." -> . | D18: ='Abandoned Data'!O16 ->  | F18: ='Abandoned Data'!P16 ->  | H18: ='Abandoned Data'!S16 ->  | J18: ='Abandoned Data'!R16 ->  | L18: ='Abandoned Data'!Q16 -> 
B19: ='Abandoned Data'!N17&"." -> . | D19: ='Abandoned Data'!O17 ->  | F19: ='Abandoned Data'!P17 ->  | H19: ='Abandoned Data'!S17 ->  | J19: ='Abandoned Data'!R17 ->  | L19: ='Abandoned Data'!Q17 -> 
B20: ='Abandoned Data'!N18&"." -> . | D20: ='Abandoned Data'!O18 ->  | F20: ='Abandoned Data'!P18 ->  | H20: ='Abandoned Data'!S18 ->  | J20: ='Abandoned Data'!R18 ->  | L20: ='Abandoned Data'!Q18 -> 
B21: ='Abandoned Data'!N19&"." -> . | D21: ='Abandoned Data'!O19 ->  | F21: ='Abandoned Data'!P19 ->  | H21: ='Abandoned Data'!S19 ->  | J21: ='Abandoned Data'!R19 ->  | L21: ='Abandoned Data'!Q19 -> 
B22: ='Abandoned Data'!N20&"." -> . | D22: ='Abandoned Data'!O20 ->  | F22: ='Abandoned Data'!P20 ->  | H22: ='Abandoned Data'!S20 ->  | J22: ='Abandoned Data'!R20 ->  | L22: ='Abandoned Data'!Q20 -> 
B23: ='Abandoned Data'!N21&"." -> . | D23: ='Abandoned Data'!O21 ->  | F23: ='Abandoned Data'!P21 ->  | H23: ='Abandoned Data'!S21 ->  | J23: ='Abandoned Data'!R21 ->  | L23: ='Abandoned Data'!Q21 -> 
B24: ='Abandoned Data'!N22&"." -> . | D24: ='Abandoned Data'!O22 ->  | F24: ='Abandoned Data'!P22 ->  | H24: ='Abandoned Data'!S22 ->  | J24: ='Abandoned Data'!R22 ->  | L24: ='Abandoned Data'!Q22 -> 
B25: ='Abandoned Data'!N23&"." -> . | D25: ='Abandoned Data'!O23 ->  | F25: ='Abandoned Data'!P23 ->  | H25: ='Abandoned Data'!S23 ->  | J25: ='Abandoned Data'!R23 ->  | L25: ='Abandoned Data'!Q23 -> 
B26: ='Abandoned Data'!N24&"." -> . | D26: ='Abandoned Data'!O24 ->  | F26: ='Abandoned Data'!P24 ->  | H26: ='Abandoned Data'!S24 ->  | J26: ='Abandoned Data'!R24 ->  | L26: ='Abandoned Data'!Q24 -> 
B27: ='Abandoned Data'!N25&"." -> . | D27: ='Abandoned Data'!O25 ->  | F27: ='Abandoned Data'!P25 ->  | H27: ='Abandoned Data'!S25 ->  | J27: ='Abandoned Data'!R25 ->  | L27: ='Abandoned Data'!Q25 -> 
B28: ='Abandoned Data'!N26&"." -> . | D28: ='Abandoned Data'!O26 ->  | F28: ='Abandoned Data'!P26 ->  | H28: ='Abandoned Data'!S26 ->  | J28: ='Abandoned Data'!R26 ->  | L28: ='Abandoned Data'!Q26 -> 
B29: ='Abandoned Data'!N27&"." -> . | D29: ='Abandoned Data'!O27 ->  | F29: ='Abandoned Data'!P27 ->  | H29: ='Abandoned Data'!S27 ->  | J29: ='Abandoned Data'!R27 ->  | L29: ='Abandoned Data'!Q27 -> 
B30: ='Abandoned Data'!N28&"." -> . | D30: ='Abandoned Data'!O28 ->  | F30: ='Abandoned Data'!P28 ->  | H30: ='Abandoned Data'!S28 ->  | J30: ='Abandoned Data'!R28 ->  | L30: ='Abandoned Data'!Q28 -> 
B31: ='Abandoned Data'!N29&"." -> . | D31: ='Abandoned Data'!O29 ->  | F31: ='Abandoned Data'!P29 ->  | H31: ='Abandoned Data'!S29 ->  | J31: ='Abandoned Data'!R29 ->  | L31: ='Abandoned Data'!Q29 -> 
B32: ='Abandoned Data'!N30&"." -> . | D32: ='Abandoned Data'!O30 ->  | F32: ='Abandoned Data'!P30 ->  | H32: ='Abandoned Data'!S30 ->  | J32: ='Abandoned Data'!R30 ->  | L32: ='Abandoned Data'!Q30 -> 
B33: ='Abandoned Data'!N31&"." -> . | D33: ='Abandoned Data'!O31 ->  | F33: ='Abandoned Data'!P31 ->  | H33: ='Abandoned Data'!S31 ->  | J33: ='Abandoned Data'!R31 ->  | L33: ='Abandoned Data'!Q31 -> 
B34: ='Abandoned Data'!N32&"." -> . | D34: ='Abandoned Data'!O32 ->  | F34: ='Abandoned Data'!P32 ->  | H34: ='Abandoned Data'!S32 ->  | J34: ='Abandoned Data'!R32 ->  | L34: ='Abandoned Data'!Q32 -> 
B35: ='Abandoned Data'!N33&"." -> . | D35: ='Abandoned Data'!O33 ->  | F35: ='Abandoned Data'!P33 ->  | H35: ='Abandoned Data'!S33 ->  | J35: ='Abandoned Data'!R33 ->  | L35: ='Abandoned Data'!Q33 -> 
B36: ='Abandoned Data'!N34&"." -> . | D36: ='Abandoned Data'!O34 ->  | F36: ='Abandoned Data'!P34 ->  | H36: ='Abandoned Data'!S34 ->  | J36: ='Abandoned Data'!R34 ->  | L36: ='Abandoned Data'!Q34 -> 
B37: ='Abandoned Data'!N35&"." -> . | D37: ='Abandoned Data'!O35 ->  | F37: ='Abandoned Data'!P35 ->  | H37: ='Abandoned Data'!S35 ->  | J37: ='Abandoned Data'!R35 ->  | L37: ='Abandoned Data'!Q35 -> 
B38: ='Abandoned Data'!N36&"." -> . | D38: ='Abandoned Data'!O36 ->  | F38: ='Abandoned Data'!P36 ->  | H38: ='Abandoned Data'!S36 ->  | J38: ='Abandoned Data'!R36 ->  | L38: ='Abandoned Data'!Q36 -> 
B39: ='Abandoned Data'!N37&"." -> . | D39: ='Abandoned Data'!O37 ->  | F39: ='Abandoned Data'!P37 ->  | H39: ='Abandoned Data'!S37 ->  | J39: ='Abandoned Data'!R37 ->  | L39: ='Abandoned Data'!Q37 -> 
B40: ='Abandoned Data'!N38&"." -> . | D40: ='Abandoned Data'!O38 ->  | F40: ='Abandoned Data'!P38 ->  | H40: ='Abandoned Data'!S38 ->  | J40: ='Abandoned Data'!R38 ->  | L40: ='Abandoned Data'!Q38 -> 
B41: ='Abandoned Data'!N39&"." -> . | D41: ='Abandoned Data'!O39 ->  | F41: ='Abandoned Data'!P39 ->  | H41: ='Abandoned Data'!S39 ->  | J41: ='Abandoned Data'!R39 ->  | L41: ='Abandoned Data'!Q39 -> 
B42: ='Abandoned Data'!N40&"." -> . | D42: ='Abandoned Data'!O40 ->  | F42: ='Abandoned Data'!P40 ->  | H42: ='Abandoned Data'!S40 ->  | J42: ='Abandoned Data'!R40 ->  | L42: ='Abandoned Data'!Q40 -> 
B43: ='Abandoned Data'!N41&"." -> . | D43: ='Abandoned Data'!O41 ->  | F43: ='Abandoned Data'!P41 ->  | H43: ='Abandoned Data'!S41 ->  | J43: ='Abandoned Data'!R41 ->  | L43: ='Abandoned Data'!Q41 -> 
B44: ='Abandoned Data'!N42&"." -> . | D44: ='Abandoned Data'!O42 ->  | F44: ='Abandoned Data'!P42 ->  | H44: ='Abandoned Data'!S42 ->  | J44: ='Abandoned Data'!R42 ->  | L44: ='Abandoned Data'!Q42 -> 
B45: ='Abandoned Data'!N43&"." -> . | D45: ='Abandoned Data'!O43 ->  | F45: ='Abandoned Data'!P43 ->  | H45: ='Abandoned Data'!S43 ->  | J45: ='Abandoned Data'!R43 ->  | L45: ='Abandoned Data'!Q43 -> 
B46: ='Abandoned Data'!N44&"." -> . | D46: ='Abandoned Data'!O44 ->  | F46: ='Abandoned Data'!P44 ->  | H46: ='Abandoned Data'!S44 ->  | J46: ='Abandoned Data'!R44 ->  | L46: ='Abandoned Data'!Q44 -> 
B47: ='Abandoned Data'!N45&"." -> . | D47: ='Abandoned Data'!O45 ->  | F47: ='Abandoned Data'!P45 ->  | H47: ='Abandoned Data'!S45 ->  | J47: ='Abandoned Data'!R45 ->  | L47: ='Abandoned Data'!Q45 ->  | O47: =IF(N47>0,IF(N47="Sealed",0.8,""),IF(L47="Sealed",0.8,"")) -> 
B48: ='Abandoned Data'!N46&"." -> . | D48: ='Abandoned Data'!O46 ->  | F48: ='Abandoned Data'!P46 ->  | H48: ='Abandoned Data'!S46 ->  | J48: ='Abandoned Data'!R46 ->  | L48: ='Abandoned Data'!Q46 -> 
B49: ='Abandoned Data'!N47&"." -> . | D49: ='Abandoned Data'!O47 ->  | F49: ='Abandoned Data'!P47 ->  | H49: ='Abandoned Data'!S47 ->  | J49: ='Abandoned Data'!R47 ->  | L49: ='Abandoned Data'!Q47 -> 
B50: ='Abandoned Data'!N48&"." -> . | D50: ='Abandoned Data'!O48 ->  | F50: ='Abandoned Data'!P48 ->  | H50: ='Abandoned Data'!S48 ->  | J50: ='Abandoned Data'!R48 ->  | L50: ='Abandoned Data'!Q48 -> 
B51: ='Abandoned Data'!N49&"." -> . | D51: ='Abandoned Data'!O49 ->  | F51: ='Abandoned Data'!P49 ->  | H51: ='Abandoned Data'!S49 ->  | J51: ='Abandoned Data'!R49 ->  | L51: ='Abandoned Data'!Q49 -> 
B52: ='Abandoned Data'!N50&"." -> . | D52: ='Abandoned Data'!O50 ->  | F52: ='Abandoned Data'!P50 ->  | H52: ='Abandoned Data'!S50 ->  | J52: ='Abandoned Data'!R50 ->  | L52: ='Abandoned Data'!Q50 -> 
B53: ='Abandoned Data'!N51&"." -> . | D53: ='Abandoned Data'!O51 ->  | F53: ='Abandoned Data'!P51 ->  | H53: ='Abandoned Data'!S51 ->  | J53: ='Abandoned Data'!R51 ->  | L53: ='Abandoned Data'!Q51 -> 
B54: ='Abandoned Data'!N52&"." -> . | D54: ='Abandoned Data'!O52 ->  | F54: ='Abandoned Data'!P52 ->  | H54: ='Abandoned Data'!S52 ->  | J54: ='Abandoned Data'!R52 ->  | L54: ='Abandoned Data'!Q52 -> 
B55: ='Abandoned Data'!N53&"." -> . | D55: ='Abandoned Data'!O53 ->  | F55: ='Abandoned Data'!P53 ->  | H55: ='Abandoned Data'!S53 ->  | J55: ='Abandoned Data'!R53 ->  | L55: ='Abandoned Data'!Q53 -> 
B56: ='Abandoned Data'!N54&"." -> . | D56: ='Abandoned Data'!O54 ->  | F56: ='Abandoned Data'!P54 ->  | H56: ='Abandoned Data'!S54 ->  | J56: ='Abandoned Data'!R54 ->  | L56: ='Abandoned Data'!Q54 -> 
B57: ='Abandoned Data'!N55&"." -> . | D57: ='Abandoned Data'!O55 ->  | F57: ='Abandoned Data'!P55 ->  | H57: ='Abandoned Data'!S55 ->  | J57: ='Abandoned Data'!R55 ->  | L57: ='Abandoned Data'!Q55 -> 
B58: ='Abandoned Data'!N56&"." -> . | D58: ='Abandoned Data'!O56 ->  | F58: ='Abandoned Data'!P56 ->  | H58: ='Abandoned Data'!S56 ->  | J58: ='Abandoned Data'!R56 ->  | L58: ='Abandoned Data'!Q56 -> 
B59: ='Abandoned Data'!N57&"." -> . | D59: ='Abandoned Data'!O57 ->  | F59: ='Abandoned Data'!P57 ->  | H59: ='Abandoned Data'!S57 ->  | J59: ='Abandoned Data'!R57 ->  | L59: ='Abandoned Data'!Q57 -> 
B60: ='Abandoned Data'!N58&"." -> . | D60: ='Abandoned Data'!O58 ->  | F60: ='Abandoned Data'!P58 ->  | H60: ='Abandoned Data'!S58 ->  | J60: ='Abandoned Data'!R58 ->  | L60: ='Abandoned Data'!Q58 -> 
B61: ='Abandoned Data'!N59&"." -> . | D61: ='Abandoned Data'!O59 ->  | F61: ='Abandoned Data'!P59 ->  | H61: ='Abandoned Data'!S59 ->  | J61: ='Abandoned Data'!R59 ->  | L61: ='Abandoned Data'!Q59 -> 
B62: ='Abandoned Data'!N60&"." -> . | D62: ='Abandoned Data'!O60 ->  | F62: ='Abandoned Data'!P60 ->  | H62: ='Abandoned Data'!S60 ->  | J62: ='Abandoned Data'!R60 ->  | L62: ='Abandoned Data'!Q60 -> 
B63: ='Abandoned Data'!N61&"." -> . | D63: ='Abandoned Data'!O61 ->  | F63: ='Abandoned Data'!P61 ->  | H63: ='Abandoned Data'!S61 ->  | J63: ='Abandoned Data'!R61 ->  | L63: ='Abandoned Data'!Q61 -> 
B64: ='Abandoned Data'!N62&"." -> . | D64: ='Abandoned Data'!O62 ->  | F64: ='Abandoned Data'!P62 ->  | H64: ='Abandoned Data'!S62 ->  | J64: ='Abandoned Data'!R62 ->  | L64: ='Abandoned Data'!Q62 -> 
B65: ='Abandoned Data'!N63&"." -> . | D65: ='Abandoned Data'!O63 ->  | F65: ='Abandoned Data'!P63 ->  | H65: ='Abandoned Data'!S63 ->  | J65: ='Abandoned Data'!R63 ->  | L65: ='Abandoned Data'!Q63 -> 
B66: ='Abandoned Data'!N64&"." -> . | D66: ='Abandoned Data'!O64 ->  | F66: ='Abandoned Data'!P64 ->  | H66: ='Abandoned Data'!S64 ->  | J66: ='Abandoned Data'!R64 ->  | L66: ='Abandoned Data'!Q64 -> 
B67: ='Abandoned Data'!N65&"." -> . | D67: ='Abandoned Data'!O65 ->  | F67: ='Abandoned Data'!P65 ->  | H67: ='Abandoned Data'!S65 ->  | J67: ='Abandoned Data'!R65 ->  | L67: ='Abandoned Data'!Q65 -> 
B68: ='Abandoned Data'!N66&"." -> . | D68: ='Abandoned Data'!O66 ->  | F68: ='Abandoned Data'!P66 ->  | H68: ='Abandoned Data'!S66 ->  | J68: ='Abandoned Data'!R66 ->  | L68: ='Abandoned Data'!Q66 -> 
B69: ='Abandoned Data'!N67&"." -> . | D69: ='Abandoned Data'!O67 ->  | F69: ='Abandoned Data'!P67 ->  | H69: ='Abandoned Data'!S67 ->  | J69: ='Abandoned Data'!R67 ->  | L69: ='Abandoned Data'!Q67 -> 
B70: ='Abandoned Data'!N68&"." -> . | D70: ='Abandoned Data'!O68 ->  | F70: ='Abandoned Data'!P68 ->  | H70: ='Abandoned Data'!S68 ->  | J70: ='Abandoned Data'!R68 ->  | L70: ='Abandoned Data'!Q68 -> 
B71: ='Abandoned Data'!N69&"." -> . | D71: ='Abandoned Data'!O69 ->  | F71: ='Abandoned Data'!P69 ->  | H71: ='Abandoned Data'!S69 ->  | J71: ='Abandoned Data'!R69 ->  | L71: ='Abandoned Data'!Q69 -> 
B72: ='Abandoned Data'!N70&"." -> . | D72: ='Abandoned Data'!O70 ->  | F72: ='Abandoned Data'!P70 ->  | H72: ='Abandoned Data'!S70 ->  | J72: ='Abandoned Data'!R70 ->  | L72: ='Abandoned Data'!Q70 -> 
B73: ='Abandoned Data'!N71&"." -> . | D73: ='Abandoned Data'!O71 ->  | F73: ='Abandoned Data'!P71 ->  | H73: ='Abandoned Data'!S71 ->  | J73: ='Abandoned Data'!R71 ->  | L73: ='Abandoned Data'!Q71 -> 
B74: ='Abandoned Data'!N72&"." -> . | D74: ='Abandoned Data'!O72 ->  | F74: ='Abandoned Data'!P72 ->  | H74: ='Abandoned Data'!S72 ->  | J74: ='Abandoned Data'!R72 ->  | L74: ='Abandoned Data'!Q72 -> 
B75: ='Abandoned Data'!N73&"." -> . | D75: ='Abandoned Data'!O73 ->  | F75: ='Abandoned Data'!P73 ->  | H75: ='Abandoned Data'!S73 ->  | J75: ='Abandoned Data'!R73 ->  | L75: ='Abandoned Data'!Q73 -> 
B76: ='Abandoned Data'!N74&"." -> . | D76: ='Abandoned Data'!O74 ->  | F76: ='Abandoned Data'!P74 ->  | H76: ='Abandoned Data'!S74 ->  | J76: ='Abandoned Data'!R74 ->  | L76: ='Abandoned Data'!Q74 -> 
B77: ='Abandoned Data'!N75&"." -> . | D77: ='Abandoned Data'!O75 ->  | F77: ='Abandoned Data'!P75 ->  | H77: ='Abandoned Data'!S75 ->  | J77: ='Abandoned Data'!R75 ->  | L77: ='Abandoned Data'!Q75 -> 
B78: ='Abandoned Data'!N76&"." -> . | D78: ='Abandoned Data'!O76 ->  | F78: ='Abandoned Data'!P76 ->  | H78: ='Abandoned Data'!S76 ->  | J78: ='Abandoned Data'!R76 ->  | L78: ='Abandoned Data'!Q76 -> 
B79: ='Abandoned Data'!N77&"." -> . | D79: ='Abandoned Data'!O77 ->  | F79: ='Abandoned Data'!P77 ->  | H79: ='Abandoned Data'!S77 ->  | J79: ='Abandoned Data'!R77 ->  | L79: ='Abandoned Data'!Q77 -> 
B80: ='Abandoned Data'!N78&"." -> . | D80: ='Abandoned Data'!O78 ->  | F80: ='Abandoned Data'!P78 ->  | H80: ='Abandoned Data'!S78 ->  | J80: ='Abandoned Data'!R78 ->  | L80: ='Abandoned Data'!Q78 -> 
B81: ='Abandoned Data'!N79&"." -> . | D81: ='Abandoned Data'!O79 ->  | F81: ='Abandoned Data'!P79 ->  | H81: ='Abandoned Data'!S79 ->  | J81: ='Abandoned Data'!R79 ->  | L81: ='Abandoned Data'!Q79 -> 
B82: ='Abandoned Data'!N80&"." -> . | D82: ='Abandoned Data'!O80 ->  | F82: ='Abandoned Data'!P80 ->  | H82: ='Abandoned Data'!S80 ->  | J82: ='Abandoned Data'!R80 ->  | L82: ='Abandoned Data'!Q80 -> 
B83: ='Abandoned Data'!N81&"." -> . | D83: ='Abandoned Data'!O81 ->  | F83: ='Abandoned Data'!P81 ->  | H83: ='Abandoned Data'!S81 ->  | J83: ='Abandoned Data'!R81 ->  | L83: ='Abandoned Data'!Q81 -> 
B84: ='Abandoned Data'!N82&"." -> . | D84: ='Abandoned Data'!O82 ->  | F84: ='Abandoned Data'!P82 ->  | H84: ='Abandoned Data'!S82 ->  | J84: ='Abandoned Data'!R82 ->  | L84: ='Abandoned Data'!Q82 -> 
B85: ='Abandoned Data'!N83&"." -> . | D85: ='Abandoned Data'!O83 ->  | F85: ='Abandoned Data'!P83 ->  | H85: ='Abandoned Data'!S83 ->  | J85: ='Abandoned Data'!R83 ->  | L85: ='Abandoned Data'!Q83 -> 
B86: ='Abandoned Data'!N84&"." -> . | D86: ='Abandoned Data'!O84 ->  | F86: ='Abandoned Data'!P84 ->  | H86: ='Abandoned Data'!S84 ->  | J86: ='Abandoned Data'!R84 ->  | L86: ='Abandoned Data'!Q84 -> 
B87: ='Abandoned Data'!N85&"." -> . | D87: ='Abandoned Data'!O85 ->  | F87: ='Abandoned Data'!P85 ->  | H87: ='Abandoned Data'!S85 ->  | J87: ='Abandoned Data'!R85 ->  | L87: ='Abandoned Data'!Q85 -> 
B88: ='Abandoned Data'!N86&"." -> . | D88: ='Abandoned Data'!O86 ->  | F88: ='Abandoned Data'!P86 ->  | H88: ='Abandoned Data'!S86 ->  | J88: ='Abandoned Data'!R86 ->  | L88: ='Abandoned Data'!Q86 -> 
B89: ='Abandoned Data'!N87&"." -> . | D89: ='Abandoned Data'!O87 ->  | F89: ='Abandoned Data'!P87 ->  | H89: ='Abandoned Data'!S87 ->  | J89: ='Abandoned Data'!R87 ->  | L89: ='Abandoned Data'!Q87 -> 
B90: ='Abandoned Data'!N88&"." -> . | D90: ='Abandoned Data'!O88 ->  | F90: ='Abandoned Data'!P88 ->  | H90: ='Abandoned Data'!S88 ->  | J90: ='Abandoned Data'!R88 ->  | L90: ='Abandoned Data'!Q88 -> 
B91: ='Abandoned Data'!N89&"." -> . | D91: ='Abandoned Data'!O89 ->  | F91: ='Abandoned Data'!P89 ->  | H91: ='Abandoned Data'!S89 ->  | J91: ='Abandoned Data'!R89 ->  | L91: ='Abandoned Data'!Q89 -> 
B92: ='Abandoned Data'!N90&"." -> . | D92: ='Abandoned Data'!O90 ->  | F92: ='Abandoned Data'!P90 ->  | H92: ='Abandoned Data'!S90 ->  | J92: ='Abandoned Data'!R90 ->  | L92: ='Abandoned Data'!Q90 -> 
B93: ='Abandoned Data'!N91&"." -> . | D93: ='Abandoned Data'!O91 ->  | F93: ='Abandoned Data'!P91 ->  | H93: ='Abandoned Data'!S91 ->  | J93: ='Abandoned Data'!R91 ->  | L93: ='Abandoned Data'!Q91 -> 
B94: ='Abandoned Data'!N92&"." -> . | D94: ='Abandoned Data'!O92 ->  | F94: ='Abandoned Data'!P92 ->  | H94: ='Abandoned Data'!S92 ->  | J94: ='Abandoned Data'!R92 ->  | L94: ='Abandoned Data'!Q92 -> 
B95: ='Abandoned Data'!N93&"." -> . | D95: ='Abandoned Data'!O93 ->  | F95: ='Abandoned Data'!P93 ->  | H95: ='Abandoned Data'!S93 ->  | J95: ='Abandoned Data'!R93 ->  | L95: ='Abandoned Data'!Q93 -> 
B96: ='Abandoned Data'!N94&"." -> . | D96: ='Abandoned Data'!O94 ->  | F96: ='Abandoned Data'!P94 ->  | H96: ='Abandoned Data'!S94 ->  | J96: ='Abandoned Data'!R94 ->  | L96: ='Abandoned Data'!Q94 -> 
B97: ='Abandoned Data'!N95&"." -> . | D97: ='Abandoned Data'!O95 ->  | F97: ='Abandoned Data'!P95 ->  | H97: ='Abandoned Data'!S95 ->  | J97: ='Abandoned Data'!R95 ->  | L97: ='Abandoned Data'!Q95 -> 
B98: ='Abandoned Data'!N96&"." -> . | D98: ='Abandoned Data'!O96 ->  | F98: ='Abandoned Data'!P96 ->  | H98: ='Abandoned Data'!S96 ->  | J98: ='Abandoned Data'!R96 ->  | L98: ='Abandoned Data'!Q96 -> 
B99: ='Abandoned Data'!N97&"." -> . | D99: ='Abandoned Data'!O97 ->  | F99: ='Abandoned Data'!P97 ->  | H99: ='Abandoned Data'!S97 ->  | J99: ='Abandoned Data'!R97 ->  | L99: ='Abandoned Data'!Q97 -> 
B100: ='Abandoned Data'!N98&"." -> . | D100: ='Abandoned Data'!O98 ->  | F100: ='Abandoned Data'!P98 ->  | H100: ='Abandoned Data'!S98 ->  | J100: ='Abandoned Data'!R98 ->  | L100: ='Abandoned Data'!Q98 -> 
B101: ='Abandoned Data'!N99&"." -> . | D101: ='Abandoned Data'!O99 ->  | F101: ='Abandoned Data'!P99 ->  | H101: ='Abandoned Data'!S99 ->  | J101: ='Abandoned Data'!R99 ->  | L101: ='Abandoned Data'!Q99 -> 
B102: ='Abandoned Data'!N100&"." -> . | D102: ='Abandoned Data'!O100 ->  | F102: ='Abandoned Data'!P100 ->  | H102: ='Abandoned Data'!S100 ->  | J102: ='Abandoned Data'!R100 ->  | L102: ='Abandoned Data'!Q100 -> 
B103: ='Abandoned Data'!N101&"." -> . | D103: ='Abandoned Data'!O101 ->  | F103: ='Abandoned Data'!P101 ->  | H103: ='Abandoned Data'!S101 ->  | J103: ='Abandoned Data'!R101 ->  | L103: ='Abandoned Data'!Q101 -> 
B104: ='Abandoned Data'!N102&"." -> . | D104: ='Abandoned Data'!O102 ->  | F104: ='Abandoned Data'!P102 ->  | H104: ='Abandoned Data'!S102 ->  | J104: ='Abandoned Data'!R102 ->  | L104: ='Abandoned Data'!Q102 -> 
B105: ='Abandoned Data'!N103&"." -> . | D105: ='Abandoned Data'!O103 ->  | F105: ='Abandoned Data'!P103 ->  | H105: ='Abandoned Data'!S103 ->  | J105: ='Abandoned Data'!R103 ->  | L105: ='Abandoned Data'!Q103 -> 
B106: ='Abandoned Data'!N104&"." -> . | D106: ='Abandoned Data'!O104 ->  | F106: ='Abandoned Data'!P104 ->  | H106: ='Abandoned Data'!S104 ->  | J106: ='Abandoned Data'!R104 ->  | L106: ='Abandoned Data'!Q104 -> 
B107: ='Abandoned Data'!N105&"." -> . | D107: ='Abandoned Data'!O105 ->  | F107: ='Abandoned Data'!P105 ->  | H107: ='Abandoned Data'!S105 ->  | J107: ='Abandoned Data'!R105 ->  | L107: ='Abandoned Data'!Q105 -> 
B108: ='Abandoned Data'!N106&"." -> . | D108: ='Abandoned Data'!O106 ->  | F108: ='Abandoned Data'!P106 ->  | H108: ='Abandoned Data'!S106 ->  | J108: ='Abandoned Data'!R106 ->  | L108: ='Abandoned Data'!Q106 -> 
B109: ='Abandoned Data'!N107&"." -> . | D109: ='Abandoned Data'!O107 ->  | F109: ='Abandoned Data'!P107 ->  | H109: ='Abandoned Data'!S107 ->  | J109: ='Abandoned Data'!R107 ->  | L109: ='Abandoned Data'!Q107 -> 
B110: ='Abandoned Data'!N108&"." -> . | D110: ='Abandoned Data'!O108 ->  | F110: ='Abandoned Data'!P108 ->  | H110: ='Abandoned Data'!S108 ->  | J110: ='Abandoned Data'!R108 ->  | L110: ='Abandoned Data'!Q108 -> 
B111: ='Abandoned Data'!N109&"." -> . | D111: ='Abandoned Data'!O109 ->  | F111: ='Abandoned Data'!P109 ->  | H111: ='Abandoned Data'!S109 ->  | J111: ='Abandoned Data'!R109 ->  | L111: ='Abandoned Data'!Q109 ->  | O111: =IF(N111>0,IF(N111="Sealed",0.8,""),IF(L111="Sealed",0.8,"")) -> 
B112: ='Abandoned Data'!N110&"." -> . | D112: ='Abandoned Data'!O110 ->  | F112: ='Abandoned Data'!P110 ->  | H112: ='Abandoned Data'!S110 ->  | J112: ='Abandoned Data'!R110 ->  | L112: ='Abandoned Data'!Q110 -> 
B113: ='Abandoned Data'!N111&"." -> . | D113: ='Abandoned Data'!O111 ->  | F113: ='Abandoned Data'!P111 ->  | H113: ='Abandoned Data'!S111 ->  | J113: ='Abandoned Data'!R111 ->  | L113: ='Abandoned Data'!Q111 -> 
B114: ='Abandoned Data'!N112&"." -> . | D114: ='Abandoned Data'!O112 ->  | F114: ='Abandoned Data'!P112 ->  | H114: ='Abandoned Data'!S112 ->  | J114: ='Abandoned Data'!R112 ->  | L114: ='Abandoned Data'!Q112 -> 
B115: ='Abandoned Data'!N113&"." -> . | D115: ='Abandoned Data'!O113 ->  | F115: ='Abandoned Data'!P113 ->  | H115: ='Abandoned Data'!S113 ->  | J115: ='Abandoned Data'!R113 ->  | L115: ='Abandoned Data'!Q113 -> 
B116: ='Abandoned Data'!N114&"." -> . | D116: ='Abandoned Data'!O114 ->  | F116: ='Abandoned Data'!P114 ->  | H116: ='Abandoned Data'!S114 ->  | J116: ='Abandoned Data'!R114 ->  | L116: ='Abandoned Data'!Q114 -> 
B117: ='Abandoned Data'!N115&"." -> . | D117: ='Abandoned Data'!O115 ->  | F117: ='Abandoned Data'!P115 ->  | H117: ='Abandoned Data'!S115 ->  | J117: ='Abandoned Data'!R115 ->  | L117: ='Abandoned Data'!Q115 -> 
B118: ='Abandoned Data'!N116&"." -> . | D118: ='Abandoned Data'!O116 ->  | F118: ='Abandoned Data'!P116 ->  | H118: ='Abandoned Data'!S116 ->  | J118: ='Abandoned Data'!R116 ->  | L118: ='Abandoned Data'!Q116 -> 
B119: ='Abandoned Data'!N117&"." -> . | D119: ='Abandoned Data'!O117 ->  | F119: ='Abandoned Data'!P117 ->  | H119: ='Abandoned Data'!S117 ->  | J119: ='Abandoned Data'!R117 ->  | L119: ='Abandoned Data'!Q117 -> 
B120: ='Abandoned Data'!N118&"." -> . | D120: ='Abandoned Data'!O118 ->  | F120: ='Abandoned Data'!P118 ->  | H120: ='Abandoned Data'!S118 ->  | J120: ='Abandoned Data'!R118 ->  | L120: ='Abandoned Data'!Q118 -> 
B121: ='Abandoned Data'!N119&"." -> . | D121: ='Abandoned Data'!O119 ->  | F121: ='Abandoned Data'!P119 ->  | H121: ='Abandoned Data'!S119 ->  | J121: ='Abandoned Data'!R119 ->  | L121: ='Abandoned Data'!Q119 -> 
B122: ='Abandoned Data'!N120&"." -> . | D122: ='Abandoned Data'!O120 ->  | F122: ='Abandoned Data'!P120 ->  | H122: ='Abandoned Data'!S120 ->  | J122: ='Abandoned Data'!R120 ->  | L122: ='Abandoned Data'!Q120 -> 
B123: ='Abandoned Data'!N121&"." -> . | D123: ='Abandoned Data'!O121 ->  | F123: ='Abandoned Data'!P121 ->  | H123: ='Abandoned Data'!S121 ->  | J123: ='Abandoned Data'!R121 ->  | L123: ='Abandoned Data'!Q121 -> 
B124: ='Abandoned Data'!N122&"." -> . | D124: ='Abandoned Data'!O122 ->  | F124: ='Abandoned Data'!P122 ->  | H124: ='Abandoned Data'!S122 ->  | J124: ='Abandoned Data'!R122 ->  | L124: ='Abandoned Data'!Q122 -> 
B125: ='Abandoned Data'!N123&"." -> . | D125: ='Abandoned Data'!O123 ->  | F125: ='Abandoned Data'!P123 ->  | H125: ='Abandoned Data'!S123 ->  | J125: ='Abandoned Data'!R123 ->  | L125: ='Abandoned Data'!Q123 -> 
B126: ='Abandoned Data'!N124&"." -> . | D126: ='Abandoned Data'!O124 ->  | F126: ='Abandoned Data'!P124 ->  | H126: ='Abandoned Data'!S124 ->  | J126: ='Abandoned Data'!R124 ->  | L126: ='Abandoned Data'!Q124 -> 
B127: ='Abandoned Data'!N125&"." -> . | D127: ='Abandoned Data'!O125 ->  | F127: ='Abandoned Data'!P125 ->  | H127: ='Abandoned Data'!S125 ->  | J127: ='Abandoned Data'!R125 ->  | L127: ='Abandoned Data'!Q125 -> 
B128: ='Abandoned Data'!N126&"." -> . | D128: ='Abandoned Data'!O126 ->  | F128: ='Abandoned Data'!P126 ->  | H128: ='Abandoned Data'!S126 ->  | J128: ='Abandoned Data'!R126 ->  | L128: ='Abandoned Data'!Q126 -> 
B129: ='Abandoned Data'!N127&"." -> . | D129: ='Abandoned Data'!O127 ->  | F129: ='Abandoned Data'!P127 ->  | H129: ='Abandoned Data'!S127 ->  | J129: ='Abandoned Data'!R127 ->  | L129: ='Abandoned Data'!Q127 -> 
B130: ='Abandoned Data'!N128&"." -> . | D130: ='Abandoned Data'!O128 ->  | F130: ='Abandoned Data'!P128 ->  | H130: ='Abandoned Data'!S128 ->  | J130: ='Abandoned Data'!R128 ->  | L130: ='Abandoned Data'!Q128 -> 
B131: ='Abandoned Data'!N129&"." -> . | D131: ='Abandoned Data'!O129 ->  | F131: ='Abandoned Data'!P129 ->  | H131: ='Abandoned Data'!S129 ->  | J131: ='Abandoned Data'!R129 ->  | L131: ='Abandoned Data'!Q129 -> 
B132: ='Abandoned Data'!N130&"." -> . | D132: ='Abandoned Data'!O130 ->  | F132: ='Abandoned Data'!P130 ->  | H132: ='Abandoned Data'!S130 ->  | J132: ='Abandoned Data'!R130 ->  | L132: ='Abandoned Data'!Q130 -> 
B133: ='Abandoned Data'!N131&"." -> . | D133: ='Abandoned Data'!O131 ->  | F133: ='Abandoned Data'!P131 ->  | H133: ='Abandoned Data'!S131 ->  | J133: ='Abandoned Data'!R131 ->  | L133: ='Abandoned Data'!Q131 -> 
B134: ='Abandoned Data'!N132&"." -> . | D134: ='Abandoned Data'!O132 ->  | F134: ='Abandoned Data'!P132 ->  | H134: ='Abandoned Data'!S132 ->  | J134: ='Abandoned Data'!R132 ->  | L134: ='Abandoned Data'!Q132 -> 
B135: ='Abandoned Data'!N133&"." -> . | D135: ='Abandoned Data'!O133 ->  | F135: ='Abandoned Data'!P133 ->  | H135: ='Abandoned Data'!S133 ->  | J135: ='Abandoned Data'!R133 ->  | L135: ='Abandoned Data'!Q133 -> 
B136: ='Abandoned Data'!N134&"." -> . | D136: ='Abandoned Data'!O134 ->  | F136: ='Abandoned Data'!P134 ->  | H136: ='Abandoned Data'!S134 ->  | J136: ='Abandoned Data'!R134 ->  | L136: ='Abandoned Data'!Q134 -> 
B137: ='Abandoned Data'!N135&"." -> . | D137: ='Abandoned Data'!O135 ->  | F137: ='Abandoned Data'!P135 ->  | H137: ='Abandoned Data'!S135 ->  | J137: ='Abandoned Data'!R135 ->  | L137: ='Abandoned Data'!Q135 -> 
B138: ='Abandoned Data'!N136&"." -> . | D138: ='Abandoned Data'!O136 ->  | F138: ='Abandoned Data'!P136 ->  | H138: ='Abandoned Data'!S136 ->  | J138: ='Abandoned Data'!R136 ->  | L138: ='Abandoned Data'!Q136 -> 
B139: ='Abandoned Data'!N137&"." -> . | D139: ='Abandoned Data'!O137 ->  | F139: ='Abandoned Data'!P137 ->  | H139: ='Abandoned Data'!S137 ->  | J139: ='Abandoned Data'!R137 ->  | L139: ='Abandoned Data'!Q137 -> 
B140: ='Abandoned Data'!N138&"." -> . | D140: ='Abandoned Data'!O138 ->  | F140: ='Abandoned Data'!P138 ->  | H140: ='Abandoned Data'!S138 ->  | J140: ='Abandoned Data'!R138 ->  | L140: ='Abandoned Data'!Q138 -> 
B141: ='Abandoned Data'!N139&"." -> . | D141: ='Abandoned Data'!O139 ->  | F141: ='Abandoned Data'!P139 ->  | H141: ='Abandoned Data'!S139 ->  | J141: ='Abandoned Data'!R139 ->  | L141: ='Abandoned Data'!Q139 -> 
B142: ='Abandoned Data'!N140&"." -> . | D142: ='Abandoned Data'!O140 ->  | F142: ='Abandoned Data'!P140 ->  | H142: ='Abandoned Data'!S140 ->  | J142: ='Abandoned Data'!R140 ->  | L142: ='Abandoned Data'!Q140 -> 
B143: ='Abandoned Data'!N141&"." -> . | D143: ='Abandoned Data'!O141 ->  | F143: ='Abandoned Data'!P141 ->  | H143: ='Abandoned Data'!S141 ->  | J143: ='Abandoned Data'!R141 ->  | L143: ='Abandoned Data'!Q141 -> 
B144: ='Abandoned Data'!N142&"." -> . | D144: ='Abandoned Data'!O142 ->  | F144: ='Abandoned Data'!P142 ->  | H144: ='Abandoned Data'!S142 ->  | J144: ='Abandoned Data'!R142 ->  | L144: ='Abandoned Data'!Q142 -> 
B145: ='Abandoned Data'!N143&"." -> . | D145: ='Abandoned Data'!O143 ->  | F145: ='Abandoned Data'!P143 ->  | H145: ='Abandoned Data'!S143 ->  | J145: ='Abandoned Data'!R143 ->  | L145: ='Abandoned Data'!Q143 -> 
B146: ='Abandoned Data'!N144&"." -> . | D146: ='Abandoned Data'!O144 ->  | F146: ='Abandoned Data'!P144 ->  | H146: ='Abandoned Data'!S144 ->  | J146: ='Abandoned Data'!R144 ->  | L146: ='Abandoned Data'!Q144 -> 
B147: ='Abandoned Data'!N145&"." -> . | D147: ='Abandoned Data'!O145 ->  | F147: ='Abandoned Data'!P145 ->  | H147: ='Abandoned Data'!S145 ->  | J147: ='Abandoned Data'!R145 ->  | L147: ='Abandoned Data'!Q145 -> 
B148: ='Abandoned Data'!N146&"." -> . | D148: ='Abandoned Data'!O146 ->  | F148: ='Abandoned Data'!P146 ->  | H148: ='Abandoned Data'!S146 ->  | J148: ='Abandoned Data'!R146 ->  | L148: ='Abandoned Data'!Q146 -> 
B149: ='Abandoned Data'!N147&"." -> . | D149: ='Abandoned Data'!O147 ->  | F149: ='Abandoned Data'!P147 ->  | H149: ='Abandoned Data'!S147 ->  | J149: ='Abandoned Data'!R147 ->  | L149: ='Abandoned Data'!Q147 -> 
B150: ='Abandoned Data'!N148&"." -> . | D150: ='Abandoned Data'!O148 ->  | F150: ='Abandoned Data'!P148 ->  | H150: ='Abandoned Data'!S148 ->  | J150: ='Abandoned Data'!R148 ->  | L150: ='Abandoned Data'!Q148 -> 
B151: ='Abandoned Data'!N149&"." -> . | D151: ='Abandoned Data'!O149 ->  | F151: ='Abandoned Data'!P149 ->  | H151: ='Abandoned Data'!S149 ->  | J151: ='Abandoned Data'!R149 ->  | L151: ='Abandoned Data'!Q149 -> 
B152: ='Abandoned Data'!N150&"." -> . | D152: ='Abandoned Data'!O150 ->  | F152: ='Abandoned Data'!P150 ->  | H152: ='Abandoned Data'!S150 ->  | J152: ='Abandoned Data'!R150 ->  | L152: ='Abandoned Data'!Q150 -> 
B153: ='Abandoned Data'!N151&"." -> . | D153: ='Abandoned Data'!O151 ->  | F153: ='Abandoned Data'!P151 ->  | H153: ='Abandoned Data'!S151 ->  | J153: ='Abandoned Data'!R151 ->  | L153: ='Abandoned Data'!Q151 -> 
B154: ='Abandoned Data'!N152&"." -> . | D154: ='Abandoned Data'!O152 ->  | F154: ='Abandoned Data'!P152 ->  | H154: ='Abandoned Data'!S152 ->  | J154: ='Abandoned Data'!R152 ->  | L154: ='Abandoned Data'!Q152 -> 
B155: ='Abandoned Data'!N153&"." -> . | D155: ='Abandoned Data'!O153 ->  | F155: ='Abandoned Data'!P153 ->  | H155: ='Abandoned Data'!S153 ->  | J155: ='Abandoned Data'!R153 ->  | L155: ='Abandoned Data'!Q153 -> 
B156: ='Abandoned Data'!N154&"." -> . | D156: ='Abandoned Data'!O154 ->  | F156: ='Abandoned Data'!P154 ->  | H156: ='Abandoned Data'!S154 ->  | J156: ='Abandoned Data'!R154 ->  | L156: ='Abandoned Data'!Q154 -> 
B157: ='Abandoned Data'!N155&"." -> . | D157: ='Abandoned Data'!O155 ->  | F157: ='Abandoned Data'!P155 ->  | H157: ='Abandoned Data'!S155 ->  | J157: ='Abandoned Data'!R155 ->  | L157: ='Abandoned Data'!Q155 -> 
B158: ='Abandoned Data'!N156&"." -> . | D158: ='Abandoned Data'!O156 ->  | F158: ='Abandoned Data'!P156 ->  | H158: ='Abandoned Data'!S156 ->  | J158: ='Abandoned Data'!R156 ->  | L158: ='Abandoned Data'!Q156 -> 
B159: ='Abandoned Data'!N157&"." -> . | D159: ='Abandoned Data'!O157 ->  | F159: ='Abandoned Data'!P157 ->  | H159: ='Abandoned Data'!S157 ->  | J159: ='Abandoned Data'!R157 ->  | L159: ='Abandoned Data'!Q157 -> 
B160: ='Abandoned Data'!N158&"." -> . | D160: ='Abandoned Data'!O158 ->  | F160: ='Abandoned Data'!P158 ->  | H160: ='Abandoned Data'!S158 ->  | J160: ='Abandoned Data'!R158 ->  | L160: ='Abandoned Data'!Q158 -> 
B161: ='Abandoned Data'!N159&"." -> . | D161: ='Abandoned Data'!O159 ->  | F161: ='Abandoned Data'!P159 ->  | H161: ='Abandoned Data'!S159 ->  | J161: ='Abandoned Data'!R159 ->  | L161: ='Abandoned Data'!Q159 -> 
B162: ='Abandoned Data'!N160&"." -> . | D162: ='Abandoned Data'!O160 ->  | F162: ='Abandoned Data'!P160 ->  | H162: ='Abandoned Data'!S160 ->  | J162: ='Abandoned Data'!R160 ->  | L162: ='Abandoned Data'!Q160 -> 
B163: ='Abandoned Data'!N161&"." -> . | D163: ='Abandoned Data'!O161 ->  | F163: ='Abandoned Data'!P161 ->  | H163: ='Abandoned Data'!S161 ->  | J163: ='Abandoned Data'!R161 ->  | L163: ='Abandoned Data'!Q161 -> 
B164: ='Abandoned Data'!N162&"." -> . | D164: ='Abandoned Data'!O162 ->  | F164: ='Abandoned Data'!P162 ->  | H164: ='Abandoned Data'!S162 ->  | J164: ='Abandoned Data'!R162 ->  | L164: ='Abandoned Data'!Q162 -> 
B165: ='Abandoned Data'!N163&"." -> . | D165: ='Abandoned Data'!O163 ->  | F165: ='Abandoned Data'!P163 ->  | H165: ='Abandoned Data'!S163 ->  | J165: ='Abandoned Data'!R163 ->  | L165: ='Abandoned Data'!Q163 -> 
B166: ='Abandoned Data'!N164&"." -> . | D166: ='Abandoned Data'!O164 -> 0 | F166: ='Abandoned Data'!P164 -> 0 | H166: ='Abandoned Data'!S164 -> 0 | J166: ='Abandoned Data'!R164 -> 0 | L166: ='Abandoned Data'!Q164 -> 0
B167: ='Abandoned Data'!N165&"." -> . | D167: ='Abandoned Data'!O165 -> 0 | F167: ='Abandoned Data'!P165 -> 0 | H167: ='Abandoned Data'!S165 -> 0 | J167: ='Abandoned Data'!R165 -> 0 | L167: ='Abandoned Data'!Q165 -> 0
B168: ='Abandoned Data'!N166&"." -> . | D168: ='Abandoned Data'!O166 -> 0 | F168: ='Abandoned Data'!P166 -> 0 | H168: ='Abandoned Data'!S166 -> 0 | J168: ='Abandoned Data'!R166 -> 0 | L168: ='Abandoned Data'!Q166 -> 0
B169: ='Abandoned Data'!N167&"." -> . | D169: ='Abandoned Data'!O167 -> 0 | F169: ='Abandoned Data'!P167 -> 0 | H169: ='Abandoned Data'!S167 -> 0 | J169: ='Abandoned Data'!R167 -> 0 | L169: ='Abandoned Data'!Q167 -> 0
B200: Additional Abandoned Coal Mines
D202: Mine Name | F202: County | H202: Coal Rank | J202: Year Abandoned | L202: Status | N202: Percent Sealed | P202: Active Emissions (mmcfd) | R202: Methane Recovered (m3/yr)
B203: 1.
B204: 2.
B205: 3.
B206: 4.
B207: 5.
B208: 6.
B209: 7.
B210: 8.
B211: 9.
B212: 10.
B213: 11.
B214: 12.
B215: 13.
B216: 14.
B217: 15.
B218: 16.
B219: 17.
B220: 18.
B221: 19.
B222: 20.
B223: 21.
B224: 22.
B225: 23.
B226: 24.
B227: 25.
B228: 26.
B229: 27.
B230: 28.
B231: 29.
B232: 30.
... 20 more rows

Sheet Summary Abandoned Coal Mines
B1: ="4. "&constants!L1&" Abandoned Coal Mines Emissions Summary" -> 4. Select a State . . . Abandoned Coal Mines Emissions Summary
B3: Summary of Emissions from Default Abandoned Coal Mines
B4: Latest Inventory Year | C4: 2018
B5: Mine Status (without Unknown Distributed) | AI5: Only used for macro that produces projections, keep hidden
B6: Emissions (MTCO2E/Year) | D6: 1990 | E6: 1991 | F6: 1992 | G6: 1993 | H6: 1994 | I6: 1995 | J6: 1996 | K6: 1997 | L6: 1998 | M6: 1999 | N6: 2000 | O6: 2001 | P6: 2002 | Q6: 2003 | R6: 2004 | S6: 2005 | T6: 2006 | U6: 2007 | V6: 2008 | W6: 2009 | X6: 2010 | Y6: 2011 | Z6: 2012 | AA6: 2013 | AB6: 2014 | AC6: 2015 | AD6: 2016 | AE6: 2017 | AF6: 2018 | AG6: 2019 | AH6: 2020 | AI6: =AH6+1 -> 2021 | AJ6: =AI6+1 -> 2022 | AK6: 2023 | AL6: 2024 | AM6: 2025 | AN6: 2026 | AO6: 2027 | AP6: 2028 | AQ6: 2029 | AR6: 2030 | AS6: 2031 | AT6: 2032 | AU6: 2033 | AV6: 2034 | AW6: 2035 | AX6: 2036 | AY6: 2037 | AZ6: 2038 | BA6: 2039 | BB6: 2040 | BC6: 2041 | BD6: 2042 | BE6: 2043 | BF6: 2044 | BG6: 2045 | BH6: 2046 | BI6: 2047 | BJ6: 2048 | BK6: 2049 | BL6: 2050
C7: Vented | D7: =D14*1000*CH4GWP -> 0 | E7: =E14*1000*CH4GWP -> 0 | F7: 0 | G7: 0 | H7: 0 | I7: 0 | J7: 0 | K7: 0 | L7: 0 | M7: 0 | N7: 0 | O7: 0 | P7: 0 | Q7: 0 | R7: 0 | S7: 0 | T7: 0 | U7: 0 | V7: 0 | W7: 0 | X7: 0 | Y7: 0 | Z7: 0 | AA7: 0 | AB7: 0 | AC7: 0 | AD7: 0 | AE7: 0 | AF7: 0 | AG7: 0 | AH7: 0 | AI7: =AI14*1000*CH4GWP -> 0 | AJ7: 0 | AK7: 0 | AL7: 0 | AM7: 0 | AN7: 0 | AO7: 0 | AP7: 0 | AQ7: 0 | AR7: 0 | AS7: 0 | AT7: 0 | AU7: 0 | AV7: 0 | AW7: 0 | AX7: 0 | AY7: 0 | AZ7: 0 | BA7: 0 | BB7: 0 | BC7: 0 | BD7: 0 | BE7: 0 | BF7: 0 | BG7: 0 | BH7: 0 | BI7: 0 | BJ7: 0 | BK7: 0 | BL7: 0
C8: Sealed | D8: =D15*1000*CH4GWP -> 0 | E8: 0 | F8: 0 | G8: 0 | H8: 0 | I8: 0 | J8: 0 | K8: 0 | L8: 0 | M8: 0 | N8: 0 | O8: 0 | P8: 0 | Q8: 0 | R8: 0 | S8: 0 | T8: 0 | U8: 0 | V8: 0 | W8: 0 | X8: 0 | Y8: 0 | Z8: 0 | AA8: 0 | AB8: 0 | AC8: 0 | AD8: 0 | AE8: 0 | AF8: 0 | AG8: 0 | AH8: 0 | AI8: =AI15*1000*CH4GWP -> 0 | AJ8: 0 | AK8: 0 | AL8: 0 | AM8: 0 | AN8: 0 | AO8: 0 | AP8: 0 | AQ8: 0 | AR8: 0 | AS8: 0 | AT8: 0 | AU8: 0 | AV8: 0 | AW8: 0 | AX8: 0 | AY8: 0 | AZ8: 0 | BA8: 0 | BB8: 0 | BC8: 0 | BD8: 0 | BE8: 0 | BF8: 0 | BG8: 0 | BH8: 0 | BI8: 0 | BJ8: 0 | BK8: 0 | BL8: 0
C9: Flooded | D9: =D16*1000*CH4GWP -> 0 | E9: 0 | F9: 0 | G9: 0 | H9: 0 | I9: 0 | J9: 0 | K9: 0 | L9: 0 | M9: 0 | N9: 0 | O9: 0 | P9: 0 | Q9: 0 | R9: 0 | S9: 0 | T9: 0 | U9: 0 | V9: 0 | W9: 0 | X9: 0 | Y9: 0 | Z9: 0 | AA9: =AA16*1000*CH4GWP -> 0 | AB9: 0 | AC9: 0 | AD9: 0 | AE9: 0 | AF9: 0 | AG9: 0 | AH9: 0 | AI9: =AI16*1000*CH4GWP -> 0 | AJ9: 0 | AK9: 0 | AL9: 0 | AM9: 0 | AN9: 0 | AO9: 0 | AP9: 0 | AQ9: 0 | AR9: 0 | AS9: 0 | AT9: 0 | AU9: 0 | AV9: 0 | AW9: 0 | AX9: 0 | AY9: 0 | AZ9: 0 | BA9: 0 | BB9: 0 | BC9: 0 | BD9: 0 | BE9: 0 | BF9: 0 | BG9: 0 | BH9: 0 | BI9: 0 | BJ9: 0 | BK9: 0 | BL9: 0
C10: Unknown | D10: =D17*1000*CH4GWP -> 0 | E10: 0 | F10: 0 | G10: 0 | H10: 0 | I10: 0 | J10: 0 | K10: 0 | L10: 0 | M10: 0 | N10: 0 | O10: 0 | P10: 0 | Q10: 0 | R10: 0 | S10: 0 | T10: 0 | U10: 0 | V10: 0 | W10: 0 | X10: 0 | Y10: 0 | Z10: 0 | AA10: 0 | AB10: 0 | AC10: 0 | AD10: 0 | AE10: 0 | AF10: 0 | AG10: 0 | AH10: 0 | AI10: =AI17*1000*CH4GWP -> 0 | AJ10: 0 | AK10: 0 | AL10: 0 | AM10: 0 | AN10: 0 | AO10: 0 | AP10: 0 | AQ10: 0 | AR10: 0 | AS10: 0 | AT10: 0 | AU10: 0 | AV10: 0 | AW10: 0 | AX10: 0 | AY10: 0 | AZ10: 0 | BA10: 0 | BB10: 0 | BC10: 0 | BD10: 0 | BE10: 0 | BF10: 0 | BG10: 0 | BH10: 0 | BI10: 0 | BJ10: 0 | BK10: 0 | BL10: 0
C11: Total | D11: =SUM(D7:D10) -> 0 | E11: =SUM(E7:E10) -> 0 | F11: 0 | G11: 0 | H11: 0 | I11: 0 | J11: 0 | K11: 0 | L11: 0 | M11: 0 | N11: 0 | O11: 0 | P11: 0 | Q11: 0 | R11: 0 | S11: 0 | T11: =SUM(T7:T10) -> 0 | U11: 0 | V11: 0 | W11: 0 | X11: 0 | Y11: 0 | Z11: 0 | AA11: 0 | AB11: 0 | AC11: 0 | AD11: 0 | AE11: 0 | AF11: 0 | AG11: 0 | AH11: 0 | AI11: =SUM(AI7:AI10) -> 0 | AJ11: 0 | AK11: 0 | AL11: 0 | AM11: 0 | AN11: 0 | AO11: 0 | AP11: 0 | AQ11: 0 | AR11: 0 | AS11: 0 | AT11: 0 | AU11: 0 | AV11: 0 | AW11: 0 | AX11: 0 | AY11: 0 | AZ11: 0 | BA11: 0 | BB11: 0 | BC11: 0 | BD11: 0 | BE11: 0 | BF11: 0 | BG11: 0 | BH11: 0 | BI11: 0 | BJ11: 0 | BK11: 0 | BL11: 0
B13: Emissions (Gg CH4/Year) | D13: 1990 | E13: 1991 | F13: 1992 | G13: 1993 | H13: 1994 | I13: 1995 | J13: 1996 | K13: 1997 | L13: 1998 | M13: 1999 | N13: 2000 | O13: 2001 | P13: 2002 | Q13: 2003 | R13: 2004 | S13: 2005 | T13: 2006 | U13: 2007 | V13: 2008 | W13: 2009 | X13: 2010 | Y13: 2011 | Z13: 2012 | AA13: 2013 | AB13: 2014 | AC13: 2015 | AD13: 2016 | AE13: 2017 | AF13: 2018 | AG13: 2019 | AH13: 2020 | AI13: =AH13+1 -> 2021 | AJ13: =AI13+1 -> 2022 | AK13: 2023 | AL13: 2024 | AM13: 2025 | AN13: 2026 | AO13: 2027 | AP13: 2028 | AQ13: 2029 | AR13: 2030 | AS13: 2031 | AT13: 2032 | AU13: 2033 | AV13: 2034 | AW13: 2035 | AX13: 2036 | AY13: 2037 | AZ13: 2038 | BA13: 2039 | BB13: 2040 | BC13: 2041 | BD13: 2042 | BE13: 2043 | BF13: 2044 | BG13: 2045 | BH13: 2046 | BI13: 2047 | BJ13: 2048 | BK13: 2049 | BL13: 2050
C14: Vented | D14: =IF(D13<=$C$4,SUMIF('Abandoned Data Inputs'!$E$4:$E$168,"Venting",'Abandoned Data Inputs'!Y4:Y168),0) -> 0 | E14: =IF(E13<=$C$4,SUMIF('Abandoned Data Inputs'!$E$4:$E$168,"Venting",'Abandoned Data Inputs'!Z4:Z168),0) -> 0 | F14: =IF(F13<=$C$4,SUMIF('Abandoned Data Inputs'!$E$4:$E$168,"Venting",'Abandoned Data Inputs'!AA4:AA168),0) -> 0 | G14: =IF(G13<=$C$4,SUMIF('Abandoned Data Inputs'!$E$4:$E$168,"Venting",'Abandoned Data Inputs'!AB4:AB168),0) -> 0 | H14: =IF(H13<=$C$4,SUMIF('Abandoned Data Inputs'!$E$4:$E$168,"Venting",'Abandoned Data Inputs'!AC4:AC168),0) -> 0 | I14: =IF(I13<=$C$4,SUMIF('Abandoned Data Inputs'!$E$4:$E$168,"Venting",'Abandoned Data Inputs'!AD4:AD168),0) -> 0 | J14: =IF(J13<=$C$4,SUMIF('Abandoned Data Inputs'!$E$4:$E$168,"Venting",'Abandoned Data Inputs'!AE4:AE168),0) -> 0 | K14: =IF(K13<=$C$4,SUMIF('Abandoned Data Inputs'!$E$4:$E$168,"Venting",'Abandoned Data Inputs'!AF4:AF168),0) -> 0 | L14: =IF(L13<=$C$4,SUMIF('Abandoned Data Inputs'!$E$4:$E$168,"Venting",'Abandoned Data Inputs'!AG4:AG168),0) -> 0 | M14: =IF(M13<=$C$4,SUMIF('Abandoned Data Inputs'!$E$4:$E$168,"Venting",'Abandoned Data Inputs'!AH4:AH168),0) -> 0 | N14: =IF(N13<=$C$4,SUMIF('Abandoned Data Inputs'!$E$4:$E$168,"Venting",'Abandoned Data Inputs'!AI4:AI168),0) -> 0 | O14: =IF(O13<=$C$4,SUMIF('Abandoned Data Inputs'!$E$4:$E$168,"Venting",'Abandoned Data Inputs'!AJ4:AJ168),0) -> 0 | P14: =IF(P13<=$C$4,SUMIF('Abandoned Data Inputs'!$E$4:$E$168,"Venting",'Abandoned Data Inputs'!AK4:AK168),0) -> 0 | Q14: =IF(Q13<=$C$4,SUMIF('Abandoned Data Inputs'!$E$4:$E$168,"Venting",'Abandoned Data Inputs'!AL4:AL168),0) -> 0 | R14: =IF(R13<=$C$4,SUMIF('Abandoned Data Inputs'!$E$4:$E$168,"Venting",'Abandoned Data Inputs'!AM4:AM168),0) -> 0 | S14: =IF(S13<=$C$4,SUMIF('Abandoned Data Inputs'!$E$4:$E$168,"Venting",'Abandoned Data Inputs'!AN4:AN168),0) -> 0 | T14: =IF(T13<=$C$4,SUMIF('Abandoned Data Inputs'!$E$4:$E$168,"Venting",'Abandoned Data Inputs'!AO4:AO168),0) -> 0 | U14: =IF(U13<=$C$4,SUMIF('Abandoned Data Inputs'!$E$4:$E$168,"Venting",'Abandoned Data Inputs'!AP4:AP168),0) -> 0 | V14: =IF(V13<=$C$4,SUMIF('Abandoned Data Inputs'!$E$4:$E$168,"Venting",'Abandoned Data Inputs'!AQ4:AQ168),0) -> 0 | W14: =IF(W13<=$C$4,SUMIF('Abandoned Data Inputs'!$E$4:$E$168,"Venting",'Abandoned Data Inputs'!AR4:AR168),0) -> 0 | X14: =IF(X13<=$C$4,SUMIF('Abandoned Data Inputs'!$E$4:$E$168,"Venting",'Abandoned Data Inputs'!AS4:AS168),0) -> 0 | Y14: =IF(Y13<=$C$4,SUMIF('Abandoned Data Inputs'!$E$4:$E$168,"Venting",'Abandoned Data Inputs'!AT4:AT168),0) -> 0 | Z14: =IF(Z13<=$C$4,SUMIF('Abandoned Data Inputs'!$E$4:$E$168,"Venting",'Abandoned Data Inputs'!AU4:AU168),0) -> 0 | AA14: =IF(AA13<=$C$4,SUMIF('Abandoned Data Inputs'!$E$4:$E$168,"Venting",'Abandoned Data Inputs'!AV4:AV168),0) -> 0 | AB14: =IF(AB13<=$C$4,SUMIF('Abandoned Data Inputs'!$E$4:$E$168,"Venting",'Abandoned Data Inputs'!AW4:AW168),0) -> 0 | AC14: =IF(AC13<=$C$4,SUMIF('Abandoned Data Inputs'!$E$4:$E$168,"Venting",'Abandoned Data Inputs'!AX4:AX168),0) -> 0 | AD14: =IF(AD13<=$C$4,SUMIF('Abandoned Data Inputs'!$E$4:$E$168,"Venting",'Abandoned Data Inputs'!AY4:AY168),0) -> 0 | AE14: =IF(AE13<=$C$4,SUMIF('Abandoned Data Inputs'!$E$4:$E$168,"Venting",'Abandoned Data Inputs'!AZ4:AZ168),0) -> 0 | AF14: =IF(AF13<=$C$4,SUMIF('Abandoned Data Inputs'!$E$4:$E$168,"Venting",'Abandoned Data Inputs'!BA4:BA168),0) -> 0 | AG14: =IF(AG13<=$C$4,SUMIF('Abandoned Data Inputs'!$E$4:$E$168,"Venting",'Abandoned Data Inputs'!BB4:BB168),0) -> 0 | AH14: =IF(AH13<=$C$4,SUMIF('Abandoned Data Inputs'!$E$4:$E$168,"Venting",'Abandoned Data Inputs'!BC4:BC168),0) -> 0 | AI14: =IF(AI13<=$C$4,SUMIF('Abandoned Data Inputs'!$E$4:$E$145,"Venting",'Abandoned Data Inputs'!BD4:BD145),0) -> 0 | AJ14: =IF(AJ13<=$C$4,SUMIF('Abandoned Data Inputs'!$E$4:$E$145,"Venting",'Abandoned Data Inputs'!BE4:BE145),0) -> 0 | AK14: =IF(AK13<=$C$4,SUMIF('Abandoned Data Inputs'!$E$4:$E$145,"Venting",'Abandoned Data Inputs'!BF4:BF145),0) -> 0 | AL14: =IF(AL13<=$C$4,SUMIF('Abandoned Data Inputs'!$E$4:$E$145,"Venting",'Abandoned Data Inputs'!BG4:BG145),0) -> 0 | AM14: =IF(AM13<=$C$4,SUMIF('Abandoned Data Inputs'!$E$4:$E$145,"Venting",'Abandoned Data Inputs'!BH4:BH145),0) -> 0 | AN14: =IF(AN13<=$C$4,SUMIF('Abandoned Data Inputs'!$E$4:$E$145,"Venting",'Abandoned Data Inputs'!BI4:BI145),0) -> 0 | AO14: =IF(AO13<=$C$4,SUMIF('Abandoned Data Inputs'!$E$4:$E$145,"Venting",'Abandoned Data Inputs'!BJ4:BJ145),0) -> 0 | AP14: =IF(AP13<=$C$4,SUMIF('Abandoned Data Inputs'!$E$4:$E$145,"Venting",'Abandoned Data Inputs'!BK4:BK145),0) -> 0 | AQ14: =IF(AQ13<=$C$4,SUMIF('Abandoned Data Inputs'!$E$4:$E$145,"Venting",'Abandoned Data Inputs'!BL4:BL145),0) -> 0 | AR14: =IF(AR13<=$C$4,SUMIF('Abandoned Data Inputs'!$E$4:$E$145,"Venting",'Abandoned Data Inputs'!BM4:BM145),0) -> 0 | AS14: =IF(AS13<=$C$4,SUMIF('Abandoned Data Inputs'!$E$4:$E$145,"Venting",'Abandoned Data Inputs'!BN4:BN145),0) -> 0 | AT14: =IF(AT13<=$C$4,SUMIF('Abandoned Data Inputs'!$E$4:$E$145,"Venting",'Abandoned Data Inputs'!BO4:BO145),0) -> 0 | AU14: =IF(AU13<=$C$4,SUMIF('Abandoned Data Inputs'!$E$4:$E$145,"Venting",'Abandoned Data Inputs'!BP4:BP145),0) -> 0 | AV14: =IF(AV13<=$C$4,SUMIF('Abandoned Data Inputs'!$E$4:$E$145,"Venting",'Abandoned Data Inputs'!BQ4:BQ145),0) -> 0 | AW14: =IF(AW13<=$C$4,SUMIF('Abandoned Data Inputs'!$E$4:$E$145,"Venting",'Abandoned Data Inputs'!BR4:BR145),0) -> 0 | AX14: =IF(AX13<=$C$4,SUMIF('Abandoned Data Inputs'!$E$4:$E$145,"Venting",'Abandoned Data Inputs'!BS4:BS145),0) -> 0 | AY14: =IF(AY13<=$C$4,SUMIF('Abandoned Data Inputs'!$E$4:$E$145,"Venting",'Abandoned Data Inputs'!BT4:BT145),0) -> 0 | AZ14: =IF(AZ13<=$C$4,SUMIF('Abandoned Data Inputs'!$E$4:$E$145,"Venting",'Abandoned Data Inputs'!BU4:BU145),0) -> 0 | BA14: =IF(BA13<=$C$4,SUMIF('Abandoned Data Inputs'!$E$4:$E$145,"Venting",'Abandoned Data Inputs'!BV4:BV145),0) -> 0 | BB14: =IF(BB13<=$C$4,SUMIF('Abandoned Data Inputs'!$E$4:$E$145,"Venting",'Abandoned Data Inputs'!BW4:BW145),0) -> 0 | BC14: =IF(BC13<=$C$4,SUMIF('Abandoned Data Inputs'!$E$4:$E$145,"Venting",'Abandoned Data Inputs'!BX4:BX145),0) -> 0 | BD14: =IF(BD13<=$C$4,SUMIF('Abandoned Data Inputs'!$E$4:$E$145,"Venting",'Abandoned Data Inputs'!BY4:BY145),0) -> 0 | BE14: =IF(BE13<=$C$4,SUMIF('Abandoned Data Inputs'!$E$4:$E$145,"Venting",'Abandoned Data Inputs'!BZ4:BZ145),0) -> 0 | BF14: =IF(BF13<=$C$4,SUMIF('Abandoned Data Inputs'!$E$4:$E$145,"Venting",'Abandoned Data Inputs'!CA4:CA145),0) -> 0 | BG14: =IF(BG13<=$C$4,SUMIF('Abandoned Data Inputs'!$E$4:$E$145,"Venting",'Abandoned Data Inputs'!CB4:CB145),0) -> 0 | BH14: =IF(BH13<=$C$4,SUMIF('Abandoned Data Inputs'!$E$4:$E$145,"Venting",'Abandoned Data Inputs'!CC4:CC145),0) -> 0 | BI14: =IF(BI13<=$C$4,SUMIF('Abandoned Data Inputs'!$E$4:$E$145,"Venting",'Abandoned Data Inputs'!CD4:CD145),0) -> 0 | BJ14: =IF(BJ13<=$C$4,SUMIF('Abandoned Data Inputs'!$E$4:$E$145,"Venting",'Abandoned Data Inputs'!CE4:CE145),0) -> 0 | BK14: =IF(BK13<=$C$4,SUMIF('Abandoned Data Inputs'!$E$4:$E$145,"Venting",'Abandoned Data Inputs'!CF4:CF145),0) -> 0 | BL14: =IF(BL13<=$C$4,SUMIF('Abandoned Data Inputs'!$E$4:$E$145,"Venting",'Abandoned Data Inputs'!CG4:CG145),0) -> 0
C15: Sealed | D15: =IF(D13<=$C$4,SUMIF('Abandoned Data Inputs'!$E$4:$E$168,"Sealed",'Abandoned Data Inputs'!Y4:Y168),0) -> 0 | E15: =IF(E13<=$C$4,SUMIF('Abandoned Data Inputs'!$E$4:$E$168,"Sealed",'Abandoned Data Inputs'!Z4:Z168),0) -> 0 | F15: =IF(F13<=$C$4,SUMIF('Abandoned Data Inputs'!$E$4:$E$168,"Sealed",'Abandoned Data Inputs'!AA4:AA168),0) -> 0 | G15: =IF(G13<=$C$4,SUMIF('Abandoned Data Inputs'!$E$4:$E$168,"Sealed",'Abandoned Data Inputs'!AB4:AB168),0) -> 0 | H15: =IF(H13<=$C$4,SUMIF('Abandoned Data Inputs'!$E$4:$E$168,"Sealed",'Abandoned Data Inputs'!AC4:AC168),0) -> 0 | I15: =IF(I13<=$C$4,SUMIF('Abandoned Data Inputs'!$E$4:$E$168,"Sealed",'Abandoned Data Inputs'!AD4:AD168),0) -> 0 | J15: =IF(J13<=$C$4,SUMIF('Abandoned Data Inputs'!$E$4:$E$168,"Sealed",'Abandoned Data Inputs'!AE4:AE168),0) -> 0 | K15: =IF(K13<=$C$4,SUMIF('Abandoned Data Inputs'!$E$4:$E$168,"Sealed",'Abandoned Data Inputs'!AF4:AF168),0) -> 0 | L15: =IF(L13<=$C$4,SUMIF('Abandoned Data Inputs'!$E$4:$E$168,"Sealed",'Abandoned Data Inputs'!AG4:AG168),0) -> 0 | M15: =IF(M13<=$C$4,SUMIF('Abandoned Data Inputs'!$E$4:$E$168,"Sealed",'Abandoned Data Inputs'!AH4:AH168),0) -> 0 | N15: =IF(N13<=$C$4,SUMIF('Abandoned Data Inputs'!$E$4:$E$168,"Sealed",'Abandoned Data Inputs'!AI4:AI168),0) -> 0 | O15: =IF(O13<=$C$4,SUMIF('Abandoned Data Inputs'!$E$4:$E$168,"Sealed",'Abandoned Data Inputs'!AJ4:AJ168),0) -> 0 | P15: =IF(P13<=$C$4,SUMIF('Abandoned Data Inputs'!$E$4:$E$168,"Sealed",'Abandoned Data Inputs'!AK4:AK168),0) -> 0 | Q15: =IF(Q13<=$C$4,SUMIF('Abandoned Data Inputs'!$E$4:$E$168,"Sealed",'Abandoned Data Inputs'!AL4:AL168),0) -> 0 | R15: =IF(R13<=$C$4,SUMIF('Abandoned Data Inputs'!$E$4:$E$168,"Sealed",'Abandoned Data Inputs'!AM4:AM168),0) -> 0 | S15: =IF(S13<=$C$4,SUMIF('Abandoned Data Inputs'!$E$4:$E$168,"Sealed",'Abandoned Data Inputs'!AN4:AN168),0) -> 0 | T15: =IF(T13<=$C$4,SUMIF('Abandoned Data Inputs'!$E$4:$E$168,"Sealed",'Abandoned Data Inputs'!AO4:AO168),0) -> 0 | U15: =IF(U13<=$C$4,SUMIF('Abandoned Data Inputs'!$E$4:$E$168,"Sealed",'Abandoned Data Inputs'!AP4:AP168),0) -> 0 | V15: =IF(V13<=$C$4,SUMIF('Abandoned Data Inputs'!$E$4:$E$168,"Sealed",'Abandoned Data Inputs'!AQ4:AQ168),0) -> 0 | W15: =IF(W13<=$C$4,SUMIF('Abandoned Data Inputs'!$E$4:$E$168,"Sealed",'Abandoned Data Inputs'!AR4:AR168),0) -> 0 | X15: =IF(X13<=$C$4,SUMIF('Abandoned Data Inputs'!$E$4:$E$168,"Sealed",'Abandoned Data Inputs'!AS4:AS168),0) -> 0 | Y15: =IF(Y13<=$C$4,SUMIF('Abandoned Data Inputs'!$E$4:$E$168,"Sealed",'Abandoned Data Inputs'!AT4:AT168),0) -> 0 | Z15: =IF(Z13<=$C$4,SUMIF('Abandoned Data Inputs'!$E$4:$E$168,"Sealed",'Abandoned Data Inputs'!AU4:AU168),0) -> 0 | AA15: =IF(AA13<=$C$4,SUMIF('Abandoned Data Inputs'!$E$4:$E$168,"Sealed",'Abandoned Data Inputs'!AV4:AV168),0) -> 0 | AB15: =IF(AB13<=$C$4,SUMIF('Abandoned Data Inputs'!$E$4:$E$168,"Sealed",'Abandoned Data Inputs'!AW4:AW168),0) -> 0 | AC15: =IF(AC13<=$C$4,SUMIF('Abandoned Data Inputs'!$E$4:$E$168,"Sealed",'Abandoned Data Inputs'!AX4:AX168),0) -> 0 | AD15: =IF(AD13<=$C$4,SUMIF('Abandoned Data Inputs'!$E$4:$E$168,"Sealed",'Abandoned Data Inputs'!AY4:AY168),0) -> 0 | AE15: =IF(AE13<=$C$4,SUMIF('Abandoned Data Inputs'!$E$4:$E$168,"Sealed",'Abandoned Data Inputs'!AZ4:AZ168),0) -> 0 | AF15: =IF(AF13<=$C$4,SUMIF('Abandoned Data Inputs'!$E$4:$E$168,"Sealed",'Abandoned Data Inputs'!BA4:BA168),0) -> 0 | AG15: =IF(AG13<=$C$4,SUMIF('Abandoned Data Inputs'!$E$4:$E$168,"Sealed",'Abandoned Data Inputs'!BB4:BB168),0) -> 0 | AH15: =IF(AH13<=$C$4,SUMIF('Abandoned Data Inputs'!$E$4:$E$168,"Sealed",'Abandoned Data Inputs'!BC4:BC168),0) -> 0 | AI15: =IF(AI13<=$C$4,SUMIF('Abandoned Data Inputs'!$E$4:$E$145,"Sealed",'Abandoned Data Inputs'!BD4:BD145),0) -> 0 | AJ15: =IF(AJ13<=$C$4,SUMIF('Abandoned Data Inputs'!$E$4:$E$145,"Sealed",'Abandoned Data Inputs'!BE4:BE145),0) -> 0 | AK15: =IF(AK13<=$C$4,SUMIF('Abandoned Data Inputs'!$E$4:$E$145,"Sealed",'Abandoned Data Inputs'!BF4:BF145),0) -> 0 | AL15: =IF(AL13<=$C$4,SUMIF('Abandoned Data Inputs'!$E$4:$E$145,"Sealed",'Abandoned Data Inputs'!BG4:BG145),0) -> 0 | AM15: =IF(AM13<=$C$4,SUMIF('Abandoned Data Inputs'!$E$4:$E$145,"Sealed",'Abandoned Data Inputs'!BH4:BH145),0) -> 0 | AN15: =IF(AN13<=$C$4,SUMIF('Abandoned Data Inputs'!$E$4:$E$145,"Sealed",'Abandoned Data Inputs'!BI4:BI145),0) -> 0 | AO15: =IF(AO13<=$C$4,SUMIF('Abandoned Data Inputs'!$E$4:$E$145,"Sealed",'Abandoned Data Inputs'!BJ4:BJ145),0) -> 0 | AP15: =IF(AP13<=$C$4,SUMIF('Abandoned Data Inputs'!$E$4:$E$145,"Sealed",'Abandoned Data Inputs'!BK4:BK145),0) -> 0 | AQ15: =IF(AQ13<=$C$4,SUMIF('Abandoned Data Inputs'!$E$4:$E$145,"Sealed",'Abandoned Data Inputs'!BL4:BL145),0) -> 0 | AR15: =IF(AR13<=$C$4,SUMIF('Abandoned Data Inputs'!$E$4:$E$145,"Sealed",'Abandoned Data Inputs'!BM4:BM145),0) -> 0 | AS15: =IF(AS13<=$C$4,SUMIF('Abandoned Data Inputs'!$E$4:$E$145,"Sealed",'Abandoned Data Inputs'!BN4:BN145),0) -> 0 | AT15: =IF(AT13<=$C$4,SUMIF('Abandoned Data Inputs'!$E$4:$E$145,"Sealed",'Abandoned Data Inputs'!BO4:BO145),0) -> 0 | AU15: =IF(AU13<=$C$4,SUMIF('Abandoned Data Inputs'!$E$4:$E$145,"Sealed",'Abandoned Data Inputs'!BP4:BP145),0) -> 0 | AV15: =IF(AV13<=$C$4,SUMIF('Abandoned Data Inputs'!$E$4:$E$145,"Sealed",'Abandoned Data Inputs'!BQ4:BQ145),0) -> 0 | AW15: =IF(AW13<=$C$4,SUMIF('Abandoned Data Inputs'!$E$4:$E$145,"Sealed",'Abandoned Data Inputs'!BR4:BR145),0) -> 0 | AX15: =IF(AX13<=$C$4,SUMIF('Abandoned Data Inputs'!$E$4:$E$145,"Sealed",'Abandoned Data Inputs'!BS4:BS145),0) -> 0 | AY15: =IF(AY13<=$C$4,SUMIF('Abandoned Data Inputs'!$E$4:$E$145,"Sealed",'Abandoned Data Inputs'!BT4:BT145),0) -> 0 | AZ15: =IF(AZ13<=$C$4,SUMIF('Abandoned Data Inputs'!$E$4:$E$145,"Sealed",'Abandoned Data Inputs'!BU4:BU145),0) -> 0 | BA15: =IF(BA13<=$C$4,SUMIF('Abandoned Data Inputs'!$E$4:$E$145,"Sealed",'Abandoned Data Inputs'!BV4:BV145),0) -> 0 | BB15: =IF(BB13<=$C$4,SUMIF('Abandoned Data Inputs'!$E$4:$E$145,"Sealed",'Abandoned Data Inputs'!BW4:BW145),0) -> 0 | BC15: =IF(BC13<=$C$4,SUMIF('Abandoned Data Inputs'!$E$4:$E$145,"Sealed",'Abandoned Data Inputs'!BX4:BX145),0) -> 0 | BD15: =IF(BD13<=$C$4,SUMIF('Abandoned Data Inputs'!$E$4:$E$145,"Sealed",'Abandoned Data Inputs'!BY4:BY145),0) -> 0 | BE15: =IF(BE13<=$C$4,SUMIF('Abandoned Data Inputs'!$E$4:$E$145,"Sealed",'Abandoned Data Inputs'!BZ4:BZ145),0) -> 0 | BF15: =IF(BF13<=$C$4,SUMIF('Abandoned Data Inputs'!$E$4:$E$145,"Sealed",'Abandoned Data Inputs'!CA4:CA145),0) -> 0 | BG15: =IF(BG13<=$C$4,SUMIF('Abandoned Data Inputs'!$E$4:$E$145,"Sealed",'Abandoned Data Inputs'!CB4:CB145),0) -> 0 | BH15: =IF(BH13<=$C$4,SUMIF('Abandoned Data Inputs'!$E$4:$E$145,"Sealed",'Abandoned Data Inputs'!CC4:CC145),0) -> 0 | BI15: =IF(BI13<=$C$4,SUMIF('Abandoned Data Inputs'!$E$4:$E$145,"Sealed",'Abandoned Data Inputs'!CD4:CD145),0) -> 0 | BJ15: =IF(BJ13<=$C$4,SUMIF('Abandoned Data Inputs'!$E$4:$E$145,"Sealed",'Abandoned Data Inputs'!CE4:CE145),0) -> 0 | BK15: =IF(BK13<=$C$4,SUMIF('Abandoned Data Inputs'!$E$4:$E$145,"Sealed",'Abandoned Data Inputs'!CF4:CF145),0) -> 0 | BL15: =IF(BL13<=$C$4,SUMIF('Abandoned Data Inputs'!$E$4:$E$145,"Sealed",'Abandoned Data Inputs'!CG4:CG145),0) -> 0
C16: Flooded | D16: =IF(D13<=$C$4,SUMIF('Abandoned Data Inputs'!$E$4:$E$168,"Flooded",'Abandoned Data Inputs'!Y4:Y168),0) -> 0 | E16: =IF(E13<=$C$4,SUMIF('Abandoned Data Inputs'!$E$4:$E$168,"Flooded",'Abandoned Data Inputs'!Z4:Z168),0) -> 0 | F16: =IF(F13<=$C$4,SUMIF('Abandoned Data Inputs'!$E$4:$E$168,"Flooded",'Abandoned Data Inputs'!AA4:AA168),0) -> 0 | G16: =IF(G13<=$C$4,SUMIF('Abandoned Data Inputs'!$E$4:$E$168,"Flooded",'Abandoned Data Inputs'!AB4:AB168),0) -> 0 | H16: =IF(H13<=$C$4,SUMIF('Abandoned Data Inputs'!$E$4:$E$168,"Flooded",'Abandoned Data Inputs'!AC4:AC168),0) -> 0 | I16: =IF(I13<=$C$4,SUMIF('Abandoned Data Inputs'!$E$4:$E$168,"Flooded",'Abandoned Data Inputs'!AD4:AD168),0) -> 0 | J16: =IF(J13<=$C$4,SUMIF('Abandoned Data Inputs'!$E$4:$E$168,"Flooded",'Abandoned Data Inputs'!AE4:AE168),0) -> 0 | K16: =IF(K13<=$C$4,SUMIF('Abandoned Data Inputs'!$E$4:$E$168,"Flooded",'Abandoned Data Inputs'!AF4:AF168),0) -> 0 | L16: =IF(L13<=$C$4,SUMIF('Abandoned Data Inputs'!$E$4:$E$168,"Flooded",'Abandoned Data Inputs'!AG4:AG168),0) -> 0 | M16: =IF(M13<=$C$4,SUMIF('Abandoned Data Inputs'!$E$4:$E$168,"Flooded",'Abandoned Data Inputs'!AH4:AH168),0) -> 0 | N16: =IF(N13<=$C$4,SUMIF('Abandoned Data Inputs'!$E$4:$E$168,"Flooded",'Abandoned Data Inputs'!AI4:AI168),0) -> 0 | O16: =IF(O13<=$C$4,SUMIF('Abandoned Data Inputs'!$E$4:$E$168,"Flooded",'Abandoned Data Inputs'!AJ4:AJ168),0) -> 0 | P16: =IF(P13<=$C$4,SUMIF('Abandoned Data Inputs'!$E$4:$E$168,"Flooded",'Abandoned Data Inputs'!AK4:AK168),0) -> 0 | Q16: =IF(Q13<=$C$4,SUMIF('Abandoned Data Inputs'!$E$4:$E$168,"Flooded",'Abandoned Data Inputs'!AL4:AL168),0) -> 0 | R16: =IF(R13<=$C$4,SUMIF('Abandoned Data Inputs'!$E$4:$E$168,"Flooded",'Abandoned Data Inputs'!AM4:AM168),0) -> 0 | S16: =IF(S13<=$C$4,SUMIF('Abandoned Data Inputs'!$E$4:$E$168,"Flooded",'Abandoned Data Inputs'!AN4:AN168),0) -> 0 | T16: =IF(T13<=$C$4,SUMIF('Abandoned Data Inputs'!$E$4:$E$168,"Flooded",'Abandoned Data Inputs'!AO4:AO168),0) -> 0 | U16: =IF(U13<=$C$4,SUMIF('Abandoned Data Inputs'!$E$4:$E$168,"Flooded",'Abandoned Data Inputs'!AP4:AP168),0) -> 0 | V16: =IF(V13<=$C$4,SUMIF('Abandoned Data Inputs'!$E$4:$E$168,"Flooded",'Abandoned Data Inputs'!AQ4:AQ168),0) -> 0 | W16: =IF(W13<=$C$4,SUMIF('Abandoned Data Inputs'!$E$4:$E$168,"Flooded",'Abandoned Data Inputs'!AR4:AR168),0) -> 0 | X16: =IF(X13<=$C$4,SUMIF('Abandoned Data Inputs'!$E$4:$E$168,"Flooded",'Abandoned Data Inputs'!AS4:AS168),0) -> 0 | Y16: =IF(Y13<=$C$4,SUMIF('Abandoned Data Inputs'!$E$4:$E$168,"Flooded",'Abandoned Data Inputs'!AT4:AT168),0) -> 0 | Z16: =IF(Z13<=$C$4,SUMIF('Abandoned Data Inputs'!$E$4:$E$168,"Flooded",'Abandoned Data Inputs'!AU4:AU168),0) -> 0 | AA16: =IF(AA13<=$C$4,SUMIF('Abandoned Data Inputs'!$E$4:$E$168,"Flooded",'Abandoned Data Inputs'!AV4:AV168),0) -> 0 | AB16: =IF(AB13<=$C$4,SUMIF('Abandoned Data Inputs'!$E$4:$E$168,"Flooded",'Abandoned Data Inputs'!AW4:AW168),0) -> 0 | AC16: =IF(AC13<=$C$4,SUMIF('Abandoned Data Inputs'!$E$4:$E$168,"Flooded",'Abandoned Data Inputs'!AX4:AX168),0) -> 0 | AD16: =IF(AD13<=$C$4,SUMIF('Abandoned Data Inputs'!$E$4:$E$168,"Flooded",'Abandoned Data Inputs'!AY4:AY168),0) -> 0 | AE16: =IF(AE13<=$C$4,SUMIF('Abandoned Data Inputs'!$E$4:$E$168,"Flooded",'Abandoned Data Inputs'!AZ4:AZ168),0) -> 0 | AF16: =IF(AF13<=$C$4,SUMIF('Abandoned Data Inputs'!$E$4:$E$168,"Flooded",'Abandoned Data Inputs'!BA4:BA168),0) -> 0 | AG16: =IF(AG13<=$C$4,SUMIF('Abandoned Data Inputs'!$E$4:$E$168,"Flooded",'Abandoned Data Inputs'!BB4:BB168),0) -> 0 | AH16: =IF(AH13<=$C$4,SUMIF('Abandoned Data Inputs'!$E$4:$E$168,"Flooded",'Abandoned Data Inputs'!BC4:BC168),0) -> 0 | AI16: =IF(AI13<=$C$4,SUMIF('Abandoned Data Inputs'!$E$4:$E$145,"Flooded",'Abandoned Data Inputs'!BD4:BD145),0) -> 0 | AJ16: =IF(AJ13<=$C$4,SUMIF('Abandoned Data Inputs'!$E$4:$E$145,"Flooded",'Abandoned Data Inputs'!BE4:BE145),0) -> 0 | AK16: =IF(AK13<=$C$4,SUMIF('Abandoned Data Inputs'!$E$4:$E$145,"Flooded",'Abandoned Data Inputs'!BF4:BF145),0) -> 0 | AL16: =IF(AL13<=$C$4,SUMIF('Abandoned Data Inputs'!$E$4:$E$145,"Flooded",'Abandoned Data Inputs'!BG4:BG145),0) -> 0 | AM16: =IF(AM13<=$C$4,SUMIF('Abandoned Data Inputs'!$E$4:$E$145,"Flooded",'Abandoned Data Inputs'!BH4:BH145),0) -> 0 | AN16: =IF(AN13<=$C$4,SUMIF('Abandoned Data Inputs'!$E$4:$E$145,"Flooded",'Abandoned Data Inputs'!BI4:BI145),0) -> 0 | AO16: =IF(AO13<=$C$4,SUMIF('Abandoned Data Inputs'!$E$4:$E$145,"Flooded",'Abandoned Data Inputs'!BJ4:BJ145),0) -> 0 | AP16: =IF(AP13<=$C$4,SUMIF('Abandoned Data Inputs'!$E$4:$E$145,"Flooded",'Abandoned Data Inputs'!BK4:BK145),0) -> 0 | AQ16: =IF(AQ13<=$C$4,SUMIF('Abandoned Data Inputs'!$E$4:$E$145,"Flooded",'Abandoned Data Inputs'!BL4:BL145),0) -> 0 | AR16: =IF(AR13<=$C$4,SUMIF('Abandoned Data Inputs'!$E$4:$E$145,"Flooded",'Abandoned Data Inputs'!BM4:BM145),0) -> 0 | AS16: =IF(AS13<=$C$4,SUMIF('Abandoned Data Inputs'!$E$4:$E$145,"Flooded",'Abandoned Data Inputs'!BN4:BN145),0) -> 0 | AT16: =IF(AT13<=$C$4,SUMIF('Abandoned Data Inputs'!$E$4:$E$145,"Flooded",'Abandoned Data Inputs'!BO4:BO145),0) -> 0 | AU16: =IF(AU13<=$C$4,SUMIF('Abandoned Data Inputs'!$E$4:$E$145,"Flooded",'Abandoned Data Inputs'!BP4:BP145),0) -> 0 | AV16: =IF(AV13<=$C$4,SUMIF('Abandoned Data Inputs'!$E$4:$E$145,"Flooded",'Abandoned Data Inputs'!BQ4:BQ145),0) -> 0 | AW16: =IF(AW13<=$C$4,SUMIF('Abandoned Data Inputs'!$E$4:$E$145,"Flooded",'Abandoned Data Inputs'!BR4:BR145),0) -> 0 | AX16: =IF(AX13<=$C$4,SUMIF('Abandoned Data Inputs'!$E$4:$E$145,"Flooded",'Abandoned Data Inputs'!BS4:BS145),0) -> 0 | AY16: =IF(AY13<=$C$4,SUMIF('Abandoned Data Inputs'!$E$4:$E$145,"Flooded",'Abandoned Data Inputs'!BT4:BT145),0) -> 0 | AZ16: =IF(AZ13<=$C$4,SUMIF('Abandoned Data Inputs'!$E$4:$E$145,"Flooded",'Abandoned Data Inputs'!BU4:BU145),0) -> 0 | BA16: =IF(BA13<=$C$4,SUMIF('Abandoned Data Inputs'!$E$4:$E$145,"Flooded",'Abandoned Data Inputs'!BV4:BV145),0) -> 0 | BB16: =IF(BB13<=$C$4,SUMIF('Abandoned Data Inputs'!$E$4:$E$145,"Flooded",'Abandoned Data Inputs'!BW4:BW145),0) -> 0 | BC16: =IF(BC13<=$C$4,SUMIF('Abandoned Data Inputs'!$E$4:$E$145,"Flooded",'Abandoned Data Inputs'!BX4:BX145),0) -> 0 | BD16: =IF(BD13<=$C$4,SUMIF('Abandoned Data Inputs'!$E$4:$E$145,"Flooded",'Abandoned Data Inputs'!BY4:BY145),0) -> 0 | BE16: =IF(BE13<=$C$4,SUMIF('Abandoned Data Inputs'!$E$4:$E$145,"Flooded",'Abandoned Data Inputs'!BZ4:BZ145),0) -> 0 | BF16: =IF(BF13<=$C$4,SUMIF('Abandoned Data Inputs'!$E$4:$E$145,"Flooded",'Abandoned Data Inputs'!CA4:CA145),0) -> 0 | BG16: =IF(BG13<=$C$4,SUMIF('Abandoned Data Inputs'!$E$4:$E$145,"Flooded",'Abandoned Data Inputs'!CB4:CB145),0) -> 0 | BH16: =IF(BH13<=$C$4,SUMIF('Abandoned Data Inputs'!$E$4:$E$145,"Flooded",'Abandoned Data Inputs'!CC4:CC145),0) -> 0 | BI16: =IF(BI13<=$C$4,SUMIF('Abandoned Data Inputs'!$E$4:$E$145,"Flooded",'Abandoned Data Inputs'!CD4:CD145),0) -> 0 | BJ16: =IF(BJ13<=$C$4,SUMIF('Abandoned Data Inputs'!$E$4:$E$145,"Flooded",'Abandoned Data Inputs'!CE4:CE145),0) -> 0 | BK16: =IF(BK13<=$C$4,SUMIF('Abandoned Data Inputs'!$E$4:$E$145,"Flooded",'Abandoned Data Inputs'!CF4:CF145),0) -> 0 | BL16: =IF(BL13<=$C$4,SUMIF('Abandoned Data Inputs'!$E$4:$E$145,"Flooded",'Abandoned Data Inputs'!CG4:CG145),0) -> 0
C17: Unknown | D17: =IF(D13<=$C$4,SUMIF('Abandoned Data Inputs'!$E$4:$E$168,"Unknown",'Abandoned Data Inputs'!Y4:Y168),0) -> 0 | E17: =IF(E13<=$C$4,SUMIF('Abandoned Data Inputs'!$E$4:$E$168,"Unknown",'Abandoned Data Inputs'!Z4:Z168),0) -> 0 | F17: =IF(F13<=$C$4,SUMIF('Abandoned Data Inputs'!$E$4:$E$168,"Unknown",'Abandoned Data Inputs'!AA4:AA168),0) -> 0 | G17: =IF(G13<=$C$4,SUMIF('Abandoned Data Inputs'!$E$4:$E$168,"Unknown",'Abandoned Data Inputs'!AB4:AB168),0) -> 0 | H17: =IF(H13<=$C$4,SUMIF('Abandoned Data Inputs'!$E$4:$E$168,"Unknown",'Abandoned Data Inputs'!AC4:AC168),0) -> 0 | I17: =IF(I13<=$C$4,SUMIF('Abandoned Data Inputs'!$E$4:$E$168,"Unknown",'Abandoned Data Inputs'!AD4:AD168),0) -> 0 | J17: =IF(J13<=$C$4,SUMIF('Abandoned Data Inputs'!$E$4:$E$168,"Unknown",'Abandoned Data Inputs'!AE4:AE168),0) -> 0 | K17: =IF(K13<=$C$4,SUMIF('Abandoned Data Inputs'!$E$4:$E$168,"Unknown",'Abandoned Data Inputs'!AF4:AF168),0) -> 0 | L17: =IF(L13<=$C$4,SUMIF('Abandoned Data Inputs'!$E$4:$E$168,"Unknown",'Abandoned Data Inputs'!AG4:AG168),0) -> 0 | M17: =IF(M13<=$C$4,SUMIF('Abandoned Data Inputs'!$E$4:$E$168,"Unknown",'Abandoned Data Inputs'!AH4:AH168),0) -> 0 | N17: =IF(N13<=$C$4,SUMIF('Abandoned Data Inputs'!$E$4:$E$168,"Unknown",'Abandoned Data Inputs'!AI4:AI168),0) -> 0 | O17: =IF(O13<=$C$4,SUMIF('Abandoned Data Inputs'!$E$4:$E$168,"Unknown",'Abandoned Data Inputs'!AJ4:AJ168),0) -> 0 | P17: =IF(P13<=$C$4,SUMIF('Abandoned Data Inputs'!$E$4:$E$168,"Unknown",'Abandoned Data Inputs'!AK4:AK168),0) -> 0 | Q17: =IF(Q13<=$C$4,SUMIF('Abandoned Data Inputs'!$E$4:$E$168,"Unknown",'Abandoned Data Inputs'!AL4:AL168),0) -> 0 | R17: =IF(R13<=$C$4,SUMIF('Abandoned Data Inputs'!$E$4:$E$168,"Unknown",'Abandoned Data Inputs'!AM4:AM168),0) -> 0 | S17: =IF(S13<=$C$4,SUMIF('Abandoned Data Inputs'!$E$4:$E$168,"Unknown",'Abandoned Data Inputs'!AN4:AN168),0) -> 0 | T17: =IF(T13<=$C$4,SUMIF('Abandoned Data Inputs'!$E$4:$E$168,"Unknown",'Abandoned Data Inputs'!AO4:AO168),0) -> 0 | U17: =IF(U13<=$C$4,SUMIF('Abandoned Data Inputs'!$E$4:$E$168,"Unknown",'Abandoned Data Inputs'!AP4:AP168),0) -> 0 | V17: =IF(V13<=$C$4,SUMIF('Abandoned Data Inputs'!$E$4:$E$168,"Unknown",'Abandoned Data Inputs'!AQ4:AQ168),0) -> 0 | W17: =IF(W13<=$C$4,SUMIF('Abandoned Data Inputs'!$E$4:$E$168,"Unknown",'Abandoned Data Inputs'!AR4:AR168),0) -> 0 | X17: =IF(X13<=$C$4,SUMIF('Abandoned Data Inputs'!$E$4:$E$168,"Unknown",'Abandoned Data Inputs'!AS4:AS168),0) -> 0 | Y17: =IF(Y13<=$C$4,SUMIF('Abandoned Data Inputs'!$E$4:$E$168,"Unknown",'Abandoned Data Inputs'!AT4:AT168),0) -> 0 | Z17: =IF(Z13<=$C$4,SUMIF('Abandoned Data Inputs'!$E$4:$E$168,"Unknown",'Abandoned Data Inputs'!AU4:AU168),0) -> 0 | AA17: =IF(AA13<=$C$4,SUMIF('Abandoned Data Inputs'!$E$4:$E$168,"Unknown",'Abandoned Data Inputs'!AV4:AV168),0) -> 0 | AB17: =IF(AB13<=$C$4,SUMIF('Abandoned Data Inputs'!$E$4:$E$168,"Unknown",'Abandoned Data Inputs'!AW4:AW168),0) -> 0 | AC17: =IF(AC13<=$C$4,SUMIF('Abandoned Data Inputs'!$E$4:$E$168,"Unknown",'Abandoned Data Inputs'!AX4:AX168),0) -> 0 | AD17: =IF(AD13<=$C$4,SUMIF('Abandoned Data Inputs'!$E$4:$E$168,"Unknown",'Abandoned Data Inputs'!AY4:AY168),0) -> 0 | AE17: =IF(AE13<=$C$4,SUMIF('Abandoned Data Inputs'!$E$4:$E$168,"Unknown",'Abandoned Data Inputs'!AZ4:AZ168),0) -> 0 | AF17: =IF(AF13<=$C$4,SUMIF('Abandoned Data Inputs'!$E$4:$E$168,"Unknown",'Abandoned Data Inputs'!BA4:BA168),0) -> 0 | AG17: =IF(AG13<=$C$4,SUMIF('Abandoned Data Inputs'!$E$4:$E$168,"Unknown",'Abandoned Data Inputs'!BB4:BB168),0) -> 0 | AH17: =IF(AH13<=$C$4,SUMIF('Abandoned Data Inputs'!$E$4:$E$168,"Unknown",'Abandoned Data Inputs'!BC4:BC168),0) -> 0 | AI17: =IF(AI13<=$C$4,SUMIF('Abandoned Data Inputs'!$E$4:$E$145,"Unknown",'Abandoned Data Inputs'!BD4:BD145),0) -> 0 | AJ17: =IF(AJ13<=$C$4,SUMIF('Abandoned Data Inputs'!$E$4:$E$145,"Unknown",'Abandoned Data Inputs'!BE4:BE145),0) -> 0 | AK17: =IF(AK13<=$C$4,SUMIF('Abandoned Data Inputs'!$E$4:$E$145,"Unknown",'Abandoned Data Inputs'!BF4:BF145),0) -> 0 | AL17: =IF(AL13<=$C$4,SUMIF('Abandoned Data Inputs'!$E$4:$E$145,"Unknown",'Abandoned Data Inputs'!BG4:BG145),0) -> 0 | AM17: =IF(AM13<=$C$4,SUMIF('Abandoned Data Inputs'!$E$4:$E$145,"Unknown",'Abandoned Data Inputs'!BH4:BH145),0) -> 0 | AN17: =IF(AN13<=$C$4,SUMIF('Abandoned Data Inputs'!$E$4:$E$145,"Unknown",'Abandoned Data Inputs'!BI4:BI145),0) -> 0 | AO17: =IF(AO13<=$C$4,SUMIF('Abandoned Data Inputs'!$E$4:$E$145,"Unknown",'Abandoned Data Inputs'!BJ4:BJ145),0) -> 0 | AP17: =IF(AP13<=$C$4,SUMIF('Abandoned Data Inputs'!$E$4:$E$145,"Unknown",'Abandoned Data Inputs'!BK4:BK145),0) -> 0 | AQ17: =IF(AQ13<=$C$4,SUMIF('Abandoned Data Inputs'!$E$4:$E$145,"Unknown",'Abandoned Data Inputs'!BL4:BL145),0) -> 0 | AR17: =IF(AR13<=$C$4,SUMIF('Abandoned Data Inputs'!$E$4:$E$145,"Unknown",'Abandoned Data Inputs'!BM4:BM145),0) -> 0 | AS17: =IF(AS13<=$C$4,SUMIF('Abandoned Data Inputs'!$E$4:$E$145,"Unknown",'Abandoned Data Inputs'!BN4:BN145),0) -> 0 | AT17: =IF(AT13<=$C$4,SUMIF('Abandoned Data Inputs'!$E$4:$E$145,"Unknown",'Abandoned Data Inputs'!BO4:BO145),0) -> 0 | AU17: =IF(AU13<=$C$4,SUMIF('Abandoned Data Inputs'!$E$4:$E$145,"Unknown",'Abandoned Data Inputs'!BP4:BP145),0) -> 0 | AV17: =IF(AV13<=$C$4,SUMIF('Abandoned Data Inputs'!$E$4:$E$145,"Unknown",'Abandoned Data Inputs'!BQ4:BQ145),0) -> 0 | AW17: =IF(AW13<=$C$4,SUMIF('Abandoned Data Inputs'!$E$4:$E$145,"Unknown",'Abandoned Data Inputs'!BR4:BR145),0) -> 0 | AX17: =IF(AX13<=$C$4,SUMIF('Abandoned Data Inputs'!$E$4:$E$145,"Unknown",'Abandoned Data Inputs'!BS4:BS145),0) -> 0 | AY17: =IF(AY13<=$C$4,SUMIF('Abandoned Data Inputs'!$E$4:$E$145,"Unknown",'Abandoned Data Inputs'!BT4:BT145),0) -> 0 | AZ17: =IF(AZ13<=$C$4,SUMIF('Abandoned Data Inputs'!$E$4:$E$145,"Unknown",'Abandoned Data Inputs'!BU4:BU145),0) -> 0 | BA17: =IF(BA13<=$C$4,SUMIF('Abandoned Data Inputs'!$E$4:$E$145,"Unknown",'Abandoned Data Inputs'!BV4:BV145),0) -> 0 | BB17: =IF(BB13<=$C$4,SUMIF('Abandoned Data Inputs'!$E$4:$E$145,"Unknown",'Abandoned Data Inputs'!BW4:BW145),0) -> 0 | BC17: =IF(BC13<=$C$4,SUMIF('Abandoned Data Inputs'!$E$4:$E$145,"Unknown",'Abandoned Data Inputs'!BX4:BX145),0) -> 0 | BD17: =IF(BD13<=$C$4,SUMIF('Abandoned Data Inputs'!$E$4:$E$145,"Unknown",'Abandoned Data Inputs'!BY4:BY145),0) -> 0 | BE17: =IF(BE13<=$C$4,SUMIF('Abandoned Data Inputs'!$E$4:$E$145,"Unknown",'Abandoned Data Inputs'!BZ4:BZ145),0) -> 0 | BF17: =IF(BF13<=$C$4,SUMIF('Abandoned Data Inputs'!$E$4:$E$145,"Unknown",'Abandoned Data Inputs'!CA4:CA145),0) -> 0 | BG17: =IF(BG13<=$C$4,SUMIF('Abandoned Data Inputs'!$E$4:$E$145,"Unknown",'Abandoned Data Inputs'!CB4:CB145),0) -> 0 | BH17: =IF(BH13<=$C$4,SUMIF('Abandoned Data Inputs'!$E$4:$E$145,"Unknown",'Abandoned Data Inputs'!CC4:CC145),0) -> 0 | BI17: =IF(BI13<=$C$4,SUMIF('Abandoned Data Inputs'!$E$4:$E$145,"Unknown",'Abandoned Data Inputs'!CD4:CD145),0) -> 0 | BJ17: =IF(BJ13<=$C$4,SUMIF('Abandoned Data Inputs'!$E$4:$E$145,"Unknown",'Abandoned Data Inputs'!CE4:CE145),0) -> 0 | BK17: =IF(BK13<=$C$4,SUMIF('Abandoned Data Inputs'!$E$4:$E$145,"Unknown",'Abandoned Data Inputs'!CF4:CF145),0) -> 0 | BL17: =IF(BL13<=$C$4,SUMIF('Abandoned Data Inputs'!$E$4:$E$145,"Unknown",'Abandoned Data Inputs'!CG4:CG145),0) -> 0
B19: Mine Status (with Unknown Distributed)
B20: Emissions (MTCO2E/Year) | D20: 1990 | E20: 1991 | F20: 1992 | G20: 1993 | H20: 1994 | I20: 1995 | J20: 1996 | K20: 1997 | L20: 1998 | M20: 1999 | N20: 2000 | O20: 2001 | P20: 2002 | Q20: 2003 | R20: 2004 | S20: 2005 | T20: 2006 | U20: 2007 | V20: 2008 | W20: 2009 | X20: 2010 | Y20: 2011 | Z20: 2012 | AA20: 2013 | AB20: 2014 | AC20: 2015 | AD20: 2016 | AE20: 2017 | AF20: 2018 | AG20: 2019 | AH20: 2020 | AI20: =AH20+1 -> 2021 | AJ20: =AI20+1 -> 2022 | AK20: 2023 | AL20: 2024 | AM20: 2025 | AN20: 2026 | AO20: 2027 | AP20: 2028 | AQ20: 2029 | AR20: 2030 | AS20: 2031 | AT20: 2032 | AU20: 2033 | AV20: 2034 | AW20: 2035 | AX20: 2036 | AY20: 2037 | AZ20: 2038 | BA20: 2039 | BB20: 2040 | BC20: 2041 | BD20: 2042 | BE20: 2043 | BF20: 2044 | BG20: 2045 | BH20: 2046 | BI20: 2047 | BJ20: 2048 | BK20: 2049 | BL20: 2050
C21: Vented | D21: =IF(ISERROR((D27)*1000*CH4GWP),"-",(D27)*1000*CH4GWP) -> - | E21: =IF(ISERROR((E27)*1000*CH4GWP),"-",(E27)*1000*CH4GWP) -> - | F21: - | G21: - | H21: - | I21: - | J21: - | K21: - | L21: - | M21: - | N21: - | O21: - | P21: - | Q21: - | R21: - | S21: - | T21: - | U21: - | V21: - | W21: - | X21: - | Y21: - | Z21: - | AA21: =IF(ISERROR((AA27)*1000*CH4GWP),"-",(AA27)*1000*CH4GWP) -> - | AB21: - | AC21: - | AD21: - | AE21: - | AF21: - | AG21: - | AH21: - | AI21: =IF(ISERROR((AI27)*1000*CH4GWP),"-",(AI27)*1000*CH4GWP) -> - | AJ21: - | AK21: - | AL21: - | AM21: - | AN21: - | AO21: - | AP21: - | AQ21: - | AR21: - | AS21: - | AT21: - | AU21: - | AV21: - | AW21: - | AX21: - | AY21: - | AZ21: - | BA21: - | BB21: - | BC21: - | BD21: - | BE21: - | BF21: - | BG21: - | BH21: - | BI21: - | BJ21: - | BK21: - | BL21: -
C22: Sealed | D22: =IF(ISERROR((D28)*1000*CH4GWP),"-",(D28)*1000*CH4GWP) -> - | E22: =IF(ISERROR((E28)*1000*CH4GWP),"-",(E28)*1000*CH4GWP) -> - | F22: - | G22: - | H22: - | I22: - | J22: - | K22: - | L22: - | M22: - | N22: - | O22: - | P22: - | Q22: - | R22: - | S22: - | T22: - | U22: - | V22: - | W22: - | X22: - | Y22: - | Z22: - | AA22: =IF(ISERROR((AA28)*1000*CH4GWP),"-",(AA28)*1000*CH4GWP) -> - | AB22: =IF(ISERROR((AB28)*1000*CH4GWP),"-",(AB28)*1000*CH4GWP) -> - | AC22: - | AD22: - | AE22: - | AF22: - | AG22: - | AH22: - | AI22: =IF(ISERROR((AI28)*1000*CH4GWP),"-",(AI28)*1000*CH4GWP) -> - | AJ22: - | AK22: - | AL22: - | AM22: - | AN22: - | AO22: - | AP22: - | AQ22: - | AR22: - | AS22: - | AT22: - | AU22: - | AV22: - | AW22: - | AX22: - | AY22: - | AZ22: - | BA22: - | BB22: - | BC22: - | BD22: - | BE22: - | BF22: - | BG22: - | BH22: - | BI22: - | BJ22: - | BK22: - | BL22: -
C23: Flooded | D23: =IF(ISERROR((D29)*1000*CH4GWP),"-",(D29)*1000*CH4GWP) -> - | E23: =IF(ISERROR((E29)*1000*CH4GWP),"-",(E29)*1000*CH4GWP) -> - | F23: - | G23: - | H23: - | I23: - | J23: - | K23: - | L23: - | M23: - | N23: - | O23: - | P23: - | Q23: - | R23: - | S23: - | T23: - | U23: - | V23: - | W23: - | X23: - | Y23: - | Z23: - | AA23: =IF(ISERROR((AA29)*1000*CH4GWP),"-",(AA29)*1000*CH4GWP) -> - | AB23: - | AC23: - | AD23: - | AE23: - | AF23: - | AG23: - | AH23: - | AI23: =IF(ISERROR((AI29)*1000*CH4GWP),"-",(AI29)*1000*CH4GWP) -> - | AJ23: - | AK23: - | AL23: - | AM23: - | AN23: - | AO23: - | AP23: - | AQ23: - | AR23: - | AS23: - | AT23: - | AU23: - | AV23: - | AW23: - | AX23: - | AY23: - | AZ23: - | BA23: - | BB23: - | BC23: - | BD23: - | BE23: - | BF23: - | BG23: - | BH23: - | BI23: - | BJ23: - | BK23: - | BL23: -
C24: Total | D24: =SUM(D21:D23) -> 0 | E24: =SUM(E21:E23) -> 0 | F24: 0 | G24: 0 | H24: 0 | I24: 0 | J24: 0 | K24: 0 | L24: 0 | M24: 0 | N24: 0 | O24: 0 | P24: 0 | Q24: 0 | R24: 0 | S24: 0 | T24: =SUM(T21:T23) -> 0 | U24: 0 | V24: 0 | W24: 0 | X24: 0 | Y24: 0 | Z24: 0 | AA24: 0 | AB24: 0 | AC24: 0 | AD24: 0 | AE24: 0 | AF24: 0 | AG24: 0 | AH24: 0 | AI24: =SUM(AI21:AI23) -> 0 | AJ24: 0 | AK24: 0 | AL24: 0 | AM24: 0 | AN24: 0 | AO24: 0 | AP24: 0 | AQ24: 0 | AR24: 0 | AS24: 0 | AT24: 0 | AU24: 0 | AV24: 0 | AW24: 0 | AX24: 0 | AY24: 0 | AZ24: 0 | BA24: 0 | BB24: 0 | BC24: 0 | BD24: 0 | BE24: 0 | BF24: 0 | BG24: 0 | BH24: 0 | BI24: 0 | BJ24: 0 | BK24: 0 | BL24: 0
B26: Emissions (Gg CH4/Year) | D26: 1990 | E26: 1991 | F26: 1992 | G26: 1993 | H26: 1994 | I26: 1995 | J26: 1996 | K26: 1997 | L26: 1998 | M26: 1999 | N26: 2000 | O26: 2001 | P26: 2002 | Q26: 2003 | R26: 2004 | S26: 2005 | T26: 2006 | U26: 2007 | V26: 2008 | W26: 2009 | X26: 2010 | Y26: 2011 | Z26: 2012 | AA26: 2013 | AB26: 2014 | AC26: 2015 | AD26: 2016 | AE26: 2017 | AF26: 2018 | AG26: 2019 | AH26: 2020 | AI26: 2020 | AJ26: 2020 | AK26: 2020 | AL26: 2020 | AM26: 2020 | AN26: 2020 | AO26: 2020 | AP26: 2020 | AQ26: 2020 | AR26: 2020 | AS26: 2020 | AT26: 2020 | AU26: 2020 | AV26: 2020 | AW26: 2020 | AX26: 2020 | AY26: 2020 | AZ26: 2020 | BA26: 2020 | BB26: 2020 | BC26: 2020 | BD26: 2020 | BE26: 2020 | BF26: 2020 | BG26: 2020 | BH26: 2020 | BI26: 2020 | BJ26: 2020 | BK26: 2020 | BL26: 2020
C27: Vented | D27: =(D17*'Abandoned Data Inputs'!$U$4)+'Summary Abandoned Coal Mines'!D14 ->  | E27: =(E17*'Abandoned Data Inputs'!$U$4)+'Summary Abandoned Coal Mines'!E14 ->  | F27: =(F17*'Abandoned Data Inputs'!$U$4)+'Summary Abandoned Coal Mines'!F14 ->  | G27: =(G17*'Abandoned Data Inputs'!$U$4)+'Summary Abandoned Coal Mines'!G14 ->  | H27: =(H17*'Abandoned Data Inputs'!$U$4)+'Summary Abandoned Coal Mines'!H14 ->  | I27: =(I17*'Abandoned Data Inputs'!$U$4)+'Summary Abandoned Coal Mines'!I14 ->  | J27: =(J17*'Abandoned Data Inputs'!$U$4)+'Summary Abandoned Coal Mines'!J14 ->  | K27: =(K17*'Abandoned Data Inputs'!$U$4)+'Summary Abandoned Coal Mines'!K14 ->  | L27: =(L17*'Abandoned Data Inputs'!$U$4)+'Summary Abandoned Coal Mines'!L14 ->  | M27: =(M17*'Abandoned Data Inputs'!$U$4)+'Summary Abandoned Coal Mines'!M14 ->  | N27: =(N17*'Abandoned Data Inputs'!$U$4)+'Summary Abandoned Coal Mines'!N14 ->  | O27: =(O17*'Abandoned Data Inputs'!$U$4)+'Summary Abandoned Coal Mines'!O14 ->  | P27: =(P17*'Abandoned Data Inputs'!$U$4)+'Summary Abandoned Coal Mines'!P14 ->  | Q27: =(Q17*'Abandoned Data Inputs'!$U$4)+'Summary Abandoned Coal Mines'!Q14 ->  | R27: =(R17*'Abandoned Data Inputs'!$U$4)+'Summary Abandoned Coal Mines'!R14 ->  | S27: =(S17*'Abandoned Data Inputs'!$U$4)+'Summary Abandoned Coal Mines'!S14 ->  | T27: =(T17*'Abandoned Data Inputs'!$U$4)+'Summary Abandoned Coal Mines'!T14 ->  | U27: =(U17*'Abandoned Data Inputs'!$U$4)+'Summary Abandoned Coal Mines'!U14 ->  | V27: =(V17*'Abandoned Data Inputs'!$U$4)+'Summary Abandoned Coal Mines'!V14 ->  | W27: =(W17*'Abandoned Data Inputs'!$U$4)+'Summary Abandoned Coal Mines'!W14 ->  | X27: =(X17*'Abandoned Data Inputs'!$U$4)+'Summary Abandoned Coal Mines'!X14 ->  | Y27: =(Y17*'Abandoned Data Inputs'!$U$4)+'Summary Abandoned Coal Mines'!Y14 ->  | Z27: =(Z17*'Abandoned Data Inputs'!$U$4)+'Summary Abandoned Coal Mines'!Z14 ->  | AA27: =(AA17*'Abandoned Data Inputs'!$U$4)+'Summary Abandoned Coal Mines'!AA14 ->  | AB27: =(AB17*'Abandoned Data Inputs'!$U$4)+'Summary Abandoned Coal Mines'!AB14 ->  | AC27: =(AC17*'Abandoned Data Inputs'!$U$4)+'Summary Abandoned Coal Mines'!AC14 ->  | AD27: =(AD17*'Abandoned Data Inputs'!$U$4)+'Summary Abandoned Coal Mines'!AD14 ->  | AE27: =(AE17*'Abandoned Data Inputs'!$U$4)+'Summary Abandoned Coal Mines'!AE14 ->  | AF27: =(AF17*'Abandoned Data Inputs'!$U$4)+'Summary Abandoned Coal Mines'!AF14 ->  | AG27: =(AG17*'Abandoned Data Inputs'!$U$4)+'Summary Abandoned Coal Mines'!AG14 ->  | AH27: =(AH17*'Abandoned Data Inputs'!$U$4)+'Summary Abandoned Coal Mines'!AH14 ->  | AI27: =(AI17*'Abandoned Data Inputs'!$U$4)+'Summary Abandoned Coal Mines'!AI14 ->  | AJ27: =(AJ17*'Abandoned Data Inputs'!$U$4)+'Summary Abandoned Coal Mines'!AJ14 ->  | AK27: =(AK17*'Abandoned Data Inputs'!$U$4)+'Summary Abandoned Coal Mines'!AK14 ->  | AL27: =(AL17*'Abandoned Data Inputs'!$U$4)+'Summary Abandoned Coal Mines'!AL14 ->  | AM27: =(AM17*'Abandoned Data Inputs'!$U$4)+'Summary Abandoned Coal Mines'!AM14 ->  | AN27: =(AN17*'Abandoned Data Inputs'!$U$4)+'Summary Abandoned Coal Mines'!AN14 ->  | AO27: =(AO17*'Abandoned Data Inputs'!$U$4)+'Summary Abandoned Coal Mines'!AO14 ->  | AP27: =(AP17*'Abandoned Data Inputs'!$U$4)+'Summary Abandoned Coal Mines'!AP14 ->  | AQ27: =(AQ17*'Abandoned Data Inputs'!$U$4)+'Summary Abandoned Coal Mines'!AQ14 ->  | AR27: =(AR17*'Abandoned Data Inputs'!$U$4)+'Summary Abandoned Coal Mines'!AR14 ->  | AS27: =(AS17*'Abandoned Data Inputs'!$U$4)+'Summary Abandoned Coal Mines'!AS14 ->  | AT27: =(AT17*'Abandoned Data Inputs'!$U$4)+'Summary Abandoned Coal Mines'!AT14 ->  | AU27: =(AU17*'Abandoned Data Inputs'!$U$4)+'Summary Abandoned Coal Mines'!AU14 ->  | AV27: =(AV17*'Abandoned Data Inputs'!$U$4)+'Summary Abandoned Coal Mines'!AV14 ->  | AW27: =(AW17*'Abandoned Data Inputs'!$U$4)+'Summary Abandoned Coal Mines'!AW14 ->  | AX27: =(AX17*'Abandoned Data Inputs'!$U$4)+'Summary Abandoned Coal Mines'!AX14 ->  | AY27: =(AY17*'Abandoned Data Inputs'!$U$4)+'Summary Abandoned Coal Mines'!AY14 ->  | AZ27: =(AZ17*'Abandoned Data Inputs'!$U$4)+'Summary Abandoned Coal Mines'!AZ14 ->  | BA27: =(BA17*'Abandoned Data Inputs'!$U$4)+'Summary Abandoned Coal Mines'!BA14 ->  | BB27: =(BB17*'Abandoned Data Inputs'!$U$4)+'Summary Abandoned Coal Mines'!BB14 ->  | BC27: =(BC17*'Abandoned Data Inputs'!$U$4)+'Summary Abandoned Coal Mines'!BC14 ->  | BD27: =(BD17*'Abandoned Data Inputs'!$U$4)+'Summary Abandoned Coal Mines'!BD14 ->  | BE27: =(BE17*'Abandoned Data Inputs'!$U$4)+'Summary Abandoned Coal Mines'!BE14 ->  | BF27: =(BF17*'Abandoned Data Inputs'!$U$4)+'Summary Abandoned Coal Mines'!BF14 ->  | BG27: =(BG17*'Abandoned Data Inputs'!$U$4)+'Summary Abandoned Coal Mines'!BG14 ->  | BH27: =(BH17*'Abandoned Data Inputs'!$U$4)+'Summary Abandoned Coal Mines'!BH14 ->  | BI27: =(BI17*'Abandoned Data Inputs'!$U$4)+'Summary Abandoned Coal Mines'!BI14 ->  | BJ27: =(BJ17*'Abandoned Data Inputs'!$U$4)+'Summary Abandoned Coal Mines'!BJ14 ->  | BK27: =(BK17*'Abandoned Data Inputs'!$U$4)+'Summary Abandoned Coal Mines'!BK14 ->  | BL27: =(BL17*'Abandoned Data Inputs'!$U$4)+'Summary Abandoned Coal Mines'!BL14 -> 
C28: Sealed | D28: =(D17*'Abandoned Data Inputs'!$V$4)+'Summary Abandoned Coal Mines'!D15 ->  | E28: =(E17*'Abandoned Data Inputs'!$V$4)+'Summary Abandoned Coal Mines'!E15 ->  | F28: =(F17*'Abandoned Data Inputs'!$V$4)+'Summary Abandoned Coal Mines'!F15 ->  | G28: =(G17*'Abandoned Data Inputs'!$V$4)+'Summary Abandoned Coal Mines'!G15 ->  | H28: =(H17*'Abandoned Data Inputs'!$V$4)+'Summary Abandoned Coal Mines'!H15 ->  | I28: =(I17*'Abandoned Data Inputs'!$V$4)+'Summary Abandoned Coal Mines'!I15 ->  | J28: =(J17*'Abandoned Data Inputs'!$V$4)+'Summary Abandoned Coal Mines'!J15 ->  | K28: =(K17*'Abandoned Data Inputs'!$V$4)+'Summary Abandoned Coal Mines'!K15 ->  | L28: =(L17*'Abandoned Data Inputs'!$V$4)+'Summary Abandoned Coal Mines'!L15 ->  | M28: =(M17*'Abandoned Data Inputs'!$V$4)+'Summary Abandoned Coal Mines'!M15 ->  | N28: =(N17*'Abandoned Data Inputs'!$V$4)+'Summary Abandoned Coal Mines'!N15 ->  | O28: =(O17*'Abandoned Data Inputs'!$V$4)+'Summary Abandoned Coal Mines'!O15 ->  | P28: =(P17*'Abandoned Data Inputs'!$V$4)+'Summary Abandoned Coal Mines'!P15 ->  | Q28: =(Q17*'Abandoned Data Inputs'!$V$4)+'Summary Abandoned Coal Mines'!Q15 ->  | R28: =(R17*'Abandoned Data Inputs'!$V$4)+'Summary Abandoned Coal Mines'!R15 ->  | S28: =(S17*'Abandoned Data Inputs'!$V$4)+'Summary Abandoned Coal Mines'!S15 ->  | T28: =(T17*'Abandoned Data Inputs'!$V$4)+'Summary Abandoned Coal Mines'!T15 ->  | U28: =(U17*'Abandoned Data Inputs'!$V$4)+'Summary Abandoned Coal Mines'!U15 ->  | V28: =(V17*'Abandoned Data Inputs'!$V$4)+'Summary Abandoned Coal Mines'!V15 ->  | W28: =(W17*'Abandoned Data Inputs'!$V$4)+'Summary Abandoned Coal Mines'!W15 ->  | X28: =(X17*'Abandoned Data Inputs'!$V$4)+'Summary Abandoned Coal Mines'!X15 ->  | Y28: =(Y17*'Abandoned Data Inputs'!$V$4)+'Summary Abandoned Coal Mines'!Y15 ->  | Z28: =(Z17*'Abandoned Data Inputs'!$V$4)+'Summary Abandoned Coal Mines'!Z15 ->  | AA28: =(AA17*'Abandoned Data Inputs'!$V$4)+'Summary Abandoned Coal Mines'!AA15 ->  | AB28: =(AB17*'Abandoned Data Inputs'!$V$4)+'Summary Abandoned Coal Mines'!AB15 ->  | AC28: =(AC17*'Abandoned Data Inputs'!$V$4)+'Summary Abandoned Coal Mines'!AC15 ->  | AD28: =(AD17*'Abandoned Data Inputs'!$V$4)+'Summary Abandoned Coal Mines'!AD15 ->  | AE28: =(AE17*'Abandoned Data Inputs'!$V$4)+'Summary Abandoned Coal Mines'!AE15 ->  | AF28: =(AF17*'Abandoned Data Inputs'!$V$4)+'Summary Abandoned Coal Mines'!AF15 ->  | AG28: =(AG17*'Abandoned Data Inputs'!$V$4)+'Summary Abandoned Coal Mines'!AG15 ->  | AH28: =(AH17*'Abandoned Data Inputs'!$V$4)+'Summary Abandoned Coal Mines'!AH15 ->  | AI28: =(AI17*'Abandoned Data Inputs'!$V$4)+'Summary Abandoned Coal Mines'!AI15 ->  | AJ28: =(AJ17*'Abandoned Data Inputs'!$V$4)+'Summary Abandoned Coal Mines'!AJ15 ->  | AK28: =(AK17*'Abandoned Data Inputs'!$V$4)+'Summary Abandoned Coal Mines'!AK15 ->  | AL28: =(AL17*'Abandoned Data Inputs'!$V$4)+'Summary Abandoned Coal Mines'!AL15 ->  | AM28: =(AM17*'Abandoned Data Inputs'!$V$4)+'Summary Abandoned Coal Mines'!AM15 ->  | AN28: =(AN17*'Abandoned Data Inputs'!$V$4)+'Summary Abandoned Coal Mines'!AN15 ->  | AO28: =(AO17*'Abandoned Data Inputs'!$V$4)+'Summary Abandoned Coal Mines'!AO15 ->  | AP28: =(AP17*'Abandoned Data Inputs'!$V$4)+'Summary Abandoned Coal Mines'!AP15 ->  | AQ28: =(AQ17*'Abandoned Data Inputs'!$V$4)+'Summary Abandoned Coal Mines'!AQ15 ->  | AR28: =(AR17*'Abandoned Data Inputs'!$V$4)+'Summary Abandoned Coal Mines'!AR15 ->  | AS28: =(AS17*'Abandoned Data Inputs'!$V$4)+'Summary Abandoned Coal Mines'!AS15 ->  | AT28: =(AT17*'Abandoned Data Inputs'!$V$4)+'Summary Abandoned Coal Mines'!AT15 ->  | AU28: =(AU17*'Abandoned Data Inputs'!$V$4)+'Summary Abandoned Coal Mines'!AU15 ->  | AV28: =(AV17*'Abandoned Data Inputs'!$V$4)+'Summary Abandoned Coal Mines'!AV15 ->  | AW28: =(AW17*'Abandoned Data Inputs'!$V$4)+'Summary Abandoned Coal Mines'!AW15 ->  | AX28: =(AX17*'Abandoned Data Inputs'!$V$4)+'Summary Abandoned Coal Mines'!AX15 ->  | AY28: =(AY17*'Abandoned Data Inputs'!$V$4)+'Summary Abandoned Coal Mines'!AY15 ->  | AZ28: =(AZ17*'Abandoned Data Inputs'!$V$4)+'Summary Abandoned Coal Mines'!AZ15 ->  | BA28: =(BA17*'Abandoned Data Inputs'!$V$4)+'Summary Abandoned Coal Mines'!BA15 ->  | BB28: =(BB17*'Abandoned Data Inputs'!$V$4)+'Summary Abandoned Coal Mines'!BB15 ->  | BC28: =(BC17*'Abandoned Data Inputs'!$V$4)+'Summary Abandoned Coal Mines'!BC15 ->  | BD28: =(BD17*'Abandoned Data Inputs'!$V$4)+'Summary Abandoned Coal Mines'!BD15 ->  | BE28: =(BE17*'Abandoned Data Inputs'!$V$4)+'Summary Abandoned Coal Mines'!BE15 ->  | BF28: =(BF17*'Abandoned Data Inputs'!$V$4)+'Summary Abandoned Coal Mines'!BF15 ->  | BG28: =(BG17*'Abandoned Data Inputs'!$V$4)+'Summary Abandoned Coal Mines'!BG15 ->  | BH28: =(BH17*'Abandoned Data Inputs'!$V$4)+'Summary Abandoned Coal Mines'!BH15 ->  | BI28: =(BI17*'Abandoned Data Inputs'!$V$4)+'Summary Abandoned Coal Mines'!BI15 ->  | BJ28: =(BJ17*'Abandoned Data Inputs'!$V$4)+'Summary Abandoned Coal Mines'!BJ15 ->  | BK28: =(BK17*'Abandoned Data Inputs'!$V$4)+'Summary Abandoned Coal Mines'!BK15 ->  | BL28: =(BL17*'Abandoned Data Inputs'!$V$4)+'Summary Abandoned Coal Mines'!BL15 -> 
C29: Flooded | D29: =(D17*'Abandoned Data Inputs'!$T$4)+'Summary Abandoned Coal Mines'!D16 ->  | E29: =(E17*'Abandoned Data Inputs'!$T$4)+'Summary Abandoned Coal Mines'!E16 ->  | F29: =(F17*'Abandoned Data Inputs'!$T$4)+'Summary Abandoned Coal Mines'!F16 ->  | G29: =(G17*'Abandoned Data Inputs'!$T$4)+'Summary Abandoned Coal Mines'!G16 ->  | H29: =(H17*'Abandoned Data Inputs'!$T$4)+'Summary Abandoned Coal Mines'!H16 ->  | I29: =(I17*'Abandoned Data Inputs'!$T$4)+'Summary Abandoned Coal Mines'!I16 ->  | J29: =(J17*'Abandoned Data Inputs'!$T$4)+'Summary Abandoned Coal Mines'!J16 ->  | K29: =(K17*'Abandoned Data Inputs'!$T$4)+'Summary Abandoned Coal Mines'!K16 ->  | L29: =(L17*'Abandoned Data Inputs'!$T$4)+'Summary Abandoned Coal Mines'!L16 ->  | M29: =(M17*'Abandoned Data Inputs'!$T$4)+'Summary Abandoned Coal Mines'!M16 ->  | N29: =(N17*'Abandoned Data Inputs'!$T$4)+'Summary Abandoned Coal Mines'!N16 ->  | O29: =(O17*'Abandoned Data Inputs'!$T$4)+'Summary Abandoned Coal Mines'!O16 ->  | P29: =(P17*'Abandoned Data Inputs'!$T$4)+'Summary Abandoned Coal Mines'!P16 ->  | Q29: =(Q17*'Abandoned Data Inputs'!$T$4)+'Summary Abandoned Coal Mines'!Q16 ->  | R29: =(R17*'Abandoned Data Inputs'!$T$4)+'Summary Abandoned Coal Mines'!R16 ->  | S29: =(S17*'Abandoned Data Inputs'!$T$4)+'Summary Abandoned Coal Mines'!S16 ->  | T29: =(T17*'Abandoned Data Inputs'!$T$4)+'Summary Abandoned Coal Mines'!T16 ->  | U29: =(U17*'Abandoned Data Inputs'!$T$4)+'Summary Abandoned Coal Mines'!U16 ->  | V29: =(V17*'Abandoned Data Inputs'!$T$4)+'Summary Abandoned Coal Mines'!V16 ->  | W29: =(W17*'Abandoned Data Inputs'!$T$4)+'Summary Abandoned Coal Mines'!W16 ->  | X29: =(X17*'Abandoned Data Inputs'!$T$4)+'Summary Abandoned Coal Mines'!X16 ->  | Y29: =(Y17*'Abandoned Data Inputs'!$T$4)+'Summary Abandoned Coal Mines'!Y16 ->  | Z29: =(Z17*'Abandoned Data Inputs'!$T$4)+'Summary Abandoned Coal Mines'!Z16 ->  | AA29: =(AA17*'Abandoned Data Inputs'!$T$4)+'Summary Abandoned Coal Mines'!AA16 ->  | AB29: =(AB17*'Abandoned Data Inputs'!$T$4)+'Summary Abandoned Coal Mines'!AB16 ->  | AC29: =(AC17*'Abandoned Data Inputs'!$T$4)+'Summary Abandoned Coal Mines'!AC16 ->  | AD29: =(AD17*'Abandoned Data Inputs'!$T$4)+'Summary Abandoned Coal Mines'!AD16 ->  | AE29: =(AE17*'Abandoned Data Inputs'!$T$4)+'Summary Abandoned Coal Mines'!AE16 ->  | AF29: =(AF17*'Abandoned Data Inputs'!$T$4)+'Summary Abandoned Coal Mines'!AF16 ->  | AG29: =(AG17*'Abandoned Data Inputs'!$T$4)+'Summary Abandoned Coal Mines'!AG16 ->  | AH29: =(AH17*'Abandoned Data Inputs'!$T$4)+'Summary Abandoned Coal Mines'!AH16 ->  | AI29: =(AI17*'Abandoned Data Inputs'!$T$4)+'Summary Abandoned Coal Mines'!AI16 ->  | AJ29: =(AJ17*'Abandoned Data Inputs'!$T$4)+'Summary Abandoned Coal Mines'!AJ16 ->  | AK29: =(AK17*'Abandoned Data Inputs'!$T$4)+'Summary Abandoned Coal Mines'!AK16 ->  | AL29: =(AL17*'Abandoned Data Inputs'!$T$4)+'Summary Abandoned Coal Mines'!AL16 ->  | AM29: =(AM17*'Abandoned Data Inputs'!$T$4)+'Summary Abandoned Coal Mines'!AM16 ->  | AN29: =(AN17*'Abandoned Data Inputs'!$T$4)+'Summary Abandoned Coal Mines'!AN16 ->  | AO29: =(AO17*'Abandoned Data Inputs'!$T$4)+'Summary Abandoned Coal Mines'!AO16 ->  | AP29: =(AP17*'Abandoned Data Inputs'!$T$4)+'Summary Abandoned Coal Mines'!AP16 ->  | AQ29: =(AQ17*'Abandoned Data Inputs'!$T$4)+'Summary Abandoned Coal Mines'!AQ16 ->  | AR29: =(AR17*'Abandoned Data Inputs'!$T$4)+'Summary Abandoned Coal Mines'!AR16 ->  | AS29: =(AS17*'Abandoned Data Inputs'!$T$4)+'Summary Abandoned Coal Mines'!AS16 ->  | AT29: =(AT17*'Abandoned Data Inputs'!$T$4)+'Summary Abandoned Coal Mines'!AT16 ->  | AU29: =(AU17*'Abandoned Data Inputs'!$T$4)+'Summary Abandoned Coal Mines'!AU16 ->  | AV29: =(AV17*'Abandoned Data Inputs'!$T$4)+'Summary Abandoned Coal Mines'!AV16 ->  | AW29: =(AW17*'Abandoned Data Inputs'!$T$4)+'Summary Abandoned Coal Mines'!AW16 ->  | AX29: =(AX17*'Abandoned Data Inputs'!$T$4)+'Summary Abandoned Coal Mines'!AX16 ->  | AY29: =(AY17*'Abandoned Data Inputs'!$T$4)+'Summary Abandoned Coal Mines'!AY16 ->  | AZ29: =(AZ17*'Abandoned Data Inputs'!$T$4)+'Summary Abandoned Coal Mines'!AZ16 ->  | BA29: =(BA17*'Abandoned Data Inputs'!$T$4)+'Summary Abandoned Coal Mines'!BA16 ->  | BB29: =(BB17*'Abandoned Data Inputs'!$T$4)+'Summary Abandoned Coal Mines'!BB16 ->  | BC29: =(BC17*'Abandoned Data Inputs'!$T$4)+'Summary Abandoned Coal Mines'!BC16 ->  | BD29: =(BD17*'Abandoned Data Inputs'!$T$4)+'Summary Abandoned Coal Mines'!BD16 ->  | BE29: =(BE17*'Abandoned Data Inputs'!$T$4)+'Summary Abandoned Coal Mines'!BE16 ->  | BF29: =(BF17*'Abandoned Data Inputs'!$T$4)+'Summary Abandoned Coal Mines'!BF16 ->  | BG29: =(BG17*'Abandoned Data Inputs'!$T$4)+'Summary Abandoned Coal Mines'!BG16 ->  | BH29: =(BH17*'Abandoned Data Inputs'!$T$4)+'Summary Abandoned Coal Mines'!BH16 ->  | BI29: =(BI17*'Abandoned Data Inputs'!$T$4)+'Summary Abandoned Coal Mines'!BI16 ->  | BJ29: =(BJ17*'Abandoned Data Inputs'!$T$4)+'Summary Abandoned Coal Mines'!BJ16 ->  | BK29: =(BK17*'Abandoned Data Inputs'!$T$4)+'Summary Abandoned Coal Mines'!BK16 ->  | BL29: =(BL17*'Abandoned Data Inputs'!$T$4)+'Summary Abandoned Coal Mines'!BL16 -> 
B32: Summary of Emissions from Additional Abandoned Coal Mines
B34: Mine Status
B35: Emissions (MTCO2E/Year) | D35: 1990 | E35: 1991 | F35: 1992 | G35: 1993 | H35: 1994 | I35: 1995 | J35: 1996 | K35: 1997 | L35: 1998 | M35: 1999 | N35: 2000 | O35: 2001 | P35: 2002 | Q35: 2003 | R35: 2004 | S35: 2005 | T35: 2006 | U35: 2007 | V35: 2008 | W35: 2009 | X35: 2010 | Y35: 2011 | Z35: 2012 | AA35: 2013 | AB35: 2014 | AC35: 2015 | AD35: 2016 | AE35: 2017 | AF35: 2018 | AG35: 2019 | AH35: 2020 | AI35: =AH35+1 -> 2021 | AJ35: =AI35+1 -> 2022 | AK35: 2023 | AL35: 2024 | AM35: 2025 | AN35: 2026 | AO35: 2027 | AP35: 2028 | AQ35: 2029 | AR35: 2030 | AS35: 2031 | AT35: 2032 | AU35: 2033 | AV35: 2034 | AW35: 2035 | AX35: 2036 | AY35: 2037 | AZ35: 2038 | BA35: 2039 | BB35: 2040 | BC35: 2041 | BD35: 2042 | BE35: 2043 | BF35: 2044 | BG35: 2045 | BH35: 2046 | BI35: 2047 | BJ35: 2048 | BK35: 2049 | BL35: 2050
C36: Vented | D36: =D42*1000*CH4GWP -> 0 | E36: =E42*1000*CH4GWP -> 0 | F36: 0 | G36: 0 | H36: 0 | I36: 0 | J36: 0 | K36: 0 | L36: 0 | M36: 0 | N36: 0 | O36: 0 | P36: 0 | Q36: 0 | R36: 0 | S36: 0 | T36: 0 | U36: 0 | V36: 0 | W36: 0 | X36: 0 | Y36: 0 | Z36: 0 | AA36: 0 | AB36: 0 | AC36: 0 | AD36: 0 | AE36: 0 | AF36: 0 | AG36: 0 | AH36: 0 | AI36: =AI42*1000*CH4GWP -> 0 | AJ36: 0 | AK36: 0 | AL36: 0 | AM36: 0 | AN36: 0 | AO36: 0 | AP36: 0 | AQ36: 0 | AR36: 0 | AS36: 0 | AT36: 0 | AU36: 0 | AV36: 0 | AW36: 0 | AX36: 0 | AY36: 0 | AZ36: 0 | BA36: 0 | BB36: 0 | BC36: 0 | BD36: 0 | BE36: 0 | BF36: 0 | BG36: 0 | BH36: 0 | BI36: 0 | BJ36: 0 | BK36: 0 | BL36: 0
C37: Sealed | D37: =D43*1000*CH4GWP -> 0 | E37: 0 | F37: 0 | G37: 0 | H37: 0 | I37: 0 | J37: 0 | K37: 0 | L37: 0 | M37: 0 | N37: 0 | O37: 0 | P37: 0 | Q37: 0 | R37: 0 | S37: 0 | T37: 0 | U37: 0 | V37: 0 | W37: 0 | X37: 0 | Y37: 0 | Z37: 0 | AA37: 0 | AB37: 0 | AC37: 0 | AD37: 0 | AE37: 0 | AF37: 0 | AG37: 0 | AH37: 0 | AI37: =AI43*1000*CH4GWP -> 0 | AJ37: 0 | AK37: 0 | AL37: 0 | AM37: 0 | AN37: 0 | AO37: 0 | AP37: 0 | AQ37: 0 | AR37: 0 | AS37: 0 | AT37: 0 | AU37: 0 | AV37: 0 | AW37: 0 | AX37: 0 | AY37: 0 | AZ37: 0 | BA37: 0 | BB37: 0 | BC37: 0 | BD37: 0 | BE37: 0 | BF37: 0 | BG37: 0 | BH37: 0 | BI37: 0 | BJ37: 0 | BK37: 0 | BL37: 0
C38: Flooded | D38: =D44*1000*CH4GWP -> 0 | E38: 0 | F38: 0 | G38: 0 | H38: 0 | I38: 0 | J38: 0 | K38: 0 | L38: 0 | M38: 0 | N38: 0 | O38: 0 | P38: 0 | Q38: 0 | R38: 0 | S38: 0 | T38: =T44*1000*CH4GWP -> 0 | U38: 0 | V38: 0 | W38: 0 | X38: 0 | Y38: 0 | Z38: 0 | AA38: 0 | AB38: 0 | AC38: 0 | AD38: 0 | AE38: 0 | AF38: 0 | AG38: 0 | AH38: 0 | AI38: =AI44*1000*CH4GWP -> 0 | AJ38: 0 | AK38: 0 | AL38: 0 | AM38: 0 | AN38: 0 | AO38: 0 | AP38: 0 | AQ38: 0 | AR38: 0 | AS38: 0 | AT38: 0 | AU38: 0 | AV38: 0 | AW38: 0 | AX38: 0 | AY38: 0 | AZ38: 0 | BA38: 0 | BB38: 0 | BC38: 0 | BD38: 0 | BE38: 0 | BF38: 0 | BG38: 0 | BH38: 0 | BI38: 0 | BJ38: 0 | BK38: 0 | BL38: 0
C39: Total | D39: =SUM(D36:D38) -> 0 | E39: 0 | F39: 0 | G39: 0 | H39: 0 | I39: 0 | J39: 0 | K39: 0 | L39: 0 | M39: 0 | N39: 0 | O39: 0 | P39: 0 | Q39: 0 | R39: 0 | S39: 0 | T39: =SUM(T36:T38) -> 0 | U39: 0 | V39: 0 | W39: 0 | X39: 0 | Y39: 0 | Z39: 0 | AA39: 0 | AB39: 0 | AC39: 0 | AD39: 0 | AE39: 0 | AF39: 0 | AG39: 0 | AH39: 0 | AI39: =SUM(AI36:AI38) -> 0 | AJ39: 0 | AK39: 0 | AL39: 0 | AM39: 0 | AN39: 0 | AO39: 0 | AP39: 0 | AQ39: 0 | AR39: 0 | AS39: 0 | AT39: 0 | AU39: 0 | AV39: 0 | AW39: 0 | AX39: 0 | AY39: 0 | AZ39: 0 | BA39: 0 | BB39: 0 | BC39: 0 | BD39: 0 | BE39: 0 | BF39: 0 | BG39: 0 | BH39: 0 | BI39: 0 | BJ39: 0 | BK39: 0 | BL39: 0
B41: Emissions (Gg CH4/Year) | D41: 1990 | E41: 1991 | F41: 1992 | G41: 1993 | H41: 1994 | I41: 1995 | J41: 1996 | K41: 1997 | L41: 1998 | M41: 1999 | N41: 2000 | O41: 2001 | P41: 2002 | Q41: 2003 | R41: 2004 | S41: 2005 | T41: 2006 | U41: 2007 | V41: 2008 | W41: 2009 | X41: 2010 | Y41: 2011 | Z41: 2012 | AA41: 2013 | AB41: 2014 | AC41: 2015 | AD41: 2016 | AE41: 2017 | AF41: 2018 | AG41: 2019 | AH41: 2020 | AI41: =AH41+1 -> 2021 | AJ41: =AI41+1 -> 2022 | AK41: 2023 | AL41: 2024 | AM41: 2025 | AN41: 2026 | AO41: 2027 | AP41: 2028 | AQ41: 2029 | AR41: 2030 | AS41: 2031 | AT41: 2032 | AU41: 2033 | AV41: 2034 | AW41: 2035 | AX41: 2036 | AY41: 2037 | AZ41: 2038 | BA41: 2039 | BB41: 2040 | BC41: 2041 | BD41: 2042 | BE41: 2043 | BF41: 2044 | BG41: 2045 | BH41: 2046 | BI41: 2047 | BJ41: 2048 | BK41: 2049 | BL41: 2050
C42: Vented | D42: =SUMIF('Abandoned Data Inputs'!$E$181:$E$230,"Venting",'Abandoned Data Inputs'!Y181:Y230) -> 0 | E42: =SUMIF('Abandoned Data Inputs'!$E$181:$E$230,"Venting",'Abandoned Data Inputs'!Z181:Z230) -> 0 | F42: =SUMIF('Abandoned Data Inputs'!$E$181:$E$230,"Venting",'Abandoned Data Inputs'!AA181:AA230) -> 0 | G42: =SUMIF('Abandoned Data Inputs'!$E$181:$E$230,"Venting",'Abandoned Data Inputs'!AB181:AB230) -> 0 | H42: =SUMIF('Abandoned Data Inputs'!$E$181:$E$230,"Venting",'Abandoned Data Inputs'!AC181:AC230) -> 0 | I42: =SUMIF('Abandoned Data Inputs'!$E$181:$E$230,"Venting",'Abandoned Data Inputs'!AD181:AD230) -> 0 | J42: =SUMIF('Abandoned Data Inputs'!$E$181:$E$230,"Venting",'Abandoned Data Inputs'!AE181:AE230) -> 0 | K42: =SUMIF('Abandoned Data Inputs'!$E$181:$E$230,"Venting",'Abandoned Data Inputs'!AF181:AF230) -> 0 | L42: =SUMIF('Abandoned Data Inputs'!$E$181:$E$230,"Venting",'Abandoned Data Inputs'!AG181:AG230) -> 0 | M42: =SUMIF('Abandoned Data Inputs'!$E$181:$E$230,"Venting",'Abandoned Data Inputs'!AH181:AH230) -> 0 | N42: =SUMIF('Abandoned Data Inputs'!$E$181:$E$230,"Venting",'Abandoned Data Inputs'!AI181:AI230) -> 0 | O42: =SUMIF('Abandoned Data Inputs'!$E$181:$E$230,"Venting",'Abandoned Data Inputs'!AJ181:AJ230) -> 0 | P42: =SUMIF('Abandoned Data Inputs'!$E$181:$E$230,"Venting",'Abandoned Data Inputs'!AK181:AK230) -> 0 | Q42: =SUMIF('Abandoned Data Inputs'!$E$181:$E$230,"Venting",'Abandoned Data Inputs'!AL181:AL230) -> 0 | R42: =SUMIF('Abandoned Data Inputs'!$E$181:$E$230,"Venting",'Abandoned Data Inputs'!AM181:AM230) -> 0 | S42: =SUMIF('Abandoned Data Inputs'!$E$181:$E$230,"Venting",'Abandoned Data Inputs'!AN181:AN230) -> 0 | T42: =SUMIF('Abandoned Data Inputs'!$E$181:$E$230,"Venting",'Abandoned Data Inputs'!AO181:AO230) -> 0 | U42: =SUMIF('Abandoned Data Inputs'!$E$181:$E$230,"Venting",'Abandoned Data Inputs'!AP181:AP230) -> 0 | V42: =SUMIF('Abandoned Data Inputs'!$E$181:$E$230,"Venting",'Abandoned Data Inputs'!AQ181:AQ230) -> 0 | W42: =SUMIF('Abandoned Data Inputs'!$E$181:$E$230,"Venting",'Abandoned Data Inputs'!AR181:AR230) -> 0 | X42: =SUMIF('Abandoned Data Inputs'!$E$181:$E$230,"Venting",'Abandoned Data Inputs'!AS181:AS230) -> 0 | Y42: =SUMIF('Abandoned Data Inputs'!$E$181:$E$230,"Venting",'Abandoned Data Inputs'!AT181:AT230) -> 0 | Z42: =SUMIF('Abandoned Data Inputs'!$E$181:$E$230,"Venting",'Abandoned Data Inputs'!AU181:AU230) -> 0 | AA42: =SUMIF('Abandoned Data Inputs'!$E$181:$E$230,"Venting",'Abandoned Data Inputs'!AV181:AV230) -> 0 | AB42: =SUMIF('Abandoned Data Inputs'!$E$181:$E$230,"Venting",'Abandoned Data Inputs'!AW181:AW230) -> 0 | AC42: =SUMIF('Abandoned Data Inputs'!$E$181:$E$230,"Venting",'Abandoned Data Inputs'!AX181:AX230) -> 0 | AD42: =SUMIF('Abandoned Data Inputs'!$E$181:$E$230,"Venting",'Abandoned Data Inputs'!AY181:AY230) -> 0 | AE42: =SUMIF('Abandoned Data Inputs'!$E$181:$E$230,"Venting",'Abandoned Data Inputs'!AZ181:AZ230) -> 0 | AF42: =SUMIF('Abandoned Data Inputs'!$E$181:$E$230,"Venting",'Abandoned Data Inputs'!BA181:BA230) -> 0 | AG42: =SUMIF('Abandoned Data Inputs'!$E$181:$E$230,"Venting",'Abandoned Data Inputs'!BB181:BB230) -> 0 | AH42: =SUMIF('Abandoned Data Inputs'!$E$181:$E$230,"Venting",'Abandoned Data Inputs'!BC181:BC230) -> 0 | AI42: =SUMIF('Abandoned Data Inputs'!$E$181:$E$230,"Venting",'Abandoned Data Inputs'!BD181:BD230) -> 0 | AJ42: =SUMIF('Abandoned Data Inputs'!$E$181:$E$230,"Venting",'Abandoned Data Inputs'!BE181:BE230) -> 0 | AK42: =SUMIF('Abandoned Data Inputs'!$E$181:$E$230,"Venting",'Abandoned Data Inputs'!BF181:BF230) -> 0 | AL42: =SUMIF('Abandoned Data Inputs'!$E$181:$E$230,"Venting",'Abandoned Data Inputs'!BG181:BG230) -> 0 | AM42: =SUMIF('Abandoned Data Inputs'!$E$181:$E$230,"Venting",'Abandoned Data Inputs'!BH181:BH230) -> 0 | AN42: =SUMIF('Abandoned Data Inputs'!$E$181:$E$230,"Venting",'Abandoned Data Inputs'!BI181:BI230) -> 0 | AO42: =SUMIF('Abandoned Data Inputs'!$E$181:$E$230,"Venting",'Abandoned Data Inputs'!BJ181:BJ230) -> 0 | AP42: =SUMIF('Abandoned Data Inputs'!$E$181:$E$230,"Venting",'Abandoned Data Inputs'!BK181:BK230) -> 0 | AQ42: =SUMIF('Abandoned Data Inputs'!$E$181:$E$230,"Venting",'Abandoned Data Inputs'!BL181:BL230) -> 0 | AR42: =SUMIF('Abandoned Data Inputs'!$E$181:$E$230,"Venting",'Abandoned Data Inputs'!BM181:BM230) -> 0 | AS42: =SUMIF('Abandoned Data Inputs'!$E$181:$E$230,"Venting",'Abandoned Data Inputs'!BN181:BN230) -> 0 | AT42: =SUMIF('Abandoned Data Inputs'!$E$181:$E$230,"Venting",'Abandoned Data Inputs'!BO181:BO230) -> 0 | AU42: =SUMIF('Abandoned Data Inputs'!$E$181:$E$230,"Venting",'Abandoned Data Inputs'!BP181:BP230) -> 0 | AV42: =SUMIF('Abandoned Data Inputs'!$E$181:$E$230,"Venting",'Abandoned Data Inputs'!BQ181:BQ230) -> 0 | AW42: =SUMIF('Abandoned Data Inputs'!$E$181:$E$230,"Venting",'Abandoned Data Inputs'!BR181:BR230) -> 0 | AX42: =SUMIF('Abandoned Data Inputs'!$E$181:$E$230,"Venting",'Abandoned Data Inputs'!BS181:BS230) -> 0 | AY42: =SUMIF('Abandoned Data Inputs'!$E$181:$E$230,"Venting",'Abandoned Data Inputs'!BT181:BT230) -> 0 | AZ42: =SUMIF('Abandoned Data Inputs'!$E$181:$E$230,"Venting",'Abandoned Data Inputs'!BU181:BU230) -> 0 | BA42: =SUMIF('Abandoned Data Inputs'!$E$181:$E$230,"Venting",'Abandoned Data Inputs'!BV181:BV230) -> 0 | BB42: =SUMIF('Abandoned Data Inputs'!$E$181:$E$230,"Venting",'Abandoned Data Inputs'!BW181:BW230) -> 0 | BC42: =SUMIF('Abandoned Data Inputs'!$E$181:$E$230,"Venting",'Abandoned Data Inputs'!BX181:BX230) -> 0 | BD42: =SUMIF('Abandoned Data Inputs'!$E$181:$E$230,"Venting",'Abandoned Data Inputs'!BY181:BY230) -> 0 | BE42: =SUMIF('Abandoned Data Inputs'!$E$181:$E$230,"Venting",'Abandoned Data Inputs'!BZ181:BZ230) -> 0 | BF42: =SUMIF('Abandoned Data Inputs'!$E$181:$E$230,"Venting",'Abandoned Data Inputs'!CA181:CA230) -> 0 | BG42: =SUMIF('Abandoned Data Inputs'!$E$181:$E$230,"Venting",'Abandoned Data Inputs'!CB181:CB230) -> 0 | BH42: =SUMIF('Abandoned Data Inputs'!$E$181:$E$230,"Venting",'Abandoned Data Inputs'!CC181:CC230) -> 0 | BI42: =SUMIF('Abandoned Data Inputs'!$E$181:$E$230,"Venting",'Abandoned Data Inputs'!CD181:CD230) -> 0 | BJ42: =SUMIF('Abandoned Data Inputs'!$E$181:$E$230,"Venting",'Abandoned Data Inputs'!CE181:CE230) -> 0 | BK42: =SUMIF('Abandoned Data Inputs'!$E$181:$E$230,"Venting",'Abandoned Data Inputs'!CF181:CF230) -> 0 | BL42: =SUMIF('Abandoned Data Inputs'!$E$181:$E$230,"Venting",'Abandoned Data Inputs'!CG181:CG230) -> 0
C43: Sealed | D43: =SUMIF('Abandoned Data Inputs'!$E$181:$E$230,"Sealed",'Abandoned Data Inputs'!Y181:Y230) -> 0 | E43: =SUMIF('Abandoned Data Inputs'!$E$181:$E$230,"Sealed",'Abandoned Data Inputs'!Z181:Z230) -> 0 | F43: =SUMIF('Abandoned Data Inputs'!$E$181:$E$230,"Sealed",'Abandoned Data Inputs'!AA181:AA230) -> 0 | G43: =SUMIF('Abandoned Data Inputs'!$E$181:$E$230,"Sealed",'Abandoned Data Inputs'!AB181:AB230) -> 0 | H43: =SUMIF('Abandoned Data Inputs'!$E$181:$E$230,"Sealed",'Abandoned Data Inputs'!AC181:AC230) -> 0 | I43: =SUMIF('Abandoned Data Inputs'!$E$181:$E$230,"Sealed",'Abandoned Data Inputs'!AD181:AD230) -> 0 | J43: =SUMIF('Abandoned Data Inputs'!$E$181:$E$230,"Sealed",'Abandoned Data Inputs'!AE181:AE230) -> 0 | K43: =SUMIF('Abandoned Data Inputs'!$E$181:$E$230,"Sealed",'Abandoned Data Inputs'!AF181:AF230) -> 0 | L43: =SUMIF('Abandoned Data Inputs'!$E$181:$E$230,"Sealed",'Abandoned Data Inputs'!AG181:AG230) -> 0 | M43: =SUMIF('Abandoned Data Inputs'!$E$181:$E$230,"Sealed",'Abandoned Data Inputs'!AH181:AH230) -> 0 | N43: =SUMIF('Abandoned Data Inputs'!$E$181:$E$230,"Sealed",'Abandoned Data Inputs'!AI181:AI230) -> 0 | O43: =SUMIF('Abandoned Data Inputs'!$E$181:$E$230,"Sealed",'Abandoned Data Inputs'!AJ181:AJ230) -> 0 | P43: =SUMIF('Abandoned Data Inputs'!$E$181:$E$230,"Sealed",'Abandoned Data Inputs'!AK181:AK230) -> 0 | Q43: =SUMIF('Abandoned Data Inputs'!$E$181:$E$230,"Sealed",'Abandoned Data Inputs'!AL181:AL230) -> 0 | R43: =SUMIF('Abandoned Data Inputs'!$E$181:$E$230,"Sealed",'Abandoned Data Inputs'!AM181:AM230) -> 0 | S43: =SUMIF('Abandoned Data Inputs'!$E$181:$E$230,"Sealed",'Abandoned Data Inputs'!AN181:AN230) -> 0 | T43: =SUMIF('Abandoned Data Inputs'!$E$181:$E$230,"Sealed",'Abandoned Data Inputs'!AO181:AO230) -> 0 | U43: =SUMIF('Abandoned Data Inputs'!$E$181:$E$230,"Sealed",'Abandoned Data Inputs'!AP181:AP230) -> 0 | V43: =SUMIF('Abandoned Data Inputs'!$E$181:$E$230,"Sealed",'Abandoned Data Inputs'!AQ181:AQ230) -> 0 | W43: =SUMIF('Abandoned Data Inputs'!$E$181:$E$230,"Sealed",'Abandoned Data Inputs'!AR181:AR230) -> 0 | X43: =SUMIF('Abandoned Data Inputs'!$E$181:$E$230,"Sealed",'Abandoned Data Inputs'!AS181:AS230) -> 0 | Y43: =SUMIF('Abandoned Data Inputs'!$E$181:$E$230,"Sealed",'Abandoned Data Inputs'!AT181:AT230) -> 0 | Z43: =SUMIF('Abandoned Data Inputs'!$E$181:$E$230,"Sealed",'Abandoned Data Inputs'!AU181:AU230) -> 0 | AA43: =SUMIF('Abandoned Data Inputs'!$E$181:$E$230,"Sealed",'Abandoned Data Inputs'!AV181:AV230) -> 0 | AB43: =SUMIF('Abandoned Data Inputs'!$E$181:$E$230,"Sealed",'Abandoned Data Inputs'!AW181:AW230) -> 0 | AC43: =SUMIF('Abandoned Data Inputs'!$E$181:$E$230,"Sealed",'Abandoned Data Inputs'!AX181:AX230) -> 0 | AD43: =SUMIF('Abandoned Data Inputs'!$E$181:$E$230,"Sealed",'Abandoned Data Inputs'!AY181:AY230) -> 0 | AE43: =SUMIF('Abandoned Data Inputs'!$E$181:$E$230,"Sealed",'Abandoned Data Inputs'!AZ181:AZ230) -> 0 | AF43: =SUMIF('Abandoned Data Inputs'!$E$181:$E$230,"Sealed",'Abandoned Data Inputs'!BA181:BA230) -> 0 | AG43: =SUMIF('Abandoned Data Inputs'!$E$181:$E$230,"Sealed",'Abandoned Data Inputs'!BB181:BB230) -> 0 | AH43: =SUMIF('Abandoned Data Inputs'!$E$181:$E$230,"Sealed",'Abandoned Data Inputs'!BC181:BC230) -> 0 | AI43: =SUMIF('Abandoned Data Inputs'!$E$181:$E$230,"Sealed",'Abandoned Data Inputs'!BD181:BD230) -> 0 | AJ43: =SUMIF('Abandoned Data Inputs'!$E$181:$E$230,"Sealed",'Abandoned Data Inputs'!BE181:BE230) -> 0 | AK43: =SUMIF('Abandoned Data Inputs'!$E$181:$E$230,"Sealed",'Abandoned Data Inputs'!BF181:BF230) -> 0 | AL43: =SUMIF('Abandoned Data Inputs'!$E$181:$E$230,"Sealed",'Abandoned Data Inputs'!BG181:BG230) -> 0 | AM43: =SUMIF('Abandoned Data Inputs'!$E$181:$E$230,"Sealed",'Abandoned Data Inputs'!BH181:BH230) -> 0 | AN43: =SUMIF('Abandoned Data Inputs'!$E$181:$E$230,"Sealed",'Abandoned Data Inputs'!BI181:BI230) -> 0 | AO43: =SUMIF('Abandoned Data Inputs'!$E$181:$E$230,"Sealed",'Abandoned Data Inputs'!BJ181:BJ230) -> 0 | AP43: =SUMIF('Abandoned Data Inputs'!$E$181:$E$230,"Sealed",'Abandoned Data Inputs'!BK181:BK230) -> 0 | AQ43: =SUMIF('Abandoned Data Inputs'!$E$181:$E$230,"Sealed",'Abandoned Data Inputs'!BL181:BL230) -> 0 | AR43: =SUMIF('Abandoned Data Inputs'!$E$181:$E$230,"Sealed",'Abandoned Data Inputs'!BM181:BM230) -> 0 | AS43: =SUMIF('Abandoned Data Inputs'!$E$181:$E$230,"Sealed",'Abandoned Data Inputs'!BN181:BN230) -> 0 | AT43: =SUMIF('Abandoned Data Inputs'!$E$181:$E$230,"Sealed",'Abandoned Data Inputs'!BO181:BO230) -> 0 | AU43: =SUMIF('Abandoned Data Inputs'!$E$181:$E$230,"Sealed",'Abandoned Data Inputs'!BP181:BP230) -> 0 | AV43: =SUMIF('Abandoned Data Inputs'!$E$181:$E$230,"Sealed",'Abandoned Data Inputs'!BQ181:BQ230) -> 0 | AW43: =SUMIF('Abandoned Data Inputs'!$E$181:$E$230,"Sealed",'Abandoned Data Inputs'!BR181:BR230) -> 0 | AX43: =SUMIF('Abandoned Data Inputs'!$E$181:$E$230,"Sealed",'Abandoned Data Inputs'!BS181:BS230) -> 0 | AY43: =SUMIF('Abandoned Data Inputs'!$E$181:$E$230,"Sealed",'Abandoned Data Inputs'!BT181:BT230) -> 0 | AZ43: =SUMIF('Abandoned Data Inputs'!$E$181:$E$230,"Sealed",'Abandoned Data Inputs'!BU181:BU230) -> 0 | BA43: =SUMIF('Abandoned Data Inputs'!$E$181:$E$230,"Sealed",'Abandoned Data Inputs'!BV181:BV230) -> 0 | BB43: =SUMIF('Abandoned Data Inputs'!$E$181:$E$230,"Sealed",'Abandoned Data Inputs'!BW181:BW230) -> 0 | BC43: =SUMIF('Abandoned Data Inputs'!$E$181:$E$230,"Sealed",'Abandoned Data Inputs'!BX181:BX230) -> 0 | BD43: =SUMIF('Abandoned Data Inputs'!$E$181:$E$230,"Sealed",'Abandoned Data Inputs'!BY181:BY230) -> 0 | BE43: =SUMIF('Abandoned Data Inputs'!$E$181:$E$230,"Sealed",'Abandoned Data Inputs'!BZ181:BZ230) -> 0 | BF43: =SUMIF('Abandoned Data Inputs'!$E$181:$E$230,"Sealed",'Abandoned Data Inputs'!CA181:CA230) -> 0 | BG43: =SUMIF('Abandoned Data Inputs'!$E$181:$E$230,"Sealed",'Abandoned Data Inputs'!CB181:CB230) -> 0 | BH43: =SUMIF('Abandoned Data Inputs'!$E$181:$E$230,"Sealed",'Abandoned Data Inputs'!CC181:CC230) -> 0 | BI43: =SUMIF('Abandoned Data Inputs'!$E$181:$E$230,"Sealed",'Abandoned Data Inputs'!CD181:CD230) -> 0 | BJ43: =SUMIF('Abandoned Data Inputs'!$E$181:$E$230,"Sealed",'Abandoned Data Inputs'!CE181:CE230) -> 0 | BK43: =SUMIF('Abandoned Data Inputs'!$E$181:$E$230,"Sealed",'Abandoned Data Inputs'!CF181:CF230) -> 0 | BL43: =SUMIF('Abandoned Data Inputs'!$E$181:$E$230,"Sealed",'Abandoned Data Inputs'!CG181:CG230) -> 0
C44: Flooded | D44: =SUMIF('Abandoned Data Inputs'!$E$181:$E$230,"Flooded",'Abandoned Data Inputs'!Y181:Y230) -> 0 | E44: =SUMIF('Abandoned Data Inputs'!$E$181:$E$230,"Flooded",'Abandoned Data Inputs'!Z181:Z230) -> 0 | F44: =SUMIF('Abandoned Data Inputs'!$E$181:$E$230,"Flooded",'Abandoned Data Inputs'!AA181:AA230) -> 0 | G44: =SUMIF('Abandoned Data Inputs'!$E$181:$E$230,"Flooded",'Abandoned Data Inputs'!AB181:AB230) -> 0 | H44: =SUMIF('Abandoned Data Inputs'!$E$181:$E$230,"Flooded",'Abandoned Data Inputs'!AC181:AC230) -> 0 | I44: =SUMIF('Abandoned Data Inputs'!$E$181:$E$230,"Flooded",'Abandoned Data Inputs'!AD181:AD230) -> 0 | J44: =SUMIF('Abandoned Data Inputs'!$E$181:$E$230,"Flooded",'Abandoned Data Inputs'!AE181:AE230) -> 0 | K44: =SUMIF('Abandoned Data Inputs'!$E$181:$E$230,"Flooded",'Abandoned Data Inputs'!AF181:AF230) -> 0 | L44: =SUMIF('Abandoned Data Inputs'!$E$181:$E$230,"Flooded",'Abandoned Data Inputs'!AG181:AG230) -> 0 | M44: =SUMIF('Abandoned Data Inputs'!$E$181:$E$230,"Flooded",'Abandoned Data Inputs'!AH181:AH230) -> 0 | N44: =SUMIF('Abandoned Data Inputs'!$E$181:$E$230,"Flooded",'Abandoned Data Inputs'!AI181:AI230) -> 0 | O44: =SUMIF('Abandoned Data Inputs'!$E$181:$E$230,"Flooded",'Abandoned Data Inputs'!AJ181:AJ230) -> 0 | P44: =SUMIF('Abandoned Data Inputs'!$E$181:$E$230,"Flooded",'Abandoned Data Inputs'!AK181:AK230) -> 0 | Q44: =SUMIF('Abandoned Data Inputs'!$E$181:$E$230,"Flooded",'Abandoned Data Inputs'!AL181:AL230) -> 0 | R44: =SUMIF('Abandoned Data Inputs'!$E$181:$E$230,"Flooded",'Abandoned Data Inputs'!AM181:AM230) -> 0 | S44: =SUMIF('Abandoned Data Inputs'!$E$181:$E$230,"Flooded",'Abandoned Data Inputs'!AN181:AN230) -> 0 | T44: =SUMIF('Abandoned Data Inputs'!$E$181:$E$230,"Flooded",'Abandoned Data Inputs'!AO181:AO230) -> 0 | U44: =SUMIF('Abandoned Data Inputs'!$E$181:$E$230,"Flooded",'Abandoned Data Inputs'!AP181:AP230) -> 0 | V44: =SUMIF('Abandoned Data Inputs'!$E$181:$E$230,"Flooded",'Abandoned Data Inputs'!AQ181:AQ230) -> 0 | W44: =SUMIF('Abandoned Data Inputs'!$E$181:$E$230,"Flooded",'Abandoned Data Inputs'!AR181:AR230) -> 0 | X44: =SUMIF('Abandoned Data Inputs'!$E$181:$E$230,"Flooded",'Abandoned Data Inputs'!AS181:AS230) -> 0 | Y44: =SUMIF('Abandoned Data Inputs'!$E$181:$E$230,"Flooded",'Abandoned Data Inputs'!AT181:AT230) -> 0 | Z44: =SUMIF('Abandoned Data Inputs'!$E$181:$E$230,"Flooded",'Abandoned Data Inputs'!AU181:AU230) -> 0 | AA44: =SUMIF('Abandoned Data Inputs'!$E$181:$E$230,"Flooded",'Abandoned Data Inputs'!AV181:AV230) -> 0 | AB44: =SUMIF('Abandoned Data Inputs'!$E$181:$E$230,"Flooded",'Abandoned Data Inputs'!AW181:AW230) -> 0 | AC44: =SUMIF('Abandoned Data Inputs'!$E$181:$E$230,"Flooded",'Abandoned Data Inputs'!AX181:AX230) -> 0 | AD44: =SUMIF('Abandoned Data Inputs'!$E$181:$E$230,"Flooded",'Abandoned Data Inputs'!AY181:AY230) -> 0 | AE44: =SUMIF('Abandoned Data Inputs'!$E$181:$E$230,"Flooded",'Abandoned Data Inputs'!AZ181:AZ230) -> 0 | AF44: =SUMIF('Abandoned Data Inputs'!$E$181:$E$230,"Flooded",'Abandoned Data Inputs'!BA181:BA230) -> 0 | AG44: =SUMIF('Abandoned Data Inputs'!$E$181:$E$230,"Flooded",'Abandoned Data Inputs'!BB181:BB230) -> 0 | AH44: =SUMIF('Abandoned Data Inputs'!$E$181:$E$230,"Flooded",'Abandoned Data Inputs'!BC181:BC230) -> 0 | AI44: =SUMIF('Abandoned Data Inputs'!$E$181:$E$230,"Flooded",'Abandoned Data Inputs'!BD181:BD230) -> 0 | AJ44: =SUMIF('Abandoned Data Inputs'!$E$181:$E$230,"Flooded",'Abandoned Data Inputs'!BE181:BE230) -> 0 | AK44: =SUMIF('Abandoned Data Inputs'!$E$181:$E$230,"Flooded",'Abandoned Data Inputs'!BF181:BF230) -> 0 | AL44: =SUMIF('Abandoned Data Inputs'!$E$181:$E$230,"Flooded",'Abandoned Data Inputs'!BG181:BG230) -> 0 | AM44: =SUMIF('Abandoned Data Inputs'!$E$181:$E$230,"Flooded",'Abandoned Data Inputs'!BH181:BH230) -> 0 | AN44: =SUMIF('Abandoned Data Inputs'!$E$181:$E$230,"Flooded",'Abandoned Data Inputs'!BI181:BI230) -> 0 | AO44: =SUMIF('Abandoned Data Inputs'!$E$181:$E$230,"Flooded",'Abandoned Data Inputs'!BJ181:BJ230) -> 0 | AP44: =SUMIF('Abandoned Data Inputs'!$E$181:$E$230,"Flooded",'Abandoned Data Inputs'!BK181:BK230) -> 0 | AQ44: =SUMIF('Abandoned Data Inputs'!$E$181:$E$230,"Flooded",'Abandoned Data Inputs'!BL181:BL230) -> 0 | AR44: =SUMIF('Abandoned Data Inputs'!$E$181:$E$230,"Flooded",'Abandoned Data Inputs'!BM181:BM230) -> 0 | AS44: =SUMIF('Abandoned Data Inputs'!$E$181:$E$230,"Flooded",'Abandoned Data Inputs'!BN181:BN230) -> 0 | AT44: =SUMIF('Abandoned Data Inputs'!$E$181:$E$230,"Flooded",'Abandoned Data Inputs'!BO181:BO230) -> 0 | AU44: =SUMIF('Abandoned Data Inputs'!$E$181:$E$230,"Flooded",'Abandoned Data Inputs'!BP181:BP230) -> 0 | AV44: =SUMIF('Abandoned Data Inputs'!$E$181:$E$230,"Flooded",'Abandoned Data Inputs'!BQ181:BQ230) -> 0 | AW44: =SUMIF('Abandoned Data Inputs'!$E$181:$E$230,"Flooded",'Abandoned Data Inputs'!BR181:BR230) -> 0 | AX44: =SUMIF('Abandoned Data Inputs'!$E$181:$E$230,"Flooded",'Abandoned Data Inputs'!BS181:BS230) -> 0 | AY44: =SUMIF('Abandoned Data Inputs'!$E$181:$E$230,"Flooded",'Abandoned Data Inputs'!BT181:BT230) -> 0 | AZ44: =SUMIF('Abandoned Data Inputs'!$E$181:$E$230,"Flooded",'Abandoned Data Inputs'!BU181:BU230) -> 0 | BA44: =SUMIF('Abandoned Data Inputs'!$E$181:$E$230,"Flooded",'Abandoned Data Inputs'!BV181:BV230) -> 0 | BB44: =SUMIF('Abandoned Data Inputs'!$E$181:$E$230,"Flooded",'Abandoned Data Inputs'!BW181:BW230) -> 0 | BC44: =SUMIF('Abandoned Data Inputs'!$E$181:$E$230,"Flooded",'Abandoned Data Inputs'!BX181:BX230) -> 0 | BD44: =SUMIF('Abandoned Data Inputs'!$E$181:$E$230,"Flooded",'Abandoned Data Inputs'!BY181:BY230) -> 0 | BE44: =SUMIF('Abandoned Data Inputs'!$E$181:$E$230,"Flooded",'Abandoned Data Inputs'!BZ181:BZ230) -> 0 | BF44: =SUMIF('Abandoned Data Inputs'!$E$181:$E$230,"Flooded",'Abandoned Data Inputs'!CA181:CA230) -> 0 | BG44: =SUMIF('Abandoned Data Inputs'!$E$181:$E$230,"Flooded",'Abandoned Data Inputs'!CB181:CB230) -> 0 | BH44: =SUMIF('Abandoned Data Inputs'!$E$181:$E$230,"Flooded",'Abandoned Data Inputs'!CC181:CC230) -> 0 | BI44: =SUMIF('Abandoned Data Inputs'!$E$181:$E$230,"Flooded",'Abandoned Data Inputs'!CD181:CD230) -> 0 | BJ44: =SUMIF('Abandoned Data Inputs'!$E$181:$E$230,"Flooded",'Abandoned Data Inputs'!CE181:CE230) -> 0 | BK44: =SUMIF('Abandoned Data Inputs'!$E$181:$E$230,"Flooded",'Abandoned Data Inputs'!CF181:CF230) -> 0 | BL44: =SUMIF('Abandoned Data Inputs'!$E$181:$E$230,"Flooded",'Abandoned Data Inputs'!CG181:CG230) -> 0

Sheet Abandoned Data
A1: Source: U.S. GHG Inventory AbandondedCoalMines1990-2018_2.20.20 and Docket Spreadsheets 2018 Additions to Abandoned mine list
B2: State | C2: County | D2: Coal Basin | E2: Coal Seam | F2: Mine Name | G2: Current Emissions Status | H2: Active Emiss. (mmcfd) | I2: Year of Abandonment | J2: Simple Emission Status | K2: Recovering | L2: Constant A | M2: Constant B | N2: =MAXA(N3:N163)-1 -> -1 | O2: Mine Name | P2: County | Q2: Simple Emission Status | R2: Recovering | S2: Basin | T2: Active Emiss. (mmcfd) | U2: Constant A | V2: Constant B
A3: =IF(St='Abandoned Data'!B3,1+A2,0) -> 0 | B3: AL | C3: Jefferson | D3: Warrior | F3: Blue Creek No. 3 | G3: Recovering methane/partially flooded | H3: 12.7 | I3: 1999 | J3: =IF(G3=0,"Unknown",VLOOKUP(G3,$B$525:$C$540,2,FALSE)) -> Flooded | K3: =IF(J3="unknown","Unknown",VLOOKUP(G3,$B$525:$D$540,3,FALSE)) -> Yes | L3: 3.72 | M3: -0.42 | N3: =IF(ISERROR((VLOOKUP(ROW(A1),$A$3:$M$519,1,0))),"",(VLOOKUP(ROW(A1),$A$3:$M$519,1,0))) ->  | O3: =IF(ISERROR(PROPER(VLOOKUP(ROW(A1),$A$3:$M$519,6,0))),"",PROPER(VLOOKUP(ROW(A1),$A$3:$M$519,6,0))) ->  | P3: =IF(ISERROR(PROPER(VLOOKUP(ROW(A1),$A$3:$M$519,3,0))),"",PROPER(VLOOKUP(ROW(A1),$A$3:$M$519,3,0))) ->  | Q3: =IF(ISERROR(PROPER(VLOOKUP(ROW(A1),$A$3:$M$519,10,0))),"",PROPER(VLOOKUP(ROW(A1),$A$3:$M$519,10,0))) ->  | R3: =IF(ISERROR(PROPER(VLOOKUP(ROW(A1),$A$3:$M$519,9,0))),"",PROPER(VLOOKUP(ROW(A1),$A$3:$M$519,9,0))) ->  | S3: =IF(ISERROR(PROPER(VLOOKUP(ROW(A1),$A$3:$M$519,4,0))),"",PROPER(VLOOKUP(ROW(A1),$A$3:$M$519,4,0))) ->  | T3: =IF(ISERROR(VLOOKUP(ROW(A1),$A$3:$M$519,8,0)),"",VLOOKUP(ROW(A1),$A$3:$M$519,8,0)) ->  | U3: =IF(ISERROR(VLOOKUP(ROW(A1),$A$3:$M$519,12,0)),"",VLOOKUP(ROW(A1),$A$3:$M$519,12,0)) ->  | V3: =IF(ISERROR(VLOOKUP(ROW(A1),$A$3:$M$519,13,0)),"",VLOOKUP(ROW(A1),$A$3:$M$519,13,0)) -> 
A4: =IF(St='Abandoned Data'!B4,1+A3,0) -> 0 | B4: AL | C4: Jefferson | D4: Warrior | E4: Mary Lee | F4: Concord No 1 | G4: Flooded | H4: 4.5 | I4: 1984 | J4: Flooded | K4: No | L4: 3.72 | M4: -0.42
A5: =IF(St='Abandoned Data'!B5,1+A4,0) -> 0 | B5: AL | C5: Walker | D5: Warrior | E5: Mary Lee | F5: Mary Lee No 1 | G5: Flooded | H5: 1.5 | I5: 1987 | J5: Flooded | K5: No | L5: 3.72 | M5: -0.42
A6: =IF(St='Abandoned Data'!B6,1+A5,0) -> 0 | B6: AL | C6: Shelby | D6: Warrior | E6: Mary Lee | F6: BOONE NO. 1 | G6: Flooded | H6: 1.3 | I6: 1998 | J6: Flooded | K6: No | L6: 3.72 | M6: -0.42
A7: =IF(St='Abandoned Data'!B7,1+A6,0) -> 0 | B7: AL | C7: Jefferson | D7: Warrior | E7: Mary Lee | F7: Mulga | G7: Flooded | H7: 1.2 | I7: 1983 | J7: Flooded | K7: No | L7: 3.72 | M7: -0.42
A8: =IF(St='Abandoned Data'!B8,1+A7,0) -> 0 | B8: AL | C8: Jefferson | D8: Warrior | E8: Mary Lee | F8: Flat Top | G8: Flooded | H8: 1 | I8: 1979 | J8: Flooded | K8: No | L8: 3.72 | M8: -0.42
A9: =IF(St='Abandoned Data'!B9,1+A8,0) -> 0 | B9: AL | C9: Jefferson | D9: Warrior | E9: Mary Lee | F9: Bessie Mine | G9: Flooded | H9: 1 | I9: 1989 | J9: Flooded | K9: No | L9: 3.72 | M9: -0.42
A10: =IF(St='Abandoned Data'!B10,1+A9,0) -> 0 | B10: AL | C10: Walker | D10: Warrior | E10: Mary Lee | F10: Segco No 1 | G10: Flooded | H10: 0.75 | I10: 1982 | J10: Flooded | K10: No | L10: 3.72 | M10: -0.42
A11: =IF(St='Abandoned Data'!B11,1+A10,0) -> 0 | B11: AL | C11: Jefferson | D11: Warrior | E11: Mary Lee | F11: Chetopa | G11: Flooded | H11: 0.75 | I11: 1997 | J11: Flooded | K11: No | L11: 3.72 | M11: -0.42
A12: =IF(St='Abandoned Data'!B12,1+A11,0) -> 0 | B12: AL | C12: Shelby | D12: Warrior | E12: Mary Lee | F12: Segco No 2 | G12: Flooded | H12: 0.35 | I12: 1973 | J12: Flooded | K12: No | L12: 3.72 | M12: -0.42
A13: =IF(St='Abandoned Data'!B13,1+A12,0) -> 0 | B13: AL | C13: Walker | D13: Warrior | E13: Mary Lee | F13: Gorges No 7 | G13: Flooded | H13: 0.35 | I13: 1986 | J13: Flooded | K13: No | L13: 3.72 | M13: -0.42
A14: =IF(St='Abandoned Data'!B14,1+A13,0) -> 0 | B14: AL | C14: Jefferson | D14: Warrior | E14: Mary Lee | F14: MAXINE MINE | G14: Flooded | H14: 0.35 | I14: 1989 | J14: Flooded | K14: No | L14: 3.72 | M14: -0.42
A15: =IF(St='Abandoned Data'!B15,1+A14,0) -> 0 | B15: AL | C15: Jefferson | D15: Warrior | E15: Mary Lee | F15: NEBO MINE | G15: Flooded | H15: 0.35 | I15: 1989 | J15: Flooded | K15: No | L15: 3.72 | M15: -0.42
A16: =IF(St='Abandoned Data'!B16,1+A15,0) -> 0 | B16: AL | C16: Walker | D16: Warrior | E16: Mary Lee | F16: Mary Lee No 2 | G16: Flooded | H16: 0.35 | I16: 1994 | J16: Flooded | K16: No | L16: 3.72 | M16: -0.42
A17: =IF(St='Abandoned Data'!B17,1+A16,0) -> 0 | B17: AL | C17: Shelby | D17: Warrior | F17: Coke Mine #1 | G17: Flooded | H17: 0.1773972603 | I17: 2009 | J17: Flooded | K17: No | L17: 3.72 | M17: -0.42
A18: =IF(St='Abandoned Data'!B18,1+A17,0) -> 0 | B18: AL | C18: Tuscaloosa | D18: Warrior | E18: Mary Lee | F18: Blue Creek No 5 Mine | G18: recovering methane/partially flooded | H18: 15.12290152 | I18: 2007 | J18: Flooded | K18: Yes | L18: 3.72 | M18: -0.42
A19: =IF(St='Abandoned Data'!B19,1+A18,0) -> 0 | B19: CO | C19: Delta | D19: Piceance | F19: Sanborn Creek | G19: Sealed | H19: 5.4 | I19: 2003 | J19: Sealed | K19: No | L19: 3.72 | M19: -0.42
A20: =IF(St='Abandoned Data'!B20,1+A19,0) -> 0 | B20: CO | C20: Pitkin | D20: Piceance | E20: B Seam | F20: Dutch Creek No 1 | G20: Sealed | H20: 4.8 | I20: 1992 | J20: Sealed | K20: No | L20: 3.72 | M20: -0.42
A21: =IF(St='Abandoned Data'!B21,1+A20,0) -> 0 | B21: CO | C21: Pitkin | D21: Piceance | E21: B Seam | F21: Dutch Creek No. 2 | G21: Sealed | H21: 4.2 | I21: 1988 | J21: Sealed | K21: No | L21: 3.72 | M21: -0.42
A22: =IF(St='Abandoned Data'!B22,1+A21,0) -> 0 | B22: CO | C22: Pitkin | D22: Piceance | F22: L.S.Wood | G22: Sealed | H22: 2.4 | I22: 1985 | J22: Sealed | K22: No | L22: 3.72 | M22: -0.42
A23: =IF(St='Abandoned Data'!B23,1+A22,0) -> 0 | B23: CO | C23: Pitkin | D23: Piceance | E23: B Seam | F23: COAL BASIN | G23: Sealed | H23: 1.6 | I23: 1981 | J23: Sealed | K23: No | L23: 3.72 | M23: -0.42
A24: =IF(St='Abandoned Data'!B24,1+A23,0) -> 0 | B24: CO | C24: Delta | D24: Piceance | E24: D Seam | F24: Bowie No 1 | G24: Venting | H24: 1.2 | I24: 1998 | J24: Venting | K24: No | L24: 3.72 | M24: -0.42
A25: =IF(St='Abandoned Data'!B25,1+A24,0) -> 0 | B25: CO | C25: Delta | D25: Piceance | E25: E Seam | F25: Hawks Nest East | G25: Venting | H25: 0.9 | I25: 1986 | J25: Venting | K25: No | L25: 3.72 | M25: -0.42
A26: =IF(St='Abandoned Data'!B26,1+A25,0) -> 0 | B26: CO | C26: Gunnison | D26: Piceance | E26: Jaunita C Seam | F26: BEAR MINE | G26: Sealed | H26: 0.75 | I26: 1982 | J26: Sealed | K26: No | L26: 3.72 | M26: -0.42
A27: =IF(St='Abandoned Data'!B27,1+A26,0) -> 0 | B27: CO | C27: Gunnison | D27: Piceance | E27: B Seam | F27: Bear Creek Mine | G27: Sealed | H27: 0.7 | I27: 1979 | J27: Sealed | K27: No | L27: 3.72 | M27: -0.42
A28: =IF(St='Abandoned Data'!B28,1+A27,0) -> 0 | B28: CO | C28: Delta | D28: Piceance | E28: B Seam | F28: Somerset Mine | G28: Sealed | H28: 0.7 | I28: 1989 | J28: Sealed | K28: No | L28: 3.72 | M28: -0.42
A29: =IF(St='Abandoned Data'!B29,1+A28,0) -> 0 | B29: CO | C29: Mesa | D29: Piceance | F29: Roadside North Portal | G29: Sealed | H29: 0.7 | I29: 2000 | J29: Sealed | K29: No | L29: 3.72 | M29: -0.42
A30: =IF(St='Abandoned Data'!B30,1+A29,0) -> 0 | B30: CO | C30: Mesa | D30: Piceance | F30: Roadside South Portal | G30: Venting/Partially Flooded | H30: 0.4 | I30: 2000 | J30: Flooded | K30: No | L30: 3.72 | M30: -0.42
A31: =IF(St='Abandoned Data'!B31,1+A30,0) -> 0 | B31: CO | C31: Delta | D31: Piceance | F31: Bowie #3 | G31: Sealed | H31: 0.38 | I31: 2005 | J31: Sealed | K31: No | L31: 3.72 | M31: -0.42
A32: =IF(St='Abandoned Data'!B32,1+A31,0) -> 0 | B32: CO | C32: Pitkin | D32: Piceance | F32: Thompson Creek No. 1 | G32: Sealed | H32: 0.35 | I32: 1986 | J32: Sealed | K32: No | L32: 3.72 | M32: -0.42
A33: =IF(St='Abandoned Data'!B33,1+A32,0) -> 0 | B33: CO | C33: Moffat | D33: Piceance | F33: Eagle No 5 | H33: 0.35 | I33: 1996 | J33: Unknown | K33: Unknown | L33: 3.72 | M33: -0.42
A34: =IF(St='Abandoned Data'!B34,1+A33,0) -> 0 | B34: CO | C34: Gunnison | D34: Piceance | E34: C Seam | F34: Bear No 3 | G34: Flooded | H34: 0.35 | I34: 1997 | J34: Flooded | K34: No | L34: 3.72 | M34: -0.42
A35: =IF(St='Abandoned Data'!B35,1+A34,0) -> 0 | B35: CO | C35: Delta | D35: Piceance | F35: Hawks Nest West | G35: Sealed | H35: 0.2 | I35: 1981 | J35: =IF(G35=0,"Unknown",VLOOKUP(G35,$B$525:$C$540,2,FALSE)) -> Sealed | K35: =IF(J35="unknown","Unknown",VLOOKUP(G35,$B$525:$D$540,3,FALSE)) -> No | L35: 3.72 | M35: -0.42 | N35: =IF(ISERROR((VLOOKUP(ROW(A33),$A$3:$M$519,1,0))),"",(VLOOKUP(ROW(A33),$A$3:$M$519,1,0))) ->  | O35: =IF(ISERROR(PROPER(VLOOKUP(ROW(A33),$A$3:$M$519,6,0))),"",PROPER(VLOOKUP(ROW(A33),$A$3:$M$519,6,0))) ->  | P35: =IF(ISERROR(PROPER(VLOOKUP(ROW(A33),$A$3:$M$519,3,0))),"",PROPER(VLOOKUP(ROW(A33),$A$3:$M$519,3,0))) ->  | Q35: =IF(ISERROR(PROPER(VLOOKUP(ROW(A33),$A$3:$M$519,10,0))),"",PROPER(VLOOKUP(ROW(A33),$A$3:$M$519,10,0))) ->  | R35: =IF(ISERROR(PROPER(VLOOKUP(ROW(A33),$A$3:$M$519,9,0))),"",PROPER(VLOOKUP(ROW(A33),$A$3:$M$519,9,0))) ->  | S35: =IF(ISERROR(PROPER(VLOOKUP(ROW(A33),$A$3:$M$519,4,0))),"",PROPER(VLOOKUP(ROW(A33),$A$3:$M$519,4,0))) ->  | T35: =IF(ISERROR(VLOOKUP(ROW(A33),$A$3:$M$519,8,0)),"",VLOOKUP(ROW(A33),$A$3:$M$519,8,0)) ->  | U35: =IF(ISERROR(VLOOKUP(ROW(A33),$A$3:$M$519,12,0)),"",VLOOKUP(ROW(A33),$A$3:$M$519,12,0)) ->  | V35: =IF(ISERROR(VLOOKUP(ROW(A33),$A$3:$M$519,13,0)),"",VLOOKUP(ROW(A33),$A$3:$M$519,13,0)) -> 
A36: =IF(St='Abandoned Data'!B36,1+A35,0) -> 0 | B36: CO | C36: Rio Blanco | D36: Piceance | F36: Rienau No 2 | H36: 0.1 | I36: 1986 | J36: Unknown | K36: Unknown | L36: 3.72 | M36: -0.42
A37: =IF(St='Abandoned Data'!B37,1+A36,0) -> 0 | B37: CO | C37: Las Animas | D37: Raton | E37: Maxwell | F37: Golden Eagle | G37: Sealed/Recovering Methane | H37: 7.5 | I37: 1996 | J37: Sealed | K37: Yes | L37: 3.72 | M37: -0.42
A38: =IF(St='Abandoned Data'!B38,1+A37,0) -> 0 | B38: CO | C38: Las Animas | D38: Raton | F38: Allen East & West | H38: 0.75 | I38: 1982 | J38: Unknown | K38: Unknown | L38: 3.72 | M38: -0.42
A39: =IF(St='Abandoned Data'!B39,1+A38,0) -> 0 | B39: CO | C39: Fremont | D39: Raton | F39: Southfield Mine | G39: Sealed | H39: 0.35 | I39: 2001 | J39: Sealed | K39: No | L39: 3.72 | M39: -0.42
A40: =IF(St='Abandoned Data'!B40,1+A39,0) -> 0 | B40: CO | C40: Las Animas | D40: Raton | F40: New Elk Mine | H40: 0.25 | I40: 1989 | J40: Unknown | K40: Unknown | L40: 3.72 | M40: -0.42
A41: =IF(St='Abandoned Data'!B41,1+A40,0) -> 0 | B41: CO | C41: La Plata | D41: Piceance | F41: King I | G41: Sealed | H41: 0.1123561644 | I41: 2009 | J41: Sealed | K41: No | L41: 3.72 | M41: -0.42
A42: =IF(St='Abandoned Data'!B42,1+A41,0) -> 0 | B42: CO | C42: Gunnison | D42: Piceance | E42: 0 | F42: Elk Creek Mine | H42: 4.717453424 | I42: 2016 | J42: Unknown | K42: Unknown | L42: 3.72 | M42: -0.42
A43: =IF(St='Abandoned Data'!B43,1+A42,0) -> 0 | B43: CO | C43: Delta | D43: Piceance | E43: 0 | F43: Cyprus Amax Minerals Company | G43: Sealed | H43: 1 | I43: 1993 | J43: Sealed | K43: No | L43: 3.72 | M43: -0.42
A44: =IF(St='Abandoned Data'!B44,1+A43,0) -> 0 | B44: CO | C44: Delta | D44: Piceance | E44: 0 | F44: Bowie Resources | G44: Sealed | H44: 1.21 | I44: 2004 | J44: Sealed | K44: No | L44: 3.72 | M44: -0.42
A45: =IF(St='Abandoned Data'!B45,1+A44,0) -> 0 | B45: IL | C45: White | D45: Illinois | F45: Pattiki Mine | G45: Sealed | H45: 1.9 | I45: 2003 | J45: Sealed | K45: No | L45: 3.72 | M45: -0.42
A46: =IF(St='Abandoned Data'!B46,1+A45,0) -> 0 | B46: IL | C46: Franklin | D46: Illinois | E46: Herrin No. 6 | F46: Old Ben No 26 | G46: Sealed/Recovering Methane | H46: 1.6 | I46: 1998 | J46: Sealed | K46: Yes | L46: 3.72 | M46: -0.42
A47: =IF(St='Abandoned Data'!B47,1+A46,0) -> 0 | B47: IL | C47: Jefferson | D47: Illinois | E47: Illinois 5 & 6 | F47: Orient #3 | G47: Sealed | H47: 1.5 | I47: 1984 | J47: Sealed | K47: No | L47: 3.72 | M47: -0.42
A48: =IF(St='Abandoned Data'!B48,1+A47,0) -> 0 | B48: IL | C48: Jefferson | D48: Illinois | E48: Illinois 5 & 6 | F48: Orient #5 | G48: Sealed | H48: 1.5 | I48: 1984 | J48: Sealed | K48: No | L48: 3.72 | M48: -0.42
A49: =IF(St='Abandoned Data'!B49,1+A48,0) -> 0 | B49: IL | C49: Franklin | D49: Illinois | E49: Herrin No. 6 | F49: Old Ben No 21 | G49: Sealed/Recovering Methane | H49: 1.4 | I49: 1995 | J49: Sealed | K49: Yes | L49: 3.72 | M49: -0.42
A50: =IF(St='Abandoned Data'!B50,1+A49,0) -> 0 | B50: IL | C50: Franklin | D50: Illinois | E50: Herrin No. 6 | F50: Old Ben No 24 | G50: Sealed/Recovering Methane | H50: 1.2 | I50: 1998 | J50: Sealed | K50: Yes | L50: 3.72 | M50: -0.42
A51: =IF(St='Abandoned Data'!B51,1+A50,0) -> 0 | B51: IL | C51: Montgomery | D51: Illinois | E51: Illinois 5 & 6 | F51: Crown | G51: Sealed | H51: 1 | I51: 1972 | J51: Sealed | K51: No | L51: 3.72 | M51: -0.42
A52: =IF(St='Abandoned Data'!B52,1+A51,0) -> 0 | B52: IL | C52: Franklin | D52: Illinois | E52: Herrin No. 6 | F52: Old Ben No 25 | G52: Sealed | H52: 1 | I52: 1996 | J52: Sealed | K52: No | L52: 3.72 | M52: -0.42
A53: =IF(St='Abandoned Data'!B53,1+A52,0) -> 0 | B53: IL | C53: Jefferson | D53: Illinois | E53: Herrin No. 6 | F53: Orient No 6 | G53: Sealed | H53: 1 | I53: 1997 | J53: Sealed | K53: No | L53: 3.72 | M53: -0.42
A54: =IF(St='Abandoned Data'!B54,1+A53,0) -> 0 | B54: IL | C54: Saline | D54: Illinois | F54: Big Ridge Portal No. 2 | G54: Venting | H54: 1 | I54: 2002 | J54: Venting | K54: No | L54: 3.72 | M54: -0.42
A55: =IF(St='Abandoned Data'!B55,1+A54,0) -> 0 | B55: IL | C55: Williamson | D55: Illinois | E55: Illinois 5 & 6 | F55: ZEIGLER #4 UG | G55: Sealed | H55: 0.75 | I55: 1980 | J55: Sealed | K55: No | L55: 3.72 | M55: -0.42
A56: =IF(St='Abandoned Data'!B56,1+A55,0) -> 0 | B56: IL | C56: Franklin | D56: Illinois | E56: Herrin No. 6 | F56: Old Ben No 27 | G56: Sealed | H56: 0.75 | I56: 1987 | J56: Sealed | K56: No | L56: 3.72 | M56: -0.42
A57: =IF(St='Abandoned Data'!B57,1+A56,0) -> 0 | B57: IL | C57: Williamson | D57: Illinois | F57: ORIENT NO. 4 | G57: Sealed | H57: 0.75 | I57: 1987 | J57: Sealed | K57: No | L57: 3.72 | M57: -0.42
A58: =IF(St='Abandoned Data'!B58,1+A57,0) -> 0 | B58: IL | C58: Jefferson | D58: Illinois | F58: Wheeler Creek | H58: 0.75 | I58: 1988 | J58: Unknown | K58: Unknown | L58: 3.72 | M58: -0.42
A59: =IF(St='Abandoned Data'!B59,1+A58,0) -> 0 | B59: IL | C59: Gallatin | D59: Illinois | E59: Harrisburg | F59: Eagle No. 2 | G59: Sealed | H59: 0.75 | I59: 1994 | J59: Sealed | K59: No | L59: 3.72 | M59: -0.42
A60: =IF(St='Abandoned Data'!B60,1+A59,0) -> 0 | B60: IL | C60: Christian | D60: Illinois | E60: Herrin No. 6 | F60: Peabody No. 10 | G60: Venting | H60: 0.75 | I60: 1994 | J60: Venting | K60: No | L60: 3.72 | M60: -0.42
A61: =IF(St='Abandoned Data'!B61,1+A60,0) -> 0 | B61: IL | C61: Clinton | D61: Illinois | F61: Monterey No 2 | H61: 0.75 | I61: 1996 | J61: Unknown | K61: Unknown | L61: 3.72 | M61: -0.42
A62: =IF(St='Abandoned Data'!B62,1+A61,0) -> 0 | B62: IL | C62: Douglas | D62: Illinois | E62: Herrin No. 6 | F62: Murdock | H62: 0.6 | I62: 1996 | J62: Unknown | K62: Unknown | L62: 3.72 | M62: -0.42
A63: =IF(St='Abandoned Data'!B63,1+A62,0) -> 0 | B63: IL | C63: Saline | D63: Illinois | F63: Big Ridge Mine | G63: Venting | H63: 0.6 | I63: 1997 | J63: Venting | K63: No | L63: 3.72 | M63: -0.42
A64: =IF(St='Abandoned Data'!B64,1+A63,0) -> 0 | B64: IL | C64: Saline | D64: Illinois | E64: Illinois 5 & 6 | F64: Sahara No 20 | G64: Flooded | H64: 0.35 | I64: 1983 | J64: Flooded | K64: No | L64: 3.72 | M64: -0.42
A65: =IF(St='Abandoned Data'!B65,1+A64,0) -> 0 | B65: IL | C65: Montgomery | D65: Illinois | F65: HILLSBORO MINE | H65: 0.35 | I65: 1983 | J65: Unknown | K65: Unknown | L65: 3.72 | M65: -0.42
A66: =IF(St='Abandoned Data'!B66,1+A65,0) -> 0 | B66: IL | C66: Douglas | D66: Illinois | F66: Zeigler #5 | G66: Sealed | H66: 0.35 | I66: 1987 | J66: Sealed | K66: No | L66: 3.72 | M66: -0.42
A67: =IF(St='Abandoned Data'!B67,1+A66,0) -> 0 | B67: IL | C67: Gallatin | D67: Illinois | E67: Illinois 5 & 6 | F67: Eagle No 1 | H67: 0.35 | I67: 1991 | J67: =IF(G67=0,"Unknown",VLOOKUP(G67,$B$525:$C$540,2,FALSE)) -> Unknown | K67: =IF(J67="unknown","Unknown",VLOOKUP(G67,$B$525:$D$540,3,FALSE)) -> Unknown | L67: 3.72 | M67: -0.42 | N67: =IF(ISERROR((VLOOKUP(ROW(A65),$A$3:$M$519,1,0))),"",(VLOOKUP(ROW(A65),$A$3:$M$519,1,0))) ->  | O67: =IF(ISERROR(PROPER(VLOOKUP(ROW(A65),$A$3:$M$519,6,0))),"",PROPER(VLOOKUP(ROW(A65),$A$3:$M$519,6,0))) ->  | P67: =IF(ISERROR(PROPER(VLOOKUP(ROW(A65),$A$3:$M$519,3,0))),"",PROPER(VLOOKUP(ROW(A65),$A$3:$M$519,3,0))) ->  | Q67: =IF(ISERROR(PROPER(VLOOKUP(ROW(A65),$A$3:$M$519,10,0))),"",PROPER(VLOOKUP(ROW(A65),$A$3:$M$519,10,0))) ->  | R67: =IF(ISERROR(PROPER(VLOOKUP(ROW(A65),$A$3:$M$519,9,0))),"",PROPER(VLOOKUP(ROW(A65),$A$3:$M$519,9,0))) ->  | S67: =IF(ISERROR(PROPER(VLOOKUP(ROW(A65),$A$3:$M$519,4,0))),"",PROPER(VLOOKUP(ROW(A65),$A$3:$M$519,4,0))) ->  | T67: =IF(ISERROR(VLOOKUP(ROW(A65),$A$3:$M$519,8,0)),"",VLOOKUP(ROW(A65),$A$3:$M$519,8,0)) ->  | U67: =IF(ISERROR(VLOOKUP(ROW(A65),$A$3:$M$519,12,0)),"",VLOOKUP(ROW(A65),$A$3:$M$519,12,0)) ->  | V67: =IF(ISERROR(VLOOKUP(ROW(A65),$A$3:$M$519,13,0)),"",VLOOKUP(ROW(A65),$A$3:$M$519,13,0)) -> 
A68: =IF(St='Abandoned Data'!B68,1+A67,0) -> 0 | B68: IL | C68: Perry | D68: Illinois | F68: Kathleen | H68: 0.35 | I68: 1995 | J68: Unknown | K68: Unknown | L68: 3.72 | M68: -0.42
A69: =IF(St='Abandoned Data'!B69,1+A68,0) -> 0 | B69: IL | C69: Randolph | D69: Illinois | E69: Illinois 5 & 6 | F69: Spartan | G69: Sealed | H69: 0.35 | I69: 1997 | J69: Sealed | K69: No | L69: 3.72 | M69: -0.42
A70: =IF(St='Abandoned Data'!B70,1+A69,0) -> 0 | B70: IL | C70: Saline | D70: Illinois | F70: Sahara No 21 | H70: 0.3 | I70: 1993 | J70: Unknown | K70: Unknown | L70: 3.72 | M70: -0.42
A71: =IF(St='Abandoned Data'!B71,1+A70,0) -> 0 | B71: IL | C71: Gallatin | D71: Illinois | F71: Eagle Valley Mine | G71: Sealed | H71: 0.25 | I71: 2002 | J71: Sealed | K71: No | L71: 3.72 | M71: -0.42
A72: =IF(St='Abandoned Data'!B72,1+A71,0) -> 0 | B72: IL | C72: Hamilton | D72: Illinois | E72: Harrisburg | F72: Inland No 2 | H72: 0.2 | I72: 1982 | J72: Unknown | K72: Unknown | L72: 3.72 | M72: -0.42
A73: =IF(St='Abandoned Data'!B73,1+A72,0) -> 0 | B73: IL | C73: St. Clair | D73: Illinois | E73: Herrin No. 6 | F73: RIVER KING UNDERGROUND | H73: 0.2 | I73: 1990 | J73: Unknown | K73: Unknown | L73: 3.72 | M73: -0.42
A74: =IF(St='Abandoned Data'!B74,1+A73,0) -> 0 | B74: IL | C74: Randolph | D74: Illinois | F74: Baldwin No 1 | H74: 0.2 | I74: 1993 | J74: Unknown | K74: Unknown | L74: 3.72 | M74: -0.42
A75: =IF(St='Abandoned Data'!B75,1+A74,0) -> 0 | B75: IL | C75: Washington | D75: Illinois | E75: Herrin 6 | F75: Marissa Mine | G75: Sealed | H75: 0.2 | I75: 2000 | J75: Sealed | K75: No | L75: 3.72 | M75: -0.42
A76: =IF(St='Abandoned Data'!B76,1+A75,0) -> 0 | B76: IL | C76: Saline | D76: Illinois | E76: Illinois 5 & 6 | F76: No 5 | G76: Flooded | H76: 0.15 | I76: 1973 | J76: Flooded | K76: No | L76: 3.72 | M76: -0.42
A77: =IF(St='Abandoned Data'!B77,1+A76,0) -> 0 | B77: IL | C77: Saline | D77: Illinois | E77: Illinois 5 & 6 | F77: No 16 | G77: Flooded | H77: 0.15 | I77: 1973 | J77: Flooded | K77: No | L77: 3.72 | M77: -0.42
A78: =IF(St='Abandoned Data'!B78,1+A77,0) -> 0 | B78: IL | C78: Wabash | D78: Illinois | F78: Wabash Mine | G78: Sealed | H78: 2.200939726 | I78: 2008 | J78: Sealed | K78: No | L78: 3.72 | M78: -0.42
A79: =IF(St='Abandoned Data'!B79,1+A78,0) -> 0 | B79: IL | C79: Clinton | D79: Illinois | F79: No. 2 Mine | H79: 0.3 | I79: 2010 | J79: Unknown | K79: Unknown | L79: 3.72 | M79: -0.42
A80: =IF(St='Abandoned Data'!B80,1+A79,0) -> 0 | B80: IL | C80: Perry | D80: Illinois | E80: 0 | F80: Arch Of Illinois | G80: Sealed | H80: 0.17 | I80: 2000 | J80: Sealed | K80: No | L80: 3.72 | M80: -0.42
A81: =IF(St='Abandoned Data'!B81,1+A80,0) -> 0 | B81: IN | C81: Sullivan | D81: Illinois | E81: Illinois 5 & 6 | F81: Thunderbird | G81: Sealed | H81: 0.75 | I81: 1972 | J81: Sealed | K81: No | L81: 3.72 | M81: -0.42 | N81: =IF(ISERROR((VLOOKUP(ROW(A80),$A$3:$M$519,1,0))),"",(VLOOKUP(ROW(A80),$A$3:$M$519,1,0))) ->  | O81: =IF(ISERROR(PROPER(VLOOKUP(ROW(A80),$A$3:$M$519,6,0))),"",PROPER(VLOOKUP(ROW(A80),$A$3:$M$519,6,0))) ->  | P81: =IF(ISERROR(PROPER(VLOOKUP(ROW(A80),$A$3:$M$519,3,0))),"",PROPER(VLOOKUP(ROW(A80),$A$3:$M$519,3,0))) ->  | Q81: =IF(ISERROR(PROPER(VLOOKUP(ROW(A80),$A$3:$M$519,10,0))),"",PROPER(VLOOKUP(ROW(A80),$A$3:$M$519,10,0))) ->  | R81: =IF(ISERROR(PROPER(VLOOKUP(ROW(A80),$A$3:$M$519,9,0))),"",PROPER(VLOOKUP(ROW(A80),$A$3:$M$519,9,0))) ->  | S81: =IF(ISERROR(PROPER(VLOOKUP(ROW(A80),$A$3:$M$519,4,0))),"",PROPER(VLOOKUP(ROW(A80),$A$3:$M$519,4,0))) ->  | T81: =IF(ISERROR(VLOOKUP(ROW(A80),$A$3:$M$519,8,0)),"",VLOOKUP(ROW(A80),$A$3:$M$519,8,0)) ->  | U81: =IF(ISERROR(VLOOKUP(ROW(A80),$A$3:$M$519,12,0)),"",VLOOKUP(ROW(A80),$A$3:$M$519,12,0)) ->  | V81: =IF(ISERROR(VLOOKUP(ROW(A80),$A$3:$M$519,13,0)),"",VLOOKUP(ROW(A80),$A$3:$M$519,13,0)) -> 
A82: =IF(St='Abandoned Data'!B82,1+A81,0) -> 0 | B82: IN | C82: Gibson | D82: Illinois | E82: Illinois 5 & 6 | F82: Kings | G82: Sealed/Recovering Methane | H82: 0.35 | I82: 1973 | J82: Sealed | K82: Yes | L82: 3.72 | M82: -0.42 | N82: =IF(ISERROR((VLOOKUP(ROW(#REF!),$A$3:$M$519,1,0))),"",(VLOOKUP(ROW(#REF!),$A$3:$M$519,1,0))) ->  | O82: =IF(ISERROR(PROPER(VLOOKUP(ROW(#REF!),$A$3:$M$519,6,0))),"",PROPER(VLOOKUP(ROW(#REF!),$A$3:$M$519,6,0))) ->  | P82: =IF(ISERROR(PROPER(VLOOKUP(ROW(#REF!),$A$3:$M$519,3,0))),"",PROPER(VLOOKUP(ROW(#REF!),$A$3:$M$519,3,0))) ->  | Q82: =IF(ISERROR(PROPER(VLOOKUP(ROW(#REF!),$A$3:$M$519,10,0))),"",PROPER(VLOOKUP(ROW(#REF!),$A$3:$M$519,10,0))) ->  | R82: =IF(ISERROR(PROPER(VLOOKUP(ROW(#REF!),$A$3:$M$519,9,0))),"",PROPER(VLOOKUP(ROW(#REF!),$A$3:$M$519,9,0))) ->  | S82: =IF(ISERROR(PROPER(VLOOKUP(ROW(#REF!),$A$3:$M$519,4,0))),"",PROPER(VLOOKUP(ROW(#REF!),$A$3:$M$519,4,0))) ->  | T82: =IF(ISERROR(VLOOKUP(ROW(#REF!),$A$3:$M$519,8,0)),"",VLOOKUP(ROW(#REF!),$A$3:$M$519,8,0)) ->  | U82: =IF(ISERROR(VLOOKUP(ROW(#REF!),$A$3:$M$519,12,0)),"",VLOOKUP(ROW(#REF!),$A$3:$M$519,12,0)) ->  | V82: =IF(ISERROR(VLOOKUP(ROW(#REF!),$A$3:$M$519,13,0)),"",VLOOKUP(ROW(#REF!),$A$3:$M$519,13,0)) -> 
A83: =IF(St='Abandoned Data'!B83,1+A82,0) -> 0 | B83: IN | C83: Sullivan | D83: Illinois | E83: Springfield #5 | F83: Buck Creek | G83: Sealed | H83: 0.35 | I83: 1998 | J83: Sealed | K83: No | L83: 3.72 | M83: -0.42 | N83: =IF(ISERROR((VLOOKUP(ROW(A81),$A$3:$M$519,1,0))),"",(VLOOKUP(ROW(A81),$A$3:$M$519,1,0))) ->  | O83: =IF(ISERROR(PROPER(VLOOKUP(ROW(A81),$A$3:$M$519,6,0))),"",PROPER(VLOOKUP(ROW(A81),$A$3:$M$519,6,0))) ->  | P83: =IF(ISERROR(PROPER(VLOOKUP(ROW(A81),$A$3:$M$519,3,0))),"",PROPER(VLOOKUP(ROW(A81),$A$3:$M$519,3,0))) ->  | Q83: =IF(ISERROR(PROPER(VLOOKUP(ROW(A81),$A$3:$M$519,10,0))),"",PROPER(VLOOKUP(ROW(A81),$A$3:$M$519,10,0))) ->  | R83: =IF(ISERROR(PROPER(VLOOKUP(ROW(A81),$A$3:$M$519,9,0))),"",PROPER(VLOOKUP(ROW(A81),$A$3:$M$519,9,0))) ->  | S83: =IF(ISERROR(PROPER(VLOOKUP(ROW(A81),$A$3:$M$519,4,0))),"",PROPER(VLOOKUP(ROW(A81),$A$3:$M$519,4,0))) ->  | T83: =IF(ISERROR(VLOOKUP(ROW(A81),$A$3:$M$519,8,0)),"",VLOOKUP(ROW(A81),$A$3:$M$519,8,0)) ->  | U83: =IF(ISERROR(VLOOKUP(ROW(A81),$A$3:$M$519,12,0)),"",VLOOKUP(ROW(A81),$A$3:$M$519,12,0)) ->  | V83: =IF(ISERROR(VLOOKUP(ROW(A81),$A$3:$M$519,13,0)),"",VLOOKUP(ROW(A81),$A$3:$M$519,13,0)) -> 
A84: =IF(St='Abandoned Data'!B84,1+A83,0) -> 0 | B84: IN | C84: Knox | D84: Illinois | E84: 0 | F84: Solar Sources Underground L.L.C. | H84: 0.1885714286 | I84: 2006 | J84: Unknown | K84: Unknown | L84: 3.72 | M84: -0.42 | N84: =IF(ISERROR((VLOOKUP(ROW(A82),$A$3:$M$519,1,0))),"",(VLOOKUP(ROW(A82),$A$3:$M$519,1,0))) ->  | O84: =IF(ISERROR(PROPER(VLOOKUP(ROW(A82),$A$3:$M$519,6,0))),"",PROPER(VLOOKUP(ROW(A82),$A$3:$M$519,6,0))) ->  | P84: =IF(ISERROR(PROPER(VLOOKUP(ROW(A82),$A$3:$M$519,3,0))),"",PROPER(VLOOKUP(ROW(A82),$A$3:$M$519,3,0))) ->  | Q84: =IF(ISERROR(PROPER(VLOOKUP(ROW(A82),$A$3:$M$519,10,0))),"",PROPER(VLOOKUP(ROW(A82),$A$3:$M$519,10,0))) ->  | R84: =IF(ISERROR(PROPER(VLOOKUP(ROW(A82),$A$3:$M$519,9,0))),"",PROPER(VLOOKUP(ROW(A82),$A$3:$M$519,9,0))) ->  | S84: =IF(ISERROR(PROPER(VLOOKUP(ROW(A82),$A$3:$M$519,4,0))),"",PROPER(VLOOKUP(ROW(A82),$A$3:$M$519,4,0))) ->  | T84: =IF(ISERROR(VLOOKUP(ROW(A82),$A$3:$M$519,8,0)),"",VLOOKUP(ROW(A82),$A$3:$M$519,8,0)) ->  | U84: =IF(ISERROR(VLOOKUP(ROW(A82),$A$3:$M$519,12,0)),"",VLOOKUP(ROW(A82),$A$3:$M$519,12,0)) ->  | V84: =IF(ISERROR(VLOOKUP(ROW(A82),$A$3:$M$519,13,0)),"",VLOOKUP(ROW(A82),$A$3:$M$519,13,0)) -> 
A85: =IF(St='Abandoned Data'!B85,1+A84,0) -> 0 | B85: KY | C85: Pike | D85: Central Appl. | F85: Ovenfork Mine | H85: 2.4 | I85: 1992 | J85: Unknown | K85: Unknown | L85: 3.72 | M85: -0.42 | N85: =IF(ISERROR((VLOOKUP(ROW(A84),$A$3:$M$519,1,0))),"",(VLOOKUP(ROW(A84),$A$3:$M$519,1,0))) ->  | O85: =IF(ISERROR(PROPER(VLOOKUP(ROW(A84),$A$3:$M$519,6,0))),"",PROPER(VLOOKUP(ROW(A84),$A$3:$M$519,6,0))) ->  | P85: =IF(ISERROR(PROPER(VLOOKUP(ROW(A84),$A$3:$M$519,3,0))),"",PROPER(VLOOKUP(ROW(A84),$A$3:$M$519,3,0))) ->  | Q85: =IF(ISERROR(PROPER(VLOOKUP(ROW(A84),$A$3:$M$519,10,0))),"",PROPER(VLOOKUP(ROW(A84),$A$3:$M$519,10,0))) ->  | R85: =IF(ISERROR(PROPER(VLOOKUP(ROW(A84),$A$3:$M$519,9,0))),"",PROPER(VLOOKUP(ROW(A84),$A$3:$M$519,9,0))) ->  | S85: =IF(ISERROR(PROPER(VLOOKUP(ROW(A84),$A$3:$M$519,4,0))),"",PROPER(VLOOKUP(ROW(A84),$A$3:$M$519,4,0))) ->  | T85: =IF(ISERROR(VLOOKUP(ROW(A84),$A$3:$M$519,8,0)),"",VLOOKUP(ROW(A84),$A$3:$M$519,8,0)) ->  | U85: =IF(ISERROR(VLOOKUP(ROW(A84),$A$3:$M$519,12,0)),"",VLOOKUP(ROW(A84),$A$3:$M$519,12,0)) ->  | V85: =IF(ISERROR(VLOOKUP(ROW(A84),$A$3:$M$519,13,0)),"",VLOOKUP(ROW(A84),$A$3:$M$519,13,0)) -> 
A86: =IF(St='Abandoned Data'!B86,1+A85,0) -> 0 | B86: KY | C86: Martin | D86: Central Appl. | E86: Warfield/Pond Ck. | F86: Wolf Creek No 4 | G86: Flooded | H86: 1 | I86: 1995 | J86: Flooded | K86: No | L86: 3.72 | M86: -0.42 | N86: =IF(ISERROR((VLOOKUP(ROW(#REF!),$A$3:$M$519,1,0))),"",(VLOOKUP(ROW(#REF!),$A$3:$M$519,1,0))) ->  | O86: =IF(ISERROR(PROPER(VLOOKUP(ROW(#REF!),$A$3:$M$519,6,0))),"",PROPER(VLOOKUP(ROW(#REF!),$A$3:$M$519,6,0))) ->  | P86: =IF(ISERROR(PROPER(VLOOKUP(ROW(#REF!),$A$3:$M$519,3,0))),"",PROPER(VLOOKUP(ROW(#REF!),$A$3:$M$519,3,0))) ->  | Q86: =IF(ISERROR(PROPER(VLOOKUP(ROW(#REF!),$A$3:$M$519,10,0))),"",PROPER(VLOOKUP(ROW(#REF!),$A$3:$M$519,10,0))) ->  | R86: =IF(ISERROR(PROPER(VLOOKUP(ROW(#REF!),$A$3:$M$519,9,0))),"",PROPER(VLOOKUP(ROW(#REF!),$A$3:$M$519,9,0))) ->  | S86: =IF(ISERROR(PROPER(VLOOKUP(ROW(#REF!),$A$3:$M$519,4,0))),"",PROPER(VLOOKUP(ROW(#REF!),$A$3:$M$519,4,0))) ->  | T86: =IF(ISERROR(VLOOKUP(ROW(#REF!),$A$3:$M$519,8,0)),"",VLOOKUP(ROW(#REF!),$A$3:$M$519,8,0)) ->  | U86: =IF(ISERROR(VLOOKUP(ROW(#REF!),$A$3:$M$519,12,0)),"",VLOOKUP(ROW(#REF!),$A$3:$M$519,12,0)) ->  | V86: =IF(ISERROR(VLOOKUP(ROW(#REF!),$A$3:$M$519,13,0)),"",VLOOKUP(ROW(#REF!),$A$3:$M$519,13,0)) -> 
A87: =IF(St='Abandoned Data'!B87,1+A86,0) -> 0 | B87: KY | C87: Harlan | D87: Central Appl. | E87: Harlan | F87: Arch No. 37 | H87: 1 | I87: 1999 | J87: Unknown | K87: Unknown | L87: 3.72 | M87: -0.42 | N87: =IF(ISERROR((VLOOKUP(ROW(A85),$A$3:$M$519,1,0))),"",(VLOOKUP(ROW(A85),$A$3:$M$519,1,0))) ->  | O87: =IF(ISERROR(PROPER(VLOOKUP(ROW(A85),$A$3:$M$519,6,0))),"",PROPER(VLOOKUP(ROW(A85),$A$3:$M$519,6,0))) ->  | P87: =IF(ISERROR(PROPER(VLOOKUP(ROW(A85),$A$3:$M$519,3,0))),"",PROPER(VLOOKUP(ROW(A85),$A$3:$M$519,3,0))) ->  | Q87: =IF(ISERROR(PROPER(VLOOKUP(ROW(A85),$A$3:$M$519,10,0))),"",PROPER(VLOOKUP(ROW(A85),$A$3:$M$519,10,0))) ->  | R87: =IF(ISERROR(PROPER(VLOOKUP(ROW(A85),$A$3:$M$519,9,0))),"",PROPER(VLOOKUP(ROW(A85),$A$3:$M$519,9,0))) ->  | S87: =IF(ISERROR(PROPER(VLOOKUP(ROW(A85),$A$3:$M$519,4,0))),"",PROPER(VLOOKUP(ROW(A85),$A$3:$M$519,4,0))) ->  | T87: =IF(ISERROR(VLOOKUP(ROW(A85),$A$3:$M$519,8,0)),"",VLOOKUP(ROW(A85),$A$3:$M$519,8,0)) ->  | U87: =IF(ISERROR(VLOOKUP(ROW(A85),$A$3:$M$519,12,0)),"",VLOOKUP(ROW(A85),$A$3:$M$519,12,0)) ->  | V87: =IF(ISERROR(VLOOKUP(ROW(A85),$A$3:$M$519,13,0)),"",VLOOKUP(ROW(A85),$A$3:$M$519,13,0)) -> 
A88: =IF(St='Abandoned Data'!B88,1+A87,0) -> 0 | B88: KY | C88: Martin | D88: Central Appl. | F88: Wolf Creek No.3 | G88: Sealed | H88: 0.75 | I88: 1977 | J88: Sealed | K88: No | L88: 3.72 | M88: -0.42
A89: =IF(St='Abandoned Data'!B89,1+A88,0) -> 0 | B89: KY | C89: Pike | D89: Central Appl. | E89: Pond Creek | F89: Leslie | G89: Sealed | H89: 0.75 | I89: 1981 | J89: Sealed | K89: No | L89: 3.72 | M89: -0.42
A90: =IF(St='Abandoned Data'!B90,1+A89,0) -> 0 | B90: KY | C90: Pike | D90: Central Appl. | E90: Pond Creek | F90: Mate Creek No 2 | H90: 0.75 | I90: 1994 | J90: Unknown | K90: Unknown | L90: 3.72 | M90: -0.42
A91: =IF(St='Abandoned Data'!B91,1+A90,0) -> 0 | B91: KY | C91: Martin | D91: Central Appl. | F91: Pontiki No. 1 Mine | H91: 0.6 | I91: 2001 | J91: Unknown | K91: Unknown | L91: 3.72 | M91: -0.42
A92: =IF(St='Abandoned Data'!B92,1+A91,0) -> 0 | B92: KY | C92: Martin | D92: Central Appl. | F92: Wolf Creek No 1 | H92: 0.5 | I92: 1986 | J92: Unknown | K92: Unknown | L92: 3.72 | M92: -0.42
A93: =IF(St='Abandoned Data'!B93,1+A92,0) -> 0 | B93: KY | C93: Letcher | D93: Central Appl. | E93: Pond Creek | F93: Scotia Mine | H93: 0.4 | I93: 1982 | J93: Unknown | K93: Unknown | L93: 3.72 | M93: -0.42
A94: =IF(St='Abandoned Data'!B94,1+A93,0) -> 0 | B94: KY | C94: Pike | D94: Central Appl. | F94: No. 1 Mine (D) | H94: 0.35 | I94: 1982 | J94: Unknown | K94: Unknown | L94: 3.72 | M94: -0.42
A95: =IF(St='Abandoned Data'!B95,1+A94,0) -> 0 | B95: KY | C95: Pike | D95: Central Appl. | F95: No. 2 Mine (D) | H95: 0.35 | I95: 1982 | J95: Unknown | K95: Unknown | L95: 3.72 | M95: -0.42
A96: =IF(St='Abandoned Data'!B96,1+A95,0) -> 0 | B96: KY | C96: Pike | D96: Central Appl. | F96: No. 6 Mine (D) | H96: 0.35 | I96: 1983 | J96: Unknown | K96: Unknown | L96: 3.72 | M96: -0.42
A97: =IF(St='Abandoned Data'!B97,1+A96,0) -> 0 | B97: KY | C97: Whitley | D97: Central Appl. | F97: No. 1 | H97: 0.35 | I97: 1986 | J97: Unknown | K97: Unknown | L97: 3.72 | M97: -0.42
A98: =IF(St='Abandoned Data'!B98,1+A97,0) -> 0 | B98: KY | C98: MeCreary | D98: Central Appl. | F98: Justus | H98: 0.35 | I98: 1994 | J98: Unknown | K98: Unknown | L98: 3.72 | M98: -0.42
A99: =IF(St='Abandoned Data'!B99,1+A98,0) -> 0 | B99: KY | C99: Henderson | D99: Central Appl. | F99: Retiki | G99: Sealed | H99: 0.35 | I99: 1995 | J99: =IF(G99=0,"Unknown",VLOOKUP(G99,$B$525:$C$540,2,FALSE)) -> Sealed | K99: =IF(J99="unknown","Unknown",VLOOKUP(G99,$B$525:$D$540,3,FALSE)) -> No | L99: 3.72 | M99: -0.42
A100: =IF(St='Abandoned Data'!B100,1+A99,0) -> 0 | B100: KY | C100: Leslie | D100: Central Appl. | F100: No 2 | H100: 0.35 | I100: 1996 | J100: Unknown | K100: Unknown | L100: 3.72 | M100: -0.42
A101: =IF(St='Abandoned Data'!B101,1+A100,0) -> 0 | B101: KY | C101: Whitley | D101: Central Appl. | F101: Blue Gem No 1 | H101: 0.35 | I101: 1997 | J101: Unknown | K101: Unknown | L101: 3.72 | M101: -0.42
A102: =IF(St='Abandoned Data'!B102,1+A101,0) -> 0 | B102: KY | C102: Pike | D102: Central Appl. | F102: No 3 | H102: 0.35 | I102: 1997 | J102: Unknown | K102: Unknown | L102: 3.72 | M102: -0.42
A103: =IF(St='Abandoned Data'!B103,1+A102,0) -> 0 | B103: KY | C103: Martin | D103: Central Appl. | F103: No 3 | H103: 0.3 | I103: 1972 | J103: Unknown | K103: Unknown | L103: 3.72 | M103: -0.42
A104: =IF(St='Abandoned Data'!B104,1+A103,0) -> 0 | B104: KY | C104: Pike | D104: Central Appl. | F104: Road Fork No 1 | H104: 0.3 | I104: 1987 | J104: Unknown | K104: Unknown | L104: 3.72 | M104: -0.42
A105: =IF(St='Abandoned Data'!B105,1+A104,0) -> 0 | B105: KY | C105: Leslie | D105: Central Appl. | F105: No. 60 | H105: 0.3 | I105: 2001 | J105: Unknown | K105: Unknown | L105: 3.72 | M105: -0.42
A106: =IF(St='Abandoned Data'!B106,1+A105,0) -> 0 | B106: KY | C106: Johnson | D106: Central Appl. | F106: White Ash No 1 | H106: 0.2 | I106: 1978 | J106: Unknown | K106: Unknown | L106: 3.72 | M106: -0.42
A107: =IF(St='Abandoned Data'!B107,1+A106,0) -> 0 | B107: KY | C107: Pike | D107: Central Appl. | E107: Pond Creek | F107: Scotts Branch | H107: 0.2 | I107: 1981 | J107: Unknown | K107: Unknown | L107: 3.72 | M107: -0.42
A108: =IF(St='Abandoned Data'!B108,1+A107,0) -> 0 | B108: KY | C108: Pike | D108: Central Appl. | F108: No. 1 Mine (D) | H108: 0.2 | I108: 1983 | J108: Unknown | K108: Unknown | L108: 3.72 | M108: -0.42
A109: =IF(St='Abandoned Data'!B109,1+A108,0) -> 0 | B109: KY | C109: Pike | D109: Central Appl. | F109: No. 1 Mine | H109: 0.2 | I109: 1988 | J109: Unknown | K109: Unknown | L109: 3.72 | M109: -0.42
A110: =IF(St='Abandoned Data'!B110,1+A109,0) -> 0 | B110: KY | C110: Pike | D110: Central Appl. | F110: New ERA No 1 | H110: 0.2 | I110: 1989 | J110: Unknown | K110: Unknown | L110: 3.72 | M110: -0.42
A111: =IF(St='Abandoned Data'!B111,1+A110,0) -> 0 | B111: KY | C111: Leslie | D111: Central Appl. | F111: No. 1 Mine | H111: 0.2 | I111: 1989 | J111: Unknown | K111: Unknown | L111: 3.72 | M111: -0.42
A112: =IF(St='Abandoned Data'!B112,1+A111,0) -> 0 | B112: KY | C112: Harlan | D112: Central Appl. | E112: Lowsplint/Creech | F112: Creech No 1 | H112: 0.2 | I112: 1995 | J112: Unknown | K112: Unknown | L112: 3.72 | M112: -0.42
A113: =IF(St='Abandoned Data'!B113,1+A112,0) -> 0 | B113: KY | C113: Harlan | D113: Central Appl. | E113: Harlan | F113: Harlan No.1 | H113: 0.2 | I113: 1995 | J113: Unknown | K113: Unknown | L113: 3.72 | M113: -0.42
A114: =IF(St='Abandoned Data'!B114,1+A113,0) -> 0 | B114: KY | C114: Leslie | D114: Central Appl. | E114: Hazard No.4 | F114: Unicorn No.2 | H114: 0.2 | I114: 1996 | J114: Unknown | K114: Unknown | L114: 3.72 | M114: -0.42
A115: =IF(St='Abandoned Data'!B115,1+A114,0) -> 0 | B115: KY | C115: Pike | D115: Central Appl. | F115: Big Creek No 1 | H115: 0.15 | I115: 1981 | J115: Unknown | K115: Unknown | L115: 3.72 | M115: -0.42
A116: =IF(St='Abandoned Data'!B116,1+A115,0) -> 0 | B116: KY | C116: Martin | D116: Central Appl. | F116: Peter Cave No 1 | H116: 0.15 | I116: 1989 | J116: Unknown | K116: Unknown | L116: 3.72 | M116: -0.42
A117: =IF(St='Abandoned Data'!B117,1+A116,0) -> 0 | B117: KY | C117: Harlan | D117: Central Appl. | F117: No. 10 Wisconsin Steel Mine | H117: 0.1 | I117: 1974 | J117: Unknown | K117: Unknown | L117: 3.72 | M117: -0.42
A118: =IF(St='Abandoned Data'!B118,1+A117,0) -> 0 | B118: KY | C118: Pike | D118: Central Appl. | F118: No.26-L | H118: 0.1 | I118: 1986 | J118: Unknown | K118: Unknown | L118: 3.72 | M118: -0.42
A119: =IF(St='Abandoned Data'!B119,1+A118,0) -> 0 | B119: KY | C119: Pike | D119: Central Appl. | F119: Big Creek No 2 | H119: 0.1 | I119: 1988 | J119: Unknown | K119: Unknown | L119: 3.72 | M119: -0.42 | N119: =IF(ISERROR((VLOOKUP(ROW(A117),$A$3:$M$519,1,0))),"",(VLOOKUP(ROW(A117),$A$3:$M$519,1,0))) ->  | O119: =IF(ISERROR(PROPER(VLOOKUP(ROW(A117),$A$3:$M$519,6,0))),"",PROPER(VLOOKUP(ROW(A117),$A$3:$M$519,6,0))) ->  | P119: =IF(ISERROR(PROPER(VLOOKUP(ROW(A117),$A$3:$M$519,3,0))),"",PROPER(VLOOKUP(ROW(A117),$A$3:$M$519,3,0))) ->  | Q119: =IF(ISERROR(PROPER(VLOOKUP(ROW(A117),$A$3:$M$519,10,0))),"",PROPER(VLOOKUP(ROW(A117),$A$3:$M$519,10,0))) ->  | R119: =IF(ISERROR(PROPER(VLOOKUP(ROW(A117),$A$3:$M$519,9,0))),"",PROPER(VLOOKUP(ROW(A117),$A$3:$M$519,9,0))) ->  | S119: =IF(ISERROR(PROPER(VLOOKUP(ROW(A117),$A$3:$M$519,4,0))),"",PROPER(VLOOKUP(ROW(A117),$A$3:$M$519,4,0))) ->  | T119: =IF(ISERROR(VLOOKUP(ROW(A117),$A$3:$M$519,8,0)),"",VLOOKUP(ROW(A117),$A$3:$M$519,8,0)) ->  | U119: =IF(ISERROR(VLOOKUP(ROW(A117),$A$3:$M$519,12,0)),"",VLOOKUP(ROW(A117),$A$3:$M$519,12,0)) ->  | V119: =IF(ISERROR(VLOOKUP(ROW(A117),$A$3:$M$519,13,0)),"",VLOOKUP(ROW(A117),$A$3:$M$519,13,0)) -> 
A120: =IF(St='Abandoned Data'!B120,1+A119,0) -> 0 | B120: KY | C120: Pike | D120: Central Appl. | F120: No. 4 Mine | H120: 0.1 | I120: 1989 | J120: Unknown | K120: Unknown | L120: 3.72 | M120: -0.42
A121: =IF(St='Abandoned Data'!B121,1+A120,0) -> 0 | B121: KY | C121: Letcher | D121: Central Appl. | F121: Upper Taggert Mine | H121: 0.1 | I121: 1989 | J121: Unknown | K121: Unknown | L121: 3.72 | M121: -0.42
A122: =IF(St='Abandoned Data'!B122,1+A121,0) -> 0 | B122: KY | C122: Pike | D122: Central Appl. | F122: Unit Mine | H122: 0.1 | I122: 1989 | J122: Unknown | K122: Unknown | L122: 3.72 | M122: -0.42
A123: =IF(St='Abandoned Data'!B123,1+A122,0) -> 0 | B123: KY | C123: Pike | D123: Central Appl. | E123: Elkhorn No.3 | F123: No.9 | H123: 0.1 | I123: 1995 | J123: Unknown | K123: Unknown | L123: 3.72 | M123: -0.42
A124: =IF(St='Abandoned Data'!B124,1+A123,0) -> 0 | B124: KY | C124: Harlan | D124: Central Appl. | F124: Darby Fork No 1 | H124: 0.1 | I124: 1997 | J124: Unknown | K124: Unknown | L124: 3.72 | M124: -0.42
A125: =IF(St='Abandoned Data'!B125,1+A124,0) -> 0 | B125: KY | C125: Pike | D125: Central Appl. | F125: Smith Fork | H125: 0.1 | I125: 2001 | J125: Unknown | K125: Unknown | L125: 3.72 | M125: -0.42
A126: =IF(St='Abandoned Data'!B126,1+A125,0) -> 0 | B126: KY | C126: Letcher | D126: Central Appl. | F126: Premium Mine | H126: 0.1 | I126: 2003 | J126: Unknown | K126: Unknown | L126: 3.72 | M126: -0.42
A127: =IF(St='Abandoned Data'!B127,1+A126,0) -> 0 | B127: KY | C127: Webster | D127: Illinois | E127: W. Kentucky No. 13 | F127: Baker Mine | H127: 1.51 | I127: 2005 | J127: Unknown | K127: Unknown | L127: 3.72 | M127: -0.42
A128: =IF(St='Abandoned Data'!B128,1+A127,0) -> 0 | B128: KY | C128: Union | D128: Illinois | E128: Springfield No. 5 | F128: Pyro No. 9 Slope William Station | H128: 1.2 | I128: 1991 | J128: Unknown | K128: Unknown | L128: 3.72 | M128: -0.42
A129: =IF(St='Abandoned Data'!B129,1+A128,0) -> 0 | B129: KY | C129: Hopkins | D129: Illinois | E129: Springfield No. 5/Kentucky No.9 | F129: Green River No.9 | H129: 1.2 | I129: 1992 | J129: Unknown | K129: Unknown | L129: 3.72 | M129: -0.42
A130: =IF(St='Abandoned Data'!B130,1+A129,0) -> 0 | B130: KY | C130: Hopkins | D130: Illinois | E130: Kentucky 9 & 11 | F130: FIES MINE | G130: Venting/Flooded | H130: 1.1 | I130: 1980 | J130: Flooded | K130: No | L130: 3.72 | M130: -0.42
A131: =IF(St='Abandoned Data'!B131,1+A130,0) -> 0 | B131: KY | C131: Muhlenberg | D131: Illinois | F131: Crescent | G131: Flooded | H131: 0.75 | I131: 1977 | J131: =IF(G131=0,"Unknown",VLOOKUP(G131,$B$525:$C$540,2,FALSE)) -> Flooded | K131: =IF(J131="unknown","Unknown",VLOOKUP(G131,$B$525:$D$540,3,FALSE)) -> No | L131: 3.72 | M131: -0.42
A132: =IF(St='Abandoned Data'!B132,1+A131,0) -> 0 | B132: KY | C132: Hopkins | D132: Illinois | E132: Kentucky 9 & 11 | F132: ZEIGLER NO 9 MINE | H132: 0.75 | I132: 1980 | J132: Unknown | K132: Unknown | L132: 3.72 | M132: -0.42
A133: =IF(St='Abandoned Data'!B133,1+A132,0) -> 0 | B133: KY | C133: Ohio | D133: Illinois | F133: Peacock Coal Mine No. | H133: 0.75 | I133: 1983 | J133: Unknown | K133: Unknown | L133: 3.72 | M133: -0.42
A134: =IF(St='Abandoned Data'!B134,1+A133,0) -> 0 | B134: KY | C134: Union | D134: Illinois | E134: Herrin No. 6 & Springfield No. 5/Kentucky No.9 & No.11 | F134: Camp No.2 | G134: Sealed | H134: 0.4 | I134: 1993 | J134: Sealed | K134: No | L134: 3.72 | M134: -0.42
A135: =IF(St='Abandoned Data'!B135,1+A134,0) -> 0 | B135: KY | C135: Muhlenberg | D135: Illinois | F135: Drake No 1 | G135: Sealed/Filled | H135: 0.35 | I135: 1972 | J135: Sealed | K135: No | L135: 3.72 | M135: -0.42
A136: =IF(St='Abandoned Data'!B136,1+A135,0) -> 0 | B136: KY | C136: Hopkins | D136: Illinois | E136: Kentucky 9 & 11 | F136: East Diamond | G136: Venting/Flooded | H136: 0.35 | I136: 1972 | J136: Flooded | K136: No | L136: 3.72 | M136: -0.42
A137: =IF(St='Abandoned Data'!B137,1+A136,0) -> 0 | B137: KY | C137: Union | D137: Illinois | E137: Kentucky 9 & 11 | F137: Pyro No 2 | G137: Sealed | H137: 0.35 | I137: 1974 | J137: Sealed | K137: No | L137: 3.72 | M137: -0.42
A138: =IF(St='Abandoned Data'!B138,1+A137,0) -> 0 | B138: KY | C138: Hopkins | D138: Illinois | E138: Kentucky 9 & 11 | F138: Island Creek No 9 | G138: Venting/Flooded | H138: 0.35 | I138: 1974 | J138: Flooded | K138: No | L138: 3.72 | M138: -0.42
A139: =IF(St='Abandoned Data'!B139,1+A138,0) -> 0 | B139: KY | C139: Muhlenberg | D139: Illinois | E139: Kentucky 9 & 11 | F139: River Queen Underground No 1 | G139: Flooded | H139: 0.35 | I139: 1981 | J139: Flooded | K139: No | L139: 3.72 | M139: -0.42
A140: =IF(St='Abandoned Data'!B140,1+A139,0) -> 0 | B140: KY | C140: Ohio | D140: Illinois | F140: ALSTON NO 3 MINE | H140: 0.35 | I140: 1981 | J140: Unknown | K140: Unknown | L140: 3.72 | M140: -0.42
A141: =IF(St='Abandoned Data'!B141,1+A140,0) -> 0 | B141: KY | C141: Hopkins | D141: Illinois | F141: Drake No 4 | G141: Flooded | H141: 0.35 | I141: 1982 | J141: Flooded | K141: No | L141: 3.72 | M141: -0.42
A142: =IF(St='Abandoned Data'!B142,1+A141,0) -> 0 | B142: KY | C142: Hopkins | D142: Illinois | E142: Kentucky 9 & 11 | F142: Providence No 1 | G142: Venting/Flooded | H142: 0.35 | I142: 1982 | J142: Flooded | K142: No | L142: 3.72 | M142: -0.42
A143: =IF(St='Abandoned Data'!B143,1+A142,0) -> 0 | B143: KY | C143: Union | D143: Illinois | E143: Kentucky 9 & 11 | F143: Peaboby Camp No 1 | G143: Sealed | H143: 0.35 | I143: 1983 | J143: Sealed | K143: No | L143: 3.72 | M143: -0.42
A144: =IF(St='Abandoned Data'!B144,1+A143,0) -> 0 | B144: KY | C144: Hopkins | D144: Illinois | F144: Busick Mine | H144: 0.35 | I144: 1983 | J144: Unknown | K144: Unknown | L144: 3.72 | M144: -0.42
A145: =IF(St='Abandoned Data'!B145,1+A144,0) -> 0 | B145: KY | C145: Ohio | D145: Illinois | E145: Kentucky 9 & 11 | F145: KEN NO 4 MINE | H145: 0.35 | I145: 1984 | J145: Unknown | K145: Unknown | L145: 3.72 | M145: -0.42
A146: =IF(St='Abandoned Data'!B146,1+A145,0) -> 0 | B146: KY | C146: Muhlenberg | D146: Illinois | E146: Kentucky 9 & 11 | F146: Star Underground | G146: Flooded | H146: 0.35 | I146: 1989 | J146: Flooded | K146: No | L146: 3.72 | M146: -0.42
A147: =IF(St='Abandoned Data'!B147,1+A146,0) -> 0 | B147: KY | C147: Webster | D147: Illinois | F147: Dorea | G147: Sealed/Filled | H147: 0.35 | I147: 1993 | J147: Sealed | K147: No | L147: 3.72 | M147: -0.42
A148: =IF(St='Abandoned Data'!B148,1+A147,0) -> 0 | B148: KY | C148: Union | D148: Illinois | E148: Kentucky 9 & 11 | F148: Hamilton No 2 | G148: Flooded | H148: 0.35 | I148: 1994 | J148: Flooded | K148: No | L148: 3.72 | M148: -0.42
A149: =IF(St='Abandoned Data'!B149,1+A148,0) -> 0 | B149: KY | C149: Hopkins | D149: Illinois | F149: West Hopkins | G149: Sealed/Filled | H149: 0.35 | I149: 1994 | J149: Sealed | K149: No | L149: 3.72 | M149: -0.42
A150: =IF(St='Abandoned Data'!B150,1+A149,0) -> 0 | B150: KY | C150: Union | D150: Illinois | E150: Kentucky 9 & 11 | F150: Hamilton No 1 | G150: Venting/Flooded | H150: 0.35 | I150: 1996 | J150: Flooded | K150: No | L150: 3.72 | M150: -0.42
A151: =IF(St='Abandoned Data'!B151,1+A150,0) -> 0 | B151: KY | C151: Webster | D151: Illinois | F151: Smith U/G mine | H151: 0.35 | I151: 2000 | J151: Unknown | K151: Unknown | L151: 3.72 | M151: -0.42 | N151: =IF(ISERROR((VLOOKUP(ROW(A149),$A$3:$M$519,1,0))),"",(VLOOKUP(ROW(A149),$A$3:$M$519,1,0))) ->  | O151: =IF(ISERROR(PROPER(VLOOKUP(ROW(A149),$A$3:$M$519,6,0))),"",PROPER(VLOOKUP(ROW(A149),$A$3:$M$519,6,0))) ->  | P151: =IF(ISERROR(PROPER(VLOOKUP(ROW(A149),$A$3:$M$519,3,0))),"",PROPER(VLOOKUP(ROW(A149),$A$3:$M$519,3,0))) ->  | Q151: =IF(ISERROR(PROPER(VLOOKUP(ROW(A149),$A$3:$M$519,10,0))),"",PROPER(VLOOKUP(ROW(A149),$A$3:$M$519,10,0))) ->  | R151: =IF(ISERROR(PROPER(VLOOKUP(ROW(A149),$A$3:$M$519,9,0))),"",PROPER(VLOOKUP(ROW(A149),$A$3:$M$519,9,0))) ->  | S151: =IF(ISERROR(PROPER(VLOOKUP(ROW(A149),$A$3:$M$519,4,0))),"",PROPER(VLOOKUP(ROW(A149),$A$3:$M$519,4,0))) ->  | T151: =IF(ISERROR(VLOOKUP(ROW(A149),$A$3:$M$519,8,0)),"",VLOOKUP(ROW(A149),$A$3:$M$519,8,0)) ->  | U151: =IF(ISERROR(VLOOKUP(ROW(A149),$A$3:$M$519,12,0)),"",VLOOKUP(ROW(A149),$A$3:$M$519,12,0)) ->  | V151: =IF(ISERROR(VLOOKUP(ROW(A149),$A$3:$M$519,13,0)),"",VLOOKUP(ROW(A149),$A$3:$M$519,13,0)) -> 
A152: =IF(St='Abandoned Data'!B152,1+A151,0) -> 0 | B152: KY | C152: Muhlenberg | D152: Illinois | E152: No. 9 | F152: Martwick Mine | G152: Sealed | H152: 0.25 | I152: 2001 | J152: Sealed | K152: No | L152: 3.72 | M152: -0.42
A153: =IF(St='Abandoned Data'!B153,1+A152,0) -> 0 | B153: KY | C153: Union | D153: Illinois | E153: Herrin No. 6 | F153: Pyro No. 11 Highway | H153: 0.2 | I153: 1991 | J153: Unknown | K153: Unknown | L153: 3.72 | M153: -0.42
A154: =IF(St='Abandoned Data'!B154,1+A153,0) -> 0 | B154: KY | C154: Hopkins | D154: Illinois | F154: South Hopkins | H154: 0.2 | I154: 1994 | J154: Unknown | K154: Unknown | L154: 3.72 | M154: -0.42
A155: =IF(St='Abandoned Data'!B155,1+A154,0) -> 0 | B155: KY | C155: Union | D155: Illinois | F155: Palco Mine | H155: 0.15 | I155: 1989 | J155: Unknown | K155: Unknown | L155: 3.72 | M155: -0.42
A156: =IF(St='Abandoned Data'!B156,1+A155,0) -> 0 | B156: KY | C156: Union | D156: Illinois | F156: Ohio No 11 | H156: 0.1 | I156: 1989 | J156: Unknown | K156: Unknown | L156: 3.72 | M156: -0.42
A157: =IF(St='Abandoned Data'!B157,1+A156,0) -> 0 | B157: KY | C157: Muhlenberg | D157: Illinois | F157: Graham No 3 | H157: 0.1 | I157: 1990 | J157: Unknown | K157: Unknown | L157: 3.72 | M157: -0.42
A158: =IF(St='Abandoned Data'!B158,1+A157,0) -> 0 | B158: KY | C158: Davies | D158: Illinois | F158: Pride Mine | H158: 0.1 | I158: 1990 | J158: Unknown | K158: Unknown | L158: 3.72 | M158: -0.42
A159: =IF(St='Abandoned Data'!B159,1+A158,0) -> 0 | B159: KY | C159: Muhlenberg | D159: Illinois | F159: Sinclair Slope No 2 Mine | H159: 0.1 | I159: 1992 | J159: Unknown | K159: Unknown | L159: 3.72 | M159: -0.42
A160: =IF(St='Abandoned Data'!B160,1+A159,0) -> 0 | B160: KY | C160: Leslie | D160: Central Appl. | F160: Shamrock #18 Series | H160: 0.2214974532 | I160: 2010 | J160: Unknown | K160: Unknown | L160: 3.72 | M160: -0.42
A161: =IF(St='Abandoned Data'!B161,1+A160,0) -> 0 | B161: KY | C161: Ohio | D161: Illinois | F161: Big Run Mine | H161: 0.146248637 | I161: 2011 | J161: Unknown | K161: Unknown | L161: 3.72 | M161: -0.42
A162: =IF(St='Abandoned Data'!B162,1+A161,0) -> 0 | B162: KY | C162: Pike | D162: Central Appl. | F162: Mine #1 | H162: 0.8978777778 | I162: 2012 | J162: Unknown | K162: Unknown | L162: 3.72 | M162: -0.42
A163: =IF(St='Abandoned Data'!B163,1+A162,0) -> 0 | B163: KY | C163: Martin | D163: Central Appl. | F163: Mine No. 2 | H163: 0.6308998125 | I163: 2009 | J163: =IF(G163=0,"Unknown",VLOOKUP(G163,$B$525:$C$540,2,FALSE)) -> Unknown | K163: =IF(J163="unknown","Unknown",VLOOKUP(G163,$B$525:$D$540,3,FALSE)) -> Unknown | L163: 3.72 | M163: -0.42
A164: =IF(St='Abandoned Data'!B164,1+A163,0) -> 0 | B164: KY | C164: Leslie | D164: Central Appl. | F164: #4 | H164: 0.1754671994 | I164: 2008 | J164: Unknown | K164: Unknown | L164: 3.72 | M164: -0.42
A165: =IF(St='Abandoned Data'!B165,1+A164,0) -> 0 | B165: KY | C165: Union | D165: Illinois | F165: Camp #11 | G165: Sealed | H165: 0.765 | I165: 2005 | J165: Sealed | K165: No | L165: 3.72 | M165: -0.42
A166: =IF(St='Abandoned Data'!B166,1+A165,0) -> 0 | B166: KY | C166: Pike | D166: Central Appl. | F166: PE 2 Underground | H166: 0.1123923333 | I166: 2006 | J166: Unknown | K166: Unknown | L166: 3.72 | M166: -0.42
A167: =IF(St='Abandoned Data'!B167,1+A166,0) -> 0 | B167: KY | C167: Union | D167: Illinois | E167: 0 | F167: Rough Creek Mine | H167: 0.5555379679 | I167: 2015 | J167: Unknown | K167: Unknown | L167: 3.72 | M167: -0.42
A168: =IF(St='Abandoned Data'!B168,1+A167,0) -> 0 | B168: KY | C168: Knott | D168: Central Appl. | E168: 0 | F168: KY Fuels E3RF | H168: 0.2785373691 | I168: 2016 | J168: Unknown | K168: Unknown | L168: 3.72 | M168: -0.42
A169: =IF(St='Abandoned Data'!B169,1+A168,0) -> 0 | B169: KY | C169: Perry | D169: Central Appl. | E169: 0 | F169: Perry County Coal Corp. | H169: 0.15 | I169: 2007 | J169: Unknown | K169: Unknown | L169: 3.72 | M169: -0.42
A170: =IF(St='Abandoned Data'!B170,1+A169,0) -> 0 | B170: KY | C170: Hopkins | D170: Illinois | E170: 0 | F170: Magical Coal Company | H170: 0.28875 | I170: 2004 | J170: Unknown | K170: Unknown | L170: 3.72 | M170: -0.42
A171: =IF(St='Abandoned Data'!B171,1+A170,0) -> 0 | B171: KY | C171: Webster | D171: Illinois | E171: 0 | F171: Lodestar Energy, Inc. | G171: Sealed | H171: 0.8133333333 | I171: 2006 | J171: Sealed | K171: No | L171: 3.72 | M171: -0.42
A172: =IF(St='Abandoned Data'!B172,1+A171,0) -> 0 | B172: KY | C172: Hopkins | D172: Illinois | E172: 0 | F172: Hopkins County Coal L.L.C. | G172: Sealed | H172: 0.14 | I172: 2003 | J172: Sealed | K172: No | L172: 3.72 | M172: -0.42
A173: =IF(St='Abandoned Data'!B173,1+A172,0) -> 0 | B173: KY | C173: Knox | D173: Central Appl. | F173: Alden Resources, LLC #6 | G173: Unknown | H173: 0.02 | I173: 2017 | J173: Unknown | K173: Unknown | L173: 3.72 | M173: -0.42
A174: =IF(St='Abandoned Data'!B174,1+A173,0) -> 0 | B174: MD | C174: Garrett | D174: Central Appl. | F174: Mettiki | H174: 0.2 | I174: 1989 | J174: =IF(G174=0,"Unknown",VLOOKUP(G174,$B$525:$C$540,2,FALSE)) -> Unknown | K174: Unknown | L174: 3.72 | M174: -0.42
A175: =IF(St='Abandoned Data'!B175,1+A174,0) -> 0 | B175: NM | C175: Colfax | D175: Raton | E175: Left Fork (U) | F175: Cimarron | G175: Sealed | H175: 0.75 | I175: 1998 | J175: Sealed | K175: No | L175: 3.72 | M175: -0.42
A176: =IF(St='Abandoned Data'!B176,1+A175,0) -> 0 | B176: NM | C176: Colfax | D176: Raton | F176: York Canyon Mine | H176: 0.3 | I176: 1986 | J176: Unknown | K176: Unknown | L176: 3.72 | M176: -0.42
A177: =IF(St='Abandoned Data'!B177,1+A176,0) -> 0 | B177: OH | C177: Harrison | D177: Northern Appl. | E177: No. 6 & 6A | F177: Nelms #1 | G177: Venting/Recovering Gas | H177: 1.9 | I177: 1977 | J177: Venting | K177: Yes | L177: 3.72 | M177: -0.42
A178: =IF(St='Abandoned Data'!B178,1+A177,0) -> 0 | B178: OH | C178: Harrison | D178: Northern Appl. | E178: No. 6 & 6A | F178: NELMS NO 2 | G178: Venting | H178: 1.5 | I178: 1993 | J178: Venting | K178: No | L178: 3.72 | M178: -0.42
A179: =IF(St='Abandoned Data'!B179,1+A178,0) -> 0 | B179: OH | C179: Belmont | D179: Northern Appl. | E179: Pittsburgh | F179: Powhatan No 4 | G179: Venting | H179: 0.75 | I179: 1978 | J179: Venting | K179: No | L179: 3.72 | M179: -0.42
A180: =IF(St='Abandoned Data'!B180,1+A179,0) -> 0 | B180: OH | C180: Harrison | D180: Northern Appl. | F180: Oak Park No 7 | G180: Sealed | H180: 0.75 | I180: 1988 | J180: Sealed | K180: No | L180: 3.72 | M180: -0.42
A181: =IF(St='Abandoned Data'!B181,1+A180,0) -> 0 | B181: OH | C181: Belmont | D181: Northern Appl. | E181: Pittsburgh | F181: POWHATAN NO 1 | G181: Sealed | H181: 0.6 | I181: 1982 | J181: Sealed | K181: No | L181: 3.72 | M181: -0.42
A182: =IF(St='Abandoned Data'!B182,1+A181,0) -> 0 | B182: OH | C182: Harrison | D182: Northern Appl. | E182: Pittsburgh | F182: Mars No 2 | G182: Flooded | H182: 0.5 | I182: 1974 | J182: Flooded | K182: No | L182: 3.72 | M182: -0.42
A183: =IF(St='Abandoned Data'!B183,1+A182,0) -> 0 | B183: OH | C183: Harrison | D183: Northern Appl. | F183: Rose Valley No. 6 | G183: Sealed | H183: 0.5 | I183: 1980 | J183: Sealed | K183: No | L183: 3.72 | M183: -0.42
A184: =IF(St='Abandoned Data'!B184,1+A183,0) -> 0 | B184: OH | C184: Meigs | D184: Northern Appl. | F184: Meigs No 1 | H184: 0.4 | I184: 1989 | J184: Unknown | K184: Unknown | L184: 3.72 | M184: -0.42
A185: =IF(St='Abandoned Data'!B185,1+A184,0) -> 0 | B185: OH | C185: Jefferson | D185: Northern Appl. | E185: No. 6 & 6A | F185: Jensie | G185: Venting | H185: 0.35 | I185: 1974 | J185: Venting | K185: No | L185: 3.72 | M185: -0.42
A186: =IF(St='Abandoned Data'!B186,1+A185,0) -> 0 | B186: OH | C186: Belmont | D186: Northern Appl. | E186: Pittsburgh | F186: POWHATAN NO 5 MINE | G186: Venting | H186: 0.35 | I186: 1981 | J186: Venting | K186: No | L186: 3.72 | M186: -0.42
A187: =IF(St='Abandoned Data'!B187,1+A186,0) -> 0 | B187: OH | C187: Belmont | D187: Northern Appl. | F187: Powhatan No 3 | G187: Venting | H187: 0.35 | I187: 1983 | J187: Venting | K187: No | L187: 3.72 | M187: -0.42
A188: =IF(St='Abandoned Data'!B188,1+A187,0) -> 0 | B188: OH | C188: Harrison | D188: Northern Appl. | F188: VAIL | G188: Venting | H188: 0.35 | I188: 1984 | J188: Venting | K188: No | L188: 3.72 | M188: -0.42
A189: =IF(St='Abandoned Data'!B189,1+A188,0) -> 0 | B189: OH | C189: Belmont | D189: Northern Appl. | F189: ALLISON MINE | G189: Venting | H189: 0.35 | I189: 1984 | J189: Venting | K189: No | L189: 3.72 | M189: -0.42
A190: =IF(St='Abandoned Data'!B190,1+A189,0) -> 0 | B190: OH | C190: Vinton | D190: Northern Appl. | F190: Raccoon #3 | H190: 0.35 | I190: 1989 | J190: Unknown | K190: Unknown | L190: 3.72 | M190: -0.42
A191: =IF(St='Abandoned Data'!B191,1+A190,0) -> 0 | B191: OH | C191: Monroe | D191: Northern Appl. | F191: POWHATAN 7 MINE | G191: Temporary Seal | H191: 0.35 | I191: 1992 | J191: Sealed | K191: No | L191: 3.72 | M191: -0.42
A192: =IF(St='Abandoned Data'!B192,1+A191,0) -> 0 | B192: OH | C192: Belmont | D192: Northern Appl. | F192: Saginaw no 1 | G192: Venting | H192: 0.35 | I192: 1993 | J192: Venting | K192: No | L192: 3.72 | M192: -0.42
A193: =IF(St='Abandoned Data'!B193,1+A192,0) -> 0 | B193: OH | C193: Perry | D193: Northern Appl. | E193: Kittanning (M)/No. 6 | F193: Sunnyhill No. 9 South | H193: 0.1 | I193: 1991 | J193: Unknown | K193: Unknown | L193: 3.72 | M193: -0.42
A194: =IF(St='Abandoned Data'!B194,1+A193,0) -> 0 | B194: OH | C194: Carroll | D194: Northern Appl. | E194: 0 | F194: Carroll Hollow #6 | G194: Sealed | H194: 0.1165976116 | I194: 2016 | J194: Sealed | K194: No | L194: 3.72 | M194: -0.42
A195: =IF(St='Abandoned Data'!B195,1+A194,0) -> 0 | B195: OH | C195: Monroe | D195: Northern Appl. | E195: 0 | F195: Quarto Mining Company | G195: Sealed | H195: 1.458 | I195: 2007 | J195: Sealed | K195: =IF(J195="unknown","Unknown",VLOOKUP(G195,$B$525:$D$540,3,FALSE)) -> No | L195: 3.72 | M195: -0.42
A196: =IF(St='Abandoned Data'!B196,1+A195,0) -> 0 | B196: OH | C196: Jefferson | D196: Northern Appl. | F196: Shean Hill Mine | G196: Unknown | H196: 0.013456 | I196: 2017 | J196: Unknown | K196: Unknown | L196: 3.72 | M196: -0.42
A197: =IF(St='Abandoned Data'!B197,1+A196,0) -> 0 | B197: OH | C197: Meigs | D197: Northern Appl. | F197: Yellowbush Mine | G197: Unknown | H197: 0 | I197: 2017 | J197: Unknown | K197: Unknown | L197: 3.72 | M197: -0.42
A198: =IF(St='Abandoned Data'!B198,1+A197,0) -> 0 | B198: OK | C198: Le Flore | D198: Arkoma | E198: Hart & L. Hart | F198: Howe No 1 | H198: 1.6 | I198: 1972 | J198: =IF(G198=0,"Unknown",VLOOKUP(G198,$B$525:$C$540,2,FALSE)) -> Unknown | K198: Unknown | L198: 3.72 | M198: -0.42
A199: =IF(St='Abandoned Data'!B199,1+A198,0) -> 0 | B199: OK | C199: Haskell | D199: Arkoma | F199: Choctaw Coal | H199: 0.35 | I199: 1990 | J199: Unknown | K199: Unknown | L199: 3.72 | M199: -0.42
A200: =IF(St='Abandoned Data'!B200,1+A199,0) -> 0 | B200: OK | C200: Okmulgee | D200: Arkoma | F200: Pollyanna No 4 | H200: 0.35 | I200: 1996 | J200: Unknown | K200: Unknown | L200: 3.72 | M200: -0.42
... 335 more rows

Sheet Abandoned Data Inputs
A2: Default Data inputs and Emissions | R2: Default Distribution Table for Unknowns | Y2: Emissions By Year (Gg) for Default Data | BD2: Only used for macro that produces projections, keep hidden
A3: Mine Listed | B3: Mine Name | C3: Basin | D3: Year Abandoned | E3: Status | F3: Percent Sealed | G3: Methane Recovered | H3: Active Emiss. (mmcfd) | I3: Constant A | J3: Constant B | K3: Emissions | R3: Current State | T3: Flooded | U3: Vented | V3: Sealed | Y3: 1990 | Z3: 1991 | AA3: 1992 | AB3: 1993 | AC3: 1994 | AD3: 1995 | AE3: 1996 | AF3: 1997 | AG3: 1998 | AH3: 1999 | AI3: 2000 | AJ3: 2001 | AK3: 2002 | AL3: 2003 | AM3: 2004 | AN3: 2005 | AO3: 2006 | AP3: 2007 | AQ3: 2008 | AR3: 2009 | AS3: 2010 | AT3: 2011 | AU3: 2012 | AV3: 2013 | AW3: 2014 | AX3: 2015 | AY3: 2016 | AZ3: 2017 | BA3: 2018 | BB3: 2019 | BC3: 2020 | BD3: =BC3+1 -> 2021 | BE3: =BD3+1 -> 2022 | BF3: 2023 | BG3: 2024 | BH3: 2025 | BI3: 2026 | BJ3: 2027 | BK3: 2028 | BL3: 2029 | BM3: 2030 | BN3: 2031 | BO3: 2032 | BP3: 2033 | BQ3: 2034 | BR3: 2035 | BS3: 2036 | BT3: 2037 | BU3: 2038 | BV3: 2039 | BW3: 2040 | BX3: 2041 | BY3: 2042 | BZ3: 2043 | CA3: 2044 | CB3: 2045 | CC3: 2046 | CD3: 2047 | CE3: 2048 | CF3: 2049 | CG3: 2050
A4: 1 | B4: ='CH4 from Abandoned Coal Mines'!D5 ->  | C4: ='CH4 from Abandoned Coal Mines'!H5 ->  | D4: =VALUE('CH4 from Abandoned Coal Mines'!J5) ->  | E4: =IF('CH4 from Abandoned Coal Mines'!N5>0,'CH4 from Abandoned Coal Mines'!N5,'CH4 from Abandoned Coal Mines'!L5) ->  | F4: ='CH4 from Abandoned Coal Mines'!P5 -> 0 | G4: ='CH4 from Abandoned Coal Mines'!R5 -> 0 | H4: =VLOOKUP(B4,'Abandoned Data'!$O$3:$V$163,6,FALSE) ->  | I4: =VLOOKUP(B4,'Abandoned Data'!$O$3:$V$163,7,FALSE) ->  | J4: =VLOOKUP(B4,'Abandoned Data'!$O$3:$V$163,8,FALSE) ->  | K4: =IF(E4="Venting",((H4*mmcfd_m3)*((1+I4*($AZ$3-D4))^J4)-G4)*Gg_m3,IF(E4="Sealed",(((H4*mmcfd_m3)*((1+I4*($AZ$3-D4))^J4)*(1-F4)-G4)*Gg_m3),IF(E4="Flooded",((H4*mmcfd_m3)*EXP(-0.6728*($AZ$3-D4))*Gg_m3),((H4*mmcfd_m3)*((1+I4*($AZ$3-D4))^J4)-G4)*Gg_m3+(((H4*mmcfd_m3)*((1+I4*($AZ$3-D4))^J4)*(1-0.8)-G4)*Gg_m3)+((H4*mmcfd_m3)*EXP(-0.6728*($AZ$3-D4))*Gg_m3)))) ->  | M4: a. Vented: q = qi × (1 + aT)b | R4: =constants!K1 -> XX | T4: =VLOOKUP($R$4,$R$8:$V$27,3,FALSE) ->  | U4: =VLOOKUP($R$4,$R$8:$V$27,4,FALSE) ->  | V4: =VLOOKUP($R$4,$R$8:$V$27,5,FALSE) ->  | X4: 1 | Y4: =IF(ISERROR(IF($D4<Y$3,IF($E4="Venting",(($H4*mmcfd_m3)*((1+$I4*(Y$3-$D4))^$J4)-$G4)*Gg_m3,IF($E4="Sealed",((($H4*mmcfd_m3)*((1+$I4*(Y$3-$D4))^$J4)*(1-$F4)-$G4)*Gg_m3),IF($E4="Flooded",(($H4*mmcfd_m3)*EXP(-0.6728*(Y$3-$D4))*Gg_m3),(($H4*mmcfd_m3)*((1+$I4*(Y$3-$D4))^$J4)-$G4)*Gg_m3+((($H4*mmcfd_m3)*((1+$I4*(Y$3-$D4))^$J4)*(1-0.8)-$G4)*Gg_m3)+(($H4*mmcfd_m3)*EXP(-0.6728*(Y$3-$D4))*Gg_m3)))),0)),0,IF($D4<Y$3,IF($E4="Venting",(($H4*mmcfd_m3)*((1+$I4*(Y$3-$D4))^$J4)-$G4)*Gg_m3,IF($E4="Sealed",((($H4*mmcfd_m3)*((1+$I4*(Y$3-$D4))^$J4)*(1-$F4)-$G4)*Gg_m3),IF($E4="Flooded",(($H4*mmcfd_m3)*EXP(-0.6728*(Y$3-$D4))*Gg_m3),(($H4*mmcfd_m3)*((1+$I4*(Y$3-$D4))^$J4)-$G4)*Gg_m3+((($H4*mmcfd_m3)*((1+$I4*(Y$3-$D4))^$J4)*(1-0.8)-$G4)*Gg_m3)+(($H4*mmcfd_m3)*EXP(-0.6728*(Y$3-$D4))*Gg_m3)))),0)) -> 0 | Z4: 0 | AA4: 0 | AB4: 0 | AC4: 0 | AD4: 0 | AE4: 0 | AF4: 0 | AG4: 0 | AH4: 0 | AI4: =IF(ISERROR(IF($D4<AI$3,IF($E4="Venting",(($H4*mmcfd_m3)*((1+$I4*(AI$3-$D4))^$J4)-$G4)*Gg_m3,IF($E4="Sealed",((($H4*mmcfd_m3)*((1+$I4*(AI$3-$D4))^$J4)*(1-$F4)-$G4)*Gg_m3),IF($E4="Flooded",(($H4*mmcfd_m3)*EXP(-0.6728*(AI$3-$D4))*Gg_m3),(($H4*mmcfd_m3)*((1+$I4*(AI$3-$D4))^$J4)-$G4)*Gg_m3+((($H4*mmcfd_m3)*((1+$I4*(AI$3-$D4))^$J4)*(1-0.8)-$G4)*Gg_m3)+(($H4*mmcfd_m3)*EXP(-0.6728*(AI$3-$D4))*Gg_m3)))),0)),0,IF($D4<AI$3,IF($E4="Venting",(($H4*mmcfd_m3)*((1+$I4*(AI$3-$D4))^$J4)-$G4)*Gg_m3,IF($E4="Sealed",((($H4*mmcfd_m3)*((1+$I4*(AI$3-$D4))^$J4)*(1-$F4)-$G4)*Gg_m3),IF($E4="Flooded",(($H4*mmcfd_m3)*EXP(-0.6728*(AI$3-$D4))*Gg_m3),(($H4*mmcfd_m3)*((1+$I4*(AI$3-$D4))^$J4)-$G4)*Gg_m3+((($H4*mmcfd_m3)*((1+$I4*(AI$3-$D4))^$J4)*(1-0.8)-$G4)*Gg_m3)+(($H4*mmcfd_m3)*EXP(-0.6728*(AI$3-$D4))*Gg_m3)))),0)) -> 0 | AJ4: 0 | AK4: 0 | AL4: 0 | AM4: 0 | AN4: 0 | AO4: 0 | AP4: 0 | AQ4: 0 | AR4: 0 | AS4: =IF(ISERROR(IF($D4<AS$3,IF($E4="Venting",(($H4*mmcfd_m3)*((1+$I4*(AS$3-$D4))^$J4)-$G4)*Gg_m3,IF($E4="Sealed",((($H4*mmcfd_m3)*((1+$I4*(AS$3-$D4))^$J4)*(1-$F4)-$G4)*Gg_m3),IF($E4="Flooded",(($H4*mmcfd_m3)*EXP(-0.6728*(AS$3-$D4))*Gg_m3),(($H4*mmcfd_m3)*((1+$I4*(AS$3-$D4))^$J4)-$G4)*Gg_m3+((($H4*mmcfd_m3)*((1+$I4*(AS$3-$D4))^$J4)*(1-0.8)-$G4)*Gg_m3)+(($H4*mmcfd_m3)*EXP(-0.6728*(AS$3-$D4))*Gg_m3)))),0)),0,IF($D4<AS$3,IF($E4="Venting",(($H4*mmcfd_m3)*((1+$I4*(AS$3-$D4))^$J4)-$G4)*Gg_m3,IF($E4="Sealed",((($H4*mmcfd_m3)*((1+$I4*(AS$3-$D4))^$J4)*(1-$F4)-$G4)*Gg_m3),IF($E4="Flooded",(($H4*mmcfd_m3)*EXP(-0.6728*(AS$3-$D4))*Gg_m3),(($H4*mmcfd_m3)*((1+$I4*(AS$3-$D4))^$J4)-$G4)*Gg_m3+((($H4*mmcfd_m3)*((1+$I4*(AS$3-$D4))^$J4)*(1-0.8)-$G4)*Gg_m3)+(($H4*mmcfd_m3)*EXP(-0.6728*(AS$3-$D4))*Gg_m3)))),0)) -> 0 | AT4: 0 | AU4: 0 | AV4: 0 | AW4: 0 | AX4: 0 | AY4: 0 | AZ4: 0 | BA4: 0 | BB4: 0 | BC4: 0 | BD4: 0 | BE4: 0 | BF4: 0 | BG4: 0 | BH4: 0 | BI4: =IF(ISERROR(IF($D4<BI$3,IF($E4="Venting",(($H4*mmcfd_m3)*((1+$I4*(BI$3-$D4))^$J4)-$G4)*Gg_m3,IF($E4="Sealed",((($H4*mmcfd_m3)*((1+$I4*(BI$3-$D4))^$J4)*(1-$F4)-$G4)*Gg_m3),IF($E4="Flooded",(($H4*mmcfd_m3)*EXP(-0.6728*(BI$3-$D4))*Gg_m3),(($H4*mmcfd_m3)*((1+$I4*(BI$3-$D4))^$J4)-$G4)*Gg_m3+((($H4*mmcfd_m3)*((1+$I4*(BI$3-$D4))^$J4)*(1-0.8)-$G4)*Gg_m3)+(($H4*mmcfd_m3)*EXP(-0.6728*(BI$3-$D4))*Gg_m3)))),0)),0,IF($D4<BI$3,IF($E4="Venting",(($H4*mmcfd_m3)*((1+$I4*(BI$3-$D4))^$J4)-$G4)*Gg_m3,IF($E4="Sealed",((($H4*mmcfd_m3)*((1+$I4*(BI$3-$D4))^$J4)*(1-$F4)-$G4)*Gg_m3),IF($E4="Flooded",(($H4*mmcfd_m3)*EXP(-0.6728*(BI$3-$D4))*Gg_m3),(($H4*mmcfd_m3)*((1+$I4*(BI$3-$D4))^$J4)-$G4)*Gg_m3+((($H4*mmcfd_m3)*((1+$I4*(BI$3-$D4))^$J4)*(1-0.8)-$G4)*Gg_m3)+(($H4*mmcfd_m3)*EXP(-0.6728*(BI$3-$D4))*Gg_m3)))),0)) -> 0 | BJ4: 0 | BK4: 0 | BL4: 0 | BM4: 0 | BN4: 0 | BO4: 0 | BP4: 0 | BQ4: 0 | BR4: 0 | BS4: 0 | BT4: 0 | BU4: 0 | BV4: 0 | BW4: 0 | BX4: 0 | BY4: 0 | BZ4: 0 | CA4: 0 | CB4: 0 | CC4: 0 | CD4: 0 | CE4: 0 | CF4: 0 | CG4: 0
A5: 2 | B5: ='CH4 from Abandoned Coal Mines'!D6 ->  | C5: ='CH4 from Abandoned Coal Mines'!H6 ->  | D5: =VALUE('CH4 from Abandoned Coal Mines'!J6) ->  | E5: =IF('CH4 from Abandoned Coal Mines'!N6>0,'CH4 from Abandoned Coal Mines'!N6,'CH4 from Abandoned Coal Mines'!L6) ->  | F5: ='CH4 from Abandoned Coal Mines'!P6 -> 0 | G5: ='CH4 from Abandoned Coal Mines'!R6 -> 0 | H5: =VLOOKUP(B5,'Abandoned Data'!$O$3:$V$163,6,FALSE) ->  | I5: =VLOOKUP(B5,'Abandoned Data'!$O$3:$V$163,7,FALSE) ->  | J5: =VLOOKUP(B5,'Abandoned Data'!$O$3:$V$163,8,FALSE) ->  | M5: b. Sealed: q = qi × c(1 + aT)b | X5: 2 | Y5: 0 | Z5: 0 | AA5: 0 | AB5: 0 | AC5: 0 | AD5: 0 | AE5: 0 | AF5: 0 | AG5: 0 | AH5: 0 | AI5: 0 | AJ5: 0 | AK5: 0 | AL5: 0 | AM5: 0 | AN5: 0 | AO5: 0 | AP5: 0 | AQ5: 0 | AR5: 0 | AS5: 0 | AT5: 0 | AU5: 0 | AV5: 0 | AW5: 0 | AX5: 0 | AY5: 0 | AZ5: 0 | BA5: 0 | BB5: 0 | BC5: 0 | BD5: 0 | BE5: 0 | BF5: 0 | BG5: 0 | BH5: 0 | BI5: 0 | BJ5: 0 | BK5: 0 | BL5: 0 | BM5: 0 | BN5: 0 | BO5: 0 | BP5: 0 | BQ5: 0 | BR5: 0 | BS5: 0 | BT5: 0 | BU5: 0 | BV5: 0 | BW5: 0 | BX5: 0 | BY5: 0 | BZ5: 0 | CA5: 0 | CB5: 0 | CC5: 0 | CD5: 0 | CE5: 0 | CF5: 0 | CG5: 0
A6: 3 | B6: ='CH4 from Abandoned Coal Mines'!D7 ->  | C6: ='CH4 from Abandoned Coal Mines'!H7 ->  | D6: =VALUE('CH4 from Abandoned Coal Mines'!J7) ->  | E6: =IF('CH4 from Abandoned Coal Mines'!N7>0,'CH4 from Abandoned Coal Mines'!N7,'CH4 from Abandoned Coal Mines'!L7) ->  | F6: ='CH4 from Abandoned Coal Mines'!P7 -> 0 | G6: ='CH4 from Abandoned Coal Mines'!R7 -> 0 | H6: =VLOOKUP(B6,'Abandoned Data'!$O$3:$V$163,6,FALSE) ->  | I6: =VLOOKUP(B6,'Abandoned Data'!$O$3:$V$163,7,FALSE) ->  | J6: =VLOOKUP(B6,'Abandoned Data'!$O$3:$V$163,8,FALSE) ->  | M6: c. Flooded: q = qi × e(-DT) | X6: 3 | Y6: 0 | Z6: 0 | AA6: 0 | AB6: 0 | AC6: 0 | AD6: 0 | AE6: 0 | AF6: 0 | AG6: 0 | AH6: 0 | AI6: 0 | AJ6: 0 | AK6: 0 | AL6: 0 | AM6: 0 | AN6: 0 | AO6: 0 | AP6: 0 | AQ6: 0 | AR6: 0 | AS6: 0 | AT6: 0 | AU6: 0 | AV6: 0 | AW6: 0 | AX6: 0 | AY6: 0 | AZ6: 0 | BA6: 0 | BB6: 0 | BC6: 0 | BD6: 0 | BE6: 0 | BF6: 0 | BG6: 0 | BH6: 0 | BI6: 0 | BJ6: 0 | BK6: 0 | BL6: 0 | BM6: 0 | BN6: 0 | BO6: 0 | BP6: 0 | BQ6: 0 | BR6: 0 | BS6: 0 | BT6: 0 | BU6: 0 | BV6: 0 | BW6: 0 | BX6: 0 | BY6: 0 | BZ6: 0 | CA6: 0 | CB6: 0 | CC6: 0 | CD6: 0 | CE6: 0 | CF6: 0 | CG6: 0
A7: 4 | B7: ='CH4 from Abandoned Coal Mines'!D8 ->  | C7: ='CH4 from Abandoned Coal Mines'!H8 ->  | D7: =VALUE('CH4 from Abandoned Coal Mines'!J8) ->  | E7: =IF('CH4 from Abandoned Coal Mines'!N8>0,'CH4 from Abandoned Coal Mines'!N8,'CH4 from Abandoned Coal Mines'!L8) ->  | F7: ='CH4 from Abandoned Coal Mines'!P8 -> 0 | G7: ='CH4 from Abandoned Coal Mines'!R8 -> 0 | H7: =VLOOKUP(B7,'Abandoned Data'!$O$3:$V$163,6,FALSE) ->  | I7: =VLOOKUP(B7,'Abandoned Data'!$O$3:$V$163,7,FALSE) ->  | J7: =VLOOKUP(B7,'Abandoned Data'!$O$3:$V$163,8,FALSE) ->  | T7: Flooded | U7: Vented | V7: Sealed | X7: 4 | Y7: 0 | Z7: 0 | AA7: 0 | AB7: 0 | AC7: 0 | AD7: 0 | AE7: 0 | AF7: 0 | AG7: 0 | AH7: 0 | AI7: 0 | AJ7: 0 | AK7: 0 | AL7: 0 | AM7: 0 | AN7: 0 | AO7: 0 | AP7: 0 | AQ7: 0 | AR7: 0 | AS7: 0 | AT7: 0 | AU7: 0 | AV7: 0 | AW7: 0 | AX7: 0 | AY7: 0 | AZ7: 0 | BA7: 0 | BB7: 0 | BC7: 0 | BD7: 0 | BE7: 0 | BF7: 0 | BG7: 0 | BH7: 0 | BI7: 0 | BJ7: 0 | BK7: 0 | BL7: 0 | BM7: 0 | BN7: 0 | BO7: 0 | BP7: 0 | BQ7: 0 | BR7: 0 | BS7: 0 | BT7: 0 | BU7: 0 | BV7: 0 | BW7: 0 | BX7: 0 | BY7: 0 | BZ7: 0 | CA7: 0 | CB7: 0 | CC7: 0 | CD7: 0 | CE7: 0 | CF7: 0 | CG7: 0
A8: 5 | B8: ='CH4 from Abandoned Coal Mines'!D9 ->  | C8: ='CH4 from Abandoned Coal Mines'!H9 ->  | D8: =VALUE('CH4 from Abandoned Coal Mines'!J9) ->  | E8: =IF('CH4 from Abandoned Coal Mines'!N9>0,'CH4 from Abandoned Coal Mines'!N9,'CH4 from Abandoned Coal Mines'!L9) ->  | F8: ='CH4 from Abandoned Coal Mines'!P9 -> 0 | G8: ='CH4 from Abandoned Coal Mines'!R9 -> 0 | H8: =VLOOKUP(B8,'Abandoned Data'!$O$3:$V$163,6,FALSE) ->  | I8: =VLOOKUP(B8,'Abandoned Data'!$O$3:$V$163,7,FALSE) ->  | J8: =VLOOKUP(B8,'Abandoned Data'!$O$3:$V$163,8,FALSE) ->  | R8: AL | S8: Warrior | T8: 0.9230769231 | U8: 0 | V8: 0.07692307692 | X8: 5 | Y8: =IF(ISERROR(IF($D8<Y$3,IF($E8="Venting",(($H8*mmcfd_m3)*((1+$I8*(Y$3-$D8))^$J8)-$G8)*Gg_m3,IF($E8="Sealed",((($H8*mmcfd_m3)*((1+$I8*(Y$3-$D8))^$J8)*(1-$F8)-$G8)*Gg_m3),IF($E8="Flooded",(($H8*mmcfd_m3)*EXP(-0.6728*(Y$3-$D8))*Gg_m3),(($H8*mmcfd_m3)*((1+$I8*(Y$3-$D8))^$J8)-$G8)*Gg_m3+((($H8*mmcfd_m3)*((1+$I8*(Y$3-$D8))^$J8)*(1-0.8)-$G8)*Gg_m3)+(($H8*mmcfd_m3)*EXP(-0.6728*(Y$3-$D8))*Gg_m3)))),0)),0,IF($D8<Y$3,IF($E8="Venting",(($H8*mmcfd_m3)*((1+$I8*(Y$3-$D8))^$J8)-$G8)*Gg_m3,IF($E8="Sealed",((($H8*mmcfd_m3)*((1+$I8*(Y$3-$D8))^$J8)*(1-$F8)-$G8)*Gg_m3),IF($E8="Flooded",(($H8*mmcfd_m3)*EXP(-0.6728*(Y$3-$D8))*Gg_m3),(($H8*mmcfd_m3)*((1+$I8*(Y$3-$D8))^$J8)-$G8)*Gg_m3+((($H8*mmcfd_m3)*((1+$I8*(Y$3-$D8))^$J8)*(1-0.8)-$G8)*Gg_m3)+(($H8*mmcfd_m3)*EXP(-0.6728*(Y$3-$D8))*Gg_m3)))),0)) -> 0 | Z8: 0 | AA8: 0 | AB8: 0 | AC8: 0 | AD8: 0 | AE8: 0 | AF8: 0 | AG8: 0 | AH8: 0 | AI8: 0 | AJ8: 0 | AK8: 0 | AL8: 0 | AM8: 0 | AN8: 0 | AO8: 0 | AP8: 0 | AQ8: 0 | AR8: 0 | AS8: 0 | AT8: 0 | AU8: 0 | AV8: 0 | AW8: 0 | AX8: 0 | AY8: 0 | AZ8: 0 | BA8: 0 | BB8: 0 | BC8: 0 | BD8: 0 | BE8: 0 | BF8: 0 | BG8: 0 | BH8: 0 | BI8: 0 | BJ8: 0 | BK8: 0 | BL8: 0 | BM8: 0 | BN8: 0 | BO8: 0 | BP8: 0 | BQ8: 0 | BR8: 0 | BS8: 0 | BT8: 0 | BU8: 0 | BV8: 0 | BW8: 0 | BX8: 0 | BY8: 0 | BZ8: 0 | CA8: 0 | CB8: 0 | CC8: 0 | CD8: 0 | CE8: 0 | CF8: 0 | CG8: 0
A9: 6 | B9: ='CH4 from Abandoned Coal Mines'!D10 ->  | C9: ='CH4 from Abandoned Coal Mines'!H10 ->  | D9: =VALUE('CH4 from Abandoned Coal Mines'!J10) ->  | E9: =IF('CH4 from Abandoned Coal Mines'!N10>0,'CH4 from Abandoned Coal Mines'!N10,'CH4 from Abandoned Coal Mines'!L10) ->  | F9: ='CH4 from Abandoned Coal Mines'!P10 -> 0 | G9: ='CH4 from Abandoned Coal Mines'!R10 -> 0 | H9: =VLOOKUP(B9,'Abandoned Data'!$O$3:$V$163,6,FALSE) ->  | I9: =VLOOKUP(B9,'Abandoned Data'!$O$3:$V$163,7,FALSE) ->  | J9: =VLOOKUP(B9,'Abandoned Data'!$O$3:$V$163,8,FALSE) ->  | R9: CO | S9: Average of Two basins | T9: =AVERAGE(T10:T11) -> 0.07142857143 | U9: =AVERAGE(U10:U11) -> 0 | V9: =AVERAGE(V10:V11) -> 0.9285714286 | X9: 6 | Y9: 0 | Z9: 0 | AA9: 0 | AB9: 0 | AC9: 0 | AD9: 0 | AE9: 0 | AF9: 0 | AG9: 0 | AH9: 0 | AI9: 0 | AJ9: 0 | AK9: 0 | AL9: 0 | AM9: 0 | AN9: 0 | AO9: 0 | AP9: 0 | AQ9: 0 | AR9: 0 | AS9: 0 | AT9: 0 | AU9: 0 | AV9: 0 | AW9: 0 | AX9: 0 | AY9: 0 | AZ9: 0 | BA9: 0 | BB9: 0 | BC9: 0 | BD9: 0 | BE9: 0 | BF9: 0 | BG9: 0 | BH9: 0 | BI9: 0 | BJ9: 0 | BK9: 0 | BL9: 0 | BM9: 0 | BN9: 0 | BO9: 0 | BP9: 0 | BQ9: 0 | BR9: 0 | BS9: 0 | BT9: 0 | BU9: 0 | BV9: 0 | BW9: 0 | BX9: 0 | BY9: 0 | BZ9: 0 | CA9: 0 | CB9: 0 | CC9: 0 | CD9: 0 | CE9: 0 | CF9: 0 | CG9: 0
A10: 7 | B10: ='CH4 from Abandoned Coal Mines'!D11 ->  | C10: ='CH4 from Abandoned Coal Mines'!H11 ->  | D10: =VALUE('CH4 from Abandoned Coal Mines'!J11) ->  | E10: =IF('CH4 from Abandoned Coal Mines'!N11>0,'CH4 from Abandoned Coal Mines'!N11,'CH4 from Abandoned Coal Mines'!L11) ->  | F10: ='CH4 from Abandoned Coal Mines'!P11 -> 0 | G10: ='CH4 from Abandoned Coal Mines'!R11 -> 0 | H10: =VLOOKUP(B10,'Abandoned Data'!$O$3:$V$163,6,FALSE) ->  | I10: =VLOOKUP(B10,'Abandoned Data'!$O$3:$V$163,7,FALSE) ->  | J10: =VLOOKUP(B10,'Abandoned Data'!$O$3:$V$163,8,FALSE) ->  | S10: Piceance | T10: 0.1428571429 | U10: 0 | V10: 0.8571428571 | X10: 7 | Y10: 0 | Z10: 0 | AA10: 0 | AB10: 0 | AC10: 0 | AD10: 0 | AE10: 0 | AF10: 0 | AG10: 0 | AH10: 0 | AI10: 0 | AJ10: 0 | AK10: 0 | AL10: 0 | AM10: 0 | AN10: 0 | AO10: 0 | AP10: 0 | AQ10: 0 | AR10: 0 | AS10: 0 | AT10: 0 | AU10: 0 | AV10: 0 | AW10: 0 | AX10: 0 | AY10: 0 | AZ10: 0 | BA10: 0 | BB10: 0 | BC10: 0 | BD10: 0 | BE10: 0 | BF10: 0 | BG10: 0 | BH10: 0 | BI10: 0 | BJ10: 0 | BK10: 0 | BL10: 0 | BM10: 0 | BN10: 0 | BO10: 0 | BP10: 0 | BQ10: 0 | BR10: 0 | BS10: 0 | BT10: 0 | BU10: 0 | BV10: 0 | BW10: 0 | BX10: 0 | BY10: 0 | BZ10: 0 | CA10: 0 | CB10: 0 | CC10: 0 | CD10: 0 | CE10: 0 | CF10: 0 | CG10: 0
A11: 8 | B11: ='CH4 from Abandoned Coal Mines'!D12 ->  | C11: ='CH4 from Abandoned Coal Mines'!H12 ->  | D11: =VALUE('CH4 from Abandoned Coal Mines'!J12) ->  | E11: =IF('CH4 from Abandoned Coal Mines'!N12>0,'CH4 from Abandoned Coal Mines'!N12,'CH4 from Abandoned Coal Mines'!L12) ->  | F11: ='CH4 from Abandoned Coal Mines'!P12 -> 0 | G11: ='CH4 from Abandoned Coal Mines'!R12 -> 0 | H11: =VLOOKUP(B11,'Abandoned Data'!$O$3:$V$163,6,FALSE) ->  | I11: =VLOOKUP(B11,'Abandoned Data'!$O$3:$V$163,7,FALSE) ->  | J11: =VLOOKUP(B11,'Abandoned Data'!$O$3:$V$163,8,FALSE) ->  | S11: Raton | T11: 0 | U11: 0 | V11: 1 | X11: 8 | Y11: 0 | Z11: 0 | AA11: 0 | AB11: 0 | AC11: 0 | AD11: 0 | AE11: 0 | AF11: 0 | AG11: 0 | AH11: 0 | AI11: 0 | AJ11: 0 | AK11: 0 | AL11: 0 | AM11: 0 | AN11: 0 | AO11: 0 | AP11: 0 | AQ11: 0 | AR11: 0 | AS11: 0 | AT11: 0 | AU11: 0 | AV11: 0 | AW11: 0 | AX11: 0 | AY11: 0 | AZ11: 0 | BA11: 0 | BB11: 0 | BC11: 0 | BD11: 0 | BE11: 0 | BF11: 0 | BG11: 0 | BH11: 0 | BI11: 0 | BJ11: 0 | BK11: 0 | BL11: 0 | BM11: 0 | BN11: 0 | BO11: 0 | BP11: 0 | BQ11: 0 | BR11: 0 | BS11: 0 | BT11: 0 | BU11: 0 | BV11: 0 | BW11: 0 | BX11: 0 | BY11: 0 | BZ11: 0 | CA11: 0 | CB11: 0 | CC11: 0 | CD11: 0 | CE11: 0 | CF11: 0 | CG11: 0
A12: 9 | B12: ='CH4 from Abandoned Coal Mines'!D13 ->  | C12: ='CH4 from Abandoned Coal Mines'!H13 ->  | D12: =VALUE('CH4 from Abandoned Coal Mines'!J13) ->  | E12: =IF('CH4 from Abandoned Coal Mines'!N13>0,'CH4 from Abandoned Coal Mines'!N13,'CH4 from Abandoned Coal Mines'!L13) ->  | F12: ='CH4 from Abandoned Coal Mines'!P13 -> 0 | G12: ='CH4 from Abandoned Coal Mines'!R13 -> 0 | H12: =VLOOKUP(B12,'Abandoned Data'!$O$3:$V$163,6,FALSE) ->  | I12: =VLOOKUP(B12,'Abandoned Data'!$O$3:$V$163,7,FALSE) ->  | J12: =VLOOKUP(B12,'Abandoned Data'!$O$3:$V$163,8,FALSE) ->  | R12: IL | S12: Illinois | T12: 0.1578947368 | U12: 0.1578947368 | V12: 0.6842105263 | X12: 9 | Y12: 0 | Z12: 0 | AA12: 0 | AB12: 0 | AC12: 0 | AD12: 0 | AE12: 0 | AF12: 0 | AG12: 0 | AH12: 0 | AI12: 0 | AJ12: 0 | AK12: 0 | AL12: 0 | AM12: 0 | AN12: 0 | AO12: 0 | AP12: 0 | AQ12: 0 | AR12: 0 | AS12: 0 | AT12: 0 | AU12: 0 | AV12: 0 | AW12: 0 | AX12: 0 | AY12: 0 | AZ12: 0 | BA12: 0 | BB12: 0 | BC12: 0 | BD12: 0 | BE12: 0 | BF12: 0 | BG12: 0 | BH12: 0 | BI12: 0 | BJ12: 0 | BK12: 0 | BL12: 0 | BM12: 0 | BN12: 0 | BO12: 0 | BP12: 0 | BQ12: 0 | BR12: 0 | BS12: 0 | BT12: 0 | BU12: 0 | BV12: 0 | BW12: 0 | BX12: =IF(ISERROR(IF($D12<BX$3,IF($E12="Venting",(($H12*mmcfd_m3)*((1+$I12*(BX$3-$D12))^$J12)-$G12)*Gg_m3,IF($E12="Sealed",((($H12*mmcfd_m3)*((1+$I12*(BX$3-$D12))^$J12)*(1-$F12)-$G12)*Gg_m3),IF($E12="Flooded",(($H12*mmcfd_m3)*EXP(-0.6728*(BX$3-$D12))*Gg_m3),(($H12*mmcfd_m3)*((1+$I12*(BX$3-$D12))^$J12)-$G12)*Gg_m3+((($H12*mmcfd_m3)*((1+$I12*(BX$3-$D12))^$J12)*(1-0.8)-$G12)*Gg_m3)+(($H12*mmcfd_m3)*EXP(-0.6728*(BX$3-$D12))*Gg_m3)))),0)),0,IF($D12<BX$3,IF($E12="Venting",(($H12*mmcfd_m3)*((1+$I12*(BX$3-$D12))^$J12)-$G12)*Gg_m3,IF($E12="Sealed",((($H12*mmcfd_m3)*((1+$I12*(BX$3-$D12))^$J12)*(1-$F12)-$G12)*Gg_m3),IF($E12="Flooded",(($H12*mmcfd_m3)*EXP(-0.6728*(BX$3-$D12))*Gg_m3),(($H12*mmcfd_m3)*((1+$I12*(BX$3-$D12))^$J12)-$G12)*Gg_m3+((($H12*mmcfd_m3)*((1+$I12*(BX$3-$D12))^$J12)*(1-0.8)-$G12)*Gg_m3)+(($H12*mmcfd_m3)*EXP(-0.6728*(BX$3-$D12))*Gg_m3)))),0)) -> 0 | BY12: 0 | BZ12: 0 | CA12: 0 | CB12: 0 | CC12: 0 | CD12: 0 | CE12: 0 | CF12: 0 | CG12: 0
A13: 10 | B13: ='CH4 from Abandoned Coal Mines'!D14 ->  | C13: ='CH4 from Abandoned Coal Mines'!H14 ->  | D13: =VALUE('CH4 from Abandoned Coal Mines'!J14) ->  | E13: =IF('CH4 from Abandoned Coal Mines'!N14>0,'CH4 from Abandoned Coal Mines'!N14,'CH4 from Abandoned Coal Mines'!L14) ->  | F13: ='CH4 from Abandoned Coal Mines'!P14 -> 0 | G13: ='CH4 from Abandoned Coal Mines'!R14 -> 0 | H13: =VLOOKUP(B13,'Abandoned Data'!$O$3:$V$163,6,FALSE) ->  | I13: =VLOOKUP(B13,'Abandoned Data'!$O$3:$V$163,7,FALSE) ->  | J13: =VLOOKUP(B13,'Abandoned Data'!$O$3:$V$163,8,FALSE) ->  | R13: IN | S13: Illinois | T13: 0 | U13: 0 | V13: 1 | X13: 10 | Y13: 0 | Z13: 0 | AA13: 0 | AB13: 0 | AC13: 0 | AD13: 0 | AE13: 0 | AF13: 0 | AG13: 0 | AH13: 0 | AI13: 0 | AJ13: 0 | AK13: 0 | AL13: 0 | AM13: 0 | AN13: 0 | AO13: 0 | AP13: 0 | AQ13: 0 | AR13: 0 | AS13: 0 | AT13: 0 | AU13: 0 | AV13: 0 | AW13: 0 | AX13: 0 | AY13: 0 | AZ13: 0 | BA13: 0 | BB13: 0 | BC13: 0 | BD13: 0 | BE13: 0 | BF13: 0 | BG13: 0 | BH13: 0 | BI13: 0 | BJ13: 0 | BK13: 0 | BL13: 0 | BM13: 0 | BN13: 0 | BO13: 0 | BP13: 0 | BQ13: 0 | BR13: 0 | BS13: 0 | BT13: 0 | BU13: 0 | BV13: 0 | BW13: 0 | BX13: 0 | BY13: 0 | BZ13: 0 | CA13: 0 | CB13: 0 | CC13: 0 | CD13: 0 | CE13: 0 | CF13: 0 | CG13: 0
A14: 11 | B14: ='CH4 from Abandoned Coal Mines'!D15 ->  | C14: ='CH4 from Abandoned Coal Mines'!H15 ->  | D14: =VALUE('CH4 from Abandoned Coal Mines'!J15) ->  | E14: =IF('CH4 from Abandoned Coal Mines'!N15>0,'CH4 from Abandoned Coal Mines'!N15,'CH4 from Abandoned Coal Mines'!L15) ->  | F14: ='CH4 from Abandoned Coal Mines'!P15 -> 0 | G14: ='CH4 from Abandoned Coal Mines'!R15 -> 0 | H14: =VLOOKUP(B14,'Abandoned Data'!$O$3:$V$163,6,FALSE) ->  | I14: =VLOOKUP(B14,'Abandoned Data'!$O$3:$V$163,7,FALSE) ->  | J14: =VLOOKUP(B14,'Abandoned Data'!$O$3:$V$163,8,FALSE) ->  | R14: KY | S14: Average of Two basins | T14: =AVERAGE(T15:T16) -> 0.5104166667 | U14: =AVERAGE(U15:U16) -> 0.08333333333 | V14: =AVERAGE(V15:V16) -> 0.40625 | X14: 11 | Y14: =IF(ISERROR(IF($D14<Y$3,IF($E14="Venting",(($H14*mmcfd_m3)*((1+$I14*(Y$3-$D14))^$J14)-$G14)*Gg_m3,IF($E14="Sealed",((($H14*mmcfd_m3)*((1+$I14*(Y$3-$D14))^$J14)*(1-$F14)-$G14)*Gg_m3),IF($E14="Flooded",(($H14*mmcfd_m3)*EXP(-0.6728*(Y$3-$D14))*Gg_m3),(($H14*mmcfd_m3)*((1+$I14*(Y$3-$D14))^$J14)-$G14)*Gg_m3+((($H14*mmcfd_m3)*((1+$I14*(Y$3-$D14))^$J14)*(1-0.8)-$G14)*Gg_m3)+(($H14*mmcfd_m3)*EXP(-0.6728*(Y$3-$D14))*Gg_m3)))),0)),0,IF($D14<Y$3,IF($E14="Venting",(($H14*mmcfd_m3)*((1+$I14*(Y$3-$D14))^$J14)-$G14)*Gg_m3,IF($E14="Sealed",((($H14*mmcfd_m3)*((1+$I14*(Y$3-$D14))^$J14)*(1-$F14)-$G14)*Gg_m3),IF($E14="Flooded",(($H14*mmcfd_m3)*EXP(-0.6728*(Y$3-$D14))*Gg_m3),(($H14*mmcfd_m3)*((1+$I14*(Y$3-$D14))^$J14)-$G14)*Gg_m3+((($H14*mmcfd_m3)*((1+$I14*(Y$3-$D14))^$J14)*(1-0.8)-$G14)*Gg_m3)+(($H14*mmcfd_m3)*EXP(-0.6728*(Y$3-$D14))*Gg_m3)))),0)) -> 0 | Z14: 0 | AA14: 0 | AB14: 0 | AC14: 0 | AD14: 0 | AE14: 0 | AF14: 0 | AG14: 0 | AH14: 0 | AI14: =IF(ISERROR(IF($D14<AI$3,IF($E14="Venting",(($H14*mmcfd_m3)*((1+$I14*(AI$3-$D14))^$J14)-$G14)*Gg_m3,IF($E14="Sealed",((($H14*mmcfd_m3)*((1+$I14*(AI$3-$D14))^$J14)*(1-$F14)-$G14)*Gg_m3),IF($E14="Flooded",(($H14*mmcfd_m3)*EXP(-0.6728*(AI$3-$D14))*Gg_m3),(($H14*mmcfd_m3)*((1+$I14*(AI$3-$D14))^$J14)-$G14)*Gg_m3+((($H14*mmcfd_m3)*((1+$I14*(AI$3-$D14))^$J14)*(1-0.8)-$G14)*Gg_m3)+(($H14*mmcfd_m3)*EXP(-0.6728*(AI$3-$D14))*Gg_m3)))),0)),0,IF($D14<AI$3,IF($E14="Venting",(($H14*mmcfd_m3)*((1+$I14*(AI$3-$D14))^$J14)-$G14)*Gg_m3,IF($E14="Sealed",((($H14*mmcfd_m3)*((1+$I14*(AI$3-$D14))^$J14)*(1-$F14)-$G14)*Gg_m3),IF($E14="Flooded",(($H14*mmcfd_m3)*EXP(-0.6728*(AI$3-$D14))*Gg_m3),(($H14*mmcfd_m3)*((1+$I14*(AI$3-$D14))^$J14)-$G14)*Gg_m3+((($H14*mmcfd_m3)*((1+$I14*(AI$3-$D14))^$J14)*(1-0.8)-$G14)*Gg_m3)+(($H14*mmcfd_m3)*EXP(-0.6728*(AI$3-$D14))*Gg_m3)))),0)) -> 0 | AJ14: 0 | AK14: 0 | AL14: 0 | AM14: 0 | AN14: 0 | AO14: 0 | AP14: 0 | AQ14: 0 | AR14: 0 | AS14: =IF(ISERROR(IF($D14<AS$3,IF($E14="Venting",(($H14*mmcfd_m3)*((1+$I14*(AS$3-$D14))^$J14)-$G14)*Gg_m3,IF($E14="Sealed",((($H14*mmcfd_m3)*((1+$I14*(AS$3-$D14))^$J14)*(1-$F14)-$G14)*Gg_m3),IF($E14="Flooded",(($H14*mmcfd_m3)*EXP(-0.6728*(AS$3-$D14))*Gg_m3),(($H14*mmcfd_m3)*((1+$I14*(AS$3-$D14))^$J14)-$G14)*Gg_m3+((($H14*mmcfd_m3)*((1+$I14*(AS$3-$D14))^$J14)*(1-0.8)-$G14)*Gg_m3)+(($H14*mmcfd_m3)*EXP(-0.6728*(AS$3-$D14))*Gg_m3)))),0)),0,IF($D14<AS$3,IF($E14="Venting",(($H14*mmcfd_m3)*((1+$I14*(AS$3-$D14))^$J14)-$G14)*Gg_m3,IF($E14="Sealed",((($H14*mmcfd_m3)*((1+$I14*(AS$3-$D14))^$J14)*(1-$F14)-$G14)*Gg_m3),IF($E14="Flooded",(($H14*mmcfd_m3)*EXP(-0.6728*(AS$3-$D14))*Gg_m3),(($H14*mmcfd_m3)*((1+$I14*(AS$3-$D14))^$J14)-$G14)*Gg_m3+((($H14*mmcfd_m3)*((1+$I14*(AS$3-$D14))^$J14)*(1-0.8)-$G14)*Gg_m3)+(($H14*mmcfd_m3)*EXP(-0.6728*(AS$3-$D14))*Gg_m3)))),0)) -> 0 | AT14: 0 | AU14: 0 | AV14: 0 | AW14: 0 | AX14: 0 | AY14: 0 | AZ14: 0 | BA14: 0 | BB14: 0 | BC14: 0 | BD14: 0 | BE14: 0 | BF14: 0 | BG14: 0 | BH14: 0 | BI14: 0 | BJ14: 0 | BK14: 0 | BL14: 0 | BM14: 0 | BN14: 0 | BO14: 0 | BP14: 0 | BQ14: 0 | BR14: 0 | BS14: 0 | BT14: 0 | BU14: 0 | BV14: 0 | BW14: 0 | BX14: 0 | BY14: 0 | BZ14: 0 | CA14: 0 | CB14: 0 | CC14: 0 | CD14: 0 | CE14: 0 | CF14: 0 | CG14: 0
A15: 12 | B15: ='CH4 from Abandoned Coal Mines'!D16 ->  | C15: ='CH4 from Abandoned Coal Mines'!H16 ->  | D15: =VALUE('CH4 from Abandoned Coal Mines'!J16) ->  | E15: =IF('CH4 from Abandoned Coal Mines'!N16>0,'CH4 from Abandoned Coal Mines'!N16,'CH4 from Abandoned Coal Mines'!L16) ->  | F15: ='CH4 from Abandoned Coal Mines'!P16 -> 0 | G15: ='CH4 from Abandoned Coal Mines'!R16 -> 0 | H15: =VLOOKUP(B15,'Abandoned Data'!$O$3:$V$163,6,FALSE) ->  | I15: =VLOOKUP(B15,'Abandoned Data'!$O$3:$V$163,7,FALSE) ->  | J15: =VLOOKUP(B15,'Abandoned Data'!$O$3:$V$163,8,FALSE) ->  | S15: Central Appl. | T15: 0.3333333333 | U15: 0.1666666667 | V15: 0.5 | X15: 12 | Y15: 0 | Z15: 0 | AA15: 0 | AB15: 0 | AC15: 0 | AD15: 0 | AE15: 0 | AF15: 0 | AG15: 0 | AH15: 0 | AI15: 0 | AJ15: 0 | AK15: 0 | AL15: 0 | AM15: 0 | AN15: 0 | AO15: 0 | AP15: 0 | AQ15: 0 | AR15: 0 | AS15: 0 | AT15: 0 | AU15: 0 | AV15: 0 | AW15: 0 | AX15: 0 | AY15: 0 | AZ15: 0 | BA15: 0 | BB15: 0 | BC15: 0 | BD15: 0 | BE15: 0 | BF15: 0 | BG15: 0 | BH15: 0 | BI15: 0 | BJ15: 0 | BK15: 0 | BL15: 0 | BM15: 0 | BN15: 0 | BO15: 0 | BP15: 0 | BQ15: 0 | BR15: 0 | BS15: 0 | BT15: 0 | BU15: 0 | BV15: 0 | BW15: 0 | BX15: 0 | BY15: 0 | BZ15: 0 | CA15: 0 | CB15: 0 | CC15: 0 | CD15: 0 | CE15: 0 | CF15: 0 | CG15: 0
A16: 13 | B16: ='CH4 from Abandoned Coal Mines'!D17 ->  | C16: ='CH4 from Abandoned Coal Mines'!H17 ->  | D16: =VALUE('CH4 from Abandoned Coal Mines'!J17) ->  | E16: =IF('CH4 from Abandoned Coal Mines'!N17>0,'CH4 from Abandoned Coal Mines'!N17,'CH4 from Abandoned Coal Mines'!L17) ->  | F16: ='CH4 from Abandoned Coal Mines'!P17 -> 0 | G16: ='CH4 from Abandoned Coal Mines'!R17 -> 0 | H16: =VLOOKUP(B16,'Abandoned Data'!$O$3:$V$163,6,FALSE) ->  | I16: =VLOOKUP(B16,'Abandoned Data'!$O$3:$V$163,7,FALSE) ->  | J16: =VLOOKUP(B16,'Abandoned Data'!$O$3:$V$163,8,FALSE) ->  | S16: Illinois | T16: 0.6875 | U16: 0 | V16: 0.3125 | X16: 13 | Y16: 0 | Z16: 0 | AA16: 0 | AB16: 0 | AC16: 0 | AD16: 0 | AE16: 0 | AF16: 0 | AG16: 0 | AH16: 0 | AI16: 0 | AJ16: 0 | AK16: 0 | AL16: 0 | AM16: 0 | AN16: 0 | AO16: 0 | AP16: 0 | AQ16: 0 | AR16: 0 | AS16: 0 | AT16: 0 | AU16: 0 | AV16: 0 | AW16: 0 | AX16: 0 | AY16: 0 | AZ16: 0 | BA16: 0 | BB16: 0 | BC16: 0 | BD16: 0 | BE16: 0 | BF16: 0 | BG16: 0 | BH16: 0 | BI16: 0 | BJ16: 0 | BK16: 0 | BL16: 0 | BM16: 0 | BN16: 0 | BO16: 0 | BP16: 0 | BQ16: 0 | BR16: 0 | BS16: 0 | BT16: 0 | BU16: 0 | BV16: 0 | BW16: 0 | BX16: 0 | BY16: 0 | BZ16: 0 | CA16: 0 | CB16: 0 | CC16: 0 | CD16: 0 | CE16: 0 | CF16: 0 | CG16: 0
A17: 14 | B17: ='CH4 from Abandoned Coal Mines'!D18 ->  | C17: ='CH4 from Abandoned Coal Mines'!H18 ->  | D17: =VALUE('CH4 from Abandoned Coal Mines'!J18) ->  | E17: =IF('CH4 from Abandoned Coal Mines'!N18>0,'CH4 from Abandoned Coal Mines'!N18,'CH4 from Abandoned Coal Mines'!L18) ->  | F17: ='CH4 from Abandoned Coal Mines'!P18 -> 0 | G17: ='CH4 from Abandoned Coal Mines'!R18 -> 0 | H17: =VLOOKUP(B17,'Abandoned Data'!$O$3:$V$163,6,FALSE) ->  | I17: =VLOOKUP(B17,'Abandoned Data'!$O$3:$V$163,7,FALSE) ->  | J17: =VLOOKUP(B17,'Abandoned Data'!$O$3:$V$163,8,FALSE) ->  | R17: MD | S17: Central Appl. | T17: 0.625 | U17: 0.125 | V17: 0.25 | X17: 14 | Y17: 0 | Z17: 0 | AA17: 0 | AB17: 0 | AC17: 0 | AD17: 0 | AE17: 0 | AF17: 0 | AG17: 0 | AH17: 0 | AI17: 0 | AJ17: 0 | AK17: 0 | AL17: 0 | AM17: 0 | AN17: 0 | AO17: 0 | AP17: 0 | AQ17: 0 | AR17: 0 | AS17: 0 | AT17: 0 | AU17: 0 | AV17: 0 | AW17: 0 | AX17: 0 | AY17: 0 | AZ17: 0 | BA17: 0 | BB17: 0 | BC17: 0 | BD17: 0 | BE17: 0 | BF17: 0 | BG17: 0 | BH17: 0 | BI17: 0 | BJ17: 0 | BK17: 0 | BL17: 0 | BM17: 0 | BN17: 0 | BO17: 0 | BP17: 0 | BQ17: 0 | BR17: 0 | BS17: 0 | BT17: 0 | BU17: 0 | BV17: 0 | BW17: 0 | BX17: 0 | BY17: 0 | BZ17: 0 | CA17: 0 | CB17: 0 | CC17: 0 | CD17: 0 | CE17: 0 | CF17: 0 | CG17: 0
A18: 15 | B18: ='CH4 from Abandoned Coal Mines'!D19 ->  | C18: ='CH4 from Abandoned Coal Mines'!H19 ->  | D18: =VALUE('CH4 from Abandoned Coal Mines'!J19) ->  | E18: =IF('CH4 from Abandoned Coal Mines'!N19>0,'CH4 from Abandoned Coal Mines'!N19,'CH4 from Abandoned Coal Mines'!L19) ->  | F18: ='CH4 from Abandoned Coal Mines'!P19 -> 0 | G18: ='CH4 from Abandoned Coal Mines'!R19 -> 0 | H18: =VLOOKUP(B18,'Abandoned Data'!$O$3:$V$163,6,FALSE) ->  | I18: =VLOOKUP(B18,'Abandoned Data'!$O$3:$V$163,7,FALSE) ->  | J18: =VLOOKUP(B18,'Abandoned Data'!$O$3:$V$163,8,FALSE) ->  | R18: NM | S18: Raton | T18: 0 | U18: 0 | V18: 1 | X18: 15 | Y18: 0 | Z18: 0 | AA18: 0 | AB18: 0 | AC18: 0 | AD18: 0 | AE18: 0 | AF18: 0 | AG18: 0 | AH18: 0 | AI18: 0 | AJ18: 0 | AK18: 0 | AL18: 0 | AM18: 0 | AN18: 0 | AO18: 0 | AP18: 0 | AQ18: 0 | AR18: 0 | AS18: 0 | AT18: 0 | AU18: 0 | AV18: 0 | AW18: 0 | AX18: 0 | AY18: 0 | AZ18: 0 | BA18: 0 | BB18: 0 | BC18: 0 | BD18: 0 | BE18: 0 | BF18: 0 | BG18: 0 | BH18: 0 | BI18: 0 | BJ18: 0 | BK18: 0 | BL18: 0 | BM18: 0 | BN18: 0 | BO18: 0 | BP18: 0 | BQ18: 0 | BR18: 0 | BS18: 0 | BT18: 0 | BU18: 0 | BV18: 0 | BW18: 0 | BX18: 0 | BY18: 0 | BZ18: 0 | CA18: 0 | CB18: 0 | CC18: 0 | CD18: 0 | CE18: 0 | CF18: 0 | CG18: 0
A19: 16 | B19: ='CH4 from Abandoned Coal Mines'!D20 ->  | C19: ='CH4 from Abandoned Coal Mines'!H20 ->  | D19: =VALUE('CH4 from Abandoned Coal Mines'!J20) ->  | E19: =IF('CH4 from Abandoned Coal Mines'!N20>0,'CH4 from Abandoned Coal Mines'!N20,'CH4 from Abandoned Coal Mines'!L20) ->  | F19: ='CH4 from Abandoned Coal Mines'!P20 -> 0 | G19: ='CH4 from Abandoned Coal Mines'!R20 -> 0 | H19: =VLOOKUP(B19,'Abandoned Data'!$O$3:$V$163,6,FALSE) ->  | I19: =VLOOKUP(B19,'Abandoned Data'!$O$3:$V$163,7,FALSE) ->  | J19: =VLOOKUP(B19,'Abandoned Data'!$O$3:$V$163,8,FALSE) ->  | R19: OH | S19: Northern Appl. | T19: 0.07142857143 | U19: 0.5714285714 | V19: 0.3571428571 | X19: 16 | Y19: 0 | Z19: 0 | AA19: 0 | AB19: 0 | AC19: 0 | AD19: 0 | AE19: 0 | AF19: 0 | AG19: 0 | AH19: 0 | AI19: 0 | AJ19: 0 | AK19: 0 | AL19: 0 | AM19: 0 | AN19: 0 | AO19: 0 | AP19: 0 | AQ19: 0 | AR19: 0 | AS19: 0 | AT19: 0 | AU19: 0 | AV19: 0 | AW19: 0 | AX19: 0 | AY19: 0 | AZ19: 0 | BA19: 0 | BB19: 0 | BC19: 0 | BD19: 0 | BE19: 0 | BF19: 0 | BG19: 0 | BH19: 0 | BI19: 0 | BJ19: 0 | BK19: 0 | BL19: 0 | BM19: 0 | BN19: 0 | BO19: 0 | BP19: 0 | BQ19: 0 | BR19: 0 | BS19: 0 | BT19: 0 | BU19: 0 | BV19: 0 | BW19: 0 | BX19: 0 | BY19: 0 | BZ19: 0 | CA19: 0 | CB19: 0 | CC19: 0 | CD19: 0 | CE19: 0 | CF19: 0 | CG19: 0
A20: 17 | B20: ='CH4 from Abandoned Coal Mines'!D21 ->  | C20: ='CH4 from Abandoned Coal Mines'!H21 ->  | D20: =VALUE('CH4 from Abandoned Coal Mines'!J21) ->  | E20: =IF('CH4 from Abandoned Coal Mines'!N21>0,'CH4 from Abandoned Coal Mines'!N21,'CH4 from Abandoned Coal Mines'!L21) ->  | F20: ='CH4 from Abandoned Coal Mines'!P21 -> 0 | G20: ='CH4 from Abandoned Coal Mines'!R21 -> 0 | H20: =VLOOKUP(B20,'Abandoned Data'!$O$3:$V$163,6,FALSE) ->  | I20: =VLOOKUP(B20,'Abandoned Data'!$O$3:$V$163,7,FALSE) ->  | J20: =VLOOKUP(B20,'Abandoned Data'!$O$3:$V$163,8,FALSE) ->  | R20: OK | S20: Arkoma | T20: 0.1 | U20: 0 | V20: 0.9 | X20: 17 | Y20: 0 | Z20: 0 | AA20: 0 | AB20: 0 | AC20: 0 | AD20: 0 | AE20: 0 | AF20: 0 | AG20: 0 | AH20: 0 | AI20: 0 | AJ20: 0 | AK20: 0 | AL20: 0 | AM20: 0 | AN20: 0 | AO20: 0 | AP20: 0 | AQ20: 0 | AR20: 0 | AS20: 0 | AT20: 0 | AU20: 0 | AV20: 0 | AW20: 0 | AX20: 0 | AY20: 0 | AZ20: 0 | BA20: 0 | BB20: 0 | BC20: 0 | BD20: 0 | BE20: 0 | BF20: 0 | BG20: 0 | BH20: 0 | BI20: 0 | BJ20: 0 | BK20: 0 | BL20: 0 | BM20: 0 | BN20: 0 | BO20: 0 | BP20: 0 | BQ20: 0 | BR20: 0 | BS20: 0 | BT20: 0 | BU20: 0 | BV20: 0 | BW20: 0 | BX20: 0 | BY20: 0 | BZ20: 0 | CA20: 0 | CB20: 0 | CC20: 0 | CD20: 0 | CE20: 0 | CF20: 0 | CG20: 0
A21: 18 | B21: ='CH4 from Abandoned Coal Mines'!D22 ->  | C21: ='CH4 from Abandoned Coal Mines'!H22 ->  | D21: =VALUE('CH4 from Abandoned Coal Mines'!J22) ->  | E21: =IF('CH4 from Abandoned Coal Mines'!N22>0,'CH4 from Abandoned Coal Mines'!N22,'CH4 from Abandoned Coal Mines'!L22) ->  | F21: ='CH4 from Abandoned Coal Mines'!P22 -> 0 | G21: ='CH4 from Abandoned Coal Mines'!R22 -> 0 | H21: =VLOOKUP(B21,'Abandoned Data'!$O$3:$V$163,6,FALSE) ->  | I21: =VLOOKUP(B21,'Abandoned Data'!$O$3:$V$163,7,FALSE) ->  | J21: =VLOOKUP(B21,'Abandoned Data'!$O$3:$V$163,8,FALSE) ->  | R21: PA | S21: Northern Appl. | T21: 0.4102564103 | U21: 0.1025641026 | V21: 0.4871794872 | X21: 18 | Y21: 0 | Z21: 0 | AA21: 0 | AB21: 0 | AC21: 0 | AD21: 0 | AE21: 0 | AF21: 0 | AG21: 0 | AH21: 0 | AI21: 0 | AJ21: 0 | AK21: 0 | AL21: 0 | AM21: 0 | AN21: 0 | AO21: 0 | AP21: 0 | AQ21: 0 | AR21: 0 | AS21: 0 | AT21: 0 | AU21: 0 | AV21: 0 | AW21: 0 | AX21: 0 | AY21: 0 | AZ21: 0 | BA21: 0 | BB21: 0 | BC21: 0 | BD21: 0 | BE21: 0 | BF21: 0 | BG21: 0 | BH21: 0 | BI21: 0 | BJ21: 0 | BK21: 0 | BL21: 0 | BM21: 0 | BN21: =IF(ISERROR(IF($D21<BN$3,IF($E21="Venting",(($H21*mmcfd_m3)*((1+$I21*(BN$3-$D21))^$J21)-$G21)*Gg_m3,IF($E21="Sealed",((($H21*mmcfd_m3)*((1+$I21*(BN$3-$D21))^$J21)*(1-$F21)-$G21)*Gg_m3),IF($E21="Flooded",(($H21*mmcfd_m3)*EXP(-0.6728*(BN$3-$D21))*Gg_m3),(($H21*mmcfd_m3)*((1+$I21*(BN$3-$D21))^$J21)-$G21)*Gg_m3+((($H21*mmcfd_m3)*((1+$I21*(BN$3-$D21))^$J21)*(1-0.8)-$G21)*Gg_m3)+(($H21*mmcfd_m3)*EXP(-0.6728*(BN$3-$D21))*Gg_m3)))),0)),0,IF($D21<BN$3,IF($E21="Venting",(($H21*mmcfd_m3)*((1+$I21*(BN$3-$D21))^$J21)-$G21)*Gg_m3,IF($E21="Sealed",((($H21*mmcfd_m3)*((1+$I21*(BN$3-$D21))^$J21)*(1-$F21)-$G21)*Gg_m3),IF($E21="Flooded",(($H21*mmcfd_m3)*EXP(-0.6728*(BN$3-$D21))*Gg_m3),(($H21*mmcfd_m3)*((1+$I21*(BN$3-$D21))^$J21)-$G21)*Gg_m3+((($H21*mmcfd_m3)*((1+$I21*(BN$3-$D21))^$J21)*(1-0.8)-$G21)*Gg_m3)+(($H21*mmcfd_m3)*EXP(-0.6728*(BN$3-$D21))*Gg_m3)))),0)) -> 0 | BO21: 0 | BP21: 0 | BQ21: 0 | BR21: 0 | BS21: 0 | BT21: 0 | BU21: 0 | BV21: 0 | BW21: 0 | BX21: 0 | BY21: 0 | BZ21: 0 | CA21: 0 | CB21: 0 | CC21: 0 | CD21: 0 | CE21: 0 | CF21: 0 | CG21: 0
A22: 19 | B22: ='CH4 from Abandoned Coal Mines'!D23 ->  | C22: ='CH4 from Abandoned Coal Mines'!H23 ->  | D22: =VALUE('CH4 from Abandoned Coal Mines'!J23) ->  | E22: =IF('CH4 from Abandoned Coal Mines'!N23>0,'CH4 from Abandoned Coal Mines'!N23,'CH4 from Abandoned Coal Mines'!L23) ->  | F22: ='CH4 from Abandoned Coal Mines'!P23 -> 0 | G22: ='CH4 from Abandoned Coal Mines'!R23 -> 0 | H22: =VLOOKUP(B22,'Abandoned Data'!$O$3:$V$163,6,FALSE) ->  | I22: =VLOOKUP(B22,'Abandoned Data'!$O$3:$V$163,7,FALSE) ->  | J22: =VLOOKUP(B22,'Abandoned Data'!$O$3:$V$163,8,FALSE) ->  | R22: TN | S22: Central Appl. | T22: 0.3333333333 | U22: 0.1666666667 | V22: 0.5 | X22: 19 | Y22: 0 | Z22: 0 | AA22: 0 | AB22: 0 | AC22: 0 | AD22: 0 | AE22: 0 | AF22: 0 | AG22: 0 | AH22: 0 | AI22: 0 | AJ22: 0 | AK22: 0 | AL22: 0 | AM22: 0 | AN22: 0 | AO22: 0 | AP22: 0 | AQ22: 0 | AR22: 0 | AS22: 0 | AT22: 0 | AU22: 0 | AV22: 0 | AW22: 0 | AX22: 0 | AY22: 0 | AZ22: 0 | BA22: 0 | BB22: 0 | BC22: 0 | BD22: 0 | BE22: 0 | BF22: 0 | BG22: 0 | BH22: 0 | BI22: 0 | BJ22: 0 | BK22: 0 | BL22: 0 | BM22: 0 | BN22: 0 | BO22: 0 | BP22: 0 | BQ22: 0 | BR22: 0 | BS22: 0 | BT22: 0 | BU22: 0 | BV22: 0 | BW22: 0 | BX22: 0 | BY22: 0 | BZ22: 0 | CA22: 0 | CB22: 0 | CC22: 0 | CD22: 0 | CE22: 0 | CF22: 0 | CG22: 0
A23: 20 | B23: ='CH4 from Abandoned Coal Mines'!D24 ->  | C23: ='CH4 from Abandoned Coal Mines'!H24 ->  | D23: =VALUE('CH4 from Abandoned Coal Mines'!J24) ->  | E23: =IF('CH4 from Abandoned Coal Mines'!N24>0,'CH4 from Abandoned Coal Mines'!N24,'CH4 from Abandoned Coal Mines'!L24) ->  | F23: ='CH4 from Abandoned Coal Mines'!P24 -> 0 | G23: ='CH4 from Abandoned Coal Mines'!R24 -> 0 | H23: =VLOOKUP(B23,'Abandoned Data'!$O$3:$V$163,6,FALSE) ->  | I23: =VLOOKUP(B23,'Abandoned Data'!$O$3:$V$163,7,FALSE) ->  | J23: =VLOOKUP(B23,'Abandoned Data'!$O$3:$V$163,8,FALSE) ->  | R23: UT | S23: Uinta | T23: 0.1 | U23: 0 | V23: 0.9 | X23: 20 | Y23: 0 | Z23: 0 | AA23: 0 | AB23: 0 | AC23: 0 | AD23: 0 | AE23: 0 | AF23: 0 | AG23: 0 | AH23: 0 | AI23: 0 | AJ23: 0 | AK23: 0 | AL23: 0 | AM23: 0 | AN23: 0 | AO23: 0 | AP23: 0 | AQ23: 0 | AR23: 0 | AS23: 0 | AT23: 0 | AU23: 0 | AV23: 0 | AW23: 0 | AX23: 0 | AY23: 0 | AZ23: 0 | BA23: 0 | BB23: 0 | BC23: 0 | BD23: 0 | BE23: 0 | BF23: 0 | BG23: 0 | BH23: 0 | BI23: 0 | BJ23: 0 | BK23: 0 | BL23: 0 | BM23: 0 | BN23: 0 | BO23: 0 | BP23: 0 | BQ23: 0 | BR23: 0 | BS23: 0 | BT23: 0 | BU23: 0 | BV23: 0 | BW23: 0 | BX23: 0 | BY23: 0 | BZ23: 0 | CA23: 0 | CB23: 0 | CC23: 0 | CD23: 0 | CE23: 0 | CF23: 0 | CG23: 0
A24: 21 | B24: ='CH4 from Abandoned Coal Mines'!D25 ->  | C24: ='CH4 from Abandoned Coal Mines'!H25 ->  | D24: =VALUE('CH4 from Abandoned Coal Mines'!J25) ->  | E24: =IF('CH4 from Abandoned Coal Mines'!N25>0,'CH4 from Abandoned Coal Mines'!N25,'CH4 from Abandoned Coal Mines'!L25) ->  | F24: ='CH4 from Abandoned Coal Mines'!P25 -> 0 | G24: ='CH4 from Abandoned Coal Mines'!R25 -> 0 | H24: =VLOOKUP(B24,'Abandoned Data'!$O$3:$V$163,6,FALSE) ->  | I24: =VLOOKUP(B24,'Abandoned Data'!$O$3:$V$163,7,FALSE) ->  | J24: =VLOOKUP(B24,'Abandoned Data'!$O$3:$V$163,8,FALSE) ->  | R24: VA | S24: Central Appl. | T24: 0.625 | U24: 0.125 | V24: 0.25 | X24: 21 | Y24: =IF(ISERROR(IF($D24<Y$3,IF($E24="Venting",(($H24*mmcfd_m3)*((1+$I24*(Y$3-$D24))^$J24)-$G24)*Gg_m3,IF($E24="Sealed",((($H24*mmcfd_m3)*((1+$I24*(Y$3-$D24))^$J24)*(1-$F24)-$G24)*Gg_m3),IF($E24="Flooded",(($H24*mmcfd_m3)*EXP(-0.6728*(Y$3-$D24))*Gg_m3),(($H24*mmcfd_m3)*((1+$I24*(Y$3-$D24))^$J24)-$G24)*Gg_m3+((($H24*mmcfd_m3)*((1+$I24*(Y$3-$D24))^$J24)*(1-0.8)-$G24)*Gg_m3)+(($H24*mmcfd_m3)*EXP(-0.6728*(Y$3-$D24))*Gg_m3)))),0)),0,IF($D24<Y$3,IF($E24="Venting",(($H24*mmcfd_m3)*((1+$I24*(Y$3-$D24))^$J24)-$G24)*Gg_m3,IF($E24="Sealed",((($H24*mmcfd_m3)*((1+$I24*(Y$3-$D24))^$J24)*(1-$F24)-$G24)*Gg_m3),IF($E24="Flooded",(($H24*mmcfd_m3)*EXP(-0.6728*(Y$3-$D24))*Gg_m3),(($H24*mmcfd_m3)*((1+$I24*(Y$3-$D24))^$J24)-$G24)*Gg_m3+((($H24*mmcfd_m3)*((1+$I24*(Y$3-$D24))^$J24)*(1-0.8)-$G24)*Gg_m3)+(($H24*mmcfd_m3)*EXP(-0.6728*(Y$3-$D24))*Gg_m3)))),0)) -> 0 | Z24: 0 | AA24: 0 | AB24: 0 | AC24: 0 | AD24: 0 | AE24: 0 | AF24: 0 | AG24: 0 | AH24: 0 | AI24: =IF(ISERROR(IF($D24<AI$3,IF($E24="Venting",(($H24*mmcfd_m3)*((1+$I24*(AI$3-$D24))^$J24)-$G24)*Gg_m3,IF($E24="Sealed",((($H24*mmcfd_m3)*((1+$I24*(AI$3-$D24))^$J24)*(1-$F24)-$G24)*Gg_m3),IF($E24="Flooded",(($H24*mmcfd_m3)*EXP(-0.6728*(AI$3-$D24))*Gg_m3),(($H24*mmcfd_m3)*((1+$I24*(AI$3-$D24))^$J24)-$G24)*Gg_m3+((($H24*mmcfd_m3)*((1+$I24*(AI$3-$D24))^$J24)*(1-0.8)-$G24)*Gg_m3)+(($H24*mmcfd_m3)*EXP(-0.6728*(AI$3-$D24))*Gg_m3)))),0)),0,IF($D24<AI$3,IF($E24="Venting",(($H24*mmcfd_m3)*((1+$I24*(AI$3-$D24))^$J24)-$G24)*Gg_m3,IF($E24="Sealed",((($H24*mmcfd_m3)*((1+$I24*(AI$3-$D24))^$J24)*(1-$F24)-$G24)*Gg_m3),IF($E24="Flooded",(($H24*mmcfd_m3)*EXP(-0.6728*(AI$3-$D24))*Gg_m3),(($H24*mmcfd_m3)*((1+$I24*(AI$3-$D24))^$J24)-$G24)*Gg_m3+((($H24*mmcfd_m3)*((1+$I24*(AI$3-$D24))^$J24)*(1-0.8)-$G24)*Gg_m3)+(($H24*mmcfd_m3)*EXP(-0.6728*(AI$3-$D24))*Gg_m3)))),0)) -> 0 | AJ24: 0 | AK24: 0 | AL24: 0 | AM24: 0 | AN24: 0 | AO24: 0 | AP24: 0 | AQ24: 0 | AR24: 0 | AS24: =IF(ISERROR(IF($D24<AS$3,IF($E24="Venting",(($H24*mmcfd_m3)*((1+$I24*(AS$3-$D24))^$J24)-$G24)*Gg_m3,IF($E24="Sealed",((($H24*mmcfd_m3)*((1+$I24*(AS$3-$D24))^$J24)*(1-$F24)-$G24)*Gg_m3),IF($E24="Flooded",(($H24*mmcfd_m3)*EXP(-0.6728*(AS$3-$D24))*Gg_m3),(($H24*mmcfd_m3)*((1+$I24*(AS$3-$D24))^$J24)-$G24)*Gg_m3+((($H24*mmcfd_m3)*((1+$I24*(AS$3-$D24))^$J24)*(1-0.8)-$G24)*Gg_m3)+(($H24*mmcfd_m3)*EXP(-0.6728*(AS$3-$D24))*Gg_m3)))),0)),0,IF($D24<AS$3,IF($E24="Venting",(($H24*mmcfd_m3)*((1+$I24*(AS$3-$D24))^$J24)-$G24)*Gg_m3,IF($E24="Sealed",((($H24*mmcfd_m3)*((1+$I24*(AS$3-$D24))^$J24)*(1-$F24)-$G24)*Gg_m3),IF($E24="Flooded",(($H24*mmcfd_m3)*EXP(-0.6728*(AS$3-$D24))*Gg_m3),(($H24*mmcfd_m3)*((1+$I24*(AS$3-$D24))^$J24)-$G24)*Gg_m3+((($H24*mmcfd_m3)*((1+$I24*(AS$3-$D24))^$J24)*(1-0.8)-$G24)*Gg_m3)+(($H24*mmcfd_m3)*EXP(-0.6728*(AS$3-$D24))*Gg_m3)))),0)) -> 0 | AT24: 0 | AU24: 0 | AV24: 0 | AW24: 0 | AX24: 0 | AY24: 0 | AZ24: 0 | BA24: 0 | BB24: 0 | BC24: 0 | BD24: 0 | BE24: 0 | BF24: 0 | BG24: 0 | BH24: 0 | BI24: 0 | BJ24: 0 | BK24: 0 | BL24: 0 | BM24: 0 | BN24: 0 | BO24: 0 | BP24: 0 | BQ24: 0 | BR24: 0 | BS24: 0 | BT24: 0 | BU24: 0 | BV24: 0 | BW24: 0 | BX24: 0 | BY24: 0 | BZ24: 0 | CA24: 0 | CB24: 0 | CC24: 0 | CD24: 0 | CE24: 0 | CF24: 0 | CG24: 0
A25: 22 | B25: ='CH4 from Abandoned Coal Mines'!D26 ->  | C25: ='CH4 from Abandoned Coal Mines'!H26 ->  | D25: =VALUE('CH4 from Abandoned Coal Mines'!J26) ->  | E25: =IF('CH4 from Abandoned Coal Mines'!N26>0,'CH4 from Abandoned Coal Mines'!N26,'CH4 from Abandoned Coal Mines'!L26) ->  | F25: ='CH4 from Abandoned Coal Mines'!P26 -> 0 | G25: ='CH4 from Abandoned Coal Mines'!R26 -> 0 | H25: =VLOOKUP(B25,'Abandoned Data'!$O$3:$V$163,6,FALSE) ->  | I25: =VLOOKUP(B25,'Abandoned Data'!$O$3:$V$163,7,FALSE) ->  | J25: =VLOOKUP(B25,'Abandoned Data'!$O$3:$V$163,8,FALSE) ->  | R25: WV | S25: Average of Two basins | T25: =AVERAGE(T26:T27) -> 0.479791395 | U25: =AVERAGE(U26:U27) -> 0.1300521512 | V25: =AVERAGE(V26:V27) -> 0.3901564537 | X25: 22 | Y25: 0 | Z25: 0 | AA25: 0 | AB25: 0 | AC25: 0 | AD25: 0 | AE25: 0 | AF25: 0 | AG25: 0 | AH25: 0 | AI25: 0 | AJ25: 0 | AK25: 0 | AL25: 0 | AM25: 0 | AN25: 0 | AO25: 0 | AP25: 0 | AQ25: 0 | AR25: 0 | AS25: 0 | AT25: 0 | AU25: 0 | AV25: 0 | AW25: 0 | AX25: 0 | AY25: 0 | AZ25: 0 | BA25: 0 | BB25: 0 | BC25: 0 | BD25: 0 | BE25: 0 | BF25: 0 | BG25: 0 | BH25: 0 | BI25: 0 | BJ25: 0 | BK25: 0 | BL25: 0 | BM25: 0 | BN25: 0 | BO25: 0 | BP25: 0 | BQ25: 0 | BR25: 0 | BS25: 0 | BT25: 0 | BU25: 0 | BV25: 0 | BW25: 0 | BX25: 0 | BY25: 0 | BZ25: 0 | CA25: 0 | CB25: 0 | CC25: 0 | CD25: 0 | CE25: 0 | CF25: 0 | CG25: 0
A26: 23 | B26: ='CH4 from Abandoned Coal Mines'!D27 ->  | C26: ='CH4 from Abandoned Coal Mines'!H27 ->  | D26: =VALUE('CH4 from Abandoned Coal Mines'!J27) ->  | E26: =IF('CH4 from Abandoned Coal Mines'!N27>0,'CH4 from Abandoned Coal Mines'!N27,'CH4 from Abandoned Coal Mines'!L27) ->  | F26: ='CH4 from Abandoned Coal Mines'!P27 -> 0 | G26: ='CH4 from Abandoned Coal Mines'!R27 -> 0 | H26: =VLOOKUP(B26,'Abandoned Data'!$O$3:$V$163,6,FALSE) ->  | I26: =VLOOKUP(B26,'Abandoned Data'!$O$3:$V$163,7,FALSE) ->  | J26: =VLOOKUP(B26,'Abandoned Data'!$O$3:$V$163,8,FALSE) ->  | S26: Central Appl. | T26: 0.7288135593 | U26: 0.06779661017 | V26: 0.2033898305 | X26: 23 | Y26: 0 | Z26: 0 | AA26: 0 | AB26: 0 | AC26: 0 | AD26: 0 | AE26: 0 | AF26: 0 | AG26: 0 | AH26: 0 | AI26: 0 | AJ26: 0 | AK26: 0 | AL26: 0 | AM26: 0 | AN26: 0 | AO26: 0 | AP26: 0 | AQ26: 0 | AR26: 0 | AS26: 0 | AT26: 0 | AU26: 0 | AV26: 0 | AW26: 0 | AX26: 0 | AY26: 0 | AZ26: 0 | BA26: 0 | BB26: 0 | BC26: 0 | BD26: 0 | BE26: 0 | BF26: 0 | BG26: 0 | BH26: 0 | BI26: 0 | BJ26: 0 | BK26: 0 | BL26: 0 | BM26: 0 | BN26: 0 | BO26: 0 | BP26: 0 | BQ26: 0 | BR26: 0 | BS26: 0 | BT26: 0 | BU26: 0 | BV26: 0 | BW26: 0 | BX26: 0 | BY26: 0 | BZ26: 0 | CA26: 0 | CB26: 0 | CC26: 0 | CD26: 0 | CE26: 0 | CF26: 0 | CG26: 0
A27: 24 | B27: ='CH4 from Abandoned Coal Mines'!D28 ->  | C27: ='CH4 from Abandoned Coal Mines'!H28 ->  | D27: =VALUE('CH4 from Abandoned Coal Mines'!J28) ->  | E27: =IF('CH4 from Abandoned Coal Mines'!N28>0,'CH4 from Abandoned Coal Mines'!N28,'CH4 from Abandoned Coal Mines'!L28) ->  | F27: ='CH4 from Abandoned Coal Mines'!P28 -> 0 | G27: ='CH4 from Abandoned Coal Mines'!R28 -> 0 | H27: =VLOOKUP(B27,'Abandoned Data'!$O$3:$V$163,6,FALSE) ->  | I27: =VLOOKUP(B27,'Abandoned Data'!$O$3:$V$163,7,FALSE) ->  | J27: =VLOOKUP(B27,'Abandoned Data'!$O$3:$V$163,8,FALSE) ->  | S27: Northern Appl. | T27: 0.2307692308 | U27: 0.1923076923 | V27: 0.5769230769 | X27: 24 | Y27: 0 | Z27: 0 | AA27: 0 | AB27: 0 | AC27: 0 | AD27: 0 | AE27: 0 | AF27: 0 | AG27: 0 | AH27: 0 | AI27: 0 | AJ27: 0 | AK27: 0 | AL27: 0 | AM27: 0 | AN27: 0 | AO27: 0 | AP27: 0 | AQ27: 0 | AR27: 0 | AS27: 0 | AT27: 0 | AU27: 0 | AV27: 0 | AW27: 0 | AX27: 0 | AY27: 0 | AZ27: 0 | BA27: 0 | BB27: 0 | BC27: 0 | BD27: 0 | BE27: 0 | BF27: 0 | BG27: 0 | BH27: 0 | BI27: 0 | BJ27: 0 | BK27: 0 | BL27: 0 | BM27: 0 | BN27: 0 | BO27: 0 | BP27: 0 | BQ27: 0 | BR27: 0 | BS27: 0 | BT27: 0 | BU27: 0 | BV27: 0 | BW27: 0 | BX27: 0 | BY27: 0 | BZ27: 0 | CA27: 0 | CB27: 0 | CC27: 0 | CD27: 0 | CE27: 0 | CF27: 0 | CG27: 0
A28: 25 | B28: ='CH4 from Abandoned Coal Mines'!D29 ->  | C28: ='CH4 from Abandoned Coal Mines'!H29 ->  | D28: =VALUE('CH4 from Abandoned Coal Mines'!J29) ->  | E28: =IF('CH4 from Abandoned Coal Mines'!N29>0,'CH4 from Abandoned Coal Mines'!N29,'CH4 from Abandoned Coal Mines'!L29) ->  | F28: ='CH4 from Abandoned Coal Mines'!P29 -> 0 | G28: ='CH4 from Abandoned Coal Mines'!R29 -> 0 | H28: =VLOOKUP(B28,'Abandoned Data'!$O$3:$V$163,6,FALSE) ->  | I28: =VLOOKUP(B28,'Abandoned Data'!$O$3:$V$163,7,FALSE) ->  | J28: =VLOOKUP(B28,'Abandoned Data'!$O$3:$V$163,8,FALSE) ->  | R28: AK | S28: Default Average | T28: =AVERAGE($T$17:$T$25,$T$12:$T$14,$T$8:$T$9) -> 0.314830472 | U28: =AVERAGE($U$17:$U$25,$U$12:$U$14,$U$8:$U$9) -> 0.1044242544 | V28: =AVERAGE($V$17:$V$25,$V$12:$V$14,$V$8:$V$9) -> 0.5807452736 | X28: 25 | Y28: 0 | Z28: 0 | AA28: 0 | AB28: 0 | AC28: 0 | AD28: 0 | AE28: 0 | AF28: 0 | AG28: 0 | AH28: 0 | AI28: 0 | AJ28: 0 | AK28: 0 | AL28: 0 | AM28: 0 | AN28: 0 | AO28: 0 | AP28: 0 | AQ28: 0 | AR28: 0 | AS28: 0 | AT28: 0 | AU28: 0 | AV28: 0 | AW28: 0 | AX28: 0 | AY28: 0 | AZ28: 0 | BA28: 0 | BB28: 0 | BC28: 0 | BD28: 0 | BE28: 0 | BF28: 0 | BG28: 0 | BH28: 0 | BI28: 0 | BJ28: 0 | BK28: 0 | BL28: 0 | BM28: 0 | BN28: 0 | BO28: 0 | BP28: 0 | BQ28: 0 | BR28: 0 | BS28: 0 | BT28: 0 | BU28: 0 | BV28: 0 | BW28: 0 | BX28: 0 | BY28: 0 | BZ28: 0 | CA28: 0 | CB28: 0 | CC28: 0 | CD28: 0 | CE28: 0 | CF28: 0 | CG28: 0
A29: 26 | B29: ='CH4 from Abandoned Coal Mines'!D30 ->  | C29: ='CH4 from Abandoned Coal Mines'!H30 ->  | D29: =VALUE('CH4 from Abandoned Coal Mines'!J30) ->  | E29: =IF('CH4 from Abandoned Coal Mines'!N30>0,'CH4 from Abandoned Coal Mines'!N30,'CH4 from Abandoned Coal Mines'!L30) ->  | F29: ='CH4 from Abandoned Coal Mines'!P30 -> 0 | G29: ='CH4 from Abandoned Coal Mines'!R30 -> 0 | H29: =VLOOKUP(B29,'Abandoned Data'!$O$3:$V$163,6,FALSE) ->  | I29: =VLOOKUP(B29,'Abandoned Data'!$O$3:$V$163,7,FALSE) ->  | J29: =VLOOKUP(B29,'Abandoned Data'!$O$3:$V$163,8,FALSE) ->  | R29: AZ | S29: Default Average | T29: =AVERAGE($T$17:$T$25,$T$12:$T$14,$T$8:$T$9) -> 0.314830472 | U29: =AVERAGE($U$17:$U$25,$U$12:$U$14,$U$8:$U$9) -> 0.1044242544 | V29: =AVERAGE($V$17:$V$25,$V$12:$V$14,$V$8:$V$9) -> 0.5807452736 | X29: 26 | Y29: 0 | Z29: 0 | AA29: 0 | AB29: 0 | AC29: 0 | AD29: 0 | AE29: 0 | AF29: 0 | AG29: 0 | AH29: 0 | AI29: 0 | AJ29: 0 | AK29: 0 | AL29: 0 | AM29: 0 | AN29: 0 | AO29: 0 | AP29: 0 | AQ29: 0 | AR29: 0 | AS29: 0 | AT29: 0 | AU29: 0 | AV29: 0 | AW29: 0 | AX29: 0 | AY29: 0 | AZ29: 0 | BA29: 0 | BB29: 0 | BC29: 0 | BD29: 0 | BE29: 0 | BF29: 0 | BG29: 0 | BH29: 0 | BI29: 0 | BJ29: 0 | BK29: 0 | BL29: 0 | BM29: 0 | BN29: 0 | BO29: 0 | BP29: 0 | BQ29: 0 | BR29: 0 | BS29: 0 | BT29: 0 | BU29: 0 | BV29: 0 | BW29: 0 | BX29: 0 | BY29: 0 | BZ29: 0 | CA29: 0 | CB29: 0 | CC29: 0 | CD29: 0 | CE29: 0 | CF29: 0 | CG29: 0
A30: 27 | B30: ='CH4 from Abandoned Coal Mines'!D31 ->  | C30: ='CH4 from Abandoned Coal Mines'!H31 ->  | D30: =VALUE('CH4 from Abandoned Coal Mines'!J31) ->  | E30: =IF('CH4 from Abandoned Coal Mines'!N31>0,'CH4 from Abandoned Coal Mines'!N31,'CH4 from Abandoned Coal Mines'!L31) ->  | F30: ='CH4 from Abandoned Coal Mines'!P31 -> 0 | G30: ='CH4 from Abandoned Coal Mines'!R31 -> 0 | H30: =VLOOKUP(B30,'Abandoned Data'!$O$3:$V$163,6,FALSE) ->  | I30: =VLOOKUP(B30,'Abandoned Data'!$O$3:$V$163,7,FALSE) ->  | J30: =VLOOKUP(B30,'Abandoned Data'!$O$3:$V$163,8,FALSE) ->  | R30: AR | S30: Default Average | T30: 0.314830472 | U30: 0.1044242544 | V30: 0.5807452736 | X30: 27 | Y30: 0 | Z30: 0 | AA30: 0 | AB30: 0 | AC30: 0 | AD30: 0 | AE30: 0 | AF30: 0 | AG30: 0 | AH30: 0 | AI30: 0 | AJ30: 0 | AK30: 0 | AL30: 0 | AM30: 0 | AN30: 0 | AO30: 0 | AP30: 0 | AQ30: 0 | AR30: 0 | AS30: 0 | AT30: 0 | AU30: 0 | AV30: 0 | AW30: 0 | AX30: 0 | AY30: 0 | AZ30: 0 | BA30: 0 | BB30: 0 | BC30: 0 | BD30: =IF(ISERROR(IF($D30<BD$3,IF($E30="Venting",(($H30*mmcfd_m3)*((1+$I30*(BD$3-$D30))^$J30)-$G30)*Gg_m3,IF($E30="Sealed",((($H30*mmcfd_m3)*((1+$I30*(BD$3-$D30))^$J30)*(1-$F30)-$G30)*Gg_m3),IF($E30="Flooded",(($H30*mmcfd_m3)*EXP(-0.6728*(BD$3-$D30))*Gg_m3),(($H30*mmcfd_m3)*((1+$I30*(BD$3-$D30))^$J30)-$G30)*Gg_m3+((($H30*mmcfd_m3)*((1+$I30*(BD$3-$D30))^$J30)*(1-0.8)-$G30)*Gg_m3)+(($H30*mmcfd_m3)*EXP(-0.6728*(BD$3-$D30))*Gg_m3)))),0)),0,IF($D30<BD$3,IF($E30="Venting",(($H30*mmcfd_m3)*((1+$I30*(BD$3-$D30))^$J30)-$G30)*Gg_m3,IF($E30="Sealed",((($H30*mmcfd_m3)*((1+$I30*(BD$3-$D30))^$J30)*(1-$F30)-$G30)*Gg_m3),IF($E30="Flooded",(($H30*mmcfd_m3)*EXP(-0.6728*(BD$3-$D30))*Gg_m3),(($H30*mmcfd_m3)*((1+$I30*(BD$3-$D30))^$J30)-$G30)*Gg_m3+((($H30*mmcfd_m3)*((1+$I30*(BD$3-$D30))^$J30)*(1-0.8)-$G30)*Gg_m3)+(($H30*mmcfd_m3)*EXP(-0.6728*(BD$3-$D30))*Gg_m3)))),0)) -> 0 | BE30: 0 | BF30: 0 | BG30: 0 | BH30: 0 | BI30: 0 | BJ30: 0 | BK30: 0 | BL30: 0 | BM30: 0 | BN30: 0 | BO30: 0 | BP30: 0 | BQ30: 0 | BR30: 0 | BS30: 0 | BT30: 0 | BU30: 0 | BV30: 0 | BW30: 0 | BX30: 0 | BY30: 0 | BZ30: 0 | CA30: 0 | CB30: 0 | CC30: 0 | CD30: 0 | CE30: 0 | CF30: 0 | CG30: 0
A31: 28 | B31: ='CH4 from Abandoned Coal Mines'!D32 ->  | C31: ='CH4 from Abandoned Coal Mines'!H32 ->  | D31: =VALUE('CH4 from Abandoned Coal Mines'!J32) ->  | E31: =IF('CH4 from Abandoned Coal Mines'!N32>0,'CH4 from Abandoned Coal Mines'!N32,'CH4 from Abandoned Coal Mines'!L32) ->  | F31: ='CH4 from Abandoned Coal Mines'!P32 -> 0 | G31: ='CH4 from Abandoned Coal Mines'!R32 -> 0 | H31: =VLOOKUP(B31,'Abandoned Data'!$O$3:$V$163,6,FALSE) ->  | I31: =VLOOKUP(B31,'Abandoned Data'!$O$3:$V$163,7,FALSE) ->  | J31: =VLOOKUP(B31,'Abandoned Data'!$O$3:$V$163,8,FALSE) ->  | R31: CA | S31: Default Average | T31: 0.314830472 | U31: 0.1044242544 | V31: 0.5807452736 | X31: 28 | Y31: 0 | Z31: 0 | AA31: 0 | AB31: 0 | AC31: 0 | AD31: 0 | AE31: 0 | AF31: 0 | AG31: 0 | AH31: 0 | AI31: 0 | AJ31: 0 | AK31: 0 | AL31: 0 | AM31: 0 | AN31: 0 | AO31: 0 | AP31: 0 | AQ31: 0 | AR31: 0 | AS31: 0 | AT31: 0 | AU31: 0 | AV31: 0 | AW31: 0 | AX31: 0 | AY31: 0 | AZ31: 0 | BA31: 0 | BB31: 0 | BC31: 0 | BD31: 0 | BE31: 0 | BF31: 0 | BG31: 0 | BH31: 0 | BI31: 0 | BJ31: 0 | BK31: 0 | BL31: 0 | BM31: 0 | BN31: 0 | BO31: 0 | BP31: 0 | BQ31: 0 | BR31: 0 | BS31: 0 | BT31: 0 | BU31: 0 | BV31: 0 | BW31: 0 | BX31: 0 | BY31: 0 | BZ31: 0 | CA31: 0 | CB31: 0 | CC31: 0 | CD31: 0 | CE31: 0 | CF31: 0 | CG31: 0
A32: 29 | B32: ='CH4 from Abandoned Coal Mines'!D33 ->  | C32: ='CH4 from Abandoned Coal Mines'!H33 ->  | D32: =VALUE('CH4 from Abandoned Coal Mines'!J33) ->  | E32: =IF('CH4 from Abandoned Coal Mines'!N33>0,'CH4 from Abandoned Coal Mines'!N33,'CH4 from Abandoned Coal Mines'!L33) ->  | F32: ='CH4 from Abandoned Coal Mines'!P33 -> 0 | G32: ='CH4 from Abandoned Coal Mines'!R33 -> 0 | H32: =VLOOKUP(B32,'Abandoned Data'!$O$3:$V$163,6,FALSE) ->  | I32: =VLOOKUP(B32,'Abandoned Data'!$O$3:$V$163,7,FALSE) ->  | J32: =VLOOKUP(B32,'Abandoned Data'!$O$3:$V$163,8,FALSE) ->  | R32: CT | S32: Default Average | T32: 0.314830472 | U32: 0.1044242544 | V32: 0.5807452736 | X32: 29 | Y32: 0 | Z32: 0 | AA32: 0 | AB32: 0 | AC32: 0 | AD32: 0 | AE32: 0 | AF32: 0 | AG32: 0 | AH32: 0 | AI32: 0 | AJ32: 0 | AK32: 0 | AL32: 0 | AM32: 0 | AN32: 0 | AO32: 0 | AP32: 0 | AQ32: 0 | AR32: 0 | AS32: 0 | AT32: 0 | AU32: 0 | AV32: 0 | AW32: 0 | AX32: 0 | AY32: 0 | AZ32: 0 | BA32: 0 | BB32: 0 | BC32: 0 | BD32: 0 | BE32: 0 | BF32: 0 | BG32: 0 | BH32: 0 | BI32: 0 | BJ32: 0 | BK32: 0 | BL32: 0 | BM32: 0 | BN32: 0 | BO32: 0 | BP32: 0 | BQ32: 0 | BR32: 0 | BS32: 0 | BT32: 0 | BU32: 0 | BV32: 0 | BW32: 0 | BX32: 0 | BY32: 0 | BZ32: 0 | CA32: 0 | CB32: 0 | CC32: 0 | CD32: 0 | CE32: 0 | CF32: 0 | CG32: 0
A33: 30 | B33: ='CH4 from Abandoned Coal Mines'!D34 ->  | C33: ='CH4 from Abandoned Coal Mines'!H34 ->  | D33: =VALUE('CH4 from Abandoned Coal Mines'!J34) ->  | E33: =IF('CH4 from Abandoned Coal Mines'!N34>0,'CH4 from Abandoned Coal Mines'!N34,'CH4 from Abandoned Coal Mines'!L34) ->  | F33: ='CH4 from Abandoned Coal Mines'!P34 -> 0 | G33: ='CH4 from Abandoned Coal Mines'!R34 -> 0 | H33: =VLOOKUP(B33,'Abandoned Data'!$O$3:$V$163,6,FALSE) ->  | I33: =VLOOKUP(B33,'Abandoned Data'!$O$3:$V$163,7,FALSE) ->  | J33: =VLOOKUP(B33,'Abandoned Data'!$O$3:$V$163,8,FALSE) ->  | R33: DE | S33: Default Average | T33: 0.314830472 | U33: 0.1044242544 | V33: 0.5807452736 | X33: 30 | Y33: 0 | Z33: 0 | AA33: 0 | AB33: 0 | AC33: 0 | AD33: 0 | AE33: 0 | AF33: 0 | AG33: 0 | AH33: 0 | AI33: 0 | AJ33: 0 | AK33: 0 | AL33: 0 | AM33: 0 | AN33: 0 | AO33: 0 | AP33: 0 | AQ33: 0 | AR33: 0 | AS33: 0 | AT33: 0 | AU33: 0 | AV33: 0 | AW33: 0 | AX33: 0 | AY33: 0 | AZ33: 0 | BA33: 0 | BB33: 0 | BC33: 0 | BD33: 0 | BE33: 0 | BF33: 0 | BG33: 0 | BH33: 0 | BI33: 0 | BJ33: 0 | BK33: 0 | BL33: 0 | BM33: 0 | BN33: 0 | BO33: 0 | BP33: 0 | BQ33: 0 | BR33: 0 | BS33: 0 | BT33: 0 | BU33: 0 | BV33: 0 | BW33: 0 | BX33: 0 | BY33: 0 | BZ33: 0 | CA33: 0 | CB33: 0 | CC33: 0 | CD33: 0 | CE33: 0 | CF33: 0 | CG33: 0
A34: 31 | B34: ='CH4 from Abandoned Coal Mines'!D35 ->  | C34: ='CH4 from Abandoned Coal Mines'!H35 ->  | D34: =VALUE('CH4 from Abandoned Coal Mines'!J35) ->  | E34: =IF('CH4 from Abandoned Coal Mines'!N35>0,'CH4 from Abandoned Coal Mines'!N35,'CH4 from Abandoned Coal Mines'!L35) ->  | F34: ='CH4 from Abandoned Coal Mines'!P35 -> 0 | G34: ='CH4 from Abandoned Coal Mines'!R35 -> 0 | H34: =VLOOKUP(B34,'Abandoned Data'!$O$3:$V$163,6,FALSE) ->  | I34: =VLOOKUP(B34,'Abandoned Data'!$O$3:$V$163,7,FALSE) ->  | J34: =VLOOKUP(B34,'Abandoned Data'!$O$3:$V$163,8,FALSE) ->  | R34: FL | S34: Default Average | T34: 0.314830472 | U34: 0.1044242544 | V34: 0.5807452736 | X34: 31 | Y34: =IF(ISERROR(IF($D34<Y$3,IF($E34="Venting",(($H34*mmcfd_m3)*((1+$I34*(Y$3-$D34))^$J34)-$G34)*Gg_m3,IF($E34="Sealed",((($H34*mmcfd_m3)*((1+$I34*(Y$3-$D34))^$J34)*(1-$F34)-$G34)*Gg_m3),IF($E34="Flooded",(($H34*mmcfd_m3)*EXP(-0.6728*(Y$3-$D34))*Gg_m3),(($H34*mmcfd_m3)*((1+$I34*(Y$3-$D34))^$J34)-$G34)*Gg_m3+((($H34*mmcfd_m3)*((1+$I34*(Y$3-$D34))^$J34)*(1-0.8)-$G34)*Gg_m3)+(($H34*mmcfd_m3)*EXP(-0.6728*(Y$3-$D34))*Gg_m3)))),0)),0,IF($D34<Y$3,IF($E34="Venting",(($H34*mmcfd_m3)*((1+$I34*(Y$3-$D34))^$J34)-$G34)*Gg_m3,IF($E34="Sealed",((($H34*mmcfd_m3)*((1+$I34*(Y$3-$D34))^$J34)*(1-$F34)-$G34)*Gg_m3),IF($E34="Flooded",(($H34*mmcfd_m3)*EXP(-0.6728*(Y$3-$D34))*Gg_m3),(($H34*mmcfd_m3)*((1+$I34*(Y$3-$D34))^$J34)-$G34)*Gg_m3+((($H34*mmcfd_m3)*((1+$I34*(Y$3-$D34))^$J34)*(1-0.8)-$G34)*Gg_m3)+(($H34*mmcfd_m3)*EXP(-0.6728*(Y$3-$D34))*Gg_m3)))),0)) -> 0 | Z34: 0 | AA34: 0 | AB34: 0 | AC34: 0 | AD34: 0 | AE34: 0 | AF34: 0 | AG34: 0 | AH34: 0 | AI34: =IF(ISERROR(IF($D34<AI$3,IF($E34="Venting",(($H34*mmcfd_m3)*((1+$I34*(AI$3-$D34))^$J34)-$G34)*Gg_m3,IF($E34="Sealed",((($H34*mmcfd_m3)*((1+$I34*(AI$3-$D34))^$J34)*(1-$F34)-$G34)*Gg_m3),IF($E34="Flooded",(($H34*mmcfd_m3)*EXP(-0.6728*(AI$3-$D34))*Gg_m3),(($H34*mmcfd_m3)*((1+$I34*(AI$3-$D34))^$J34)-$G34)*Gg_m3+((($H34*mmcfd_m3)*((1+$I34*(AI$3-$D34))^$J34)*(1-0.8)-$G34)*Gg_m3)+(($H34*mmcfd_m3)*EXP(-0.6728*(AI$3-$D34))*Gg_m3)))),0)),0,IF($D34<AI$3,IF($E34="Venting",(($H34*mmcfd_m3)*((1+$I34*(AI$3-$D34))^$J34)-$G34)*Gg_m3,IF($E34="Sealed",((($H34*mmcfd_m3)*((1+$I34*(AI$3-$D34))^$J34)*(1-$F34)-$G34)*Gg_m3),IF($E34="Flooded",(($H34*mmcfd_m3)*EXP(-0.6728*(AI$3-$D34))*Gg_m3),(($H34*mmcfd_m3)*((1+$I34*(AI$3-$D34))^$J34)-$G34)*Gg_m3+((($H34*mmcfd_m3)*((1+$I34*(AI$3-$D34))^$J34)*(1-0.8)-$G34)*Gg_m3)+(($H34*mmcfd_m3)*EXP(-0.6728*(AI$3-$D34))*Gg_m3)))),0)) -> 0 | AJ34: 0 | AK34: 0 | AL34: 0 | AM34: 0 | AN34: 0 | AO34: 0 | AP34: 0 | AQ34: 0 | AR34: 0 | AS34: =IF(ISERROR(IF($D34<AS$3,IF($E34="Venting",(($H34*mmcfd_m3)*((1+$I34*(AS$3-$D34))^$J34)-$G34)*Gg_m3,IF($E34="Sealed",((($H34*mmcfd_m3)*((1+$I34*(AS$3-$D34))^$J34)*(1-$F34)-$G34)*Gg_m3),IF($E34="Flooded",(($H34*mmcfd_m3)*EXP(-0.6728*(AS$3-$D34))*Gg_m3),(($H34*mmcfd_m3)*((1+$I34*(AS$3-$D34))^$J34)-$G34)*Gg_m3+((($H34*mmcfd_m3)*((1+$I34*(AS$3-$D34))^$J34)*(1-0.8)-$G34)*Gg_m3)+(($H34*mmcfd_m3)*EXP(-0.6728*(AS$3-$D34))*Gg_m3)))),0)),0,IF($D34<AS$3,IF($E34="Venting",(($H34*mmcfd_m3)*((1+$I34*(AS$3-$D34))^$J34)-$G34)*Gg_m3,IF($E34="Sealed",((($H34*mmcfd_m3)*((1+$I34*(AS$3-$D34))^$J34)*(1-$F34)-$G34)*Gg_m3),IF($E34="Flooded",(($H34*mmcfd_m3)*EXP(-0.6728*(AS$3-$D34))*Gg_m3),(($H34*mmcfd_m3)*((1+$I34*(AS$3-$D34))^$J34)-$G34)*Gg_m3+((($H34*mmcfd_m3)*((1+$I34*(AS$3-$D34))^$J34)*(1-0.8)-$G34)*Gg_m3)+(($H34*mmcfd_m3)*EXP(-0.6728*(AS$3-$D34))*Gg_m3)))),0)) -> 0 | AT34: 0 | AU34: 0 | AV34: 0 | AW34: 0 | AX34: 0 | AY34: 0 | AZ34: 0 | BA34: 0 | BB34: 0 | BC34: 0 | BD34: 0 | BE34: 0 | BF34: 0 | BG34: 0 | BH34: 0 | BI34: 0 | BJ34: 0 | BK34: 0 | BL34: 0 | BM34: 0 | BN34: 0 | BO34: 0 | BP34: 0 | BQ34: 0 | BR34: 0 | BS34: 0 | BT34: 0 | BU34: 0 | BV34: 0 | BW34: 0 | BX34: 0 | BY34: 0 | BZ34: 0 | CA34: 0 | CB34: 0 | CC34: 0 | CD34: 0 | CE34: 0 | CF34: 0 | CG34: 0
A35: 32 | B35: ='CH4 from Abandoned Coal Mines'!D36 ->  | C35: ='CH4 from Abandoned Coal Mines'!H36 ->  | D35: =VALUE('CH4 from Abandoned Coal Mines'!J36) ->  | E35: =IF('CH4 from Abandoned Coal Mines'!N36>0,'CH4 from Abandoned Coal Mines'!N36,'CH4 from Abandoned Coal Mines'!L36) ->  | F35: ='CH4 from Abandoned Coal Mines'!P36 -> 0 | G35: ='CH4 from Abandoned Coal Mines'!R36 -> 0 | H35: =VLOOKUP(B35,'Abandoned Data'!$O$3:$V$163,6,FALSE) ->  | I35: =VLOOKUP(B35,'Abandoned Data'!$O$3:$V$163,7,FALSE) ->  | J35: =VLOOKUP(B35,'Abandoned Data'!$O$3:$V$163,8,FALSE) ->  | R35: GA | S35: Default Average | T35: 0.314830472 | U35: 0.1044242544 | V35: 0.5807452736 | X35: 32 | Y35: 0 | Z35: 0 | AA35: 0 | AB35: 0 | AC35: 0 | AD35: 0 | AE35: 0 | AF35: 0 | AG35: 0 | AH35: 0 | AI35: 0 | AJ35: 0 | AK35: 0 | AL35: 0 | AM35: 0 | AN35: 0 | AO35: 0 | AP35: 0 | AQ35: 0 | AR35: 0 | AS35: 0 | AT35: 0 | AU35: 0 | AV35: 0 | AW35: 0 | AX35: 0 | AY35: 0 | AZ35: 0 | BA35: 0 | BB35: 0 | BC35: 0 | BD35: 0 | BE35: 0 | BF35: 0 | BG35: 0 | BH35: 0 | BI35: 0 | BJ35: 0 | BK35: 0 | BL35: 0 | BM35: 0 | BN35: 0 | BO35: 0 | BP35: 0 | BQ35: 0 | BR35: 0 | BS35: 0 | BT35: 0 | BU35: 0 | BV35: 0 | BW35: 0 | BX35: 0 | BY35: 0 | BZ35: 0 | CA35: 0 | CB35: 0 | CC35: 0 | CD35: 0 | CE35: 0 | CF35: 0 | CG35: 0
A36: 33 | B36: ='CH4 from Abandoned Coal Mines'!D37 ->  | C36: ='CH4 from Abandoned Coal Mines'!H37 ->  | D36: =VALUE('CH4 from Abandoned Coal Mines'!J37) ->  | E36: =IF('CH4 from Abandoned Coal Mines'!N37>0,'CH4 from Abandoned Coal Mines'!N37,'CH4 from Abandoned Coal Mines'!L37) ->  | F36: ='CH4 from Abandoned Coal Mines'!P37 -> 0 | G36: ='CH4 from Abandoned Coal Mines'!R37 -> 0 | H36: =VLOOKUP(B36,'Abandoned Data'!$O$3:$V$163,6,FALSE) ->  | I36: =VLOOKUP(B36,'Abandoned Data'!$O$3:$V$163,7,FALSE) ->  | J36: =VLOOKUP(B36,'Abandoned Data'!$O$3:$V$163,8,FALSE) ->  | K36: =IF(E36="Venting",((H36*mmcfd_m3)*((1+I36*($AZ$3-D36))^J36)-G36)*Gg_m3,IF(E36="Sealed",(((H36*mmcfd_m3)*((1+I36*($AZ$3-D36))^J36)*(1-F36)-G36)*Gg_m3),IF(E36="Flooded",((H36*mmcfd_m3)*EXP(-0.6728*($AZ$3-D36))*Gg_m3),((H36*mmcfd_m3)*((1+I36*($AZ$3-D36))^J36)-G36)*Gg_m3+(((H36*mmcfd_m3)*((1+I36*($AZ$3-D36))^J36)*(1-0.8)-G36)*Gg_m3)+((H36*mmcfd_m3)*EXP(-0.6728*($AZ$3-D36))*Gg_m3)))) ->  | R36: HI | S36: Default Average | T36: 0.314830472 | U36: 0.1044242544 | V36: 0.5807452736 | X36: 33 | Y36: 0 | Z36: 0 | AA36: 0 | AB36: 0 | AC36: 0 | AD36: 0 | AE36: 0 | AF36: 0 | AG36: 0 | AH36: 0 | AI36: 0 | AJ36: 0 | AK36: 0 | AL36: 0 | AM36: 0 | AN36: 0 | AO36: 0 | AP36: 0 | AQ36: 0 | AR36: 0 | AS36: 0 | AT36: 0 | AU36: 0 | AV36: 0 | AW36: 0 | AX36: 0 | AY36: 0 | AZ36: 0 | BA36: 0 | BB36: 0 | BC36: 0 | BD36: 0 | BE36: 0 | BF36: 0 | BG36: 0 | BH36: 0 | BI36: 0 | BJ36: 0 | BK36: 0 | BL36: 0 | BM36: 0 | BN36: 0 | BO36: 0 | BP36: 0 | BQ36: 0 | BR36: 0 | BS36: 0 | BT36: 0 | BU36: 0 | BV36: 0 | BW36: 0 | BX36: 0 | BY36: 0 | BZ36: 0 | CA36: 0 | CB36: 0 | CC36: 0 | CD36: 0 | CE36: 0 | CF36: 0 | CG36: 0
A37: 34 | B37: ='CH4 from Abandoned Coal Mines'!D38 ->  | C37: ='CH4 from Abandoned Coal Mines'!H38 ->  | D37: =VALUE('CH4 from Abandoned Coal Mines'!J38) ->  | E37: =IF('CH4 from Abandoned Coal Mines'!N38>0,'CH4 from Abandoned Coal Mines'!N38,'CH4 from Abandoned Coal Mines'!L38) ->  | F37: ='CH4 from Abandoned Coal Mines'!P38 -> 0 | G37: ='CH4 from Abandoned Coal Mines'!R38 -> 0 | H37: =VLOOKUP(B37,'Abandoned Data'!$O$3:$V$163,6,FALSE) ->  | I37: =VLOOKUP(B37,'Abandoned Data'!$O$3:$V$163,7,FALSE) ->  | J37: =VLOOKUP(B37,'Abandoned Data'!$O$3:$V$163,8,FALSE) ->  | R37: ID | S37: Default Average | T37: 0.314830472 | U37: 0.1044242544 | V37: 0.5807452736 | X37: 34 | Y37: 0 | Z37: 0 | AA37: 0 | AB37: 0 | AC37: 0 | AD37: 0 | AE37: 0 | AF37: 0 | AG37: 0 | AH37: 0 | AI37: 0 | AJ37: 0 | AK37: 0 | AL37: 0 | AM37: 0 | AN37: 0 | AO37: 0 | AP37: 0 | AQ37: 0 | AR37: 0 | AS37: 0 | AT37: 0 | AU37: 0 | AV37: 0 | AW37: 0 | AX37: 0 | AY37: 0 | AZ37: 0 | BA37: 0 | BB37: 0 | BC37: 0 | BD37: 0 | BE37: 0 | BF37: 0 | BG37: 0 | BH37: 0 | BI37: 0 | BJ37: 0 | BK37: 0 | BL37: 0 | BM37: 0 | BN37: 0 | BO37: 0 | BP37: 0 | BQ37: 0 | BR37: 0 | BS37: 0 | BT37: 0 | BU37: 0 | BV37: 0 | BW37: 0 | BX37: 0 | BY37: 0 | BZ37: 0 | CA37: 0 | CB37: 0 | CC37: 0 | CD37: 0 | CE37: 0 | CF37: 0 | CG37: 0
A38: 35 | B38: ='CH4 from Abandoned Coal Mines'!D39 ->  | C38: ='CH4 from Abandoned Coal Mines'!H39 ->  | D38: =VALUE('CH4 from Abandoned Coal Mines'!J39) ->  | E38: =IF('CH4 from Abandoned Coal Mines'!N39>0,'CH4 from Abandoned Coal Mines'!N39,'CH4 from Abandoned Coal Mines'!L39) ->  | F38: ='CH4 from Abandoned Coal Mines'!P39 -> 0 | G38: ='CH4 from Abandoned Coal Mines'!R39 -> 0 | H38: =VLOOKUP(B38,'Abandoned Data'!$O$3:$V$163,6,FALSE) ->  | I38: =VLOOKUP(B38,'Abandoned Data'!$O$3:$V$163,7,FALSE) ->  | J38: =VLOOKUP(B38,'Abandoned Data'!$O$3:$V$163,8,FALSE) ->  | R38: IA | S38: Default Average | T38: 0.314830472 | U38: 0.1044242544 | V38: 0.5807452736 | X38: 35 | Y38: 0 | Z38: 0 | AA38: 0 | AB38: 0 | AC38: 0 | AD38: 0 | AE38: 0 | AF38: 0 | AG38: 0 | AH38: 0 | AI38: 0 | AJ38: 0 | AK38: 0 | AL38: 0 | AM38: 0 | AN38: 0 | AO38: 0 | AP38: 0 | AQ38: 0 | AR38: 0 | AS38: 0 | AT38: 0 | AU38: 0 | AV38: 0 | AW38: 0 | AX38: 0 | AY38: 0 | AZ38: 0 | BA38: 0 | BB38: 0 | BC38: 0 | BD38: 0 | BE38: 0 | BF38: 0 | BG38: 0 | BH38: 0 | BI38: 0 | BJ38: 0 | BK38: 0 | BL38: 0 | BM38: 0 | BN38: 0 | BO38: 0 | BP38: 0 | BQ38: 0 | BR38: 0 | BS38: 0 | BT38: 0 | BU38: 0 | BV38: 0 | BW38: 0 | BX38: =IF(ISERROR(IF($D38<BX$3,IF($E38="Venting",(($H38*mmcfd_m3)*((1+$I38*(BX$3-$D38))^$J38)-$G38)*Gg_m3,IF($E38="Sealed",((($H38*mmcfd_m3)*((1+$I38*(BX$3-$D38))^$J38)*(1-$F38)-$G38)*Gg_m3),IF($E38="Flooded",(($H38*mmcfd_m3)*EXP(-0.6728*(BX$3-$D38))*Gg_m3),(($H38*mmcfd_m3)*((1+$I38*(BX$3-$D38))^$J38)-$G38)*Gg_m3+((($H38*mmcfd_m3)*((1+$I38*(BX$3-$D38))^$J38)*(1-0.8)-$G38)*Gg_m3)+(($H38*mmcfd_m3)*EXP(-0.6728*(BX$3-$D38))*Gg_m3)))),0)),0,IF($D38<BX$3,IF($E38="Venting",(($H38*mmcfd_m3)*((1+$I38*(BX$3-$D38))^$J38)-$G38)*Gg_m3,IF($E38="Sealed",((($H38*mmcfd_m3)*((1+$I38*(BX$3-$D38))^$J38)*(1-$F38)-$G38)*Gg_m3),IF($E38="Flooded",(($H38*mmcfd_m3)*EXP(-0.6728*(BX$3-$D38))*Gg_m3),(($H38*mmcfd_m3)*((1+$I38*(BX$3-$D38))^$J38)-$G38)*Gg_m3+((($H38*mmcfd_m3)*((1+$I38*(BX$3-$D38))^$J38)*(1-0.8)-$G38)*Gg_m3)+(($H38*mmcfd_m3)*EXP(-0.6728*(BX$3-$D38))*Gg_m3)))),0)) -> 0 | BY38: 0 | BZ38: 0 | CA38: 0 | CB38: 0 | CC38: 0 | CD38: 0 | CE38: 0 | CF38: 0 | CG38: 0
A39: 36 | B39: ='CH4 from Abandoned Coal Mines'!D40 ->  | C39: ='CH4 from Abandoned Coal Mines'!H40 ->  | D39: =VALUE('CH4 from Abandoned Coal Mines'!J40) ->  | E39: =IF('CH4 from Abandoned Coal Mines'!N40>0,'CH4 from Abandoned Coal Mines'!N40,'CH4 from Abandoned Coal Mines'!L40) ->  | F39: ='CH4 from Abandoned Coal Mines'!P40 -> 0 | G39: ='CH4 from Abandoned Coal Mines'!R40 -> 0 | H39: =VLOOKUP(B39,'Abandoned Data'!$O$3:$V$163,6,FALSE) ->  | I39: =VLOOKUP(B39,'Abandoned Data'!$O$3:$V$163,7,FALSE) ->  | J39: =VLOOKUP(B39,'Abandoned Data'!$O$3:$V$163,8,FALSE) ->  | R39: KS | S39: Default Average | T39: 0.314830472 | U39: 0.1044242544 | V39: 0.5807452736 | X39: 36 | Y39: 0 | Z39: 0 | AA39: 0 | AB39: 0 | AC39: 0 | AD39: 0 | AE39: 0 | AF39: 0 | AG39: 0 | AH39: 0 | AI39: 0 | AJ39: 0 | AK39: 0 | AL39: 0 | AM39: 0 | AN39: 0 | AO39: 0 | AP39: 0 | AQ39: 0 | AR39: 0 | AS39: 0 | AT39: 0 | AU39: 0 | AV39: 0 | AW39: 0 | AX39: 0 | AY39: 0 | AZ39: 0 | BA39: 0 | BB39: 0 | BC39: 0 | BD39: 0 | BE39: 0 | BF39: 0 | BG39: 0 | BH39: 0 | BI39: 0 | BJ39: 0 | BK39: 0 | BL39: 0 | BM39: 0 | BN39: 0 | BO39: 0 | BP39: 0 | BQ39: 0 | BR39: 0 | BS39: 0 | BT39: 0 | BU39: 0 | BV39: 0 | BW39: 0 | BX39: 0 | BY39: 0 | BZ39: 0 | CA39: 0 | CB39: 0 | CC39: 0 | CD39: 0 | CE39: 0 | CF39: 0 | CG39: 0
A40: 37 | B40: ='CH4 from Abandoned Coal Mines'!D41 ->  | C40: ='CH4 from Abandoned Coal Mines'!H41 ->  | D40: =VALUE('CH4 from Abandoned Coal Mines'!J41) ->  | E40: =IF('CH4 from Abandoned Coal Mines'!N41>0,'CH4 from Abandoned Coal Mines'!N41,'CH4 from Abandoned Coal Mines'!L41) ->  | F40: ='CH4 from Abandoned Coal Mines'!P41 -> 0 | G40: ='CH4 from Abandoned Coal Mines'!R41 -> 0 | H40: =VLOOKUP(B40,'Abandoned Data'!$O$3:$V$163,6,FALSE) ->  | I40: =VLOOKUP(B40,'Abandoned Data'!$O$3:$V$163,7,FALSE) ->  | J40: =VLOOKUP(B40,'Abandoned Data'!$O$3:$V$163,8,FALSE) ->  | R40: LA | S40: Default Average | T40: 0.314830472 | U40: 0.1044242544 | V40: 0.5807452736 | X40: 37 | Y40: 0 | Z40: 0 | AA40: 0 | AB40: 0 | AC40: 0 | AD40: 0 | AE40: 0 | AF40: 0 | AG40: 0 | AH40: 0 | AI40: 0 | AJ40: 0 | AK40: 0 | AL40: 0 | AM40: 0 | AN40: 0 | AO40: 0 | AP40: 0 | AQ40: 0 | AR40: 0 | AS40: 0 | AT40: 0 | AU40: 0 | AV40: 0 | AW40: 0 | AX40: 0 | AY40: 0 | AZ40: 0 | BA40: 0 | BB40: 0 | BC40: 0 | BD40: 0 | BE40: 0 | BF40: 0 | BG40: 0 | BH40: 0 | BI40: 0 | BJ40: 0 | BK40: 0 | BL40: 0 | BM40: 0 | BN40: 0 | BO40: 0 | BP40: 0 | BQ40: 0 | BR40: 0 | BS40: 0 | BT40: 0 | BU40: 0 | BV40: 0 | BW40: 0 | BX40: 0 | BY40: 0 | BZ40: 0 | CA40: 0 | CB40: 0 | CC40: 0 | CD40: 0 | CE40: 0 | CF40: 0 | CG40: 0
A41: 38 | B41: ='CH4 from Abandoned Coal Mines'!D42 ->  | C41: ='CH4 from Abandoned Coal Mines'!H42 ->  | D41: =VALUE('CH4 from Abandoned Coal Mines'!J42) ->  | E41: =IF('CH4 from Abandoned Coal Mines'!N42>0,'CH4 from Abandoned Coal Mines'!N42,'CH4 from Abandoned Coal Mines'!L42) ->  | F41: ='CH4 from Abandoned Coal Mines'!P42 -> 0 | G41: ='CH4 from Abandoned Coal Mines'!R42 -> 0 | H41: =VLOOKUP(B41,'Abandoned Data'!$O$3:$V$163,6,FALSE) ->  | I41: =VLOOKUP(B41,'Abandoned Data'!$O$3:$V$163,7,FALSE) ->  | J41: =VLOOKUP(B41,'Abandoned Data'!$O$3:$V$163,8,FALSE) ->  | R41: ME | S41: Default Average | T41: 0.314830472 | U41: 0.1044242544 | V41: 0.5807452736 | X41: 38 | Y41: 0 | Z41: 0 | AA41: 0 | AB41: 0 | AC41: 0 | AD41: 0 | AE41: 0 | AF41: 0 | AG41: 0 | AH41: 0 | AI41: 0 | AJ41: 0 | AK41: 0 | AL41: 0 | AM41: 0 | AN41: 0 | AO41: 0 | AP41: 0 | AQ41: 0 | AR41: 0 | AS41: 0 | AT41: 0 | AU41: 0 | AV41: 0 | AW41: 0 | AX41: 0 | AY41: 0 | AZ41: 0 | BA41: 0 | BB41: 0 | BC41: 0 | BD41: 0 | BE41: 0 | BF41: 0 | BG41: 0 | BH41: 0 | BI41: 0 | BJ41: 0 | BK41: 0 | BL41: 0 | BM41: 0 | BN41: 0 | BO41: 0 | BP41: 0 | BQ41: 0 | BR41: 0 | BS41: 0 | BT41: 0 | BU41: 0 | BV41: 0 | BW41: 0 | BX41: 0 | BY41: 0 | BZ41: 0 | CA41: 0 | CB41: 0 | CC41: 0 | CD41: 0 | CE41: 0 | CF41: 0 | CG41: 0
A42: 39 | B42: ='CH4 from Abandoned Coal Mines'!D43 ->  | C42: ='CH4 from Abandoned Coal Mines'!H43 ->  | D42: =VALUE('CH4 from Abandoned Coal Mines'!J43) ->  | E42: =IF('CH4 from Abandoned Coal Mines'!N43>0,'CH4 from Abandoned Coal Mines'!N43,'CH4 from Abandoned Coal Mines'!L43) ->  | F42: ='CH4 from Abandoned Coal Mines'!P43 -> 0 | G42: ='CH4 from Abandoned Coal Mines'!R43 -> 0 | H42: =VLOOKUP(B42,'Abandoned Data'!$O$3:$V$163,6,FALSE) ->  | I42: =VLOOKUP(B42,'Abandoned Data'!$O$3:$V$163,7,FALSE) ->  | J42: =VLOOKUP(B42,'Abandoned Data'!$O$3:$V$163,8,FALSE) ->  | R42: MA | S42: Default Average | T42: 0.314830472 | U42: 0.1044242544 | V42: 0.5807452736 | X42: 39 | Y42: 0 | Z42: 0 | AA42: 0 | AB42: 0 | AC42: 0 | AD42: 0 | AE42: 0 | AF42: 0 | AG42: 0 | AH42: 0 | AI42: 0 | AJ42: 0 | AK42: 0 | AL42: 0 | AM42: 0 | AN42: 0 | AO42: 0 | AP42: 0 | AQ42: 0 | AR42: 0 | AS42: 0 | AT42: 0 | AU42: 0 | AV42: 0 | AW42: 0 | AX42: 0 | AY42: 0 | AZ42: 0 | BA42: 0 | BB42: 0 | BC42: 0 | BD42: 0 | BE42: 0 | BF42: 0 | BG42: 0 | BH42: 0 | BI42: 0 | BJ42: 0 | BK42: 0 | BL42: 0 | BM42: 0 | BN42: 0 | BO42: 0 | BP42: 0 | BQ42: 0 | BR42: 0 | BS42: 0 | BT42: 0 | BU42: 0 | BV42: 0 | BW42: 0 | BX42: 0 | BY42: 0 | BZ42: 0 | CA42: 0 | CB42: 0 | CC42: 0 | CD42: 0 | CE42: 0 | CF42: 0 | CG42: 0
A43: 40 | B43: ='CH4 from Abandoned Coal Mines'!D44 ->  | C43: ='CH4 from Abandoned Coal Mines'!H44 ->  | D43: =VALUE('CH4 from Abandoned Coal Mines'!J44) ->  | E43: =IF('CH4 from Abandoned Coal Mines'!N44>0,'CH4 from Abandoned Coal Mines'!N44,'CH4 from Abandoned Coal Mines'!L44) ->  | F43: ='CH4 from Abandoned Coal Mines'!P44 -> 0 | G43: ='CH4 from Abandoned Coal Mines'!R44 -> 0 | H43: =VLOOKUP(B43,'Abandoned Data'!$O$3:$V$163,6,FALSE) ->  | I43: =VLOOKUP(B43,'Abandoned Data'!$O$3:$V$163,7,FALSE) ->  | J43: =VLOOKUP(B43,'Abandoned Data'!$O$3:$V$163,8,FALSE) ->  | R43: MI | S43: Default Average | T43: 0.314830472 | U43: 0.1044242544 | V43: 0.5807452736 | X43: 40 | Y43: 0 | Z43: 0 | AA43: 0 | AB43: 0 | AC43: 0 | AD43: 0 | AE43: 0 | AF43: 0 | AG43: 0 | AH43: 0 | AI43: 0 | AJ43: 0 | AK43: 0 | AL43: 0 | AM43: 0 | AN43: 0 | AO43: 0 | AP43: 0 | AQ43: 0 | AR43: 0 | AS43: 0 | AT43: 0 | AU43: 0 | AV43: 0 | AW43: 0 | AX43: 0 | AY43: 0 | AZ43: 0 | BA43: 0 | BB43: 0 | BC43: 0 | BD43: 0 | BE43: 0 | BF43: 0 | BG43: 0 | BH43: 0 | BI43: 0 | BJ43: 0 | BK43: 0 | BL43: 0 | BM43: 0 | BN43: 0 | BO43: 0 | BP43: 0 | BQ43: 0 | BR43: 0 | BS43: 0 | BT43: 0 | BU43: 0 | BV43: 0 | BW43: 0 | BX43: 0 | BY43: 0 | BZ43: 0 | CA43: 0 | CB43: 0 | CC43: 0 | CD43: 0 | CE43: 0 | CF43: 0 | CG43: 0
A44: 41 | B44: ='CH4 from Abandoned Coal Mines'!D45 ->  | C44: ='CH4 from Abandoned Coal Mines'!H45 ->  | D44: =VALUE('CH4 from Abandoned Coal Mines'!J45) ->  | E44: =IF('CH4 from Abandoned Coal Mines'!N45>0,'CH4 from Abandoned Coal Mines'!N45,'CH4 from Abandoned Coal Mines'!L45) ->  | F44: ='CH4 from Abandoned Coal Mines'!P45 -> 0 | G44: ='CH4 from Abandoned Coal Mines'!R45 -> 0 | H44: =VLOOKUP(B44,'Abandoned Data'!$O$3:$V$163,6,FALSE) ->  | I44: =VLOOKUP(B44,'Abandoned Data'!$O$3:$V$163,7,FALSE) ->  | J44: =VLOOKUP(B44,'Abandoned Data'!$O$3:$V$163,8,FALSE) ->  | R44: MN | S44: Default Average | T44: 0.314830472 | U44: 0.1044242544 | V44: 0.5807452736 | X44: 41 | Y44: =IF(ISERROR(IF($D44<Y$3,IF($E44="Venting",(($H44*mmcfd_m3)*((1+$I44*(Y$3-$D44))^$J44)-$G44)*Gg_m3,IF($E44="Sealed",((($H44*mmcfd_m3)*((1+$I44*(Y$3-$D44))^$J44)*(1-$F44)-$G44)*Gg_m3),IF($E44="Flooded",(($H44*mmcfd_m3)*EXP(-0.6728*(Y$3-$D44))*Gg_m3),(($H44*mmcfd_m3)*((1+$I44*(Y$3-$D44))^$J44)-$G44)*Gg_m3+((($H44*mmcfd_m3)*((1+$I44*(Y$3-$D44))^$J44)*(1-0.8)-$G44)*Gg_m3)+(($H44*mmcfd_m3)*EXP(-0.6728*(Y$3-$D44))*Gg_m3)))),0)),0,IF($D44<Y$3,IF($E44="Venting",(($H44*mmcfd_m3)*((1+$I44*(Y$3-$D44))^$J44)-$G44)*Gg_m3,IF($E44="Sealed",((($H44*mmcfd_m3)*((1+$I44*(Y$3-$D44))^$J44)*(1-$F44)-$G44)*Gg_m3),IF($E44="Flooded",(($H44*mmcfd_m3)*EXP(-0.6728*(Y$3-$D44))*Gg_m3),(($H44*mmcfd_m3)*((1+$I44*(Y$3-$D44))^$J44)-$G44)*Gg_m3+((($H44*mmcfd_m3)*((1+$I44*(Y$3-$D44))^$J44)*(1-0.8)-$G44)*Gg_m3)+(($H44*mmcfd_m3)*EXP(-0.6728*(Y$3-$D44))*Gg_m3)))),0)) -> 0 | Z44: 0 | AA44: 0 | AB44: 0 | AC44: 0 | AD44: 0 | AE44: 0 | AF44: 0 | AG44: 0 | AH44: 0 | AI44: =IF(ISERROR(IF($D44<AI$3,IF($E44="Venting",(($H44*mmcfd_m3)*((1+$I44*(AI$3-$D44))^$J44)-$G44)*Gg_m3,IF($E44="Sealed",((($H44*mmcfd_m3)*((1+$I44*(AI$3-$D44))^$J44)*(1-$F44)-$G44)*Gg_m3),IF($E44="Flooded",(($H44*mmcfd_m3)*EXP(-0.6728*(AI$3-$D44))*Gg_m3),(($H44*mmcfd_m3)*((1+$I44*(AI$3-$D44))^$J44)-$G44)*Gg_m3+((($H44*mmcfd_m3)*((1+$I44*(AI$3-$D44))^$J44)*(1-0.8)-$G44)*Gg_m3)+(($H44*mmcfd_m3)*EXP(-0.6728*(AI$3-$D44))*Gg_m3)))),0)),0,IF($D44<AI$3,IF($E44="Venting",(($H44*mmcfd_m3)*((1+$I44*(AI$3-$D44))^$J44)-$G44)*Gg_m3,IF($E44="Sealed",((($H44*mmcfd_m3)*((1+$I44*(AI$3-$D44))^$J44)*(1-$F44)-$G44)*Gg_m3),IF($E44="Flooded",(($H44*mmcfd_m3)*EXP(-0.6728*(AI$3-$D44))*Gg_m3),(($H44*mmcfd_m3)*((1+$I44*(AI$3-$D44))^$J44)-$G44)*Gg_m3+((($H44*mmcfd_m3)*((1+$I44*(AI$3-$D44))^$J44)*(1-0.8)-$G44)*Gg_m3)+(($H44*mmcfd_m3)*EXP(-0.6728*(AI$3-$D44))*Gg_m3)))),0)) -> 0 | AJ44: 0 | AK44: 0 | AL44: 0 | AM44: 0 | AN44: 0 | AO44: 0 | AP44: 0 | AQ44: 0 | AR44: 0 | AS44: =IF(ISERROR(IF($D44<AS$3,IF($E44="Venting",(($H44*mmcfd_m3)*((1+$I44*(AS$3-$D44))^$J44)-$G44)*Gg_m3,IF($E44="Sealed",((($H44*mmcfd_m3)*((1+$I44*(AS$3-$D44))^$J44)*(1-$F44)-$G44)*Gg_m3),IF($E44="Flooded",(($H44*mmcfd_m3)*EXP(-0.6728*(AS$3-$D44))*Gg_m3),(($H44*mmcfd_m3)*((1+$I44*(AS$3-$D44))^$J44)-$G44)*Gg_m3+((($H44*mmcfd_m3)*((1+$I44*(AS$3-$D44))^$J44)*(1-0.8)-$G44)*Gg_m3)+(($H44*mmcfd_m3)*EXP(-0.6728*(AS$3-$D44))*Gg_m3)))),0)),0,IF($D44<AS$3,IF($E44="Venting",(($H44*mmcfd_m3)*((1+$I44*(AS$3-$D44))^$J44)-$G44)*Gg_m3,IF($E44="Sealed",((($H44*mmcfd_m3)*((1+$I44*(AS$3-$D44))^$J44)*(1-$F44)-$G44)*Gg_m3),IF($E44="Flooded",(($H44*mmcfd_m3)*EXP(-0.6728*(AS$3-$D44))*Gg_m3),(($H44*mmcfd_m3)*((1+$I44*(AS$3-$D44))^$J44)-$G44)*Gg_m3+((($H44*mmcfd_m3)*((1+$I44*(AS$3-$D44))^$J44)*(1-0.8)-$G44)*Gg_m3)+(($H44*mmcfd_m3)*EXP(-0.6728*(AS$3-$D44))*Gg_m3)))),0)) -> 0 | AT44: 0 | AU44: 0 | AV44: 0 | AW44: 0 | AX44: 0 | AY44: 0 | AZ44: 0 | BA44: 0 | BB44: 0 | BC44: 0 | BD44: 0 | BE44: 0 | BF44: 0 | BG44: 0 | BH44: 0 | BI44: 0 | BJ44: 0 | BK44: 0 | BL44: 0 | BM44: 0 | BN44: 0 | BO44: 0 | BP44: 0 | BQ44: 0 | BR44: 0 | BS44: 0 | BT44: 0 | BU44: 0 | BV44: 0 | BW44: 0 | BX44: 0 | BY44: 0 | BZ44: 0 | CA44: 0 | CB44: 0 | CC44: 0 | CD44: 0 | CE44: 0 | CF44: 0 | CG44: 0
A45: 42 | B45: ='CH4 from Abandoned Coal Mines'!D46 ->  | C45: ='CH4 from Abandoned Coal Mines'!H46 ->  | D45: =VALUE('CH4 from Abandoned Coal Mines'!J46) ->  | E45: =IF('CH4 from Abandoned Coal Mines'!N46>0,'CH4 from Abandoned Coal Mines'!N46,'CH4 from Abandoned Coal Mines'!L46) ->  | F45: ='CH4 from Abandoned Coal Mines'!P46 -> 0 | G45: ='CH4 from Abandoned Coal Mines'!R46 -> 0 | H45: =VLOOKUP(B45,'Abandoned Data'!$O$3:$V$163,6,FALSE) ->  | I45: =VLOOKUP(B45,'Abandoned Data'!$O$3:$V$163,7,FALSE) ->  | J45: =VLOOKUP(B45,'Abandoned Data'!$O$3:$V$163,8,FALSE) ->  | R45: MS | S45: Default Average | T45: 0.314830472 | U45: 0.1044242544 | V45: 0.5807452736 | X45: 42 | Y45: 0 | Z45: 0 | AA45: 0 | AB45: 0 | AC45: 0 | AD45: 0 | AE45: 0 | AF45: 0 | AG45: 0 | AH45: 0 | AI45: 0 | AJ45: 0 | AK45: 0 | AL45: 0 | AM45: 0 | AN45: 0 | AO45: 0 | AP45: 0 | AQ45: 0 | AR45: 0 | AS45: 0 | AT45: 0 | AU45: 0 | AV45: 0 | AW45: 0 | AX45: 0 | AY45: 0 | AZ45: 0 | BA45: 0 | BB45: 0 | BC45: 0 | BD45: 0 | BE45: 0 | BF45: 0 | BG45: 0 | BH45: 0 | BI45: 0 | BJ45: 0 | BK45: 0 | BL45: 0 | BM45: 0 | BN45: 0 | BO45: 0 | BP45: 0 | BQ45: 0 | BR45: 0 | BS45: 0 | BT45: 0 | BU45: 0 | BV45: 0 | BW45: 0 | BX45: 0 | BY45: 0 | BZ45: 0 | CA45: 0 | CB45: 0 | CC45: 0 | CD45: 0 | CE45: 0 | CF45: 0 | CG45: 0
A46: 43 | B46: ='CH4 from Abandoned Coal Mines'!D47 ->  | C46: ='CH4 from Abandoned Coal Mines'!H47 ->  | D46: =VALUE('CH4 from Abandoned Coal Mines'!J47) ->  | E46: =IF('CH4 from Abandoned Coal Mines'!N47>0,'CH4 from Abandoned Coal Mines'!N47,'CH4 from Abandoned Coal Mines'!L47) ->  | F46: ='CH4 from Abandoned Coal Mines'!P47 -> 0 | G46: ='CH4 from Abandoned Coal Mines'!R47 -> 0 | H46: =VLOOKUP(B46,'Abandoned Data'!$O$3:$V$163,6,FALSE) ->  | I46: =VLOOKUP(B46,'Abandoned Data'!$O$3:$V$163,7,FALSE) ->  | J46: =VLOOKUP(B46,'Abandoned Data'!$O$3:$V$163,8,FALSE) ->  | K46: =IF(E46="Venting",((H46*mmcfd_m3)*((1+I46*($AZ$3-D46))^J46)-G46)*Gg_m3,IF(E46="Sealed",(((H46*mmcfd_m3)*((1+I46*($AZ$3-D46))^J46)*(1-F46)-G46)*Gg_m3),IF(E46="Flooded",((H46*mmcfd_m3)*EXP(-0.6728*($AZ$3-D46))*Gg_m3),((H46*mmcfd_m3)*((1+I46*($AZ$3-D46))^J46)-G46)*Gg_m3+(((H46*mmcfd_m3)*((1+I46*($AZ$3-D46))^J46)*(1-0.8)-G46)*Gg_m3)+((H46*mmcfd_m3)*EXP(-0.6728*($AZ$3-D46))*Gg_m3)))) ->  | R46: MO | S46: Default Average | T46: 0.314830472 | U46: 0.1044242544 | V46: 0.5807452736 | X46: 43 | Y46: 0 | Z46: 0 | AA46: 0 | AB46: 0 | AC46: 0 | AD46: 0 | AE46: 0 | AF46: 0 | AG46: 0 | AH46: 0 | AI46: 0 | AJ46: 0 | AK46: 0 | AL46: 0 | AM46: 0 | AN46: 0 | AO46: 0 | AP46: 0 | AQ46: 0 | AR46: 0 | AS46: 0 | AT46: 0 | AU46: 0 | AV46: 0 | AW46: 0 | AX46: 0 | AY46: 0 | AZ46: 0 | BA46: 0 | BB46: 0 | BC46: 0 | BD46: 0 | BE46: 0 | BF46: 0 | BG46: 0 | BH46: 0 | BI46: 0 | BJ46: 0 | BK46: 0 | BL46: 0 | BM46: 0 | BN46: 0 | BO46: 0 | BP46: 0 | BQ46: 0 | BR46: 0 | BS46: 0 | BT46: 0 | BU46: 0 | BV46: 0 | BW46: 0 | BX46: 0 | BY46: 0 | BZ46: 0 | CA46: 0 | CB46: 0 | CC46: 0 | CD46: 0 | CE46: 0 | CF46: 0 | CG46: 0
A47: 44 | B47: ='CH4 from Abandoned Coal Mines'!D48 ->  | C47: ='CH4 from Abandoned Coal Mines'!H48 ->  | D47: =VALUE('CH4 from Abandoned Coal Mines'!J48) ->  | E47: =IF('CH4 from Abandoned Coal Mines'!N48>0,'CH4 from Abandoned Coal Mines'!N48,'CH4 from Abandoned Coal Mines'!L48) ->  | F47: ='CH4 from Abandoned Coal Mines'!P48 -> 0 | G47: ='CH4 from Abandoned Coal Mines'!R48 -> 0 | H47: =VLOOKUP(B47,'Abandoned Data'!$O$3:$V$163,6,FALSE) ->  | I47: =VLOOKUP(B47,'Abandoned Data'!$O$3:$V$163,7,FALSE) ->  | J47: =VLOOKUP(B47,'Abandoned Data'!$O$3:$V$163,8,FALSE) ->  | R47: MT | S47: Default Average | T47: 0.314830472 | U47: 0.1044242544 | V47: 0.5807452736 | X47: 44 | Y47: 0 | Z47: 0 | AA47: 0 | AB47: 0 | AC47: 0 | AD47: 0 | AE47: 0 | AF47: 0 | AG47: 0 | AH47: 0 | AI47: 0 | AJ47: 0 | AK47: 0 | AL47: 0 | AM47: 0 | AN47: 0 | AO47: 0 | AP47: 0 | AQ47: 0 | AR47: 0 | AS47: 0 | AT47: 0 | AU47: 0 | AV47: 0 | AW47: 0 | AX47: 0 | AY47: 0 | AZ47: 0 | BA47: 0 | BB47: 0 | BC47: 0 | BD47: 0 | BE47: 0 | BF47: 0 | BG47: 0 | BH47: 0 | BI47: 0 | BJ47: 0 | BK47: 0 | BL47: 0 | BM47: 0 | BN47: =IF(ISERROR(IF($D47<BN$3,IF($E47="Venting",(($H47*mmcfd_m3)*((1+$I47*(BN$3-$D47))^$J47)-$G47)*Gg_m3,IF($E47="Sealed",((($H47*mmcfd_m3)*((1+$I47*(BN$3-$D47))^$J47)*(1-$F47)-$G47)*Gg_m3),IF($E47="Flooded",(($H47*mmcfd_m3)*EXP(-0.6728*(BN$3-$D47))*Gg_m3),(($H47*mmcfd_m3)*((1+$I47*(BN$3-$D47))^$J47)-$G47)*Gg_m3+((($H47*mmcfd_m3)*((1+$I47*(BN$3-$D47))^$J47)*(1-0.8)-$G47)*Gg_m3)+(($H47*mmcfd_m3)*EXP(-0.6728*(BN$3-$D47))*Gg_m3)))),0)),0,IF($D47<BN$3,IF($E47="Venting",(($H47*mmcfd_m3)*((1+$I47*(BN$3-$D47))^$J47)-$G47)*Gg_m3,IF($E47="Sealed",((($H47*mmcfd_m3)*((1+$I47*(BN$3-$D47))^$J47)*(1-$F47)-$G47)*Gg_m3),IF($E47="Flooded",(($H47*mmcfd_m3)*EXP(-0.6728*(BN$3-$D47))*Gg_m3),(($H47*mmcfd_m3)*((1+$I47*(BN$3-$D47))^$J47)-$G47)*Gg_m3+((($H47*mmcfd_m3)*((1+$I47*(BN$3-$D47))^$J47)*(1-0.8)-$G47)*Gg_m3)+(($H47*mmcfd_m3)*EXP(-0.6728*(BN$3-$D47))*Gg_m3)))),0)) -> 0 | BO47: 0 | BP47: 0 | BQ47: 0 | BR47: 0 | BS47: 0 | BT47: 0 | BU47: 0 | BV47: 0 | BW47: 0 | BX47: 0 | BY47: 0 | BZ47: 0 | CA47: 0 | CB47: 0 | CC47: 0 | CD47: 0 | CE47: 0 | CF47: 0 | CG47: 0
A48: 45 | B48: ='CH4 from Abandoned Coal Mines'!D49 ->  | C48: ='CH4 from Abandoned Coal Mines'!H49 ->  | D48: =VALUE('CH4 from Abandoned Coal Mines'!J49) ->  | E48: =IF('CH4 from Abandoned Coal Mines'!N49>0,'CH4 from Abandoned Coal Mines'!N49,'CH4 from Abandoned Coal Mines'!L49) ->  | F48: ='CH4 from Abandoned Coal Mines'!P49 -> 0 | G48: ='CH4 from Abandoned Coal Mines'!R49 -> 0 | H48: =VLOOKUP(B48,'Abandoned Data'!$O$3:$V$163,6,FALSE) ->  | I48: =VLOOKUP(B48,'Abandoned Data'!$O$3:$V$163,7,FALSE) ->  | J48: =VLOOKUP(B48,'Abandoned Data'!$O$3:$V$163,8,FALSE) ->  | R48: NE | S48: Default Average | T48: 0.314830472 | U48: 0.1044242544 | V48: 0.5807452736 | X48: 45 | Y48: 0 | Z48: 0 | AA48: 0 | AB48: 0 | AC48: 0 | AD48: 0 | AE48: 0 | AF48: 0 | AG48: 0 | AH48: 0 | AI48: 0 | AJ48: 0 | AK48: 0 | AL48: 0 | AM48: 0 | AN48: 0 | AO48: 0 | AP48: 0 | AQ48: 0 | AR48: 0 | AS48: 0 | AT48: 0 | AU48: 0 | AV48: 0 | AW48: 0 | AX48: 0 | AY48: 0 | AZ48: 0 | BA48: 0 | BB48: 0 | BC48: 0 | BD48: 0 | BE48: 0 | BF48: 0 | BG48: 0 | BH48: 0 | BI48: 0 | BJ48: 0 | BK48: 0 | BL48: 0 | BM48: 0 | BN48: 0 | BO48: 0 | BP48: 0 | BQ48: 0 | BR48: 0 | BS48: 0 | BT48: 0 | BU48: 0 | BV48: 0 | BW48: 0 | BX48: 0 | BY48: 0 | BZ48: 0 | CA48: 0 | CB48: 0 | CC48: 0 | CD48: 0 | CE48: 0 | CF48: 0 | CG48: 0
A49: 46 | B49: ='CH4 from Abandoned Coal Mines'!D50 ->  | C49: ='CH4 from Abandoned Coal Mines'!H50 ->  | D49: =VALUE('CH4 from Abandoned Coal Mines'!J50) ->  | E49: =IF('CH4 from Abandoned Coal Mines'!N50>0,'CH4 from Abandoned Coal Mines'!N50,'CH4 from Abandoned Coal Mines'!L50) ->  | F49: ='CH4 from Abandoned Coal Mines'!P50 -> 0 | G49: ='CH4 from Abandoned Coal Mines'!R50 -> 0 | H49: =VLOOKUP(B49,'Abandoned Data'!$O$3:$V$163,6,FALSE) ->  | I49: =VLOOKUP(B49,'Abandoned Data'!$O$3:$V$163,7,FALSE) ->  | J49: =VLOOKUP(B49,'Abandoned Data'!$O$3:$V$163,8,FALSE) ->  | R49: NV | S49: Default Average | T49: 0.314830472 | U49: 0.1044242544 | V49: 0.5807452736 | X49: 46 | Y49: 0 | Z49: 0 | AA49: 0 | AB49: 0 | AC49: 0 | AD49: 0 | AE49: 0 | AF49: 0 | AG49: 0 | AH49: 0 | AI49: 0 | AJ49: 0 | AK49: 0 | AL49: 0 | AM49: 0 | AN49: 0 | AO49: 0 | AP49: 0 | AQ49: 0 | AR49: 0 | AS49: 0 | AT49: 0 | AU49: 0 | AV49: 0 | AW49: 0 | AX49: 0 | AY49: 0 | AZ49: 0 | BA49: 0 | BB49: 0 | BC49: 0 | BD49: 0 | BE49: 0 | BF49: 0 | BG49: 0 | BH49: 0 | BI49: 0 | BJ49: 0 | BK49: 0 | BL49: 0 | BM49: 0 | BN49: 0 | BO49: 0 | BP49: 0 | BQ49: 0 | BR49: 0 | BS49: 0 | BT49: 0 | BU49: 0 | BV49: 0 | BW49: 0 | BX49: 0 | BY49: 0 | BZ49: 0 | CA49: 0 | CB49: 0 | CC49: 0 | CD49: 0 | CE49: 0 | CF49: 0 | CG49: 0
A50: 47 | B50: ='CH4 from Abandoned Coal Mines'!D51 ->  | C50: ='CH4 from Abandoned Coal Mines'!H51 ->  | D50: =VALUE('CH4 from Abandoned Coal Mines'!J51) ->  | E50: =IF('CH4 from Abandoned Coal Mines'!N51>0,'CH4 from Abandoned Coal Mines'!N51,'CH4 from Abandoned Coal Mines'!L51) ->  | F50: ='CH4 from Abandoned Coal Mines'!P51 -> 0 | G50: ='CH4 from Abandoned Coal Mines'!R51 -> 0 | H50: =VLOOKUP(B50,'Abandoned Data'!$O$3:$V$163,6,FALSE) ->  | I50: =VLOOKUP(B50,'Abandoned Data'!$O$3:$V$163,7,FALSE) ->  | J50: =VLOOKUP(B50,'Abandoned Data'!$O$3:$V$163,8,FALSE) ->  | R50: NH | S50: Default Average | T50: 0.314830472 | U50: 0.1044242544 | V50: 0.5807452736 | X50: 47 | Y50: 0 | Z50: 0 | AA50: 0 | AB50: 0 | AC50: 0 | AD50: 0 | AE50: 0 | AF50: 0 | AG50: 0 | AH50: 0 | AI50: 0 | AJ50: 0 | AK50: 0 | AL50: 0 | AM50: 0 | AN50: 0 | AO50: 0 | AP50: 0 | AQ50: 0 | AR50: 0 | AS50: 0 | AT50: 0 | AU50: 0 | AV50: 0 | AW50: 0 | AX50: 0 | AY50: 0 | AZ50: 0 | BA50: 0 | BB50: 0 | BC50: 0 | BD50: 0 | BE50: 0 | BF50: 0 | BG50: 0 | BH50: 0 | BI50: 0 | BJ50: 0 | BK50: 0 | BL50: 0 | BM50: 0 | BN50: 0 | BO50: 0 | BP50: 0 | BQ50: 0 | BR50: 0 | BS50: 0 | BT50: 0 | BU50: 0 | BV50: 0 | BW50: 0 | BX50: 0 | BY50: 0 | BZ50: 0 | CA50: 0 | CB50: 0 | CC50: 0 | CD50: 0 | CE50: 0 | CF50: 0 | CG50: 0
A51: 48 | B51: ='CH4 from Abandoned Coal Mines'!D52 ->  | C51: ='CH4 from Abandoned Coal Mines'!H52 ->  | D51: =VALUE('CH4 from Abandoned Coal Mines'!J52) ->  | E51: =IF('CH4 from Abandoned Coal Mines'!N52>0,'CH4 from Abandoned Coal Mines'!N52,'CH4 from Abandoned Coal Mines'!L52) ->  | F51: ='CH4 from Abandoned Coal Mines'!P52 -> 0 | G51: ='CH4 from Abandoned Coal Mines'!R52 -> 0 | H51: =VLOOKUP(B51,'Abandoned Data'!$O$3:$V$163,6,FALSE) ->  | I51: =VLOOKUP(B51,'Abandoned Data'!$O$3:$V$163,7,FALSE) ->  | J51: =VLOOKUP(B51,'Abandoned Data'!$O$3:$V$163,8,FALSE) ->  | R51: NJ | S51: Default Average | T51: 0.314830472 | U51: 0.1044242544 | V51: 0.5807452736 | X51: 48 | Y51: 0 | Z51: 0 | AA51: 0 | AB51: 0 | AC51: 0 | AD51: 0 | AE51: 0 | AF51: 0 | AG51: 0 | AH51: 0 | AI51: 0 | AJ51: 0 | AK51: 0 | AL51: 0 | AM51: 0 | AN51: 0 | AO51: 0 | AP51: 0 | AQ51: 0 | AR51: 0 | AS51: 0 | AT51: 0 | AU51: 0 | AV51: 0 | AW51: 0 | AX51: 0 | AY51: 0 | AZ51: 0 | BA51: 0 | BB51: 0 | BC51: 0 | BD51: 0 | BE51: 0 | BF51: 0 | BG51: 0 | BH51: 0 | BI51: 0 | BJ51: 0 | BK51: 0 | BL51: 0 | BM51: 0 | BN51: 0 | BO51: 0 | BP51: 0 | BQ51: 0 | BR51: 0 | BS51: 0 | BT51: 0 | BU51: 0 | BV51: 0 | BW51: 0 | BX51: 0 | BY51: 0 | BZ51: 0 | CA51: 0 | CB51: 0 | CC51: 0 | CD51: 0 | CE51: 0 | CF51: 0 | CG51: 0
A52: 49 | B52: ='CH4 from Abandoned Coal Mines'!D53 ->  | C52: ='CH4 from Abandoned Coal Mines'!H53 ->  | D52: =VALUE('CH4 from Abandoned Coal Mines'!J53) ->  | E52: =IF('CH4 from Abandoned Coal Mines'!N53>0,'CH4 from Abandoned Coal Mines'!N53,'CH4 from Abandoned Coal Mines'!L53) ->  | F52: ='CH4 from Abandoned Coal Mines'!P53 -> 0 | G52: ='CH4 from Abandoned Coal Mines'!R53 -> 0 | H52: =VLOOKUP(B52,'Abandoned Data'!$O$3:$V$163,6,FALSE) ->  | I52: =VLOOKUP(B52,'Abandoned Data'!$O$3:$V$163,7,FALSE) ->  | J52: =VLOOKUP(B52,'Abandoned Data'!$O$3:$V$163,8,FALSE) ->  | R52: NY | S52: Default Average | T52: 0.314830472 | U52: 0.1044242544 | V52: 0.5807452736 | X52: 49 | Y52: 0 | Z52: 0 | AA52: 0 | AB52: 0 | AC52: 0 | AD52: 0 | AE52: 0 | AF52: 0 | AG52: 0 | AH52: 0 | AI52: 0 | AJ52: 0 | AK52: 0 | AL52: 0 | AM52: 0 | AN52: 0 | AO52: 0 | AP52: 0 | AQ52: 0 | AR52: 0 | AS52: 0 | AT52: 0 | AU52: 0 | AV52: 0 | AW52: 0 | AX52: 0 | AY52: 0 | AZ52: 0 | BA52: 0 | BB52: 0 | BC52: 0 | BD52: 0 | BE52: 0 | BF52: 0 | BG52: 0 | BH52: 0 | BI52: 0 | BJ52: 0 | BK52: 0 | BL52: 0 | BM52: 0 | BN52: 0 | BO52: 0 | BP52: 0 | BQ52: 0 | BR52: 0 | BS52: 0 | BT52: 0 | BU52: 0 | BV52: 0 | BW52: 0 | BX52: 0 | BY52: 0 | BZ52: 0 | CA52: 0 | CB52: 0 | CC52: 0 | CD52: 0 | CE52: 0 | CF52: 0 | CG52: 0
A53: 50 | B53: ='CH4 from Abandoned Coal Mines'!D54 ->  | C53: ='CH4 from Abandoned Coal Mines'!H54 ->  | D53: =VALUE('CH4 from Abandoned Coal Mines'!J54) ->  | E53: =IF('CH4 from Abandoned Coal Mines'!N54>0,'CH4 from Abandoned Coal Mines'!N54,'CH4 from Abandoned Coal Mines'!L54) ->  | F53: ='CH4 from Abandoned Coal Mines'!P54 -> 0 | G53: ='CH4 from Abandoned Coal Mines'!R54 -> 0 | H53: =VLOOKUP(B53,'Abandoned Data'!$O$3:$V$163,6,FALSE) ->  | I53: =VLOOKUP(B53,'Abandoned Data'!$O$3:$V$163,7,FALSE) ->  | J53: =VLOOKUP(B53,'Abandoned Data'!$O$3:$V$163,8,FALSE) ->  | R53: NC | S53: Default Average | T53: 0.314830472 | U53: 0.1044242544 | V53: 0.5807452736 | X53: 50 | Y53: 0 | Z53: 0 | AA53: 0 | AB53: 0 | AC53: 0 | AD53: 0 | AE53: 0 | AF53: 0 | AG53: 0 | AH53: 0 | AI53: 0 | AJ53: 0 | AK53: 0 | AL53: 0 | AM53: 0 | AN53: 0 | AO53: 0 | AP53: 0 | AQ53: 0 | AR53: 0 | AS53: 0 | AT53: 0 | AU53: 0 | AV53: 0 | AW53: 0 | AX53: 0 | AY53: 0 | AZ53: 0 | BA53: 0 | BB53: 0 | BC53: 0 | BD53: 0 | BE53: 0 | BF53: 0 | BG53: 0 | BH53: 0 | BI53: 0 | BJ53: 0 | BK53: 0 | BL53: 0 | BM53: 0 | BN53: 0 | BO53: 0 | BP53: 0 | BQ53: 0 | BR53: 0 | BS53: 0 | BT53: 0 | BU53: 0 | BV53: 0 | BW53: 0 | BX53: 0 | BY53: 0 | BZ53: 0 | CA53: 0 | CB53: 0 | CC53: 0 | CD53: 0 | CE53: 0 | CF53: 0 | CG53: 0
A54: 51 | B54: ='CH4 from Abandoned Coal Mines'!D55 ->  | C54: ='CH4 from Abandoned Coal Mines'!H55 ->  | D54: =VALUE('CH4 from Abandoned Coal Mines'!J55) ->  | E54: =IF('CH4 from Abandoned Coal Mines'!N55>0,'CH4 from Abandoned Coal Mines'!N55,'CH4 from Abandoned Coal Mines'!L55) ->  | F54: ='CH4 from Abandoned Coal Mines'!P55 -> 0 | G54: ='CH4 from Abandoned Coal Mines'!R55 -> 0 | H54: =VLOOKUP(B54,'Abandoned Data'!$O$3:$V$163,6,FALSE) ->  | I54: =VLOOKUP(B54,'Abandoned Data'!$O$3:$V$163,7,FALSE) ->  | J54: =VLOOKUP(B54,'Abandoned Data'!$O$3:$V$163,8,FALSE) ->  | R54: ND | S54: Default Average | T54: 0.314830472 | U54: 0.1044242544 | V54: 0.5807452736 | X54: 51 | Y54: =IF(ISERROR(IF($D54<Y$3,IF($E54="Venting",(($H54*mmcfd_m3)*((1+$I54*(Y$3-$D54))^$J54)-$G54)*Gg_m3,IF($E54="Sealed",((($H54*mmcfd_m3)*((1+$I54*(Y$3-$D54))^$J54)*(1-$F54)-$G54)*Gg_m3),IF($E54="Flooded",(($H54*mmcfd_m3)*EXP(-0.6728*(Y$3-$D54))*Gg_m3),(($H54*mmcfd_m3)*((1+$I54*(Y$3-$D54))^$J54)-$G54)*Gg_m3+((($H54*mmcfd_m3)*((1+$I54*(Y$3-$D54))^$J54)*(1-0.8)-$G54)*Gg_m3)+(($H54*mmcfd_m3)*EXP(-0.6728*(Y$3-$D54))*Gg_m3)))),0)),0,IF($D54<Y$3,IF($E54="Venting",(($H54*mmcfd_m3)*((1+$I54*(Y$3-$D54))^$J54)-$G54)*Gg_m3,IF($E54="Sealed",((($H54*mmcfd_m3)*((1+$I54*(Y$3-$D54))^$J54)*(1-$F54)-$G54)*Gg_m3),IF($E54="Flooded",(($H54*mmcfd_m3)*EXP(-0.6728*(Y$3-$D54))*Gg_m3),(($H54*mmcfd_m3)*((1+$I54*(Y$3-$D54))^$J54)-$G54)*Gg_m3+((($H54*mmcfd_m3)*((1+$I54*(Y$3-$D54))^$J54)*(1-0.8)-$G54)*Gg_m3)+(($H54*mmcfd_m3)*EXP(-0.6728*(Y$3-$D54))*Gg_m3)))),0)) -> 0 | Z54: 0 | AA54: 0 | AB54: 0 | AC54: 0 | AD54: 0 | AE54: 0 | AF54: 0 | AG54: 0 | AH54: 0 | AI54: =IF(ISERROR(IF($D54<AI$3,IF($E54="Venting",(($H54*mmcfd_m3)*((1+$I54*(AI$3-$D54))^$J54)-$G54)*Gg_m3,IF($E54="Sealed",((($H54*mmcfd_m3)*((1+$I54*(AI$3-$D54))^$J54)*(1-$F54)-$G54)*Gg_m3),IF($E54="Flooded",(($H54*mmcfd_m3)*EXP(-0.6728*(AI$3-$D54))*Gg_m3),(($H54*mmcfd_m3)*((1+$I54*(AI$3-$D54))^$J54)-$G54)*Gg_m3+((($H54*mmcfd_m3)*((1+$I54*(AI$3-$D54))^$J54)*(1-0.8)-$G54)*Gg_m3)+(($H54*mmcfd_m3)*EXP(-0.6728*(AI$3-$D54))*Gg_m3)))),0)),0,IF($D54<AI$3,IF($E54="Venting",(($H54*mmcfd_m3)*((1+$I54*(AI$3-$D54))^$J54)-$G54)*Gg_m3,IF($E54="Sealed",((($H54*mmcfd_m3)*((1+$I54*(AI$3-$D54))^$J54)*(1-$F54)-$G54)*Gg_m3),IF($E54="Flooded",(($H54*mmcfd_m3)*EXP(-0.6728*(AI$3-$D54))*Gg_m3),(($H54*mmcfd_m3)*((1+$I54*(AI$3-$D54))^$J54)-$G54)*Gg_m3+((($H54*mmcfd_m3)*((1+$I54*(AI$3-$D54))^$J54)*(1-0.8)-$G54)*Gg_m3)+(($H54*mmcfd_m3)*EXP(-0.6728*(AI$3-$D54))*Gg_m3)))),0)) -> 0 | AJ54: 0 | AK54: 0 | AL54: 0 | AM54: 0 | AN54: 0 | AO54: 0 | AP54: 0 | AQ54: 0 | AR54: 0 | AS54: =IF(ISERROR(IF($D54<AS$3,IF($E54="Venting",(($H54*mmcfd_m3)*((1+$I54*(AS$3-$D54))^$J54)-$G54)*Gg_m3,IF($E54="Sealed",((($H54*mmcfd_m3)*((1+$I54*(AS$3-$D54))^$J54)*(1-$F54)-$G54)*Gg_m3),IF($E54="Flooded",(($H54*mmcfd_m3)*EXP(-0.6728*(AS$3-$D54))*Gg_m3),(($H54*mmcfd_m3)*((1+$I54*(AS$3-$D54))^$J54)-$G54)*Gg_m3+((($H54*mmcfd_m3)*((1+$I54*(AS$3-$D54))^$J54)*(1-0.8)-$G54)*Gg_m3)+(($H54*mmcfd_m3)*EXP(-0.6728*(AS$3-$D54))*Gg_m3)))),0)),0,IF($D54<AS$3,IF($E54="Venting",(($H54*mmcfd_m3)*((1+$I54*(AS$3-$D54))^$J54)-$G54)*Gg_m3,IF($E54="Sealed",((($H54*mmcfd_m3)*((1+$I54*(AS$3-$D54))^$J54)*(1-$F54)-$G54)*Gg_m3),IF($E54="Flooded",(($H54*mmcfd_m3)*EXP(-0.6728*(AS$3-$D54))*Gg_m3),(($H54*mmcfd_m3)*((1+$I54*(AS$3-$D54))^$J54)-$G54)*Gg_m3+((($H54*mmcfd_m3)*((1+$I54*(AS$3-$D54))^$J54)*(1-0.8)-$G54)*Gg_m3)+(($H54*mmcfd_m3)*EXP(-0.6728*(AS$3-$D54))*Gg_m3)))),0)) -> 0 | AT54: 0 | AU54: 0 | AV54: 0 | AW54: 0 | AX54: 0 | AY54: 0 | AZ54: 0 | BA54: 0 | BB54: 0 | BC54: 0 | BD54: 0 | BE54: 0 | BF54: 0 | BG54: 0 | BH54: 0 | BI54: 0 | BJ54: 0 | BK54: 0 | BL54: 0 | BM54: 0 | BN54: 0 | BO54: 0 | BP54: 0 | BQ54: 0 | BR54: 0 | BS54: 0 | BT54: 0 | BU54: 0 | BV54: 0 | BW54: 0 | BX54: 0 | BY54: 0 | BZ54: 0 | CA54: 0 | CB54: 0 | CC54: 0 | CD54: 0 | CE54: 0 | CF54: 0 | CG54: 0
A55: 52 | B55: ='CH4 from Abandoned Coal Mines'!D56 ->  | C55: ='CH4 from Abandoned Coal Mines'!H56 ->  | D55: =VALUE('CH4 from Abandoned Coal Mines'!J56) ->  | E55: =IF('CH4 from Abandoned Coal Mines'!N56>0,'CH4 from Abandoned Coal Mines'!N56,'CH4 from Abandoned Coal Mines'!L56) ->  | F55: ='CH4 from Abandoned Coal Mines'!P56 -> 0 | G55: ='CH4 from Abandoned Coal Mines'!R56 -> 0 | H55: =VLOOKUP(B55,'Abandoned Data'!$O$3:$V$163,6,FALSE) ->  | I55: =VLOOKUP(B55,'Abandoned Data'!$O$3:$V$163,7,FALSE) ->  | J55: =VLOOKUP(B55,'Abandoned Data'!$O$3:$V$163,8,FALSE) ->  | R55: OR | S55: Default Average | T55: 0.314830472 | U55: 0.1044242544 | V55: 0.5807452736 | X55: 52 | Y55: 0 | Z55: 0 | AA55: 0 | AB55: 0 | AC55: 0 | AD55: 0 | AE55: 0 | AF55: 0 | AG55: 0 | AH55: 0 | AI55: 0 | AJ55: 0 | AK55: 0 | AL55: 0 | AM55: 0 | AN55: 0 | AO55: 0 | AP55: 0 | AQ55: 0 | AR55: 0 | AS55: 0 | AT55: 0 | AU55: 0 | AV55: 0 | AW55: 0 | AX55: 0 | AY55: 0 | AZ55: 0 | BA55: 0 | BB55: 0 | BC55: 0 | BD55: 0 | BE55: 0 | BF55: 0 | BG55: 0 | BH55: 0 | BI55: 0 | BJ55: 0 | BK55: 0 | BL55: 0 | BM55: 0 | BN55: 0 | BO55: 0 | BP55: 0 | BQ55: 0 | BR55: 0 | BS55: 0 | BT55: 0 | BU55: 0 | BV55: 0 | BW55: 0 | BX55: 0 | BY55: 0 | BZ55: 0 | CA55: 0 | CB55: 0 | CC55: 0 | CD55: 0 | CE55: 0 | CF55: 0 | CG55: 0
A56: 53 | B56: ='CH4 from Abandoned Coal Mines'!D57 ->  | C56: ='CH4 from Abandoned Coal Mines'!H57 ->  | D56: =VALUE('CH4 from Abandoned Coal Mines'!J57) ->  | E56: =IF('CH4 from Abandoned Coal Mines'!N57>0,'CH4 from Abandoned Coal Mines'!N57,'CH4 from Abandoned Coal Mines'!L57) ->  | F56: ='CH4 from Abandoned Coal Mines'!P57 -> 0 | G56: ='CH4 from Abandoned Coal Mines'!R57 -> 0 | H56: =VLOOKUP(B56,'Abandoned Data'!$O$3:$V$163,6,FALSE) ->  | I56: =VLOOKUP(B56,'Abandoned Data'!$O$3:$V$163,7,FALSE) ->  | J56: =VLOOKUP(B56,'Abandoned Data'!$O$3:$V$163,8,FALSE) ->  | R56: RI | S56: Default Average | T56: 0.314830472 | U56: 0.1044242544 | V56: 0.5807452736 | X56: 53 | Y56: 0 | Z56: 0 | AA56: 0 | AB56: 0 | AC56: 0 | AD56: 0 | AE56: 0 | AF56: 0 | AG56: 0 | AH56: 0 | AI56: 0 | AJ56: 0 | AK56: 0 | AL56: 0 | AM56: 0 | AN56: 0 | AO56: 0 | AP56: 0 | AQ56: 0 | AR56: 0 | AS56: 0 | AT56: 0 | AU56: 0 | AV56: 0 | AW56: 0 | AX56: 0 | AY56: 0 | AZ56: 0 | BA56: 0 | BB56: 0 | BC56: 0 | BD56: =IF(ISERROR(IF($D56<BD$3,IF($E56="Venting",(($H56*mmcfd_m3)*((1+$I56*(BD$3-$D56))^$J56)-$G56)*Gg_m3,IF($E56="Sealed",((($H56*mmcfd_m3)*((1+$I56*(BD$3-$D56))^$J56)*(1-$F56)-$G56)*Gg_m3),IF($E56="Flooded",(($H56*mmcfd_m3)*EXP(-0.6728*(BD$3-$D56))*Gg_m3),(($H56*mmcfd_m3)*((1+$I56*(BD$3-$D56))^$J56)-$G56)*Gg_m3+((($H56*mmcfd_m3)*((1+$I56*(BD$3-$D56))^$J56)*(1-0.8)-$G56)*Gg_m3)+(($H56*mmcfd_m3)*EXP(-0.6728*(BD$3-$D56))*Gg_m3)))),0)),0,IF($D56<BD$3,IF($E56="Venting",(($H56*mmcfd_m3)*((1+$I56*(BD$3-$D56))^$J56)-$G56)*Gg_m3,IF($E56="Sealed",((($H56*mmcfd_m3)*((1+$I56*(BD$3-$D56))^$J56)*(1-$F56)-$G56)*Gg_m3),IF($E56="Flooded",(($H56*mmcfd_m3)*EXP(-0.6728*(BD$3-$D56))*Gg_m3),(($H56*mmcfd_m3)*((1+$I56*(BD$3-$D56))^$J56)-$G56)*Gg_m3+((($H56*mmcfd_m3)*((1+$I56*(BD$3-$D56))^$J56)*(1-0.8)-$G56)*Gg_m3)+(($H56*mmcfd_m3)*EXP(-0.6728*(BD$3-$D56))*Gg_m3)))),0)) -> 0 | BE56: 0 | BF56: 0 | BG56: 0 | BH56: 0 | BI56: 0 | BJ56: 0 | BK56: 0 | BL56: 0 | BM56: 0 | BN56: 0 | BO56: 0 | BP56: 0 | BQ56: 0 | BR56: 0 | BS56: 0 | BT56: 0 | BU56: 0 | BV56: 0 | BW56: 0 | BX56: 0 | BY56: 0 | BZ56: 0 | CA56: 0 | CB56: 0 | CC56: 0 | CD56: 0 | CE56: 0 | CF56: 0 | CG56: 0
A57: 54 | B57: ='CH4 from Abandoned Coal Mines'!D58 ->  | C57: ='CH4 from Abandoned Coal Mines'!H58 ->  | D57: =VALUE('CH4 from Abandoned Coal Mines'!J58) ->  | E57: =IF('CH4 from Abandoned Coal Mines'!N58>0,'CH4 from Abandoned Coal Mines'!N58,'CH4 from Abandoned Coal Mines'!L58) ->  | F57: ='CH4 from Abandoned Coal Mines'!P58 -> 0 | G57: ='CH4 from Abandoned Coal Mines'!R58 -> 0 | H57: =VLOOKUP(B57,'Abandoned Data'!$O$3:$V$163,6,FALSE) ->  | I57: =VLOOKUP(B57,'Abandoned Data'!$O$3:$V$163,7,FALSE) ->  | J57: =VLOOKUP(B57,'Abandoned Data'!$O$3:$V$163,8,FALSE) ->  | R57: SC | S57: Default Average | T57: 0.314830472 | U57: 0.1044242544 | V57: 0.5807452736 | X57: 54 | Y57: 0 | Z57: 0 | AA57: 0 | AB57: 0 | AC57: 0 | AD57: 0 | AE57: 0 | AF57: 0 | AG57: 0 | AH57: 0 | AI57: 0 | AJ57: 0 | AK57: 0 | AL57: 0 | AM57: 0 | AN57: 0 | AO57: 0 | AP57: 0 | AQ57: 0 | AR57: 0 | AS57: 0 | AT57: 0 | AU57: 0 | AV57: 0 | AW57: 0 | AX57: 0 | AY57: 0 | AZ57: 0 | BA57: 0 | BB57: 0 | BC57: 0 | BD57: 0 | BE57: 0 | BF57: 0 | BG57: 0 | BH57: 0 | BI57: 0 | BJ57: 0 | BK57: 0 | BL57: 0 | BM57: 0 | BN57: 0 | BO57: 0 | BP57: 0 | BQ57: 0 | BR57: 0 | BS57: 0 | BT57: 0 | BU57: 0 | BV57: 0 | BW57: 0 | BX57: 0 | BY57: 0 | BZ57: 0 | CA57: 0 | CB57: 0 | CC57: 0 | CD57: 0 | CE57: 0 | CF57: 0 | CG57: 0
A58: 55 | B58: ='CH4 from Abandoned Coal Mines'!D59 ->  | C58: ='CH4 from Abandoned Coal Mines'!H59 ->  | D58: =VALUE('CH4 from Abandoned Coal Mines'!J59) ->  | E58: =IF('CH4 from Abandoned Coal Mines'!N59>0,'CH4 from Abandoned Coal Mines'!N59,'CH4 from Abandoned Coal Mines'!L59) ->  | F58: ='CH4 from Abandoned Coal Mines'!P59 -> 0 | G58: ='CH4 from Abandoned Coal Mines'!R59 -> 0 | H58: =VLOOKUP(B58,'Abandoned Data'!$O$3:$V$163,6,FALSE) ->  | I58: =VLOOKUP(B58,'Abandoned Data'!$O$3:$V$163,7,FALSE) ->  | J58: =VLOOKUP(B58,'Abandoned Data'!$O$3:$V$163,8,FALSE) ->  | R58: SD | S58: Default Average | T58: 0.314830472 | U58: 0.1044242544 | V58: 0.5807452736 | X58: 55 | Y58: 0 | Z58: 0 | AA58: 0 | AB58: 0 | AC58: 0 | AD58: 0 | AE58: 0 | AF58: 0 | AG58: 0 | AH58: 0 | AI58: 0 | AJ58: 0 | AK58: 0 | AL58: 0 | AM58: 0 | AN58: 0 | AO58: 0 | AP58: 0 | AQ58: 0 | AR58: 0 | AS58: 0 | AT58: 0 | AU58: 0 | AV58: 0 | AW58: 0 | AX58: 0 | AY58: 0 | AZ58: 0 | BA58: 0 | BB58: 0 | BC58: 0 | BD58: 0 | BE58: 0 | BF58: 0 | BG58: 0 | BH58: 0 | BI58: 0 | BJ58: 0 | BK58: 0 | BL58: 0 | BM58: 0 | BN58: 0 | BO58: 0 | BP58: 0 | BQ58: 0 | BR58: 0 | BS58: 0 | BT58: 0 | BU58: 0 | BV58: 0 | BW58: 0 | BX58: 0 | BY58: 0 | BZ58: 0 | CA58: 0 | CB58: 0 | CC58: 0 | CD58: 0 | CE58: 0 | CF58: 0 | CG58: 0
A59: 56 | B59: ='CH4 from Abandoned Coal Mines'!D60 ->  | C59: ='CH4 from Abandoned Coal Mines'!H60 ->  | D59: =VALUE('CH4 from Abandoned Coal Mines'!J60) ->  | E59: =IF('CH4 from Abandoned Coal Mines'!N60>0,'CH4 from Abandoned Coal Mines'!N60,'CH4 from Abandoned Coal Mines'!L60) ->  | F59: ='CH4 from Abandoned Coal Mines'!P60 -> 0 | G59: ='CH4 from Abandoned Coal Mines'!R60 -> 0 | H59: =VLOOKUP(B59,'Abandoned Data'!$O$3:$V$163,6,FALSE) ->  | I59: =VLOOKUP(B59,'Abandoned Data'!$O$3:$V$163,7,FALSE) ->  | J59: =VLOOKUP(B59,'Abandoned Data'!$O$3:$V$163,8,FALSE) ->  | R59: TX | S59: Default Average | T59: 0.314830472 | U59: 0.1044242544 | V59: 0.5807452736 | X59: 56 | Y59: 0 | Z59: 0 | AA59: 0 | AB59: 0 | AC59: 0 | AD59: 0 | AE59: 0 | AF59: 0 | AG59: 0 | AH59: 0 | AI59: 0 | AJ59: 0 | AK59: 0 | AL59: 0 | AM59: 0 | AN59: 0 | AO59: 0 | AP59: 0 | AQ59: 0 | AR59: 0 | AS59: 0 | AT59: 0 | AU59: 0 | AV59: 0 | AW59: 0 | AX59: 0 | AY59: 0 | AZ59: 0 | BA59: 0 | BB59: 0 | BC59: 0 | BD59: 0 | BE59: 0 | BF59: 0 | BG59: 0 | BH59: 0 | BI59: 0 | BJ59: 0 | BK59: 0 | BL59: 0 | BM59: 0 | BN59: 0 | BO59: 0 | BP59: 0 | BQ59: 0 | BR59: 0 | BS59: 0 | BT59: 0 | BU59: 0 | BV59: 0 | BW59: 0 | BX59: 0 | BY59: 0 | BZ59: 0 | CA59: 0 | CB59: 0 | CC59: 0 | CD59: 0 | CE59: 0 | CF59: 0 | CG59: 0
A60: 57 | B60: ='CH4 from Abandoned Coal Mines'!D61 ->  | C60: ='CH4 from Abandoned Coal Mines'!H61 ->  | D60: =VALUE('CH4 from Abandoned Coal Mines'!J61) ->  | E60: =IF('CH4 from Abandoned Coal Mines'!N61>0,'CH4 from Abandoned Coal Mines'!N61,'CH4 from Abandoned Coal Mines'!L61) ->  | F60: ='CH4 from Abandoned Coal Mines'!P61 -> 0 | G60: ='CH4 from Abandoned Coal Mines'!R61 -> 0 | H60: =VLOOKUP(B60,'Abandoned Data'!$O$3:$V$163,6,FALSE) ->  | I60: =VLOOKUP(B60,'Abandoned Data'!$O$3:$V$163,7,FALSE) ->  | J60: =VLOOKUP(B60,'Abandoned Data'!$O$3:$V$163,8,FALSE) ->  | R60: VT | S60: Default Average | T60: 0.314830472 | U60: 0.1044242544 | V60: 0.5807452736 | X60: 57 | Y60: 0 | Z60: 0 | AA60: 0 | AB60: 0 | AC60: 0 | AD60: 0 | AE60: 0 | AF60: 0 | AG60: 0 | AH60: 0 | AI60: 0 | AJ60: 0 | AK60: 0 | AL60: 0 | AM60: 0 | AN60: 0 | AO60: 0 | AP60: 0 | AQ60: 0 | AR60: 0 | AS60: 0 | AT60: 0 | AU60: 0 | AV60: 0 | AW60: 0 | AX60: 0 | AY60: 0 | AZ60: 0 | BA60: 0 | BB60: 0 | BC60: 0 | BD60: 0 | BE60: 0 | BF60: 0 | BG60: 0 | BH60: 0 | BI60: 0 | BJ60: 0 | BK60: 0 | BL60: 0 | BM60: 0 | BN60: 0 | BO60: 0 | BP60: 0 | BQ60: 0 | BR60: 0 | BS60: 0 | BT60: 0 | BU60: 0 | BV60: 0 | BW60: 0 | BX60: 0 | BY60: 0 | BZ60: 0 | CA60: 0 | CB60: 0 | CC60: 0 | CD60: 0 | CE60: 0 | CF60: 0 | CG60: 0
